Workbook

Sheet Title
A1: CENTERS FOR DISEASE CONTROL & PREVENTION (CDC)
F5: COVID-Vac (v.1)
F6: A tool for planning COVID-19 vaccination clinics and mass vaccination sites
F8: Contributors: (alpha) Fischer, Leah S; Meltzer, Martin I, Washington, Michael L
F9: Acknowledgements: Fulton County Health Department, Mercedez-Benz Stadium Security (Atlanta, GA), Lisa Koonin (CDC)
L11: Contact Info: HEMU@cdc.gov
F13: Version DRAFT
F14: Date of this version:
F15: 2021-06-29

Sheet Introduction
A1: Introduction
C3: About the Tool | P3: Navigation and Instruction
C5: The COVID-Vac tool is designed for local and state public health officials who plan to set up large-scale vaccination sites and helps to answer the question: "What is the fastest way to vaccinate people arriving at the vaccination site with a limited number of personnel available?" The tool supports over 1,100 different combinations of support staff, vaccinators, and client arrival rates to cover a wide range of vaccination site configurations. | R5: Click the arrow buttons on the upper right corner to navigate through the tool.
C7: Background | P7: User Input | R7: Peach-colored cells are designated user input cells in which users will select from a drop down menu or enter a value. There are five peach/user input cells in this tool.
C8: Throughout the trajectory of the COVID-19 pandemic, public health mitigation strategies such as masking, social distancing, and vaccination are critical for controlling the pandemic in the United States. COVID-19 vaccination of up to 80 percent of the population most effectively prevents SARS-CoV-2 transmission, reduces the severity of illness and death, and the associated burden on the health care system. As the COVID-19 pandemic evolves, there may be a need to reestablish large-scale vaccination sites across the United States to administer booster doses or reformulated COVID-19 vaccines to address new strains of SARS-CoV-2. Globally, as other countries receive COVID-19 vaccine, the need for vaccination clinics may arise.* With user-provided values for the number of available staff and vaccinators, and the number of individuals who arrive to be vaccinated, the COVID-Vac tool optimizes staff placement for each station to minimize the average amount of time individuals spend in the clinic over 12 hours. Additional results the tool provides are average amount of time clients spend at the vaccine site, number of operational hours that exceed a 12-hour shift, average and maximum number of clients at the clinic and by station per shift.
P9: Calculated or linked cell | R9: Grey cells contain formula or calculated values; they are automatically updated based on user entries in the yellow cells.
P11: Pop-up box | R11: Bright yellow buttons are for pop-up boxes on tabs 1-3 that contain additional information or helpful hints regarding variables user inputs.
P13: Pop-up box | R13: Red buttons are for pop-up boxes on tabs 4-6 that contain interpretation for results.
C17: COVID-Vac Assumptions and Caveats
B27: *The Centers for Disease Control and Prevention of the U.S. Department of Health and Human Services released comprehensive guidance to help states, territories, and local communities plan and operationalize a vaccination response to COVID-19 within their jurisdictions:
B29: COVID-19 Vaccination Program Operational Guidance | CDC
B30: COVID-19 Vaccination Program Interim Playbook for Jurisdictions Operations Annex

Sheet 1. Staffing
A1: 1. Staffing
B4: Support Staff
O6: Click on flow chart for more details.
B7: Select number of support staff: | E7: 30 | F7: pulldown menu
B8: Enter number of relief staff: | E8: 15 | F8: Enter a number
B9: Full-time MD for observation room(s)* | E9: 1
B11: *CDC reference document
B13: Vaccinators
B16: Select number of vaccinators: | E16: 15 | F16: pulldown menu
B17: Enter number of relief vaccinators: | E17: 10 | F17: Enter a number
B21: Auxiliary Staff (optional)
B24: Enter number of Auxiliary staff: | E24: 10

Sheet 2. Arrival Rate
A1: 2. Client arrival rate
B4: Number of individuals arriving every minute
B7: Select number of people arriving per minute | E7: 3 | F7: pulldown menu
B8: Expected number vaccinated in 12 hours | E8: =E7*12*60 -> 2160

Sheet 3. Data Summary
A1: 3. Data Summary
B4: Support staff, vaccinators, and arrival rate
D5: Base Staff | E5: Relief Staff | F5: Total | G5: Auxilliary Staff*
C6: Support Staff | D6: ='1. Staffing'!E7 -> 30 | E6: ='1. Staffing'!E8 -> 15 | F6: =SUM(D6:E6) -> 45
B7: MD (Observation Room) | D7: 1
C9: Vaccinators | D9: ='1. Staffing'!E16 -> 15 | E9: ='1. Staffing'!E17 -> 10 | F9: =SUM(D9:E9) -> 25
C12: Total Staff | D12: =SUM(D6:D9) -> 46 | E12: =SUM(E6:E9) -> 25 | F12: =SUM(F6:F9) -> 70 | G12: ='1. Staffing'!E24 -> 10
J14: =IF(ISERROR('4. Results - Staffing'!$H$21),"WARNING! "&VLOOKUP('Results VLOOKUP'!$A$1,'Select Staff'!K:P,6,FALSE),"") -> 
C15: Arrival rate | D15: ='2. Arrival Rate'!E7 -> 3
B17: *Auxiliary staff are not included in the model for they do not impact the flow of individuals through the vaccination stations.

Sheet 4. Results - Staffing
A1: Results - Staffing and optimal placement of staff
B4: Table 1. Number of people vaccinated in 12-hour shift
B7: Total number of staff needed to operate all stations/12hr shift: | G7: ='3. Data Summary'!D12 -> 46
B8: Staff needed to operate all stations + relief staff/12hr shift: | G8: ='3. Data Summary'!F12 -> 70
B10: Total average number of people who can be vaccinated: | G10: ='Results VLOOKUP'!$C$23 -> 2162.49
F11: non-ADA: | G11: ='Results VLOOKUP'!C22 -> 1598.1 | H11: =(G11/G10) -> 0.7390091977
F12: ADA: | G12: ='Results VLOOKUP'!C21 -> 564.39 | H12: =(G12/G10) -> 0.2609908023
B16: Table 2. Optimal placement of staff by station per 12-hour shift | K16: =IF(ISERROR('4. Results - Staffing'!H21),"WARNING! "&VLOOKUP('Results VLOOKUP'!A1,'Select Staff'!K:P,6,FALSE),"") -> 
H17: Number of Staff | I17: Staff Utilization
B20: Support Staff
D21: Greeter | H21: ='Results VLOOKUP'!C3 -> 2 | I21: ='Results VLOOKUP'!C26 -> 0.4740446863
D22: Medical History and Documentation Staff | H22: ='Results VLOOKUP'!C4 -> 24 | I22: ='Results VLOOKUP'!C27 -> 0.8235316695
C23: Waiting Room Manager for the Vaccination Station | H23: ='Results VLOOKUP'!C5 -> 1 | I23: ='Results VLOOKUP'!C28 -> 0.4747813275
C24: Observation Room Manager for non-ADA individuals | H24: ='Results VLOOKUP'!C8 -> 1 | I24: ='Results VLOOKUP'!C31 -> 0.9814636344
D25: Observation Room Manager for ADA individuals | H25: ='Results VLOOKUP'!C9 -> 1 | I25: ='Results VLOOKUP'!C32 -> 0.979905323
G26: Total Support Staff | H26: =SUM(H21:H25) -> 29
D27: Full-time MD for Observation Room (CDC Guidelines) | H27: 1
B29: Vaccinators
D30: Vaccinators for non-ADA individuals | H30: ='Results VLOOKUP'!C6 -> 10 | I30: ='Results VLOOKUP'!C29 -> 0.8664068552
D31: Vaccinators for ADA individuals | H31: ='Results VLOOKUP'!C7 -> 5 | I31: ='Results VLOOKUP'!C30 -> 0.7646486991
F32: Total Vaccinators | H32: =SUM(H30:H31) -> 15

Sheet 5. Results - Time
A1: Results - Average time spent at vaccination site
B4: Table 3. Average time individuals spend at vaccination site
D5: ='Results VLOOKUP'!C14 -> Average (in minutes) | E5: Average (in hours) | F5: Hours Working after Clinic Doors Close
B8: ='Results VLOOKUP'!B16 -> Total time clients spend in the clinic | D8: ='Results VLOOKUP'!C16 -> 32.01771237 | E8: =D8/60 -> 0.5336285395
C9: ='Results VLOOKUP'!B18 -> Total time non-ADA clients spend in the clinic | D9: ='Results VLOOKUP'!C18 -> 30.83756549 | E9: =D9/60 -> 0.5139594249
C10: ='Results VLOOKUP'!B17 -> Total time ADA clients spend in the clinic | D10: ='Results VLOOKUP'!C17 -> 35.34165753 | E10: 0.5890276254
B11: ='Results VLOOKUP'!B15 -> Time the clinic closes | D11: ='Results VLOOKUP'!C15 -> 760.2730954 | E11: =D11/60 -> 12.67121826 | F11: =ROUND('Results VLOOKUP'!E15,1)&"*" -> 0.7*
B12: =IF(ISERROR(D11),"","* This means that the clinic will close approximately "&ROUND(D11-720,0)&" minutes after the clinic doors close") -> * This means that the clinic will close approximately 40 minutes after the clinic doors close
H13: =IF(ISERROR('4. Results - Staffing'!$H$21),"WARNING! "&VLOOKUP('Results VLOOKUP'!$A$1,'Select Staff'!K:P,6,FALSE),"") -> 

Sheet 6. Results - Individuals per St
A1: Results - Individuals at each station
B4: Table 4. Average No. clients in each station
D5: avg # people | E5: maximum #
B6: Average number of clients in the clinic | D6: ='Results VLOOKUP'!C40 -> 91.27462214 | E6: ='Results VLOOKUP'!E40 -> 134.4379291
B8: Number of individuals waiting, by station | G8: =IF(ISERROR('4. Results - Staffing'!$H$21),"WARNING! "&VLOOKUP('Results VLOOKUP'!$A$1,'Select Staff'!K:P,6,FALSE),"") -> 
C9: Greeter | D9: ='Results VLOOKUP'!C43 -> 0.9969184391 | E9: ='Results VLOOKUP'!E43 -> 1.599082049
C10: Medical History | D10: ='Results VLOOKUP'!C44 -> 5.91207769 | E10: ='Results VLOOKUP'!E44 -> 21.4966997
C11: Waiting Room | D11: ='Results VLOOKUP'!C37 -> 4.478069579 | E11: ='Results VLOOKUP'!E37 -> 20.54748316
C12: Vaccinator | D12: ='Results VLOOKUP'!C46 -> 5.128092898 | E12: ='Results VLOOKUP'!E46 -> 18.44825675
C13: non-ADA Observation Area | D13: ='Results VLOOKUP'!C36 -> 26.20477122 | E13: ='Results VLOOKUP'!E36 -> 28.45773008
C14: ADA Observation Area | D14: ='Results VLOOKUP'!C35 -> 11.5782202 | E14: ='Results VLOOKUP'!E35 -> 13.1727055

Sheet Clinic Flow
A1: Vaccination Site Flow Chart
K3: Back to 1. Staffing needs

Sheet Results VLOOKUP
A1: ="S"&'3. Data Summary'!D6&"M"&'3. Data Summary'!D9&"A"&'3. Data Summary'!D15 -> S30M15A3 | C1: Choosen Selection to turn | D1: Top 5 Results
B2: Stations | D2: 1 | E2: 2 | F2: 3 | G2: 4 | H2: 5
A3: Greeter.NumberScheduled | B3: Greeters | C3: =VLOOKUP(A3,INDIRECT(A$1&"!A:Dj"),106, FALSE) -> 2 | D3: =VLOOKUP($A3,INDIRECT($A$1&"!DM:DR"),1+D$2, FALSE) -> 2 | E3: =VLOOKUP($A3,INDIRECT($A$1&"!DM:DR"),1+E$2, FALSE) -> 3 | F3: 3 | G3: 2 | H3: 2
A4: Med Hist Resource.NumberScheduled | B4: Medical History | C4: =VLOOKUP(A4,INDIRECT(A$1&"!A:Dj"),106, FALSE) -> 24 | D4: =VLOOKUP($A4,INDIRECT($A$1&"!DM:DR"),1+D$2, FALSE) -> 24 | E4: 23 | F4: 24 | G4: 25 | H4: 23
A5: Waiting Room Resource.NumberScheduled | B5: Waiting Room | C5: =VLOOKUP(A5,INDIRECT(A$1&"!A:Dj"),106, FALSE) -> 1 | D5: =VLOOKUP($A5,INDIRECT($A$1&"!DM:DR"),1+D$2, FALSE) -> 1 | E5: =VLOOKUP($A5,INDIRECT($A$1&"!DM:DR"),1+E$2, FALSE) -> 2 | F5: =VLOOKUP($A5,INDIRECT($A$1&"!DM:DR"),1+F$2, FALSE) -> 1 | G5: =VLOOKUP($A5,INDIRECT($A$1&"!DM:DR"),1+G$2, FALSE) -> 1 | H5: =VLOOKUP($A5,INDIRECT($A$1&"!DM:DR"),1+H$2, FALSE) -> 2
A6: Vacc Resource.NumberScheduled | B6: Vaccinators | C6: 10 | D6: 10 | E6: 10 | F6: 10 | G6: 10 | H6: 10
A7: ADA Vacc Resource.NumberScheduled | B7: ADA Vaccinators | C7: 5 | D7: 5 | E7: 5 | F7: 5 | G7: 5 | H7: 5
A8: Watch Resource.NumberScheduled | B8: Watching Room | C8: =VLOOKUP(A8,INDIRECT(A$1&"!A:Dj"),106, FALSE) -> 1 | D8: =VLOOKUP($A8,INDIRECT($A$1&"!DM:DR"),1+D$2, FALSE) -> 1 | E8: =VLOOKUP($A8,INDIRECT($A$1&"!DM:DR"),1+E$2, FALSE) -> 1 | F8: =VLOOKUP($A8,INDIRECT($A$1&"!DM:DR"),1+F$2, FALSE) -> 1 | G8: =VLOOKUP($A8,INDIRECT($A$1&"!DM:DR"),1+G$2, FALSE) -> 1 | H8: =VLOOKUP($A8,INDIRECT($A$1&"!DM:DR"),1+H$2, FALSE) -> 1
A9: ADA Watch Resource.NumberScheduled | B9: ADA Watching Room | C9: 1 | D9: 1 | E9: 1 | F9: 1 | G9: 1 | H9: 1
A10: Support Staff | B10: Total Support Staff | C10: =SUM(C8:C9,C3:C5) -> 29 | D10: =SUM(D8:D9,D3:D5) -> 29 | E10: 30 | F10: 30 | G10: 30 | H10: 29
A11: Vaccinators | B11: Total Vaccinator staff | C11: =SUM(C6:C7) -> 15 | D11: =SUM(D6:D7) -> 15 | E11: 15 | F11: 15 | G11: 15 | H11: 15
A12: Arrival Rate | B12: Number of clients/minute | C12: ='3. Data Summary'!D15 -> 3
B14: Time related outputs | C14: Average (in minutes) | D14: 95%CI half width | F14: =12*60 -> 720
A15: Record Finish | B15: Time the clinic closes | C15: =VLOOKUP(A15,INDIRECT(A$1&"!A:Dj"),106, FALSE) -> 760.2730954 | D15: =VLOOKUP(A15,INDIRECT(A$1&"!A:Dj"),110, FALSE) -> 1.224933256 | E15: =(C15-(12*60))/60 -> 0.6712182573
A16: Entity 1.TotalTime | B16: Total time clients spend in the clinic | C16: =VLOOKUP(A16,INDIRECT(A$1&"!A:Dj"),106, FALSE) -> 32.01771237 | D16: =VLOOKUP(A16,INDIRECT(A$1&"!A:Dj"),110, FALSE) -> 0.5709680127
A17: Time in Clinic ADA | B17: Total time ADA clients spend in the clinic | C17: =VLOOKUP(A17,INDIRECT(A$1&"!A:Dj"),106, FALSE) -> 35.34165753 | D17: =VLOOKUP(A17,INDIRECT(A$1&"!A:Dj"),110, FALSE) -> 0.4135575183
A18: Time in Clinic nonADA | B18: Total time non-ADA clients spend in the clinic | C18: =VLOOKUP(A18,INDIRECT(A$1&"!A:Dj"),106, FALSE) -> 30.83756549 | D18: =VLOOKUP(A18,INDIRECT(A$1&"!A:Dj"),110, FALSE) -> 0.6427615261
B20: Number Vaccinated | C20: Average | D20: 95%CI half width
A21: ADAVacc | B21: Total number of ADA clients vaccinated | C21: =VLOOKUP(A21,INDIRECT(A$1&"!A:Dj"),106, FALSE) -> 564.39 | D21: =VLOOKUP(A21,INDIRECT(A$1&"!A:Dj"),110, FALSE) -> 5.385651149
A22: NonADAVacc | B22: Total number of non-ADA vaccinated | C22: =VLOOKUP(A22,INDIRECT(A$1&"!A:Dj"),106, FALSE) -> 1598.1 | D22: =VLOOKUP(A22,INDIRECT(A$1&"!A:Dj"),110, FALSE) -> 12.39117381
A23: System.NumberOut | B23: Total vaccinated | C23: =VLOOKUP(A23,INDIRECT(A$1&"!A:Dj"),106, FALSE) -> 2162.49 | D23: 15.91335049
B25: Utilization | C25: Average | D25: 95%CI half width | E25: Estimated % staff for relief
A26: Greeter | B26: =B3 -> Greeters | C26: =VLOOKUP(A26&"."&B$25,INDIRECT(A$1&"!A:Dj"),106, FALSE) -> 0.4740446863 | D26: =VLOOKUP(A26&"."&B$25,INDIRECT(A$1&"!A:Dj"),110, FALSE) -> 0.00331003608
A27: Med Hist Resource | B27: =B4 -> Medical History | C27: 0.8235316695 | D27: 0.00586801883
A28: Waiting Room Resource | B28: Waiting Room | C28: 0.4747813275 | D28: 0.003395008672
A29: Vacc Resource | B29: Vaccinators | C29: 0.8664068552 | D29: 0.006653508215
A30: ADA Vacc Resource | B30: ADA Vaccinators | C30: 0.7646486991 | D30: 0.007179192024
A31: Watch Resource | B31: Watching Room | C31: 0.9814636344 | D31: 0.001157599175
A32: ADA Watch Resource | B32: ADA Watching Room | C32: 0.979905323 | D32: 0.001040324887
B34: Chairs needed | C34: Average | D34: 95%CI half width | E34: Max
A35: ADA Watch Resource Chair.NumberBusy | B35: ADA Watch Area | C35: =VLOOKUP(A35,INDIRECT(A$1&"!A:Dj"),106, FALSE) -> 11.5782202 | D35: =VLOOKUP(A35,INDIRECT(A$1&"!A:Dj"),110, FALSE) -> 0.1156631794 | E35: =VLOOKUP(A35,INDIRECT(A$1&"!A:Dj"),107, FALSE) -> 13.1727055
A36: Watch Resource Chair.NumberBusy | B36: Non-ADA Watch Area | C36: =VLOOKUP(A36,INDIRECT(A$1&"!A:Dj"),106, FALSE) -> 26.20477122 | D36: =VLOOKUP(A36,INDIRECT(A$1&"!A:Dj"),110, FALSE) -> 0.1933874008 | E36: =VLOOKUP(A36,INDIRECT(A$1&"!A:Dj"),107, FALSE) -> 28.45773008
A37: Hold for Vacc.Queue.NumberInQueue | B37: Waiting Room Area | C37: =VLOOKUP(A37,INDIRECT(A$1&"!A:Dj"),106, FALSE) -> 4.478069579 | D37: =VLOOKUP(A37,INDIRECT(A$1&"!A:Dj"),110, FALSE) -> 0.5966554855 | E37: 20.54748316
C39: Average | D39: 95%CI half width | E39: Max
A40: Entity 1.WIP | B40: Number of Clients in the clinic | C40: =VLOOKUP(A40,INDIRECT(A$1&"!A:Dj"),106, FALSE) -> 91.27462214 | D40: =VLOOKUP(A40,INDIRECT(A$1&"!A:Dj"),110, FALSE) -> 2.153470383 | E40: =VLOOKUP(A40,INDIRECT(A$1&"!A:Dj"),107, FALSE) -> 134.4379291
A41: ADA Process Watch.Queue.NumberInQueue | B41: This should always be zero | C41: =VLOOKUP(A41,INDIRECT(A$1&"!A:Dj"),106, FALSE) -> 0 | D41: =VLOOKUP(A41,INDIRECT(A$1&"!A:Dj"),110, FALSE) ->  | E41: 0
A42: ADA Seize Watcher.Queue.NumberInQueue | B42: This should always be zero | C42: 0 | E42: 0
A43: Process Greeting.Queue.NumberInQueue | B43: Waiting for the Greeter | C43: 0.9969184391 | D43: 0.03518859221 | E43: 1.599082049
A44: Process Med Hist.Queue.NumberInQueue | B44: Waiting for the Medical History | C44: 5.91207769 | D44: 0.703198222 | E44: 21.4966997
A45: Process Schedule.Queue.NumberInQueue | B45: This should always be zero | C45: 0 | E45: 0
A46: Process Vacc.Queue.NumberInQueue | B46: Waiting for Vaccinators | C46: 5.128092898 | D46: 0.5755325188 | E46: 18.44825675
A47: Process Verify Appt.Queue.NumberInQueue | B47: This should always be zero | C47: 0 | E47: 0
A48: Process Waiting Room Greeter.Queue.NumberInQueue | B48: Waiting for Greeter | C48: 0.245117389 | D48: 0.004757572756 | E48: 0.3019907376
A49: Process Watch.Queue.NumberInQueue | B49: This should always be zero | C49: 0
A50: Seize Watcher.Queue.NumberInQueue | B50: This should always be zero | C50: 0

Sheet Select Staff
A1: Support | B1: Vacc | C1: Total Staff | D1: Arrival Rate | E1: Total number of clients arriving in 12 hours | G1: Support | H1: Vaccinator | I1: Total | J1: Arrival Rate | M1: Orange, I have results in the spreadsheet
A2: 80 | B2: 40 | C2: =B2+A2 -> 120 | D2: 15 | E2: =D2*60*12 -> 10800 | G2: 10 | H2: 5 | I2: =H2+G2 -> 15 | J2: 0.5 | M2: Blue, Average time in clinic is over 3 hours, or likely to be over three hours
G3: 20 | H3: 10 | I3: 30 | J3: 1 | M3: Clear, did not run because I can estimate a similar solution with less resources
G4: 30 | H4: 15 | I4: 45 | J4: 1.5 | L4: Support | M4: Vaccinator | N4: Total | O4: 3/min
G5: 40 | H5: 20 | I5: 60 | J5: 3 | K5: ="S"&L5&"M"&M5&"A"&O5 -> S10M5A3 | L5: 10 | M5: 5 | N5: =SUM(L5:M5) -> 15 | O5: 3 | P5: 5 vaccinators will not work at 3 people per minute. Need at least 10 vaccinators.
G6: 50 | H6: 25 | I6: 75 | J6: 5 | K6: ="S"&L6&"M"&M6&"A"&O6 -> S20M10A3 | L6: 20 | M6: 10 | N6: =SUM(L6:M6) -> 30 | O6: 3 | P6: Need more support staff and vaccinators
G7: 60 | H7: 30 | I7: 90 | J7: 10 | K7: S30M15A3 | L7: 30 | M7: 15 | N7: 45 | O7: 3
G8: 70 | H8: 35 | I8: 105 | J8: 15 | K8: S40M20A3 | L8: 40 | M8: 20 | N8: 60 | O8: 3 | P8: You will obtain similar results with 40 support staff and 20 vaccinators
G9: 80 | H9: 40 | I9: =H9+G9 -> 120 | K9: S50M25A3 | L9: 50 | M9: 25 | N9: 75 | O9: 3
K10: S60M30A3 | L10: 60 | M10: 30 | N10: 90 | O10: 3 | P10: 30 is the right number for vaccinators
H11: 0.5 | J11: =H11*$I$13 -> 360 | K11: S70M35A3 | L11: 70 | M11: 35 | N11: 105 | O11: 3
H12: 1 | J12: =H12*$I$13 -> 720 | K12: S80M40A3 | L12: 80 | M12: 40 | N12: 120 | O12: 3
H13: 1.5 | I13: 720 | J13: =H13*$I$13 -> 1080 | K13: S80M5A3 | L13: 80 | M13: 5 | N13: 85 | O13: 3 | P13: 5 vaccinators will not work at 3 people per minute. Need at least 10 vaccinators.
H14: 3 | J14: =H14*$I$13 -> 2160 | K14: S80M10A3 | L14: 80 | M14: 10 | N14: 90 | O14: 3 | P14: Just over 2 hours due to vaccinators
H15: 5 | J15: 3600 | K15: S80M15A3 | L15: 80 | M15: 15 | N15: 95 | O15: 3
H16: 10 | J16: 7200 | K16: S80M20A3 | L16: 80 | M16: 20 | N16: 100 | O16: 3
H17: 15 | J17: 10800 | K17: S80M25A3 | L17: 80 | M17: 25 | N17: 105 | O17: 3
K18: S80M30A3 | L18: 80 | M18: 30 | N18: 110 | O18: 3 | P18: With 80 support staff, don't need more than 25 vaccinators
K19: S80M35A3 | L19: 80 | M19: 35 | N19: 115 | O19: 3 | P19: With 80 support staff, don't need more than 25 vaccinators
K20: S70M5A3 | L20: 70 | M20: 5 | N20: 75 | O20: 3 | P20: 5 vaccinators will not work at 3 people per minute. Need at least 10 vaccinators.
K21: S70M10A3 | L21: 70 | M21: 10 | N21: 80 | O21: 3 | P21: Just over 2 hours due to vaccinators
K22: S70M15A3 | L22: 70 | M22: 15 | N22: 85 | O22: 3
K23: S70M20A3 | L23: 70 | M23: 20 | N23: 90 | O23: 3 | P23: You will obtain similar results with 40 support staff and 20 vaccinators
K24: S70M25A3 | L24: 70 | M24: 25 | N24: 95 | O24: 3 | P24: You will obtain similar results with 40 support staff and 20 vaccinators
K25: S70M30A3 | L25: 70 | M25: 30 | N25: 100 | O25: 3 | P25: You will obtain similar results with 40 support staff and 20 vaccinators
K26: S70M40A3 | L26: 70 | M26: 40 | O26: 3 | P26: You will obtain similar results with 40 support staff and 20 vaccinators
K27: S60M5A3 | L27: 60 | M27: 5 | N27: 65 | O27: 3 | P27: 5 vaccinators will not work at 3 people per minute. Need at least 10 vaccinators.
K28: S60M10A3 | L28: 60 | M28: 10 | N28: 70 | O28: 3 | P28: Just over 2 hours due to vaccinators
K29: S60M15A3 | L29: 60 | M29: 15 | N29: 75 | O29: 3
K30: S60M20A3 | L30: 60 | M30: 20 | N30: 80 | O30: 3 | P30: You will obtain similar results with 40 support staff and 20 vaccinators
K31: S60M25A3 | L31: 60 | M31: 25 | N31: 85 | O31: 3 | P31: You will obtain similar results with 40 support staff and 20 vaccinators
K32: S60M35A3 | L32: 60 | M32: 35 | N32: 95 | O32: 3 | P32: You will obtain similar results with 40 support staff and 20 vaccinators
K33: S60M40A3 | L33: 60 | M33: 40 | N33: 100 | O33: 3 | P33: You will obtain similar results with 40 support staff and 20 vaccinators
K34: S50M5A3 | L34: 50 | M34: 5 | N34: 55 | O34: 3 | P34: 5 vaccinators will not work at 3 people per minute. Need at least 10 vaccinators.
K35: S50M10A3 | L35: 50 | M35: 10 | N35: 60 | O35: 3 | P35: Just over 2 hours due to vaccinators
K36: S50M15A3 | L36: 50 | M36: 15 | N36: 65 | O36: 3
K37: S50M20A3 | L37: 50 | M37: 20 | N37: 70 | O37: 3 | P37: You will obtain similar results with 40 support staff and 20 vaccinators
K38: S50M30A3 | L38: 50 | M38: 30 | N38: 80 | O38: 3 | P38: You will obtain similar results with 50 support staff and 25 vaccinators
K39: S50M35A3 | L39: 50 | M39: 35 | N39: 85 | O39: 3 | P39: You will obtain similar results with 50 support staff and 25 vaccinators
K40: S50M40A3 | L40: 50 | M40: 40 | N40: 90 | O40: 3 | P40: You will obtain similar results with 50 support staff and 25 vaccinators
K41: S40M5A3 | L41: 40 | M41: 5 | N41: 45 | O41: 3 | P41: 5 vaccinators will not work at 3 people per minute. Need at least 10 vaccinators.
K42: S40M10A3 | L42: 40 | M42: 10 | N42: 50 | O42: 3 | P42: Just over 2 hours
K43: S40M15A3 | L43: 40 | M43: 15 | N43: 55 | O43: 3
K44: S40M25A3 | L44: 40 | M44: 25 | N44: 65 | O44: 3 | P44: You will obtain similar results with 40 support staff and 20 vaccinators
K45: S40M30A3 | L45: 40 | M45: 30 | N45: 70 | O45: 3 | P45: You will obtain similar results with 40 support staff and 20 vaccinators
K46: S40M35A3 | L46: 40 | M46: 35 | N46: 75 | O46: 3 | P46: You will obtain similar results with 40 support staff and 20 vaccinators
K47: S40M40A3 | L47: 40 | M47: 40 | N47: 80 | O47: 3 | P47: You will obtain similar results with 40 support staff and 20 vaccinators
K48: S30M5A3 | L48: 30 | M48: 5 | N48: 35 | O48: 3 | P48: 5 vaccinators will not work at 3 people per minute. Need at least 10 vaccinators.
K49: S30M10A3 | L49: 30 | M49: 10 | N49: 40 | O49: 3 | P49: Just over 2 hours due to vaccinators
K50: S30M20A3 | L50: 30 | M50: 20 | N50: 50 | O50: 3
K51: S30M25A3 | L51: 30 | M51: 25 | N51: 55 | O51: 3
K52: S30M30A3 | L52: 30 | M52: 30 | N52: 60 | O52: 3 | P52: You will obtain similar results with 30 support staff and 25 vaccinators
K53: S30M35A3 | L53: 30 | M53: 35 | N53: 65 | O53: 3 | P53: You will obtain similar results with 30 support staff and 25 vaccinators
K54: S30M40A3 | L54: 30 | M54: 40 | N54: 70 | O54: 3 | P54: You will obtain similar results with 30 support staff and 25 vaccinators
K55: S20M5A3 | L55: 20 | M55: 5 | N55: 25 | O55: 3 | P55: 5 vaccinators will not work at 3 people per minute. Need at least 10 vaccinators.
K56: S20M15A3 | L56: 20 | M56: 15 | N56: 35 | O56: 3 | P56: 20 support staff limites time in clinic to 146 minutes
K57: S20M20A3 | L57: 20 | M57: 20 | N57: 40 | O57: 3 | P57: 20 support staff limites time in clinic to 146 minutes
K58: S20M25A3 | L58: 20 | M58: 25 | N58: 45 | O58: 3 | P58: You will obtain similar results with 20 support staff and 20 vaccinators
K59: S20M30A3 | L59: 20 | M59: 30 | N59: 50 | O59: 3 | P59: You will obtain similar results with 20 support staff and 20 vaccinators
K60: S20M35A3 | L60: 20 | M60: 35 | N60: 55 | O60: 3 | P60: You will obtain similar results with 20 support staff and 20 vaccinators
K61: S20M40A3 | L61: 20 | M61: 40 | N61: 60 | O61: 3 | P61: You will obtain similar results with 20 support staff and 20 vaccinators
K62: S10M10A3 | L62: 10 | M62: 10 | N62: 20 | O62: 3 | P62: 10 support staff will not work at 3 people per minute
K63: S10M15A3 | L63: 10 | M63: 15 | N63: 25 | O63: 3 | P63: 10 support staff will not work at 3 people per minute
K64: S10M25A3 | L64: 10 | M64: 25 | N64: 35 | O64: 3 | P64: 10 support staff will not work at 3 people per minute
K65: S10M30A3 | L65: 10 | M65: 30 | N65: 40 | O65: 3 | P65: 10 support staff will not work at 3 people per minute
K66: S10M35A3 | L66: 10 | M66: 35 | N66: 45 | O66: 3 | P66: 10 support staff will not work at 3 people per minute
K67: S10M40A3 | L67: 10 | M67: 40 | N67: 50 | O67: 3 | P67: 10 support staff will not work at 3 people per minute
K68: S10M5A5 | L68: 10 | M68: 5 | N68: =SUM(L68:M68) -> 15 | O68: 5 | P68: 5 vaccinators will not work at 5 people per minute. Need at least 20 vaccinators.
K69: S20M10A5 | L69: 20 | M69: 10 | N69: =SUM(L69:M69) -> 30 | O69: 5 | P69: 10 vaccinators will not work at 5 people per minute. Need at least 20 vaccinators.
K70: ="S"&L70&"M"&M70&"A"&O70 -> S30M15A5 | L70: 30 | M70: 15 | N70: 45 | O70: 5 | P70: 15 vaccinators will not work at 5 people per minute. Need at least 20 vaccinators.
K71: S40M20A5 | L71: 40 | M71: 20 | N71: 60 | O71: 5
K72: S50M25A5 | L72: 50 | M72: 25 | N72: 75 | O72: 5
K73: S60M30A5 | L73: 60 | M73: 30 | N73: 90 | O73: 5
K74: S70M35A5 | L74: 70 | M74: 35 | N74: 105 | O74: 5
K75: S80M40A5 | L75: 80 | M75: 40 | N75: 120 | O75: 5
K76: S80M5A5 | L76: 80 | M76: 5 | N76: 85 | O76: 5 | P76: 5 vaccinators will not work at 5 people per minute. Need at least 20 vaccinators.
K77: S80M10A5 | L77: 80 | M77: 10 | N77: 90 | O77: 5 | P77: 10 vaccinators will not work at 5 people per minute. Need at least 20 vaccinators.
K78: S80M15A5 | L78: 80 | M78: 15 | N78: 95 | O78: 5 | P78: 15 vaccinators will not work at 5 people per minute. Need at least 20 vaccinators.
K79: S80M20A5 | L79: 80 | M79: 20 | N79: 100 | O79: 5
K80: S80M25A5 | L80: 80 | M80: 25 | N80: 105 | O80: 5
K81: S80M30A5 | L81: 80 | M81: 30 | N81: 110 | O81: 5
K82: S80M35A5 | L82: 80 | M82: 35 | N82: 115 | O82: 5
K83: S70M5A5 | L83: 70 | M83: 5 | N83: 75 | O83: 5 | P83: 5 vaccinators will not work at 5 people per minute. Need at least 20 vaccinators.
K84: S70M10A5 | L84: 70 | M84: 10 | N84: 80 | O84: 5 | P84: 10 vaccinators will not work at 5 people per minute. Need at least 20 vaccinators.
K85: S70M15A5 | L85: 70 | M85: 15 | N85: 85 | O85: 5 | P85: 15 vaccinators will not work at 5 people per minute. Need at least 20 vaccinators.
K86: S70M20A5 | L86: 70 | M86: 20 | N86: 90 | O86: 5
K87: S70M25A5 | L87: 70 | M87: 25 | N87: 95 | O87: 5
K88: S70M30A5 | L88: 70 | M88: 30 | N88: 100 | O88: 5
K89: S70M40A5 | L89: 70 | M89: 40 | N89: 110 | O89: 5
K90: S60M5A5 | L90: 60 | M90: 5 | N90: =SUM(L90:M90) -> 65 | O90: 5 | P90: 5 vaccinators will not work at 5 people per minute. Need at least 20 vaccinators.
K91: S60M10A5 | L91: 60 | M91: 10 | N91: 70 | O91: 5 | P91: 10 vaccinators will not work at 5 people per minute. Need at least 20 vaccinators.
K92: S60M15A5 | L92: 60 | M92: 15 | N92: 75 | O92: 5 | P92: 15 vaccinators will not work at 5 people per minute. Need at least 20 vaccinators.
K93: S60M20A5 | L93: 60 | M93: 20 | N93: 80 | O93: 5
K94: S60M25A5 | L94: 60 | M94: 25 | N94: 85 | O94: 5
K95: S60M35A5 | L95: 60 | M95: 35 | N95: 95 | O95: 5
K96: S60M40A5 | L96: 60 | M96: 40 | N96: 100 | O96: 5
K97: S50M5A5 | L97: 50 | M97: 5 | N97: 55 | O97: 5 | P97: 5 vaccinators will not work at 5 people per minute. Need at least 20 vaccinators.
K98: S50M10A5 | L98: 50 | M98: 10 | N98: 60 | O98: 5 | P98: 10 vaccinators will not work at 5 people per minute. Need at least 20 vaccinators.
K99: S50M15A5 | L99: 50 | M99: 15 | N99: 65 | O99: 5 | P99: 15 vaccinators will not work at 5 people per minute. Need at least 20 vaccinators.
K100: S50M20A5 | L100: 50 | M100: 20 | N100: 70 | O100: 5
K101: S50M30A5 | L101: 50 | M101: 30 | N101: 80 | O101: 5
K102: S50M35A5 | L102: 50 | M102: 35 | N102: 85 | O102: 5
K103: S50M40A5 | L103: 50 | M103: 40 | N103: 90 | O103: 5
K104: S40M5A5 | L104: 40 | M104: 5 | N104: 45 | O104: 5 | P104: 5 vaccinators will not work at 5 people per minute. Need at least 20 vaccinators.
K105: S40M10A5 | L105: 40 | M105: 10 | N105: 50 | O105: 5 | P105: 10 vaccinators will not work at 5 people per minute. Need at least 20 vaccinators.
K106: S40M15A5 | L106: 40 | M106: 15 | N106: 55 | O106: 5 | P106: 15 vaccinators will not work at 5 people per minute. Need at least 20 vaccinators.
K107: S40M25A5 | L107: 40 | M107: 25 | N107: 65 | O107: 5
K108: S40M30A5 | L108: 40 | M108: 30 | N108: 70 | O108: 5
K109: S40M35A5 | L109: 40 | M109: 35 | N109: 75 | O109: 5
K110: S40M40A5 | L110: 40 | M110: 40 | N110: 80 | O110: 5
K111: S30M5A5 | L111: 30 | M111: 5 | N111: 35 | O111: 5 | P111: 5 vaccinators will not work at 5 people per minute. Need at least 20 vaccinators.
K112: S30M10A5 | L112: 30 | M112: 10 | N112: 40 | O112: 5 | P112: 10 vaccinators will not work at 5 people per minute. Need at least 20 vaccinators.
K113: S30M20A5 | L113: 30 | M113: 20 | N113: 50 | O113: 5 | P113: 15 vaccinators will not work at 5 people per minute. Need at least 20 vaccinators.
K114: S30M25A5 | L114: 30 | M114: 25 | N114: 55 | O114: 5 | P114: Just under 3 hours
K115: S30M30A5 | L115: 30 | M115: 30 | N115: 60 | O115: 5 | P115: Just under 3 hours
K116: S30M35A5 | L116: 30 | M116: 35 | N116: 65 | O116: 5 | P116: Just under 3 hours
K117: S30M40A5 | L117: 30 | M117: 40 | N117: 70 | O117: 5 | P117: Just under 3 hours
K118: S20M5A5 | L118: 20 | M118: 5 | N118: 25 | O118: 5 | P118: 5 vaccinators will not work at 5 people per minute. Need at least 20 vaccinators.
K119: S20M15A5 | L119: 20 | M119: 15 | N119: 35 | O119: 5 | P119: 10 vaccinators will not work at 5 people per minute. Need at least 20 vaccinators.
K120: S20M20A5 | L120: 20 | M120: 20 | N120: 40 | O120: 5 | P120: 20 support staff will not work at 5 people per minute. Need at least 30 support staff.
K121: S20M25A5 | L121: 20 | M121: 25 | N121: 45 | O121: 5 | P121: 20 support staff will not work at 5 people per minute. Need at least 30 support staff.
K122: S20M30A5 | L122: 20 | M122: 30 | N122: 50 | O122: 5 | P122: 20 support staff will not work at 5 people per minute. Need at least 30 support staff.
K123: S20M35A5 | L123: 20 | M123: 35 | N123: 55 | O123: 5 | P123: 20 support staff will not work at 5 people per minute. Need at least 30 support staff.
K124: S20M40A5 | L124: 20 | M124: 40 | N124: 60 | O124: 5 | P124: 20 support staff will not work at 5 people per minute. Need at least 30 support staff.
K125: S10M10A5 | L125: 10 | M125: 10 | N125: 20 | O125: 5 | P125: 10 vaccinators will not work at 5 people per minute. Need at least 20 vaccinators.
K126: S10M15A5 | L126: 10 | M126: 15 | N126: 25 | O126: 5 | P126: 15 vaccinators will not work at 5 people per minute. Need at least 20 vaccinators.
K127: S10M25A5 | L127: 10 | M127: 25 | N127: 35 | O127: 5 | P127: 10 support staff will not work at 5 people per minute. Need at least 30 support staff.
K128: S10M30A5 | L128: 10 | M128: 30 | N128: 40 | O128: 5 | P128: 10 support staff will not work at 5 people per minute. Need at least 30 support staff.
K129: S10M35A5 | L129: 10 | M129: 35 | N129: 45 | O129: 5 | P129: 10 support staff will not work at 5 people per minute. Need at least 30 support staff.
K130: S10M40A5 | L130: 10 | M130: 40 | N130: 50 | O130: 5 | P130: 10 support staff will not work at 5 people per minute. Need at least 30 support staff.
K131: S10M5A10 | L131: 10 | M131: 5 | N131: =SUM(L131:M131) -> 15 | O131: 10 | P131: =""&L131&" support staff will not work at "&O131&" people per minute. Need at least 30 support staff." -> 10 support staff will not work at 10 people per minute. Need at least 30 support staff.
K132: S20M10A10 | L132: 20 | M132: 10 | N132: =SUM(L132:M132) -> 30 | O132: 10 | P132: =""&L132&" support staff will not work at "&O132&" people per minute. Need at least 30 support staff." -> 20 support staff will not work at 10 people per minute. Need at least 30 support staff.
K133: S30M15A10 | L133: 30 | M133: 15 | N133: 45 | O133: 10 | P133: 10 support staff will not work at 5 people per minute. Need at least 30 support staff.
K134: ="S"&L134&"M"&M134&"A"&O134 -> S40M20A10 | L134: 40 | M134: 20 | N134: 60 | O134: 10 | P134: 10 support staff will not work at 5 people per minute. Need at least 30 support staff.
K135: S50M25A10 | L135: 50 | M135: 25 | N135: 75 | O135: 10 | P135: 10 support staff will not work at 5 people per minute. Need at least 30 support staff.
K136: S60M30A10 | L136: 60 | M136: 30 | N136: 90 | O136: 10 | P136: 10 support staff will not work at 5 people per minute. Need at least 30 support staff.
K137: S70M35A10 | L137: 70 | M137: 35 | N137: 105 | O137: 10
K138: S80M40A10 | L138: 80 | M138: 40 | N138: 120 | O138: 10 | P138: 10 support staff will not work at 5 people per minute. Need at least 30 support staff.
K139: S80M5A10 | L139: 80 | M139: 5 | N139: 85 | O139: 10 | P139: 10 support staff will not work at 5 people per minute. Need at least 30 support staff.
K140: S80M10A10 | L140: 80 | M140: 10 | N140: 90 | O140: 10 | P140: 10 support staff will not work at 5 people per minute. Need at least 30 support staff.
K141: S80M15A10 | L141: 80 | M141: 15 | N141: 95 | O141: 10 | P141: 10 support staff will not work at 5 people per minute. Need at least 30 support staff.
K142: S80M20A10 | L142: 80 | M142: 20 | N142: 100 | O142: 10 | P142: 10 support staff will not work at 5 people per minute. Need at least 30 support staff.
K143: S80M25A10 | L143: 80 | M143: 25 | N143: 105 | O143: 10 | P143: 10 support staff will not work at 5 people per minute. Need at least 30 support staff.
K144: S80M30A10 | L144: 80 | M144: 30 | N144: 110 | O144: 10 | P144: 10 support staff will not work at 5 people per minute. Need at least 30 support staff.
K145: S80M35A10 | L145: 80 | M145: 35 | N145: 115 | O145: 10
K146: S70M5A10 | L146: 70 | M146: 5 | N146: 75 | O146: 10 | P146: 10 support staff will not work at 5 people per minute. Need at least 30 support staff.
K147: S70M10A10 | L147: 70 | M147: 10 | N147: 80 | O147: 10 | P147: 10 support staff will not work at 5 people per minute. Need at least 30 support staff.
K148: S70M15A10 | L148: 70 | M148: 15 | N148: 85 | O148: 10 | P148: 10 support staff will not work at 5 people per minute. Need at least 30 support staff.
K149: S70M20A10 | L149: 70 | M149: 20 | N149: 90 | O149: 10 | P149: 10 support staff will not work at 5 people per minute. Need at least 30 support staff.
K150: S70M25A10 | L150: 70 | M150: 25 | N150: 95 | O150: 10 | P150: 10 support staff will not work at 5 people per minute. Need at least 30 support staff.
K151: S70M30A10 | L151: 70 | M151: 30 | N151: 100 | O151: 10 | P151: 10 support staff will not work at 5 people per minute. Need at least 30 support staff.
K152: S70M40A10 | L152: 70 | M152: 40 | N152: 110 | O152: 10
K153: S60M5A10 | L153: 60 | M153: 5 | N153: 65 | O153: 10 | P153: =""&L153&" support staff will not work at "&O153&" people per minute. Need at least 60 support staff and 35 vaccinators." -> 60 support staff will not work at 10 people per minute. Need at least 60 support staff and 35 vaccinators.
K154: S60M10A10 | L154: 60 | M154: 10 | N154: 70 | O154: 10 | P154: =""&L154&" support staff will not work at "&O154&" people per minute. Need at least 60 support staff and 35 vaccinators." -> 60 support staff will not work at 10 people per minute. Need at least 60 support staff and 35 vaccinators.
K155: S60M15A10 | L155: 60 | M155: 15 | N155: 75 | O155: 10 | P155: =""&L155&" support staff will not work at "&O155&" people per minute. Need at least 60 support staff and 35 vaccinators." -> 60 support staff will not work at 10 people per minute. Need at least 60 support staff and 35 vaccinators.
K156: S60M20A10 | L156: 60 | M156: 20 | N156: 80 | O156: 10 | P156: =""&L156&" support staff will not work at "&O156&" people per minute. Need at least 60 support staff and 35 vaccinators." -> 60 support staff will not work at 10 people per minute. Need at least 60 support staff and 35 vaccinators.
K157: S60M25A10 | L157: 60 | M157: 25 | N157: 85 | O157: 10 | P157: =""&L157&" support staff will not work at "&O157&" people per minute. Need at least 60 support staff and 35 vaccinators." -> 60 support staff will not work at 10 people per minute. Need at least 60 support staff and 35 vaccinators.
K158: S60M35A10 | L158: 60 | M158: 35 | N158: 95 | O158: 10
K159: S60M40A10 | L159: 60 | M159: 40 | N159: 100 | O159: 10
K160: S50M5A10 | L160: 50 | M160: 5 | N160: 55 | O160: 10 | P160: =""&L160&" support staff will not work at "&O160&" people per minute. Need at least 60 support staff and 35 vaccinators." -> 50 support staff will not work at 10 people per minute. Need at least 60 support staff and 35 vaccinators.
K161: S50M10A10 | L161: 50 | M161: 10 | N161: 60 | O161: 10 | P161: 50 support staff will not work at 10 people per minute. Need at least 60 support staff and 35 vaccinators.
K162: S50M15A10 | L162: 50 | M162: 15 | N162: 65 | O162: 10 | P162: 50 support staff will not work at 10 people per minute. Need at least 60 support staff and 35 vaccinators.
K163: S50M20A10 | L163: 50 | M163: 20 | N163: 70 | O163: 10 | P163: 50 support staff will not work at 10 people per minute. Need at least 60 support staff and 35 vaccinators.
K164: S50M30A10 | L164: 50 | M164: 30 | N164: 80 | O164: 10 | P164: 50 support staff will not work at 10 people per minute. Need at least 60 support staff and 35 vaccinators.
K165: S50M35A10 | L165: 50 | M165: 35 | N165: 85 | O165: 10 | P165: 50 support staff will not work at 10 people per minute. Need at least 60 support staff and 35 vaccinators.
K166: S50M40A10 | L166: 50 | M166: 40 | N166: 90 | O166: 10 | P166: 50 support staff will not work at 10 people per minute. Need at least 60 support staff and 35 vaccinators.
K167: S40M5A10 | L167: 40 | M167: 5 | N167: 45 | O167: 10 | P167: 40 support staff will not work at 10 people per minute. Need at least 60 support staff and 35 vaccinators.
K168: S40M10A10 | L168: 40 | M168: 10 | N168: 50 | O168: 10 | P168: 40 support staff will not work at 10 people per minute. Need at least 60 support staff and 35 vaccinators.
K169: S40M15A10 | L169: 40 | M169: 15 | N169: 55 | O169: 10 | P169: 40 support staff will not work at 10 people per minute. Need at least 60 support staff and 35 vaccinators.
K170: S40M25A10 | L170: 40 | M170: 25 | N170: 65 | O170: 10 | P170: 40 support staff will not work at 10 people per minute. Need at least 60 support staff and 35 vaccinators.
K171: S40M30A10 | L171: 40 | M171: 30 | N171: 70 | O171: 10 | P171: 40 support staff will not work at 10 people per minute. Need at least 60 support staff and 35 vaccinators.
K172: S40M35A10 | L172: 40 | M172: 35 | N172: 75 | O172: 10 | P172: 40 support staff will not work at 10 people per minute. Need at least 60 support staff and 35 vaccinators.
K173: S40M40A10 | L173: 40 | M173: 40 | N173: 80 | O173: 10 | P173: 40 support staff will not work at 10 people per minute. Need at least 60 support staff and 35 vaccinators.
K174: S30M5A10 | L174: 30 | M174: 5 | N174: 35 | O174: 10 | P174: 30 support staff will not work at 10 people per minute. Need at least 60 support staff and 35 vaccinators.
K175: S30M10A10 | L175: 30 | M175: 10 | N175: 40 | O175: 10 | P175: 30 support staff will not work at 10 people per minute. Need at least 60 support staff and 35 vaccinators.
K176: S30M20A10 | L176: 30 | M176: 20 | N176: 50 | O176: 10 | P176: 30 support staff will not work at 10 people per minute. Need at least 60 support staff and 35 vaccinators.
K177: S30M25A10 | L177: 30 | M177: 25 | N177: 55 | O177: 10 | P177: 30 support staff will not work at 10 people per minute. Need at least 60 support staff and 35 vaccinators.
K178: S30M30A10 | L178: 30 | M178: 30 | N178: 60 | O178: 10 | P178: 30 support staff will not work at 10 people per minute. Need at least 60 support staff and 35 vaccinators.
K179: S30M35A10 | L179: 30 | M179: 35 | N179: 65 | O179: 10 | P179: 30 support staff will not work at 10 people per minute. Need at least 60 support staff and 35 vaccinators.
K180: S30M40A10 | L180: 30 | M180: 40 | N180: 70 | O180: 10 | P180: 30 support staff will not work at 10 people per minute. Need at least 60 support staff and 35 vaccinators.
K181: S20M5A10 | L181: 20 | M181: 5 | N181: 25 | O181: 10 | P181: 20 support staff will not work at 10 people per minute. Need at least 60 support staff and 35 vaccinators.
K182: S20M15A10 | L182: 20 | M182: 15 | N182: 35 | O182: 10 | P182: 20 support staff will not work at 10 people per minute. Need at least 60 support staff and 35 vaccinators.
K183: S20M20A10 | L183: 20 | M183: 20 | N183: 40 | O183: 10 | P183: 20 support staff will not work at 10 people per minute. Need at least 60 support staff and 35 vaccinators.
K184: S20M25A10 | L184: 20 | M184: 25 | N184: 45 | O184: 10 | P184: 20 support staff will not work at 10 people per minute. Need at least 60 support staff and 35 vaccinators.
K185: S20M30A10 | L185: 20 | M185: 30 | N185: 50 | O185: 10 | P185: 20 support staff will not work at 10 people per minute. Need at least 60 support staff and 35 vaccinators.
K186: S20M35A10 | L186: 20 | M186: 35 | N186: 55 | O186: 10 | P186: 20 support staff will not work at 10 people per minute. Need at least 60 support staff and 35 vaccinators.
K187: S20M40A10 | L187: 20 | M187: 40 | N187: 60 | O187: 10 | P187: 20 support staff will not work at 10 people per minute. Need at least 60 support staff and 35 vaccinators.
K188: S10M10A10 | L188: 10 | M188: 10 | N188: 20 | O188: 10 | P188: 10 support staff will not work at 10 people per minute. Need at least 60 support staff and 35 vaccinators.
K189: S10M15A10 | L189: 10 | M189: 15 | N189: 25 | O189: 10 | P189: 10 support staff will not work at 10 people per minute. Need at least 60 support staff and 35 vaccinators.
K190: S10M25A10 | L190: 10 | M190: 25 | N190: 35 | O190: 10 | P190: 10 support staff will not work at 10 people per minute. Need at least 60 support staff and 35 vaccinators.
K191: S10M30A10 | L191: 10 | M191: 30 | N191: 40 | O191: 10 | P191: 10 support staff will not work at 10 people per minute. Need at least 60 support staff and 35 vaccinators.
K192: S10M35A10 | L192: 10 | M192: 35 | N192: 45 | O192: 10 | P192: 10 support staff will not work at 10 people per minute. Need at least 60 support staff and 35 vaccinators.
K193: S10M40A10 | L193: 10 | M193: 40 | N193: 50 | O193: 10 | P193: 10 support staff will not work at 10 people per minute. Need at least 60 support staff and 35 vaccinators.
K194: S10M5A15 | L194: 10 | M194: 5 | N194: =SUM(L194:M194) -> 15 | O194: 15 | P194: =""&L194&" support staff will not work at "&O194&" people per minute. Need at least 100 support staff and 50 vaccinators." -> 10 support staff will not work at 15 people per minute. Need at least 100 support staff and 50 vaccinators.
K195: S20M10A15 | L195: 20 | M195: 10 | N195: =SUM(L195:M195) -> 30 | O195: 15 | P195: 20 support staff will not work at 15 people per minute. Need at least 100 support staff and 50 vaccinators.
K196: S30M15A15 | L196: 30 | M196: 15 | N196: 45 | O196: 15 | P196: 30 support staff will not work at 15 people per minute. Need at least 100 support staff and 50 vaccinators.
K197: S40M20A15 | L197: 40 | M197: 20 | N197: 60 | O197: 15 | P197: 40 support staff will not work at 15 people per minute. Need at least 100 support staff and 50 vaccinators.
K198: ="S"&L198&"M"&M198&"A"&O198 -> S50M25A15 | L198: 50 | M198: 25 | N198: 75 | O198: 15 | P198: 50 support staff will not work at 15 people per minute. Need at least 100 support staff and 50 vaccinators.
K199: S60M30A15 | L199: 60 | M199: 30 | N199: 90 | O199: 15 | P199: 60 support staff will not work at 15 people per minute. Need at least 100 support staff and 50 vaccinators.
K200: S70M35A15 | L200: 70 | M200: 35 | N200: 105 | O200: 15 | P200: 70 support staff will not work at 15 people per minute. Need at least 100 support staff and 50 vaccinators.
... 987 more rows

Sheet Data Inputs
A1: Support Staff | B1: Vaccinators | C1: Total | D1: Arrival Rate
A2: 10 | B2: 5 | C2: =B2+A2 -> 15 | D2: 0.5
A3: 20 | B3: 10 | C3: 30 | D3: 1
A4: 30 | B4: 15 | C4: 45 | D4: 1.5
A5: 40 | B5: 20 | C5: 60 | D5: 3
A6: 50 | B6: 25 | C6: 75 | D6: 5
A7: 60 | B7: 30 | C7: 90 | D7: 10
A8: 70 | B8: 35 | C8: 105 | D8: 15
A9: 80 | B9: 40 | C9: =B9+A9 -> 120
A10: 120 | B10: 60 | C10: =B10+A10 -> 180
A11: 140 | B11: 70 | C11: 210
A12: 160 | B12: 80 | C12: 240
A13: 180 | B13: 90

Sheet S180M90A15
A1: Statistic Name | B1: Statistic Type | C1: Database Data Type | D1: Database Category | E1: Database Identifier | F1: Rep 1 | G1: Rep 2 | H1: Rep 3 | I1: Rep 4 | J1: Rep 5 | K1: Rep 6 | L1: Rep 7 | M1: Rep 8 | N1: Rep 9 | O1: Rep 10 | P1: Rep 11 | Q1: Rep 12 | R1: Rep 13 | S1: Rep 14 | T1: Rep 15 | U1: Rep 16 | V1: Rep 17 | W1: Rep 18 | X1: Rep 19 | Y1: Rep 20 | Z1: Rep 21 | AA1: Rep 22 | AB1: Rep 23 | AC1: Rep 24 | AD1: Rep 25 | AE1: Rep 26 | AF1: Rep 27 | AG1: Rep 28 | AH1: Rep 29 | AI1: Rep 30 | AJ1: Rep 31 | AK1: Rep 32 | AL1: Rep 33 | AM1: Rep 34 | AN1: Rep 35 | AO1: Rep 36 | AP1: Rep 37 | AQ1: Rep 38 | AR1: Rep 39 | AS1: Rep 40 | AT1: Rep 41 | AU1: Rep 42 | AV1: Rep 43 | AW1: Rep 44 | AX1: Rep 45 | AY1: Rep 46 | AZ1: Rep 47 | BA1: Rep 48 | BB1: Rep 49 | BC1: Rep 50 | BD1: Rep 51 | BE1: Rep 52 | BF1: Rep 53 | BG1: Rep 54 | BH1: Rep 55 | BI1: Rep 56 | BJ1: Rep 57 | BK1: Rep 58 | BL1: Rep 59 | BM1: Rep 60 | BN1: Rep 61 | BO1: Rep 62 | BP1: Rep 63 | BQ1: Rep 64 | BR1: Rep 65 | BS1: Rep 66 | BT1: Rep 67 | BU1: Rep 68 | BV1: Rep 69 | BW1: Rep 70 | BX1: Rep 71 | BY1: Rep 72 | BZ1: Rep 73 | CA1: Rep 74 | CB1: Rep 75 | CC1: Rep 76 | CD1: Rep 77 | CE1: Rep 78 | CF1: Rep 79 | CG1: Rep 80 | CH1: Rep 81 | CI1: Rep 82 | CJ1: Rep 83 | CK1: Rep 84 | CL1: Rep 85 | CM1: Rep 86 | CN1: Rep 87 | CO1: Rep 88 | CP1: Rep 89 | CQ1: Rep 90 | CR1: Rep 91 | CS1: Rep 92 | CT1: Rep 93 | CU1: Rep 94 | CV1: Rep 95 | CW1: Rep 96 | CX1: Rep 97 | CY1: Rep 98 | CZ1: Rep 99 | DA1: Rep 100 | DB1: Average | DC1: Max | DD1: Min | DE1: Mode | DF1: 5% half width | DG1: 5 percentile | DH1: 95 percentile | DI1: Skew (-2,2 is normal) | DJ1: Kurt (-2,2 is normal) | DN1: 1 | DO1: 2 | DP1: 3 | DQ1: 4 | DR1: 5
A2: ADAVacc | B2: COUNTER VALUE | C2: Count | D2: User Specified | E2: ADAVacc | F2: 2794 | G2: 2631 | H2: 2781 | I2: 2714 | J2: 2660 | K2: 2848 | L2: 2854 | M2: 2686 | N2: 2857 | O2: 2850 | P2: 2924 | Q2: 2664 | R2: 2844 | S2: 2780 | T2: 2784 | U2: 2879 | V2: 2585 | W2: 2857 | X2: 2957 | Y2: 2673 | Z2: 2879 | AA2: 2718 | AB2: 2715 | AC2: 2713 | AD2: 2786 | AE2: 2892 | AF2: 2746 | AG2: 2880 | AH2: 2841 | AI2: 2745 | AJ2: 2854 | AK2: 2778 | AL2: 2791 | AM2: 2662 | AN2: 2809 | AO2: 2892 | AP2: 2852 | AQ2: 2721 | AR2: 2827 | AS2: 2790 | AT2: 2741 | AU2: 2476 | AV2: 2888 | AW2: 2726 | AX2: 2774 | AY2: 2763 | AZ2: 2939 | BA2: 2977 | BB2: 2874 | BC2: 2815 | BD2: 3026 | BE2: 2830 | BF2: 2650 | BG2: 2766 | BH2: 2875 | BI2: 2486 | BJ2: 3012 | BK2: 2792 | BL2: 2881 | BM2: 2902 | BN2: 2725 | BO2: 2542 | BP2: 2874 | BQ2: 2896 | BR2: 2751 | BS2: 2697 | BT2: 2830 | BU2: 2797 | BV2: 2709 | BW2: 2666 | BX2: 3123 | BY2: 2860 | BZ2: 2859 | CA2: 2869 | CB2: 2726 | CC2: 2938 | CD2: 2750 | CE2: 2899 | CF2: 2760 | CG2: 2722 | CH2: 3023 | CI2: 2668 | CJ2: 2749 | CK2: 2930 | CL2: 2727 | CM2: 2733 | CN2: 3006 | CO2: 2715 | CP2: 2859 | CQ2: 2913 | CR2: 2808 | CS2: 2839 | CT2: 2765 | CU2: 2709 | CV2: 2843 | CW2: 2939 | CX2: 2833 | CY2: 2922 | CZ2: 2863 | DA2: 2771 | DB2: =AVERAGE(G2:DA2) -> 2803.232323 | DC2: =MAX(G2:DA2) -> 3123 | DD2: =MIN(G2:DA2) -> 2476 | DE2: =MEDIAN(G2:DA2) -> 2808 | DF2: =_xlfn.CONFIDENCE.NORM(0.05, _xlfn.STDEV.P(G2:DA2),100) -> 21.82994307 | DG2: =PERCENTILE(G2:DA2,0.05) -> 2648.1 | DH2: =PERCENTILE(G2:DA2,0.95) -> 2979.9 | DI2: =SKEW(G2:DA2) -> -0.2048451427 | DJ2: =KURT(G2:DA2) -> 0.7828969449 | DL2: 5 | DM2: ADA Vacc Resource.NumberScheduled
A3: NonADAVacc | B3: COUNTER VALUE | C3: Count | D3: User Specified | E3: NonADAVacc | F3: 8021 | G3: 7644 | H3: 8094 | I3: 7636 | J3: 7720 | K3: 7847 | L3: 8231 | M3: 7649 | N3: 7943 | O3: 8040 | P3: 8056 | Q3: 7971 | R3: 7701 | S3: 8035 | T3: 7776 | U3: 7966 | V3: 7195 | W3: 8003 | X3: 8413 | Y3: 7512 | Z3: 8266 | AA3: 7632 | AB3: 7920 | AC3: 7802 | AD3: 7744 | AE3: 8133 | AF3: 7799 | AG3: 8235 | AH3: 8049 | AI3: 7785 | AJ3: 8246 | AK3: 7887 | AL3: 7994 | AM3: 7958 | AN3: 7991 | AO3: 8073 | AP3: 8083 | AQ3: 7614 | AR3: 8168 | AS3: 8100 | AT3: 7969 | AU3: 7214 | AV3: 7927 | AW3: 7624 | AX3: 8056 | AY3: 7812 | AZ3: 8296 | BA3: 8618 | BB3: 8301 | BC3: 7940 | BD3: 8584 | BE3: 8060 | BF3: 7775 | BG3: 7914 | BH3: 8060 | BI3: 7204 | BJ3: 8433 | BK3: 7873 | BL3: 8279 | BM3: 8048 | BN3: 7865 | BO3: 7613 | BP3: 8121 | BQ3: 8294 | BR3: 7899 | BS3: 7848 | BT3: 8120 | BU3: 7883 | BV3: 7896 | BW3: 7909 | BX3: 8187 | BY3: 8030 | BZ3: 7761 | CA3: 7931 | CB3: 7744 | CC3: 7697 | CD3: 7765 | CE3: 8246 | CF3: 7695 | CG3: 7568 | CH3: 8362 | CI3: 7592 | CJ3: 7931 | CK3: 8380 | CL3: 7563 | CM3: 8052 | CN3: 8664 | CO3: 7710 | CP3: 8061 | CQ3: 8277 | CR3: 8097 | CS3: 8186 | CT3: 7960 | CU3: 8031 | CV3: 8062 | CW3: 8161 | CX3: 8117 | CY3: 8223 | CZ3: 8087 | DA3: 7969 | DB3: 7964.191919 | DC3: 8664 | DD3: 7195 | DE3: 7969 | DF3: 53.82507544 | DG3: 7567.5 | DH3: 8383.3 | DI3: -0.2224858559 | DJ3: 0.7487223799 | DL3: 7 | DM3: ADA Watch Resource.NumberScheduled
A4: ADA Vacc Resource.NumberSeized | B4: OUTPUT VALUE | C4: Total Number Seized | D4: Resource | E4: ADA Vacc Resource | F4: 2794 | G4: 2631 | H4: 2781 | I4: 2714 | J4: 2660 | K4: 2848 | L4: 2854 | M4: 2686 | N4: 2857 | O4: 2850 | P4: 2924 | Q4: 2664 | R4: 2844 | S4: 2780 | T4: 2784 | U4: 2879 | V4: 2585 | W4: 2857 | X4: 2957 | Y4: 2673 | Z4: 2879 | AA4: 2718 | AB4: 2715 | AC4: 2713 | AD4: 2786 | AE4: 2892 | AF4: 2746 | AG4: 2880 | AH4: 2841 | AI4: 2745 | AJ4: 2854 | AK4: 2778 | AL4: 2791 | AM4: 2662 | AN4: 2809 | AO4: 2892 | AP4: 2852 | AQ4: 2721 | AR4: 2827 | AS4: 2790 | AT4: 2741 | AU4: 2476 | AV4: 2888 | AW4: 2726 | AX4: 2774 | AY4: 2763 | AZ4: 2939 | BA4: 2977 | BB4: 2874 | BC4: 2815 | BD4: 3026 | BE4: 2830 | BF4: 2650 | BG4: 2766 | BH4: 2875 | BI4: 2486 | BJ4: 3012 | BK4: 2792 | BL4: 2881 | BM4: 2902 | BN4: 2725 | BO4: 2542 | BP4: 2874 | BQ4: 2896 | BR4: 2751 | BS4: 2697 | BT4: 2830 | BU4: 2797 | BV4: 2709 | BW4: 2666 | BX4: 3123 | BY4: 2860 | BZ4: 2859 | CA4: 2869 | CB4: 2726 | CC4: 2938 | CD4: 2750 | CE4: 2899 | CF4: 2760 | CG4: 2722 | CH4: 3023 | CI4: 2668 | CJ4: 2749 | CK4: 2930 | CL4: 2727 | CM4: 2733 | CN4: 3006 | CO4: 2715 | CP4: 2859 | CQ4: 2913 | CR4: 2808 | CS4: 2839 | CT4: 2765 | CU4: 2709 | CV4: 2843 | CW4: 2939 | CX4: 2833 | CY4: 2922 | CZ4: 2863 | DA4: 2771 | DB4: 2803.232323 | DC4: 3123 | DD4: 2476 | DE4: 2808 | DF4: 21.82994307 | DG4: 2648.1 | DH4: 2979.9 | DI4: -0.2048451427 | DJ4: 0.7828969449 | DL4: 1 | DM4: Greeter.NumberScheduled
A5: ADA Vacc Resource.ScheduledUtilization | B5: OUTPUT VALUE | C5: Scheduled Utilization | D5: Resource | E5: ADA Vacc Resource | F5: 0.6851818196 | G5: 0.6423604113 | H5: 0.6689141744 | I5: 0.6594811771 | J5: 0.636762921 | K5: 0.6881803169 | L5: 0.6887866968 | M5: 0.6540158409 | N5: 0.6875506159 | O5: 0.6957919366 | P5: 0.7149317449 | Q5: 0.6555657275 | R5: 0.6904226905 | S5: 0.6790808029 | T5: 0.6712787431 | U5: 0.6974294811 | V5: 0.6248100622 | W5: 0.6933313682 | X5: 0.7108717943 | Y5: 0.6475037343 | Z5: 0.7032372548 | AA5: 0.6528515947 | AB5: 0.655127882 | AC5: 0.6608435654 | AD5: 0.6781559942 | AE5: 0.7128575911 | AF5: 0.6674282033 | AG5: 0.7050717444 | AH5: 0.6902375396 | AI5: 0.6663913885 | AJ5: 0.6901049335 | AK5: 0.6753435483 | AL5: 0.6674347541 | AM5: 0.6413320908 | AN5: 0.6845734297 | AO5: 0.699037466 | AP5: 0.6881132312 | AQ5: 0.653097809 | AR5: 0.6915387629 | AS5: 0.6803375492 | AT5: 0.6676996918 | AU5: 0.6000474796 | AV5: 0.7056306611 | AW5: 0.6660270273 | AX5: 0.6689122051 | AY5: 0.6732654383 | AZ5: 0.7102077808 | BA5: 0.7206564372 | BB5: 0.7019325826 | BC5: 0.6803114759 | BD5: 0.7295450863 | BE5: 0.6777566458 | BF5: 0.639277474 | BG5: 0.6688038211 | BH5: 0.6981741869 | BI5: 0.6060129145 | BJ5: 0.7399516697 | BK5: 0.6693446698 | BL5: 0.6957185769 | BM5: 0.7094414943 | BN5: 0.6653580848 | BO5: 0.6160483864 | BP5: 0.6866227464 | BQ5: 0.6997083 | BR5: 0.6695635535 | BS5: 0.6592271732 | BT5: 0.6945200166 | BU5: 0.6824012667 | BV5: 0.6518762801 | BW5: 0.6501114399 | BX5: 0.7557907625 | BY5: 0.6931881251 | BZ5: 0.6993710336 | CA5: 0.7036742574 | CB5: 0.6633041137 | CC5: 0.7109943436 | CD5: 0.6712397182 | CE5: 0.6995974207 | CF5: 0.6749863269 | CG5: 0.6580288294 | CH5: 0.73556249 | CI5: 0.6424395597 | CJ5: 0.6573313716 | CK5: 0.7167908379 | CL5: 0.6672901909 | CM5: 0.6675814315 | CN5: 0.7372209833 | CO5: 0.6624099452 | CP5: 0.6968853099 | CQ5: 0.7114251442 | CR5: 0.6792387149 | CS5: 0.6801524077 | CT5: 0.6782762301 | CU5: 0.6608113259 | CV5: 0.6994830577 | CW5: 0.7132073602 | CX5: 0.6832261183 | CY5: 0.7209125779 | CZ5: 0.6916759548 | DA5: 0.6674143389 | DB5: 0.6805439537 | DC5: 0.7557907625 | DD5: 0.6000474796 | DE5: 0.6801524077 | DF5: 0.005468263407 | DG5: 0.6390260187 | DH5: 0.7217758288 | DI5: -0.1538077377 | DJ5: 0.5400826108 | DL5: 2 | DM5: Med Hist Resource.NumberScheduled
A6: ADA Watch Resource Chair.NumberSeized | B6: OUTPUT VALUE | C6: Total Number Seized | D6: Resource | E6: ADA Watch Resource Chair | F6: 2794 | G6: 2631 | H6: 2781 | I6: 2714 | J6: 2660 | K6: 2848 | L6: 2854 | M6: 2686 | N6: 2857 | O6: 2850 | P6: 2924 | Q6: 2664 | R6: 2844 | S6: 2780 | T6: 2784 | U6: 2879 | V6: 2585 | W6: 2857 | X6: 2957 | Y6: 2673 | Z6: 2879 | AA6: 2718 | AB6: 2715 | AC6: 2713 | AD6: 2786 | AE6: 2892 | AF6: 2746 | AG6: 2880 | AH6: 2841 | AI6: 2745 | AJ6: 2854 | AK6: 2778 | AL6: 2791 | AM6: 2662 | AN6: 2809 | AO6: 2892 | AP6: 2852 | AQ6: 2721 | AR6: 2827 | AS6: 2790 | AT6: 2741 | AU6: 2476 | AV6: 2888 | AW6: 2726 | AX6: 2774 | AY6: 2763 | AZ6: 2939 | BA6: 2977 | BB6: 2874 | BC6: 2815 | BD6: 3026 | BE6: 2830 | BF6: 2650 | BG6: 2766 | BH6: 2875 | BI6: 2486 | BJ6: 3012 | BK6: 2792 | BL6: 2881 | BM6: 2902 | BN6: 2725 | BO6: 2542 | BP6: 2874 | BQ6: 2896 | BR6: 2751 | BS6: 2697 | BT6: 2830 | BU6: 2797 | BV6: 2709 | BW6: 2666 | BX6: 3123 | BY6: 2860 | BZ6: 2859 | CA6: 2869 | CB6: 2726 | CC6: 2938 | CD6: 2750 | CE6: 2899 | CF6: 2760 | CG6: 2722 | CH6: 3023 | CI6: 2668 | CJ6: 2749 | CK6: 2930 | CL6: 2727 | CM6: 2733 | CN6: 3006 | CO6: 2715 | CP6: 2859 | CQ6: 2913 | CR6: 2808 | CS6: 2839 | CT6: 2765 | CU6: 2709 | CV6: 2843 | CW6: 2939 | CX6: 2833 | CY6: 2922 | CZ6: 2863 | DA6: 2771 | DB6: 2803.232323 | DC6: 3123 | DD6: 2476 | DE6: 2808 | DF6: 21.82994307 | DG6: 2648.1 | DH6: 2979.9 | DI6: -0.2048451427 | DJ6: 0.7828969449 | DL6: 4 | DM6: Vacc Resource.NumberScheduled
A7: ADA Watch Resource.NumberSeized | B7: OUTPUT VALUE | C7: Total Number Seized | D7: Resource | E7: ADA Watch Resource | F7: 1 | G7: 1 | H7: 1 | I7: 1 | J7: 1 | K7: 1 | L7: 1 | M7: 1 | N7: 1 | O7: 1 | P7: 1 | Q7: 1 | R7: 1 | S7: 1 | T7: 1 | U7: 1 | V7: 1 | W7: 1 | X7: 1 | Y7: 1 | Z7: 1 | AA7: 1 | AB7: 1 | AC7: 1 | AD7: 1 | AE7: 1 | AF7: 1 | AG7: 1 | AH7: 1 | AI7: 1 | AJ7: 1 | AK7: 1 | AL7: 1 | AM7: 1 | AN7: 1 | AO7: 1 | AP7: 1 | AQ7: 1 | AR7: 1 | AS7: 1 | AT7: 1 | AU7: 1 | AV7: 1 | AW7: 1 | AX7: 1 | AY7: 1 | AZ7: 1 | BA7: 1 | BB7: 1 | BC7: 1 | BD7: 1 | BE7: 1 | BF7: 1 | BG7: 1 | BH7: 1 | BI7: 1 | BJ7: 1 | BK7: 1 | BL7: 1 | BM7: 1 | BN7: 1 | BO7: 1 | BP7: 1 | BQ7: 1 | BR7: 1 | BS7: 1 | BT7: 1 | BU7: 1 | BV7: 1 | BW7: 1 | BX7: 1 | BY7: 1 | BZ7: 1 | CA7: 1 | CB7: 1 | CC7: 1 | CD7: 1 | CE7: 1 | CF7: 1 | CG7: 1 | CH7: 1 | CI7: 1 | CJ7: 1 | CK7: 1 | CL7: 1 | CM7: 1 | CN7: 1 | CO7: 1 | CP7: 1 | CQ7: 1 | CR7: 1 | CS7: 1 | CT7: 1 | CU7: 1 | CV7: 1 | CW7: 1 | CX7: 1 | CY7: 1 | CZ7: 1 | DA7: 1 | DB7: 1 | DC7: 1 | DD7: 1 | DE7: 1 | DG7: 1 | DH7: 1 | DL7: 3 | DM7: Waiting Room Resource.NumberScheduled
A8: ADA Watch Resource.ScheduledUtilization | B8: OUTPUT VALUE | C8: Scheduled Utilization | D8: Resource | E8: ADA Watch Resource | F8: 0.9867839013 | G8: 0.9859748497 | H8: 0.9823931263 | I8: 0.9867074041 | J8: 0.9822992723 | K8: 0.986712262 | L8: 0.9843400716 | M8: 0.9872799566 | N8: 0.983109187 | O8: 0.9854324653 | P8: 0.98372453 | Q8: 0.9845003187 | R8: 0.9870602467 | S8: 0.9861780709 | T8: 0.9854523374 | U8: 0.985377842 | V8: 0.9823888537 | W8: 0.9805350443 | X8: 0.9868532869 | Y8: 0.9807766186 | Z8: 0.9843644015 | AA8: 0.9874703694 | AB8: 0.9884176338 | AC8: 0.9827321899 | AD8: 0.9863081061 | AE8: 0.9840372775 | AF8: 0.98543393 | AG8: 0.9843495579 | AH8: 0.9855009199 | AI8: 0.9836018578 | AJ8: 0.9844985027 | AK8: 0.9825157012 | AL8: 0.9862479507 | AM8: 0.9856795301 | AN8: 0.9851222339 | AO8: 0.9862536184 | AP8: 0.9847128713 | AQ8: 0.9858863725 | AR8: 0.9841297719 | AS8: 0.9858958689 | AT8: 0.9855160761 | AU8: 0.9876929485 | AV8: 0.9860484158 | AW8: 0.9893459461 | AX8: 0.9842887663 | AY8: 0.9828011509 | AZ8: 0.9870974224 | BA8: 0.9862385225 | BB8: 0.9849266516 | BC8: 0.9865931544 | BD8: 0.9901821996 | BE8: 0.9894773847 | BF8: 0.9840028955 | BG8: 0.9842349579 | BH8: 0.9837326527 | BI8: 0.9892411918 | BJ8: 0.9861007671 | BK8: 0.9842871185 | BL8: 0.9869554009 | BM8: 0.985842165 | BN8: 0.9835588607 | BO8: 0.9828365889 | BP8: 0.9847070912 | BQ8: 0.9851335435 | BR8: 0.9824440761 | BS8: 0.9874629978 | BT8: 0.9855584411 | BU8: 0.9854879364 | BV8: 0.9820782485 | BW8: 0.982930957 | BX8: 0.9843822369 | BY8: 0.9857228175 | BZ8: 0.9870198495 | CA8: 0.9827390667 | CB8: 0.9872515306 | CC8: 0.9859722416 | CD8: 0.9859480584 | CE8: 0.9855364263 | CF8: 0.9823678859 | CG8: 0.986521313 | CH8: 0.9861452585 | CI8: 0.9885126254 | CJ8: 0.9842095636 | CK8: 0.9847425222 | CL8: 0.9871203724 | CM8: 0.985495837 | CN8: 0.9871706969 | CO8: 0.9850347651 | CP8: 0.9864367854 | CQ8: 0.9874691586 | CR8: 0.9863972991 | CS8: 0.9828462745 | CT8: 0.9846200555 | CU8: 0.9857288588 | CV8: 0.98434059 | CW8: 0.9890430509 | CX8: 0.9860884996 | CY8: 0.9850409803 | CZ8: 0.9889647869 | DA8: 0.9852748124 | DB8: 0.9853656885 | DC8: 0.9901821996 | DD8: 0.9805350443 | DE8: 0.985495837 | DF8: 0.0003748759545 | DG8: 0.9823867569 | DH8: 0.9889726133 | DI8: 0.0139981518 | DJ8: 0.02884149733 | DL8: 6 | DM8: Watch Resource.NumberScheduled
A9: Entity 1.NumberIn | B9: OUTPUT VALUE | C9: Number In | D9: Entity | E9: Entity 1 | F9: 10853 | G9: 10309 | H9: 10912 | I9: 10385 | J9: 10409 | K9: 10731 | L9: 11131 | M9: 10379 | N9: 10843 | O9: 10935 | P9: 11016 | Q9: 10671 | R9: 10587 | S9: 10858 | T9: 10601 | U9: 10876 | V9: 9818 | W9: 10912 | X9: 11402 | Y9: 10224 | Z9: 11181 | AA9: 10392 | AB9: 10674 | AC9: 10551 | AD9: 10555 | AE9: 11065 | AF9: 10576 | AG9: 11157 | AH9: 10927 | AI9: 10565 | AJ9: 11137 | AK9: 10718 | AL9: 10821 | AM9: 10661 | AN9: 10831 | AO9: 11009 | AP9: 10974 | AQ9: 10383 | AR9: 11029 | AS9: 10925 | AT9: 10750 | AU9: 9735 | AV9: 10846 | AW9: 10384 | AX9: 10870 | AY9: 10605 | AZ9: 11266 | BA9: 11630 | BB9: 11209 | BC9: 10812 | BD9: 11650 | BE9: 10943 | BF9: 10466 | BG9: 10711 | BH9: 10967 | BI9: 9721 | BJ9: 11470 | BK9: 10710 | BL9: 11191 | BM9: 10994 | BN9: 10631 | BO9: 10190 | BP9: 11035 | BQ9: 11235 | BR9: 10690 | BS9: 10585 | BT9: 10983 | BU9: 10719 | BV9: 10639 | BW9: 10609 | BX9: 11339 | BY9: 10925 | BZ9: 10661 | CA9: 10834 | CB9: 10507 | CC9: 10676 | CD9: 10543 | CE9: 11180 | CF9: 10494 | CG9: 10329 | CH9: 11425 | CI9: 10294 | CJ9: 10715 | CK9: 11341 | CL9: 10338 | CM9: 10808 | CN9: 11710 | CO9: 10463 | CP9: 10957 | CQ9: 11229 | CR9: 10947 | CS9: 11072 | CT9: 10765 | CU9: 10780 | CV9: 10953 | CW9: 11140 | CX9: 10983 | CY9: 11171 | CZ9: 10988 | DA9: 10781 | DB9: 10805.29293 | DC9: 11710 | DD9: 9721 | DE9: 10821 | DF9: 72.60460907 | DG9: 10287 | DH9: 11404.3 | DI9: -0.2640085763 | DJ9: 0.8345972072 | DN9: =SUM(DN3:DN5,DN7:DN8) -> 0 | DO9: 0 | DP9: 0 | DQ9: 0 | DR9: =SUM(DR3:DR5,DR7:DR8) -> 0
A10: Entity 1.NumberOut | B10: OUTPUT VALUE | C10: Number Out | D10: Entity | E10: Entity 1 | F10: 10853 | G10: 10309 | H10: 10912 | I10: 10385 | J10: 10409 | K10: 10731 | L10: 11131 | M10: 10379 | N10: 10843 | O10: 10935 | P10: 11016 | Q10: 10671 | R10: 10587 | S10: 10858 | T10: 10601 | U10: 10876 | V10: 9818 | W10: 10912 | X10: 11402 | Y10: 10224 | Z10: 11181 | AA10: 10392 | AB10: 10674 | AC10: 10551 | AD10: 10555 | AE10: 11065 | AF10: 10576 | AG10: 11157 | AH10: 10927 | AI10: 10565 | AJ10: 11137 | AK10: 10718 | AL10: 10821 | AM10: 10661 | AN10: 10831 | AO10: 11009 | AP10: 10974 | AQ10: 10383 | AR10: 11029 | AS10: 10925 | AT10: 10750 | AU10: 9735 | AV10: 10846 | AW10: 10384 | AX10: 10870 | AY10: 10605 | AZ10: 11266 | BA10: 11630 | BB10: 11209 | BC10: 10812 | BD10: 11650 | BE10: 10943 | BF10: 10466 | BG10: 10711 | BH10: 10967 | BI10: 9721 | BJ10: 11470 | BK10: 10710 | BL10: 11191 | BM10: 10994 | BN10: 10631 | BO10: 10190 | BP10: 11035 | BQ10: 11235 | BR10: 10690 | BS10: 10585 | BT10: 10983 | BU10: 10719 | BV10: 10639 | BW10: 10609 | BX10: 11339 | BY10: 10925 | BZ10: 10661 | CA10: 10834 | CB10: 10507 | CC10: 10676 | CD10: 10543 | CE10: 11180 | CF10: 10494 | CG10: 10329 | CH10: 11425 | CI10: 10294 | CJ10: 10715 | CK10: 11341 | CL10: 10338 | CM10: 10808 | CN10: 11710 | CO10: 10463 | CP10: 10957 | CQ10: 11229 | CR10: 10947 | CS10: 11072 | CT10: 10765 | CU10: 10780 | CV10: 10953 | CW10: 11140 | CX10: 10983 | CY10: 11171 | CZ10: 10988 | DA10: 10781 | DB10: 10805.29293 | DC10: 11710 | DD10: 9721 | DE10: 10821 | DF10: 72.60460907 | DG10: 10287 | DH10: 11404.3 | DI10: -0.2640085763 | DJ10: 0.8345972072 | DN10: =DN6+DN2 -> 0 | DO10: 0 | DP10: 0 | DQ10: 0 | DR10: =DR6+DR2 -> 0
A11: Greeter.NumberSeized | B11: OUTPUT VALUE | C11: Total Number Seized | D11: Resource | E11: Greeter | F11: 10815 | G11: 10275 | H11: 10875 | I11: 10350 | J11: 10380 | K11: 10695 | L11: 11085 | M11: 10335 | N11: 10800 | O11: 10890 | P11: 10980 | Q11: 10635 | R11: 10545 | S11: 10815 | T11: 10560 | U11: 10845 | V11: 9780 | W11: 10860 | X11: 11370 | Y11: 10185 | Z11: 11145 | AA11: 10350 | AB11: 10635 | AC11: 10515 | AD11: 10530 | AE11: 11025 | AF11: 10545 | AG11: 11115 | AH11: 10890 | AI11: 10530 | AJ11: 11100 | AK11: 10665 | AL11: 10785 | AM11: 10620 | AN11: 10800 | AO11: 10965 | AP11: 10935 | AQ11: 10335 | AR11: 10995 | AS11: 10890 | AT11: 10710 | AU11: 9690 | AV11: 10815 | AW11: 10350 | AX11: 10830 | AY11: 10575 | AZ11: 11235 | BA11: 11595 | BB11: 11175 | BC11: 10755 | BD11: 11610 | BE11: 10890 | BF11: 10425 | BG11: 10680 | BH11: 10935 | BI11: 9690 | BJ11: 11445 | BK11: 10665 | BL11: 11160 | BM11: 10950 | BN11: 10590 | BO11: 10155 | BP11: 10995 | BQ11: 11190 | BR11: 10650 | BS11: 10545 | BT11: 10950 | BU11: 10680 | BV11: 10605 | BW11: 10575 | BX11: 11310 | BY11: 10890 | BZ11: 10620 | CA11: 10800 | CB11: 10470 | CC11: 10635 | CD11: 10515 | CE11: 11145 | CF11: 10455 | CG11: 10290 | CH11: 11385 | CI11: 10260 | CJ11: 10680 | CK11: 11310 | CL11: 10290 | CM11: 10785 | CN11: 11670 | CO11: 10425 | CP11: 10920 | CQ11: 11190 | CR11: 10905 | CS11: 11025 | CT11: 10725 | CU11: 10740 | CV11: 10905 | CW11: 11100 | CX11: 10950 | CY11: 11145 | CZ11: 10950 | DA11: 10740 | DB11: 10767.42424 | DC11: 11670 | DD11: 9690 | DE11: 10785 | DF11: 72.68826893 | DG11: 10252.5 | DH11: 11371.5 | DI11: -0.2561273006 | DJ11: 0.8322229692
A12: Greeter.ScheduledUtilization | B12: OUTPUT VALUE | C12: Scheduled Utilization | D12: Resource | E12: Greeter | F12: 0.2174412064 | G12: 0.2048666523 | H12: 0.2149045564 | I12: 0.2067565388 | J12: 0.2057926596 | K12: 0.2122421541 | L12: 0.2214736833 | M12: 0.2067156911 | N12: 0.2150751168 | O12: 0.2173883788 | P12: 0.2202908212 | Q12: 0.2122217492 | R12: 0.2113620821 | S12: 0.2155266373 | T12: 0.2103720746 | U12: 0.2171450294 | V12: 0.1947378834 | W12: 0.2167557137 | X12: 0.2265509191 | Y12: 0.2036557643 | Z12: 0.2214966694 | AA12: 0.2051310583 | AB12: 0.2114124773 | AC12: 0.2107533105 | AD12: 0.210894865 | AE12: 0.2203307109 | AF12: 0.2112419455 | AG12: 0.2228751041 | AH12: 0.2174546222 | AI12: 0.2104632768 | AJ12: 0.2222896896 | AK12: 0.2107278073 | AL12: 0.2161496039 | AM12: 0.2116988737 | AN12: 0.2156346178 | AO12: 0.2183202159 | AP12: 0.2172954763 | AQ12: 0.2069151343 | AR12: 0.2209773217 | AS12: 0.2169045641 | AT12: 0.2131132097 | AU12: 0.1932836181 | AV12: 0.2151848235 | AW12: 0.2076720902 | AX12: 0.2153288571 | AY12: 0.212145415 | AZ12: 0.2242159329 | BA12: 0.2316033534 | BB12: 0.223634881 | BC12: 0.2148861036 | BD12: 0.2308640734 | BE12: 0.215174673 | BF12: 0.2073167905 | BG12: 0.2131676121 | BH12: 0.2182239858 | BI12: 0.1941015493 | BJ12: 0.2295931992 | BK12: 0.2113132696 | BL12: 0.2230656211 | BM12: 0.2200535906 | BN12: 0.2112301895 | BO12: 0.2040505177 | BP12: 0.2182089301 | BQ12: 0.2233870319 | BR12: 0.2122978189 | BS12: 0.2104487602 | BT12: 0.2196718781 | BU12: 0.2133683683 | BV12: 0.212614091 | BW12: 0.2111371677 | BX12: 0.2264965494 | BY12: 0.2182810349 | BZ12: 0.2134115213 | CA12: 0.2173729785 | CB12: 0.2086034353 | CC12: 0.2116206543 | CD12: 0.2103075011 | CE12: 0.2242557953 | CF12: 0.2075051392 | CG12: 0.2043771783 | CH12: 0.2266918939 | CI12: 0.2044148588 | CJ12: 0.2133870928 | CK12: 0.2269964191 | CL12: 0.2038393818 | CM12: 0.2148818165 | CN12: 0.2333209544 | CO12: 0.2073361461 | CP12: 0.2187806288 | CQ12: 0.2226965797 | CR12: 0.21707131 | CS12: 0.2193982967 | CT12: 0.2155414747 | CU12: 0.2156224319 | CV12: 0.216773588 | CW12: 0.2224864864 | CX12: 0.2197160371 | CY12: 0.224045041 | CZ12: 0.2183247405 | DA12: 0.2140745779 | DB12: 0.2149574788 | DC12: 0.2333209544 | DD12: 0.1932836181 | DE12: 0.215174673 | DF12: 0.00148191122 | DG12: 0.2040294041 | DH12: 0.2267223464 | DI12: -0.2186776622 | DJ12: 0.6220194999
A13: Med Hist Resource.NumberSeized | B13: OUTPUT VALUE | C13: Total Number Seized | D13: Resource | E13: Med Hist Resource | F13: 10815 | G13: 10275 | H13: 10875 | I13: 10350 | J13: 10380 | K13: 10695 | L13: 11085 | M13: 10335 | N13: 10800 | O13: 10890 | P13: 10980 | Q13: 10635 | R13: 10545 | S13: 10815 | T13: 10560 | U13: 10845 | V13: 9780 | W13: 10860 | X13: 11370 | Y13: 10185 | Z13: 11145 | AA13: 10350 | AB13: 10635 | AC13: 10515 | AD13: 10530 | AE13: 11025 | AF13: 10545 | AG13: 11115 | AH13: 10890 | AI13: 10530 | AJ13: 11100 | AK13: 10665 | AL13: 10785 | AM13: 10620 | AN13: 10800 | AO13: 10965 | AP13: 10935 | AQ13: 10335 | AR13: 10995 | AS13: 10890 | AT13: 10710 | AU13: 9690 | AV13: 10815 | AW13: 10350 | AX13: 10830 | AY13: 10575 | AZ13: 11235 | BA13: 11595 | BB13: 11175 | BC13: 10755 | BD13: 11610 | BE13: 10890 | BF13: 10425 | BG13: 10680 | BH13: 10935 | BI13: 9690 | BJ13: 11445 | BK13: 10665 | BL13: 11160 | BM13: 10950 | BN13: 10590 | BO13: 10155 | BP13: 10995 | BQ13: 11190 | BR13: 10650 | BS13: 10545 | BT13: 10950 | BU13: 10680 | BV13: 10605 | BW13: 10575 | BX13: 11310 | BY13: 10890 | BZ13: 10620 | CA13: 10800 | CB13: 10470 | CC13: 10635 | CD13: 10515 | CE13: 11145 | CF13: 10455 | CG13: 10290 | CH13: 11385 | CI13: 10260 | CJ13: 10680 | CK13: 11310 | CL13: 10290 | CM13: 10785 | CN13: 11670 | CO13: 10425 | CP13: 10920 | CQ13: 11190 | CR13: 10905 | CS13: 11025 | CT13: 10725 | CU13: 10740 | CV13: 10905 | CW13: 11100 | CX13: 10950 | CY13: 11145 | CZ13: 10950 | DA13: 10740 | DB13: 10767.42424 | DC13: 11670 | DD13: 9690 | DE13: 10785 | DF13: 72.68826893 | DG13: 10252.5 | DH13: 11371.5 | DI13: -0.2561273006 | DJ13: 0.8322229692
A14: Med Hist Resource.ScheduledUtilization | B14: OUTPUT VALUE | C14: Scheduled Utilization | D14: Resource | E14: Med Hist Resource | F14: 0.7010953964 | G14: 0.6638596151 | H14: 0.6965799208 | I14: 0.6679221967 | J14: 0.6644640832 | K14: 0.6860812543 | L14: 0.7150558027 | M14: 0.6662465688 | N14: 0.6978879887 | O14: 0.7041026859 | P14: 0.7139926834 | Q14: 0.6848511808 | R14: 0.6843413372 | S14: 0.6949594494 | T14: 0.6844963478 | U14: 0.70456009 | V14: 0.6328764576 | W14: 0.7013493185 | X14: 0.7295853827 | Y14: 0.6562076772 | Z14: 0.7144615551 | AA14: 0.6628372551 | AB14: 0.6841570033 | AC14: 0.6819191463 | AD14: 0.6781999249 | AE14: 0.7095220699 | AF14: 0.6827803989 | AG14: 0.7183025007 | AH14: 0.701280578 | AI14: 0.6779758557 | AJ14: 0.7142299046 | AK14: 0.6843199077 | AL14: 0.6954725477 | AM14: 0.6798067817 | AN14: 0.6995840171 | AO14: 0.7065107116 | AP14: 0.7020560081 | AQ14: 0.6701384263 | AR14: 0.7098348138 | AS14: 0.6990974895 | AT14: 0.6883624382 | AU14: 0.6262761203 | AV14: 0.6967080541 | AW14: 0.6753051097 | AX14: 0.6942529478 | AY14: 0.6857254747 | AZ14: 0.7254063265 | BA14: 0.7464228908 | BB14: 0.7240004708 | BC14: 0.6934206128 | BD14: 0.7482289681 | BE14: 0.6915907708 | BF14: 0.6670729558 | BG14: 0.6894726901 | BH14: 0.7112000262 | BI14: 0.6223266516 | BJ14: 0.7435887504 | BK14: 0.68299248 | BL14: 0.7153607936 | BM14: 0.7097438422 | BN14: 0.6809850826 | BO14: 0.6519961559 | BP14: 0.7083399121 | BQ14: 0.7197879769 | BR14: 0.6832272474 | BS14: 0.6805358729 | BT14: 0.7105621407 | BU14: 0.6878328833 | BV14: 0.6883910992 | BW14: 0.6809564772 | BX14: 0.7308933668 | BY14: 0.7020509845 | BZ14: 0.6887477357 | CA14: 0.7011003112 | CB14: 0.6748850706 | CC14: 0.6886863912 | CD14: 0.6829621708 | CE14: 0.7205762585 | CF14: 0.6759763305 | CG14: 0.6614715547 | CH14: 0.7322380669 | CI14: 0.6573789737 | CJ14: 0.6895450967 | CK14: 0.7335776633 | CL14: 0.6585346007 | CM14: 0.6985451388 | CN14: 0.7493783412 | CO14: 0.6710536398 | CP14: 0.7045184421 | CQ14: 0.7209826964 | CR14: 0.6970855691 | CS14: 0.7087963009 | CT14: 0.6961524222 | CU14: 0.6926486013 | CV14: 0.7034802776 | CW14: 0.7183612619 | CX14: 0.7069152811 | CY14: 0.7250941636 | CZ14: 0.7036734269 | DA14: 0.6917399267 | DB14: 0.6943336386 | DC14: 0.7493783412 | DD14: 0.6223266516 | DE14: 0.6949594494 | DF14: 0.004749378052 | DG14: 0.6572618441 | DH14: 0.7323720266 | DI14: -0.2709509189 | DJ14: 0.6989744742
A15: Sch Resource.NumberSeized | B15: OUTPUT VALUE | C15: Total Number Seized | D15: Resource | E15: Sch Resource | F15: 0 | G15: 0 | H15: 0 | I15: 0 | J15: 0 | K15: 0 | L15: 0 | M15: 0 | N15: 0 | O15: 0 | P15: 0 | Q15: 0 | R15: 0 | S15: 0 | T15: 0 | U15: 0 | V15: 0 | W15: 0 | X15: 0 | Y15: 0 | Z15: 0 | AA15: 0 | AB15: 0 | AC15: 0 | AD15: 0 | AE15: 0 | AF15: 0 | AG15: 0 | AH15: 0 | AI15: 0 | AJ15: 0 | AK15: 0 | AL15: 0 | AM15: 0 | AN15: 0 | AO15: 0 | AP15: 0 | AQ15: 0 | AR15: 0 | AS15: 0 | AT15: 0 | AU15: 0 | AV15: 0 | AW15: 0 | AX15: 0 | AY15: 0 | AZ15: 0 | BA15: 0 | BB15: 0 | BC15: 0 | BD15: 0 | BE15: 0 | BF15: 0 | BG15: 0 | BH15: 0 | BI15: 0 | BJ15: 0 | BK15: 0 | BL15: 0 | BM15: 0 | BN15: 0 | BO15: 0 | BP15: 0 | BQ15: 0 | BR15: 0 | BS15: 0 | BT15: 0 | BU15: 0 | BV15: 0 | BW15: 0 | BX15: 0 | BY15: 0 | BZ15: 0 | CA15: 0 | CB15: 0 | CC15: 0 | CD15: 0 | CE15: 0 | CF15: 0 | CG15: 0 | CH15: 0 | CI15: 0 | CJ15: 0 | CK15: 0 | CL15: 0 | CM15: 0 | CN15: 0 | CO15: 0 | CP15: 0 | CQ15: 0 | CR15: 0 | CS15: 0 | CT15: 0 | CU15: 0 | CV15: 0 | CW15: 0 | CX15: 0 | CY15: 0 | CZ15: 0 | DA15: 0 | DB15: 0 | DC15: 0 | DD15: 0 | DE15: 0 | DG15: 0 | DH15: 0
A16: Sch Resource.ScheduledUtilization | B16: OUTPUT VALUE | C16: Scheduled Utilization | D16: Resource | E16: Sch Resource | F16: 0 | G16: 0 | H16: 0 | I16: 0 | J16: 0 | K16: 0 | L16: 0 | M16: 0 | N16: 0 | O16: 0 | P16: 0 | Q16: 0 | R16: 0 | S16: 0 | T16: 0 | U16: 0 | V16: 0 | W16: 0 | X16: 0 | Y16: 0 | Z16: 0 | AA16: 0 | AB16: 0 | AC16: 0 | AD16: 0 | AE16: 0 | AF16: 0 | AG16: 0 | AH16: 0 | AI16: 0 | AJ16: 0 | AK16: 0 | AL16: 0 | AM16: 0 | AN16: 0 | AO16: 0 | AP16: 0 | AQ16: 0 | AR16: 0 | AS16: 0 | AT16: 0 | AU16: 0 | AV16: 0 | AW16: 0 | AX16: 0 | AY16: 0 | AZ16: 0 | BA16: 0 | BB16: 0 | BC16: 0 | BD16: 0 | BE16: 0 | BF16: 0 | BG16: 0 | BH16: 0 | BI16: 0 | BJ16: 0 | BK16: 0 | BL16: 0 | BM16: 0 | BN16: 0 | BO16: 0 | BP16: 0 | BQ16: 0 | BR16: 0 | BS16: 0 | BT16: 0 | BU16: 0 | BV16: 0 | BW16: 0 | BX16: 0 | BY16: 0 | BZ16: 0 | CA16: 0 | CB16: 0 | CC16: 0 | CD16: 0 | CE16: 0 | CF16: 0 | CG16: 0 | CH16: 0 | CI16: 0 | CJ16: 0 | CK16: 0 | CL16: 0 | CM16: 0 | CN16: 0 | CO16: 0 | CP16: 0 | CQ16: 0 | CR16: 0 | CS16: 0 | CT16: 0 | CU16: 0 | CV16: 0 | CW16: 0 | CX16: 0 | CY16: 0 | CZ16: 0 | DA16: 0 | DB16: 0 | DC16: 0 | DD16: 0 | DE16: 0 | DG16: 0 | DH16: 0
A17: System.NumberOut | B17: OUTPUT VALUE | C17: Number Out | D17: System | E17: System | F17: 10815 | G17: 10275 | H17: 10875 | I17: 10350 | J17: 10380 | K17: 10695 | L17: 11085 | M17: 10335 | N17: 10800 | O17: 10890 | P17: 10980 | Q17: 10635 | R17: 10545 | S17: 10815 | T17: 10560 | U17: 10845 | V17: 9780 | W17: 10860 | X17: 11370 | Y17: 10185 | Z17: 11145 | AA17: 10350 | AB17: 10635 | AC17: 10515 | AD17: 10530 | AE17: 11025 | AF17: 10545 | AG17: 11115 | AH17: 10890 | AI17: 10530 | AJ17: 11100 | AK17: 10665 | AL17: 10785 | AM17: 10620 | AN17: 10800 | AO17: 10965 | AP17: 10935 | AQ17: 10335 | AR17: 10995 | AS17: 10890 | AT17: 10710 | AU17: 9690 | AV17: 10815 | AW17: 10350 | AX17: 10830 | AY17: 10575 | AZ17: 11235 | BA17: 11595 | BB17: 11175 | BC17: 10755 | BD17: 11610 | BE17: 10890 | BF17: 10425 | BG17: 10680 | BH17: 10935 | BI17: 9690 | BJ17: 11445 | BK17: 10665 | BL17: 11160 | BM17: 10950 | BN17: 10590 | BO17: 10155 | BP17: 10995 | BQ17: 11190 | BR17: 10650 | BS17: 10545 | BT17: 10950 | BU17: 10680 | BV17: 10605 | BW17: 10575 | BX17: 11310 | BY17: 10890 | BZ17: 10620 | CA17: 10800 | CB17: 10470 | CC17: 10635 | CD17: 10515 | CE17: 11145 | CF17: 10455 | CG17: 10290 | CH17: 11385 | CI17: 10260 | CJ17: 10680 | CK17: 11310 | CL17: 10290 | CM17: 10785 | CN17: 11670 | CO17: 10425 | CP17: 10920 | CQ17: 11190 | CR17: 10905 | CS17: 11025 | CT17: 10725 | CU17: 10740 | CV17: 10905 | CW17: 11100 | CX17: 10950 | CY17: 11145 | CZ17: 10950 | DA17: 10740 | DB17: 10767.42424 | DC17: 11670 | DD17: 9690 | DE17: 10785 | DF17: 72.68826893 | DG17: 10252.5 | DH17: 11371.5 | DI17: -0.2561273006 | DJ17: 0.8322229692
A18: Vacc Resource.NumberSeized | B18: OUTPUT VALUE | C18: Total Number Seized | D18: Resource | E18: Vacc Resource | F18: 8021 | G18: 7644 | H18: 8094 | I18: 7636 | J18: 7720 | K18: 7847 | L18: 8231 | M18: 7649 | N18: 7943 | O18: 8040 | P18: 8056 | Q18: 7971 | R18: 7701 | S18: 8035 | T18: 7776 | U18: 7966 | V18: 7195 | W18: 8003 | X18: 8413 | Y18: 7512 | Z18: 8266 | AA18: 7632 | AB18: 7920 | AC18: 7802 | AD18: 7744 | AE18: 8133 | AF18: 7799 | AG18: 8235 | AH18: 8049 | AI18: 7785 | AJ18: 8246 | AK18: 7887 | AL18: 7994 | AM18: 7958 | AN18: 7991 | AO18: 8073 | AP18: 8083 | AQ18: 7614 | AR18: 8168 | AS18: 8100 | AT18: 7969 | AU18: 7214 | AV18: 7927 | AW18: 7624 | AX18: 8056 | AY18: 7812 | AZ18: 8296 | BA18: 8618 | BB18: 8301 | BC18: 7940 | BD18: 8584 | BE18: 8060 | BF18: 7775 | BG18: 7914 | BH18: 8060 | BI18: 7204 | BJ18: 8433 | BK18: 7873 | BL18: 8279 | BM18: 8048 | BN18: 7865 | BO18: 7613 | BP18: 8121 | BQ18: 8294 | BR18: 7899 | BS18: 7848 | BT18: 8120 | BU18: 7883 | BV18: 7896 | BW18: 7909 | BX18: 8187 | BY18: 8030 | BZ18: 7761 | CA18: 7931 | CB18: 7744 | CC18: 7697 | CD18: 7765 | CE18: 8246 | CF18: 7695 | CG18: 7568 | CH18: 8362 | CI18: 7592 | CJ18: 7931 | CK18: 8380 | CL18: 7563 | CM18: 8052 | CN18: 8664 | CO18: 7710 | CP18: 8061 | CQ18: 8277 | CR18: 8097 | CS18: 8186 | CT18: 7960 | CU18: 8031 | CV18: 8062 | CW18: 8161 | CX18: 8117 | CY18: 8223 | CZ18: 8087 | DA18: 7969 | DB18: 7964.191919 | DC18: 8664 | DD18: 7195 | DE18: 7969 | DF18: 53.82507544 | DG18: 7567.5 | DH18: 8383.3 | DI18: -0.2224858559 | DJ18: 0.7487223799
A19: Vacc Resource.ScheduledUtilization | B19: OUTPUT VALUE | C19: Scheduled Utilization | D19: Resource | E19: Vacc Resource | F19: 0.7104491452 | G19: 0.668484279 | H19: 0.7045320188 | I19: 0.6766672268 | J19: 0.6732306199 | K19: 0.683326424 | L19: 0.7216187937 | M19: 0.6707378074 | N19: 0.6987701734 | O19: 0.7044803444 | P19: 0.7119850015 | Q19: 0.6949913926 | R19: 0.6740795014 | S19: 0.7023217514 | T19: 0.6813955961 | U19: 0.7005435057 | V19: 0.6302202914 | W19: 0.7060074335 | X19: 0.7359401175 | Y19: 0.6629300423 | Z19: 0.7219231654 | AA19: 0.663710749 | AB19: 0.6899368128 | AC19: 0.6893740713 | AD19: 0.6717420438 | AE19: 0.7126693123 | AF19: 0.6862625118 | AG19: 0.7227486592 | AH19: 0.7024796948 | AI19: 0.6841886817 | AJ19: 0.7220606308 | AK19: 0.6886752914 | AL19: 0.7043986323 | AM19: 0.6983677177 | AN19: 0.7022071344 | AO19: 0.7052427358 | AP19: 0.707710688 | AQ19: 0.6655588077 | AR19: 0.7148258544 | AS19: 0.7119553531 | AT19: 0.6986468572 | AU19: 0.6304513476 | AV19: 0.6885745797 | AW19: 0.678908747 | AX19: 0.7019188297 | AY19: 0.68732526 | AZ19: 0.7244293083 | BA19: 0.7613792216 | BB19: 0.7318870078 | BC19: 0.6954680555 | BD19: 0.7472745708 | BE19: 0.6993668577 | BF19: 0.6746886517 | BG19: 0.6923762649 | BH19: 0.7106259473 | BI19: 0.6354304813 | BJ19: 0.7385047628 | BK19: 0.6854497365 | BL19: 0.7223595213 | BM19: 0.7159514693 | BN19: 0.6945653831 | BO19: 0.672503325 | BP19: 0.7129703057 | BQ19: 0.7256082947 | BR19: 0.6935269009 | BS19: 0.6857666446 | BT19: 0.7169177955 | BU19: 0.688184527 | BV19: 0.695942001 | BW19: 0.6927430354 | BX19: 0.7177764288 | BY19: 0.7071239064 | BZ19: 0.6833217944 | CA19: 0.6972880549 | CB19: 0.6844052044 | CC19: 0.6723836053 | CD19: 0.6834955202 | CE19: 0.7232513699 | CF19: 0.6711150056 | CG19: 0.6594270151 | CH19: 0.7372958718 | CI19: 0.6625045498 | CJ19: 0.6981023602 | CK19: 0.7371783133 | CL19: 0.6599727393 | CM19: 0.7052857647 | CN19: 0.7562332364 | CO19: 0.6747094079 | CP19: 0.7153825273 | CQ19: 0.7258575415 | CR19: 0.7128109356 | CS19: 0.7110861242 | CT19: 0.7065300386 | CU19: 0.7094252713 | CV19: 0.7066415112 | CW19: 0.7142637071 | CX19: 0.7154601693 | CY19: 0.7276589134 | CZ19: 0.7105906552 | DA19: 0.693242938 | DB19: 0.6984633034 | DC19: 0.7613792216 | DD19: 0.6302202914 | DE19: 0.6993668577 | DF19: 0.00478196663 | DG19: 0.6622513688 | DH19: 0.7371900692 | DI19: -0.2433426629 | DJ19: 0.5926027136
A20: Verify Appt Resource.NumberSeized | B20: OUTPUT VALUE | C20: Total Number Seized | D20: Resource | E20: Verify Appt Resource | F20: 0 | G20: 0 | H20: 0 | I20: 0 | J20: 0 | K20: 0 | L20: 0 | M20: 0 | N20: 0 | O20: 0 | P20: 0 | Q20: 0 | R20: 0 | S20: 0 | T20: 0 | U20: 0 | V20: 0 | W20: 0 | X20: 0 | Y20: 0 | Z20: 0 | AA20: 0 | AB20: 0 | AC20: 0 | AD20: 0 | AE20: 0 | AF20: 0 | AG20: 0 | AH20: 0 | AI20: 0 | AJ20: 0 | AK20: 0 | AL20: 0 | AM20: 0 | AN20: 0 | AO20: 0 | AP20: 0 | AQ20: 0 | AR20: 0 | AS20: 0 | AT20: 0 | AU20: 0 | AV20: 0 | AW20: 0 | AX20: 0 | AY20: 0 | AZ20: 0 | BA20: 0 | BB20: 0 | BC20: 0 | BD20: 0 | BE20: 0 | BF20: 0 | BG20: 0 | BH20: 0 | BI20: 0 | BJ20: 0 | BK20: 0 | BL20: 0 | BM20: 0 | BN20: 0 | BO20: 0 | BP20: 0 | BQ20: 0 | BR20: 0 | BS20: 0 | BT20: 0 | BU20: 0 | BV20: 0 | BW20: 0 | BX20: 0 | BY20: 0 | BZ20: 0 | CA20: 0 | CB20: 0 | CC20: 0 | CD20: 0 | CE20: 0 | CF20: 0 | CG20: 0 | CH20: 0 | CI20: 0 | CJ20: 0 | CK20: 0 | CL20: 0 | CM20: 0 | CN20: 0 | CO20: 0 | CP20: 0 | CQ20: 0 | CR20: 0 | CS20: 0 | CT20: 0 | CU20: 0 | CV20: 0 | CW20: 0 | CX20: 0 | CY20: 0 | CZ20: 0 | DA20: 0 | DB20: 0 | DC20: 0 | DD20: 0 | DE20: 0 | DG20: 0 | DH20: 0
A21: Verify Appt Resource.ScheduledUtilization | B21: OUTPUT VALUE | C21: Scheduled Utilization | D21: Resource | E21: Verify Appt Resource | F21: 0 | G21: 0 | H21: 0 | I21: 0 | J21: 0 | K21: 0 | L21: 0 | M21: 0 | N21: 0 | O21: 0 | P21: 0 | Q21: 0 | R21: 0 | S21: 0 | T21: 0 | U21: 0 | V21: 0 | W21: 0 | X21: 0 | Y21: 0 | Z21: 0 | AA21: 0 | AB21: 0 | AC21: 0 | AD21: 0 | AE21: 0 | AF21: 0 | AG21: 0 | AH21: 0 | AI21: 0 | AJ21: 0 | AK21: 0 | AL21: 0 | AM21: 0 | AN21: 0 | AO21: 0 | AP21: 0 | AQ21: 0 | AR21: 0 | AS21: 0 | AT21: 0 | AU21: 0 | AV21: 0 | AW21: 0 | AX21: 0 | AY21: 0 | AZ21: 0 | BA21: 0 | BB21: 0 | BC21: 0 | BD21: 0 | BE21: 0 | BF21: 0 | BG21: 0 | BH21: 0 | BI21: 0 | BJ21: 0 | BK21: 0 | BL21: 0 | BM21: 0 | BN21: 0 | BO21: 0 | BP21: 0 | BQ21: 0 | BR21: 0 | BS21: 0 | BT21: 0 | BU21: 0 | BV21: 0 | BW21: 0 | BX21: 0 | BY21: 0 | BZ21: 0 | CA21: 0 | CB21: 0 | CC21: 0 | CD21: 0 | CE21: 0 | CF21: 0 | CG21: 0 | CH21: 0 | CI21: 0 | CJ21: 0 | CK21: 0 | CL21: 0 | CM21: 0 | CN21: 0 | CO21: 0 | CP21: 0 | CQ21: 0 | CR21: 0 | CS21: 0 | CT21: 0 | CU21: 0 | CV21: 0 | CW21: 0 | CX21: 0 | CY21: 0 | CZ21: 0 | DA21: 0 | DB21: 0 | DC21: 0 | DD21: 0 | DE21: 0 | DG21: 0 | DH21: 0
A22: Waiting Room Resource.NumberSeized | B22: OUTPUT VALUE | C22: Total Number Seized | D22: Resource | E22: Waiting Room Resource | F22: 10815 | G22: 10275 | H22: 10875 | I22: 10350 | J22: 10380 | K22: 10695 | L22: 11085 | M22: 10335 | N22: 10800 | O22: 10890 | P22: 10980 | Q22: 10635 | R22: 10545 | S22: 10815 | T22: 10560 | U22: 10845 | V22: 9780 | W22: 10860 | X22: 11370 | Y22: 10185 | Z22: 11145 | AA22: 10350 | AB22: 10635 | AC22: 10515 | AD22: 10530 | AE22: 11025 | AF22: 10545 | AG22: 11115 | AH22: 10890 | AI22: 10530 | AJ22: 11100 | AK22: 10665 | AL22: 10785 | AM22: 10620 | AN22: 10800 | AO22: 10965 | AP22: 10935 | AQ22: 10335 | AR22: 10995 | AS22: 10890 | AT22: 10710 | AU22: 9690 | AV22: 10815 | AW22: 10350 | AX22: 10830 | AY22: 10575 | AZ22: 11235 | BA22: 11595 | BB22: 11175 | BC22: 10755 | BD22: 11610 | BE22: 10890 | BF22: 10425 | BG22: 10680 | BH22: 10935 | BI22: 9690 | BJ22: 11445 | BK22: 10665 | BL22: 11160 | BM22: 10950 | BN22: 10590 | BO22: 10155 | BP22: 10995 | BQ22: 11190 | BR22: 10650 | BS22: 10545 | BT22: 10950 | BU22: 10680 | BV22: 10605 | BW22: 10575 | BX22: 11310 | BY22: 10890 | BZ22: 10620 | CA22: 10800 | CB22: 10470 | CC22: 10635 | CD22: 10515 | CE22: 11145 | CF22: 10455 | CG22: 10290 | CH22: 11385 | CI22: 10260 | CJ22: 10680 | CK22: 11310 | CL22: 10290 | CM22: 10785 | CN22: 11670 | CO22: 10425 | CP22: 10920 | CQ22: 11190 | CR22: 10905 | CS22: 11025 | CT22: 10725 | CU22: 10740 | CV22: 10905 | CW22: 11100 | CX22: 10950 | CY22: 11145 | CZ22: 10950 | DA22: 10740 | DB22: 10767.42424 | DC22: 11670 | DD22: 9690 | DE22: 10785 | DF22: 72.68826893 | DG22: 10252.5 | DH22: 11371.5 | DI22: -0.2561273006 | DJ22: 0.8322229692
A23: Waiting Room Resource.ScheduledUtilization | B23: OUTPUT VALUE | C23: Scheduled Utilization | D23: Resource | E23: Waiting Room Resource | F23: 0.1720270543 | G23: 0.1611409017 | H23: 0.1684104402 | I23: 0.1630047438 | J23: 0.1616288363 | K23: 0.166648894 | L23: 0.1748729106 | M23: 0.1623145259 | N23: 0.1700717228 | O23: 0.1713519358 | P23: 0.1733386965 | Q23: 0.1667917003 | R23: 0.1659178527 | S23: 0.1690992888 | T23: 0.1655447675 | U23: 0.1697100067 | V23: 0.1539257058 | W23: 0.1705535411 | X23: 0.1767935348 | Y23: 0.1597312086 | Z23: 0.1736930883 | AA23: 0.162111842 | AB23: 0.1662471341 | AC23: 0.1660204869 | AD23: 0.164688724 | AE23: 0.1721283014 | AF23: 0.1657094844 | AG23: 0.1752355163 | AH23: 0.1694282791 | AI23: 0.166829172 | AJ23: 0.1753246265 | AK23: 0.1661409668 | AL23: 0.1694405645 | AM23: 0.1660148172 | AN23: 0.1697457602 | AO23: 0.171691039 | AP23: 0.1703201157 | AQ23: 0.1618340977 | AR23: 0.1737511897 | AS23: 0.1708542985 | AT23: 0.1672968175 | AU23: 0.1518568272 | AV23: 0.1691744666 | AW23: 0.1636203792 | AX23: 0.1684123426 | AY23: 0.1672097818 | AZ23: 0.1755069319 | BA23: 0.1820271465 | BB23: 0.1761728945 | BC23: 0.1691090163 | BD23: 0.1804044294 | BE23: 0.169628689 | BF23: 0.1640803689 | BG23: 0.1681490111 | BH23: 0.1715286546 | BI23: 0.1515742636 | BJ23: 0.1801508712 | BK23: 0.1653749153 | BL23: 0.174993105 | BM23: 0.1731015436 | BN23: 0.166320349 | BO23: 0.1595266071 | BP23: 0.1718752695 | BQ23: 0.1758327423 | BR23: 0.1653440278 | BS23: 0.1649747947 | BT23: 0.1718511396 | BU23: 0.1676970273 | BV23: 0.1670141958 | BW23: 0.1660008906 | BX23: 0.1767915858 | BY23: 0.1713708269 | BZ23: 0.1668504545 | CA23: 0.170362663 | CB23: 0.1651204573 | CC23: 0.1664373207 | CD23: 0.1655972575 | CE23: 0.1756148879 | CF23: 0.1629782922 | CG23: 0.1603330158 | CH23: 0.178298596 | CI23: 0.1601364318 | CJ23: 0.167526311 | CK23: 0.1775669087 | CL23: 0.1607773232 | CM23: 0.1692993215 | CN23: 0.1833136203 | CO23: 0.1627864016 | CP23: 0.1721332451 | CQ23: 0.1752016581 | CR23: 0.171262379 | CS23: 0.1727100893 | CT23: 0.1694663132 | CU23: 0.1697377506 | CV23: 0.1708451371 | CW23: 0.1736203587 | CX23: 0.1723525726 | CY23: 0.1769638694 | CZ23: 0.172022507 | DA23: 0.1683575941 | DB23: 0.1688859128 | DC23: 0.1833136203 | DD23: 0.1515742636 | DE23: 0.1691744666 | DF23: 0.001151981302 | DG23: 0.1600959095 | DH23: 0.1776400774 | DI23: -0.2805127718 | DJ23: 0.707011592
A24: Watch Resource Chair.NumberSeized | B24: OUTPUT VALUE | C24: Total Number Seized | D24: Resource | E24: Watch Resource Chair | F24: 8021 | G24: 7644 | H24: 8094 | I24: 7636 | J24: 7720 | K24: 7847 | L24: 8231 | M24: 7649 | N24: 7943 | O24: 8040 | P24: 8056 | Q24: 7971 | R24: 7701 | S24: 8035 | T24: 7776 | U24: 7966 | V24: 7195 | W24: 8003 | X24: 8413 | Y24: 7512 | Z24: 8266 | AA24: 7632 | AB24: 7920 | AC24: 7802 | AD24: 7744 | AE24: 8133 | AF24: 7799 | AG24: 8235 | AH24: 8049 | AI24: 7785 | AJ24: 8246 | AK24: 7887 | AL24: 7994 | AM24: 7958 | AN24: 7991 | AO24: 8073 | AP24: 8083 | AQ24: 7614 | AR24: 8168 | AS24: 8100 | AT24: 7969 | AU24: 7214 | AV24: 7927 | AW24: 7624 | AX24: 8056 | AY24: 7812 | AZ24: 8296 | BA24: 8618 | BB24: 8301 | BC24: 7940 | BD24: 8584 | BE24: 8060 | BF24: 7775 | BG24: 7914 | BH24: 8060 | BI24: 7204 | BJ24: 8433 | BK24: 7873 | BL24: 8279 | BM24: 8048 | BN24: 7865 | BO24: 7613 | BP24: 8121 | BQ24: 8294 | BR24: 7899 | BS24: 7848 | BT24: 8120 | BU24: 7883 | BV24: 7896 | BW24: 7909 | BX24: 8187 | BY24: 8030 | BZ24: 7761 | CA24: 7931 | CB24: 7744 | CC24: 7697 | CD24: 7765 | CE24: 8246 | CF24: 7695 | CG24: 7568 | CH24: 8362 | CI24: 7592 | CJ24: 7931 | CK24: 8380 | CL24: 7563 | CM24: 8052 | CN24: 8664 | CO24: 7710 | CP24: 8061 | CQ24: 8277 | CR24: 8097 | CS24: 8186 | CT24: 7960 | CU24: 8031 | CV24: 8062 | CW24: 8161 | CX24: 8117 | CY24: 8223 | CZ24: 8087 | DA24: 7969 | DB24: 7964.191919 | DC24: 8664 | DD24: 7195 | DE24: 7969 | DF24: 53.82507544 | DG24: 7567.5 | DH24: 8383.3 | DI24: -0.2224858559 | DJ24: 0.7487223799
A25: Watch Resource.NumberSeized | B25: OUTPUT VALUE | C25: Total Number Seized | D25: Resource | E25: Watch Resource | F25: 1 | G25: 1 | H25: 1 | I25: 1 | J25: 1 | K25: 1 | L25: 1 | M25: 1 | N25: 1 | O25: 1 | P25: 1 | Q25: 1 | R25: 1 | S25: 1 | T25: 1 | U25: 1 | V25: 1 | W25: 1 | X25: 1 | Y25: 1 | Z25: 1 | AA25: 1 | AB25: 1 | AC25: 1 | AD25: 1 | AE25: 1 | AF25: 1 | AG25: 1 | AH25: 1 | AI25: 1 | AJ25: 1 | AK25: 1 | AL25: 1 | AM25: 1 | AN25: 1 | AO25: 1 | AP25: 1 | AQ25: 1 | AR25: 1 | AS25: 1 | AT25: 1 | AU25: 1 | AV25: 1 | AW25: 1 | AX25: 1 | AY25: 1 | AZ25: 1 | BA25: 1 | BB25: 1 | BC25: 1 | BD25: 1 | BE25: 1 | BF25: 1 | BG25: 1 | BH25: 1 | BI25: 1 | BJ25: 1 | BK25: 1 | BL25: 1 | BM25: 1 | BN25: 1 | BO25: 1 | BP25: 1 | BQ25: 1 | BR25: 1 | BS25: 1 | BT25: 1 | BU25: 1 | BV25: 1 | BW25: 1 | BX25: 1 | BY25: 1 | BZ25: 1 | CA25: 1 | CB25: 1 | CC25: 1 | CD25: 1 | CE25: 1 | CF25: 1 | CG25: 1 | CH25: 1 | CI25: 1 | CJ25: 1 | CK25: 1 | CL25: 1 | CM25: 1 | CN25: 1 | CO25: 1 | CP25: 1 | CQ25: 1 | CR25: 1 | CS25: 1 | CT25: 1 | CU25: 1 | CV25: 1 | CW25: 1 | CX25: 1 | CY25: 1 | CZ25: 1 | DA25: 1 | DB25: 1 | DC25: 1 | DD25: 1 | DE25: 1 | DG25: 1 | DH25: 1
A26: Watch Resource.ScheduledUtilization | B26: OUTPUT VALUE | C26: Scheduled Utilization | D26: Resource | E26: Watch Resource | F26: 0.9808019233 | G26: 0.9820024003 | H26: 0.9763435958 | I26: 0.9815885119 | J26: 0.9774420091 | K26: 0.9845666756 | L26: 0.986946311 | M26: 0.9803171903 | N26: 0.9826026913 | O26: 0.9853826259 | P26: 0.9903439193 | Q26: 0.986972407 | R26: 0.9845004703 | S26: 0.9796062393 | T26: 0.9803491875 | U26: 0.9825551256 | V26: 0.9820149015 | W26: 0.9809057001 | X26: 0.9775759899 | Y26: 0.988872056 | Z26: 0.9833053262 | AA26: 0.9758486411 | AB26: 0.9813285931 | AC26: 0.9803727969 | AD26: 0.9812990393 | AE26: 0.9851617902 | AF26: 0.982100763 | AG26: 0.982452181 | AH26: 0.9782386542 | AI26: 0.9909523202 | AJ26: 0.9840340242 | AK26: 0.9752252292 | AL26: 0.9817505111 | AM26: 0.9793797759 | AN26: 0.9850083956 | AO26: 0.9742297789 | AP26: 0.9800126859 | AQ26: 0.9799369974 | AR26: 0.9851406944 | AS26: 0.9825896517 | AT26: 0.9819367683 | AU26: 0.9757453152 | AV26: 0.9807004826 | AW26: 0.9884364714 | AX26: 0.9782337247 | AY26: 0.9794246388 | AZ26: 0.98195009 | BA26: 0.9808673325 | BB26: 0.9860537499 | BC26: 0.9817637401 | BD26: 0.9856377673 | BE26: 0.9699188815 | BF26: 0.9831444986 | BG26: 0.9835193854 | BH26: 0.9817321753 | BI26: 0.9751584592 | BJ26: 0.9829138536 | BK26: 0.9764065898 | BL26: 0.9773571482 | BM26: 0.9844279045 | BN26: 0.9829809163 | BO26: 0.9851794596 | BP26: 0.9791481026 | BQ26: 0.9841578742 | BR26: 0.9780491166 | BS26: 0.9865886916 | BT26: 0.985542842 | BU26: 0.981155739 | BV26: 0.9829297607 | BW26: 0.9838406536 | BX26: 0.9828726157 | BY26: 0.9842375887 | BZ26: 0.9787380154 | CA26: 0.9888346671 | CB26: 0.9826265801 | CC26: 0.9818199774 | CD26: 0.9862091494 | CE26: 0.982289082 | CF26: 0.9806359784 | CG26: 0.9778882449 | CH26: 0.9807562196 | CI26: 0.9800892607 | CJ26: 0.9773727753 | CK26: 0.9845067123 | CL26: 0.9789804719 | CM26: 0.9836675338 | CN26: 0.9870402381 | CO26: 0.9823866445 | CP26: 0.9845055445 | CQ26: 0.9781806813 | CR26: 0.9868486604 | CS26: 0.978424885 | CT26: 0.9866866603 | CU26: 0.9852902981 | CV26: 0.9763954329 | CW26: 0.9819169784 | CX26: 0.9878717427 | CY26: 0.9839455756 | CZ26: 0.9828838001 | DA26: 0.9749453185 | DB26: 0.9819495487 | DC26: 0.9909523202 | DD26: 0.9699188815 | DE26: 0.9820149015 | DF26: 0.0007414931222 | DG26: 0.9756933066 | DH26: 0.9879282156 | DI26: -0.2360842499 | DJ26: 0.26284345
A27: ADA Process Watch.Queue.NumberInQueue | B27: DSTAT AVERAGE | C27: Number Waiting | D27: Queue | E27: ADA Process Watch.Queue | F27: 0 | G27: 0 | H27: 0 | I27: 0 | J27: 0 | K27: 0 | L27: 0 | M27: 0 | N27: 0 | O27: 0 | P27: 0 | Q27: 0 | R27: 0 | S27: 0 | T27: 0 | U27: 0 | V27: 0 | W27: 0 | X27: 0 | Y27: 0 | Z27: 0 | AA27: 0 | AB27: 0 | AC27: 0 | AD27: 0 | AE27: 0 | AF27: 0 | AG27: 0 | AH27: 0 | AI27: 0 | AJ27: 0 | AK27: 0 | AL27: 0 | AM27: 0 | AN27: 0 | AO27: 0 | AP27: 0 | AQ27: 0 | AR27: 0 | AS27: 0 | AT27: 0 | AU27: 0 | AV27: 0 | AW27: 0 | AX27: 0 | AY27: 0 | AZ27: 0 | BA27: 0 | BB27: 0 | BC27: 0 | BD27: 0 | BE27: 0 | BF27: 0 | BG27: 0 | BH27: 0 | BI27: 0 | BJ27: 0 | BK27: 0 | BL27: 0 | BM27: 0 | BN27: 0 | BO27: 0 | BP27: 0 | BQ27: 0 | BR27: 0 | BS27: 0 | BT27: 0 | BU27: 0 | BV27: 0 | BW27: 0 | BX27: 0 | BY27: 0 | BZ27: 0 | CA27: 0 | CB27: 0 | CC27: 0 | CD27: 0 | CE27: 0 | CF27: 0 | CG27: 0 | CH27: 0 | CI27: 0 | CJ27: 0 | CK27: 0 | CL27: 0 | CM27: 0 | CN27: 0 | CO27: 0 | CP27: 0 | CQ27: 0 | CR27: 0 | CS27: 0 | CT27: 0 | CU27: 0 | CV27: 0 | CW27: 0 | CX27: 0 | CY27: 0 | CZ27: 0 | DA27: 0 | DB27: 0 | DC27: 0 | DD27: 0 | DE27: 0 | DG27: 0 | DH27: 0
A28: ADA Process Watch.Queue.WaitingTime | B28: TALLY AVERAGE | C28: Waiting Time | D28: Queue | E28: ADA Process Watch.Queue | F28: 0 | G28: 0 | H28: 0 | I28: 0 | J28: 0 | K28: 0 | L28: 0 | M28: 0 | N28: 0 | O28: 0 | P28: 0 | Q28: 0 | R28: 0 | S28: 0 | T28: 0 | U28: 0 | V28: 0 | W28: 0 | X28: 0 | Y28: 0 | Z28: 0 | AA28: 0 | AB28: 0 | AC28: 0 | AD28: 0 | AE28: 0 | AF28: 0 | AG28: 0 | AH28: 0 | AI28: 0 | AJ28: 0 | AK28: 0 | AL28: 0 | AM28: 0 | AN28: 0 | AO28: 0 | AP28: 0 | AQ28: 0 | AR28: 0 | AS28: 0 | AT28: 0 | AU28: 0 | AV28: 0 | AW28: 0 | AX28: 0 | AY28: 0 | AZ28: 0 | BA28: 0 | BB28: 0 | BC28: 0 | BD28: 0 | BE28: 0 | BF28: 0 | BG28: 0 | BH28: 0 | BI28: 0 | BJ28: 0 | BK28: 0 | BL28: 0 | BM28: 0 | BN28: 0 | BO28: 0 | BP28: 0 | BQ28: 0 | BR28: 0 | BS28: 0 | BT28: 0 | BU28: 0 | BV28: 0 | BW28: 0 | BX28: 0 | BY28: 0 | BZ28: 0 | CA28: 0 | CB28: 0 | CC28: 0 | CD28: 0 | CE28: 0 | CF28: 0 | CG28: 0 | CH28: 0 | CI28: 0 | CJ28: 0 | CK28: 0 | CL28: 0 | CM28: 0 | CN28: 0 | CO28: 0 | CP28: 0 | CQ28: 0 | CR28: 0 | CS28: 0 | CT28: 0 | CU28: 0 | CV28: 0 | CW28: 0 | CX28: 0 | CY28: 0 | CZ28: 0 | DA28: 0 | DB28: 0 | DC28: 0 | DD28: 0 | DE28: 0 | DG28: 0 | DH28: 0
A29: ADA Seize Watcher.Queue.NumberInQueue | B29: DSTAT AVERAGE | C29: Number Waiting | D29: Queue | E29: ADA Seize Watcher.Queue | F29: 0 | G29: 0 | H29: 0 | I29: 0 | J29: 0 | K29: 0 | L29: 0 | M29: 0 | N29: 0 | O29: 0 | P29: 0 | Q29: 0 | R29: 0 | S29: 0 | T29: 0 | U29: 0 | V29: 0 | W29: 0 | X29: 0 | Y29: 0 | Z29: 0 | AA29: 0 | AB29: 0 | AC29: 0 | AD29: 0 | AE29: 0 | AF29: 0 | AG29: 0 | AH29: 0 | AI29: 0 | AJ29: 0 | AK29: 0 | AL29: 0 | AM29: 0 | AN29: 0 | AO29: 0 | AP29: 0 | AQ29: 0 | AR29: 0 | AS29: 0 | AT29: 0 | AU29: 0 | AV29: 0 | AW29: 0 | AX29: 0 | AY29: 0 | AZ29: 0 | BA29: 0 | BB29: 0 | BC29: 0 | BD29: 0 | BE29: 0 | BF29: 0 | BG29: 0 | BH29: 0 | BI29: 0 | BJ29: 0 | BK29: 0 | BL29: 0 | BM29: 0 | BN29: 0 | BO29: 0 | BP29: 0 | BQ29: 0 | BR29: 0 | BS29: 0 | BT29: 0 | BU29: 0 | BV29: 0 | BW29: 0 | BX29: 0 | BY29: 0 | BZ29: 0 | CA29: 0 | CB29: 0 | CC29: 0 | CD29: 0 | CE29: 0 | CF29: 0 | CG29: 0 | CH29: 0 | CI29: 0 | CJ29: 0 | CK29: 0 | CL29: 0 | CM29: 0 | CN29: 0 | CO29: 0 | CP29: 0 | CQ29: 0 | CR29: 0 | CS29: 0 | CT29: 0 | CU29: 0 | CV29: 0 | CW29: 0 | CX29: 0 | CY29: 0 | CZ29: 0 | DA29: 0 | DB29: 0 | DC29: 0 | DD29: 0 | DE29: 0 | DG29: 0 | DH29: 0
A30: ADA Seize Watcher.Queue.WaitingTime | B30: TALLY AVERAGE | C30: Waiting Time | D30: Queue | E30: ADA Seize Watcher.Queue | F30: 0 | G30: 0 | H30: 0 | I30: 0 | J30: 0 | K30: 0 | L30: 0 | M30: 0 | N30: 0 | O30: 0 | P30: 0 | Q30: 0 | R30: 0 | S30: 0 | T30: 0 | U30: 0 | V30: 0 | W30: 0 | X30: 0 | Y30: 0 | Z30: 0 | AA30: 0 | AB30: 0 | AC30: 0 | AD30: 0 | AE30: 0 | AF30: 0 | AG30: 0 | AH30: 0 | AI30: 0 | AJ30: 0 | AK30: 0 | AL30: 0 | AM30: 0 | AN30: 0 | AO30: 0 | AP30: 0 | AQ30: 0 | AR30: 0 | AS30: 0 | AT30: 0 | AU30: 0 | AV30: 0 | AW30: 0 | AX30: 0 | AY30: 0 | AZ30: 0 | BA30: 0 | BB30: 0 | BC30: 0 | BD30: 0 | BE30: 0 | BF30: 0 | BG30: 0 | BH30: 0 | BI30: 0 | BJ30: 0 | BK30: 0 | BL30: 0 | BM30: 0 | BN30: 0 | BO30: 0 | BP30: 0 | BQ30: 0 | BR30: 0 | BS30: 0 | BT30: 0 | BU30: 0 | BV30: 0 | BW30: 0 | BX30: 0 | BY30: 0 | BZ30: 0 | CA30: 0 | CB30: 0 | CC30: 0 | CD30: 0 | CE30: 0 | CF30: 0 | CG30: 0 | CH30: 0 | CI30: 0 | CJ30: 0 | CK30: 0 | CL30: 0 | CM30: 0 | CN30: 0 | CO30: 0 | CP30: 0 | CQ30: 0 | CR30: 0 | CS30: 0 | CT30: 0 | CU30: 0 | CV30: 0 | CW30: 0 | CX30: 0 | CY30: 0 | CZ30: 0 | DA30: 0 | DB30: 0 | DC30: 0 | DD30: 0 | DE30: 0 | DG30: 0 | DH30: 0
A31: ADA Vacc Resource.NumberBusy | B31: DSTAT AVERAGE | C31: Number Busy | D31: Resource | E31: ADA Vacc Resource | F31: 19.18509095 | G31: 17.98609152 | H31: 18.72959688 | I31: 18.46547296 | J31: 17.82936179 | K31: 19.26904887 | L31: 19.28602751 | M31: 18.31244354 | N31: 19.25141724 | O31: 19.48217422 | P31: 20.01808886 | Q31: 18.35584037 | R31: 19.33183533 | S31: 19.01426248 | T31: 18.79580481 | U31: 19.52802547 | V31: 17.49468174 | W31: 19.41327831 | X31: 19.90441024 | Y31: 18.13010456 | Z31: 19.69064313 | AA31: 18.27984465 | AB31: 18.3435807 | AC31: 18.50361983 | AD31: 18.98836784 | AE31: 19.96001255 | AF31: 18.68798969 | AG31: 19.74200884 | AH31: 19.32665111 | AI31: 18.65895888 | AJ31: 19.32293814 | AK31: 18.90961935 | AL31: 18.68817312 | AM31: 17.95729854 | AN31: 19.16805603 | AO31: 19.57304905 | AP31: 19.26717047 | AQ31: 18.28673865 | AR31: 19.36308536 | AS31: 19.04945138 | AT31: 18.69559137 | AU31: 16.80132943 | AV31: 19.75765851 | AW31: 18.64875677 | AX31: 18.72954174 | AY31: 18.85143227 | AZ31: 19.88581786 | BA31: 20.17838024 | BB31: 19.65411231 | BC31: 19.04872132 | BD31: 20.42726242 | BE31: 18.97718608 | BF31: 17.89976927 | BG31: 18.72650699 | BH31: 19.54887723 | BI31: 16.96836161 | BJ31: 20.71864675 | BK31: 18.74165076 | BL31: 19.48012015 | BM31: 19.86436184 | BN31: 18.63002638 | BO31: 17.24935482 | BP31: 19.2254369 | BQ31: 19.5918324 | BR31: 18.7477795 | BS31: 18.45836085 | BT31: 19.44656046 | BU31: 19.10723547 | BV31: 18.25253584 | BW31: 18.20312032 | BX31: 21.16214135 | BY31: 19.4092675 | BZ31: 19.58238894 | CA31: 19.70287921 | CB31: 18.57251518 | CC31: 19.90784162 | CD31: 18.79471211 | CE31: 19.58872778 | CF31: 18.89961715 | CG31: 18.42480722 | CH31: 20.59574972 | CI31: 17.98830767 | CJ31: 18.4052784 | CK31: 20.07014346 | CL31: 18.68412535 | CM31: 18.69228008 | CN31: 20.64218753 | CO31: 18.54747846 | CP31: 19.51278868 | CQ31: 19.91990404 | CR31: 19.01868402 | CS31: 19.04426742 | CT31: 18.99173444 | CU31: 18.50271712 | CV31: 19.58552562 | CW31: 19.96980608 | CX31: 19.13033131 | CY31: 20.18555218 | CZ31: 19.36692674 | DA31: 18.68760149 | DB31: 19.0552307 | DC31: 21.16214135 | DD31: 16.80132943 | DE31: 19.04426742 | DF31: 0.1531113754 | DG31: 17.89272852 | DH31: 20.20972321 | DI31: -0.1538077377 | DJ31: 0.5400826108
A32: ADA Vacc Resource.NumberScheduled | B32: DSTAT AVERAGE | C32: Number Scheduled | D32: Resource | E32: ADA Vacc Resource | F32: 28 | G32: 28 | H32: 28 | I32: 28 | J32: 28 | K32: 28 | L32: 28 | M32: 28 | N32: 28 | O32: 28 | P32: 28 | Q32: 28 | R32: 28 | S32: 28 | T32: 28 | U32: 28 | V32: 28 | W32: 28 | X32: 28 | Y32: 28 | Z32: 28 | AA32: 28 | AB32: 28 | AC32: 28 | AD32: 28 | AE32: 28 | AF32: 28 | AG32: 28 | AH32: 28 | AI32: 28 | AJ32: 28 | AK32: 28 | AL32: 28 | AM32: 28 | AN32: 28 | AO32: 28 | AP32: 28 | AQ32: 28 | AR32: 28 | AS32: 28 | AT32: 28 | AU32: 28 | AV32: 28 | AW32: 28 | AX32: 28 | AY32: 28 | AZ32: 28 | BA32: 28 | BB32: 28 | BC32: 28 | BD32: 28 | BE32: 28 | BF32: 28 | BG32: 28 | BH32: 28 | BI32: 28 | BJ32: 28 | BK32: 28 | BL32: 28 | BM32: 28 | BN32: 28 | BO32: 28 | BP32: 28 | BQ32: 28 | BR32: 28 | BS32: 28 | BT32: 28 | BU32: 28 | BV32: 28 | BW32: 28 | BX32: 28 | BY32: 28 | BZ32: 28 | CA32: 28 | CB32: 28 | CC32: 28 | CD32: 28 | CE32: 28 | CF32: 28 | CG32: 28 | CH32: 28 | CI32: 28 | CJ32: 28 | CK32: 28 | CL32: 28 | CM32: 28 | CN32: 28 | CO32: 28 | CP32: 28 | CQ32: 28 | CR32: 28 | CS32: 28 | CT32: 28 | CU32: 28 | CV32: 28 | CW32: 28 | CX32: 28 | CY32: 28 | CZ32: 28 | DA32: 28 | DB32: 28 | DC32: 28 | DD32: 28 | DE32: 28 | DG32: 28 | DH32: 28
A33: ADA Vacc Resource.Utilization | B33: DSTAT AVERAGE | C33: Instantaneous Utilization | D33: Resource | E33: ADA Vacc Resource | F33: 0.6851818196 | G33: 0.6423604113 | H33: 0.6689141744 | I33: 0.6594811771 | J33: 0.636762921 | K33: 0.6881803169 | L33: 0.6887866968 | M33: 0.6540158409 | N33: 0.6875506159 | O33: 0.6957919366 | P33: 0.7149317449 | Q33: 0.6555657275 | R33: 0.6904226905 | S33: 0.6790808029 | T33: 0.6712787431 | U33: 0.6974294811 | V33: 0.6248100622 | W33: 0.6933313682 | X33: 0.7108717943 | Y33: 0.6475037343 | Z33: 0.7032372548 | AA33: 0.6528515947 | AB33: 0.655127882 | AC33: 0.6608435654 | AD33: 0.6781559942 | AE33: 0.7128575911 | AF33: 0.6674282033 | AG33: 0.7050717444 | AH33: 0.6902375396 | AI33: 0.6663913885 | AJ33: 0.6901049335 | AK33: 0.6753435483 | AL33: 0.6674347541 | AM33: 0.6413320908 | AN33: 0.6845734297 | AO33: 0.699037466 | AP33: 0.6881132312 | AQ33: 0.653097809 | AR33: 0.6915387629 | AS33: 0.6803375492 | AT33: 0.6676996918 | AU33: 0.6000474796 | AV33: 0.7056306611 | AW33: 0.6660270273 | AX33: 0.6689122051 | AY33: 0.6732654383 | AZ33: 0.7102077808 | BA33: 0.7206564372 | BB33: 0.7019325826 | BC33: 0.6803114759 | BD33: 0.7295450863 | BE33: 0.6777566458 | BF33: 0.639277474 | BG33: 0.6688038211 | BH33: 0.6981741869 | BI33: 0.6060129145 | BJ33: 0.7399516697 | BK33: 0.6693446698 | BL33: 0.6957185769 | BM33: 0.7094414943 | BN33: 0.6653580848 | BO33: 0.6160483864 | BP33: 0.6866227464 | BQ33: 0.6997083 | BR33: 0.6695635535 | BS33: 0.6592271732 | BT33: 0.6945200166 | BU33: 0.6824012667 | BV33: 0.6518762801 | BW33: 0.6501114399 | BX33: 0.7557907625 | BY33: 0.6931881251 | BZ33: 0.6993710336 | CA33: 0.7036742574 | CB33: 0.6633041137 | CC33: 0.7109943436 | CD33: 0.6712397182 | CE33: 0.6995974207 | CF33: 0.6749863269 | CG33: 0.6580288294 | CH33: 0.73556249 | CI33: 0.6424395597 | CJ33: 0.6573313716 | CK33: 0.7167908379 | CL33: 0.6672901909 | CM33: 0.6675814315 | CN33: 0.7372209833 | CO33: 0.6624099452 | CP33: 0.6968853099 | CQ33: 0.7114251442 | CR33: 0.6792387149 | CS33: 0.6801524077 | CT33: 0.6782762301 | CU33: 0.6608113259 | CV33: 0.6994830577 | CW33: 0.7132073602 | CX33: 0.6832261183 | CY33: 0.7209125779 | CZ33: 0.6916759548 | DA33: 0.6674143389 | DB33: 0.6805439537 | DC33: 0.7557907625 | DD33: 0.6000474796 | DE33: 0.6801524077 | DF33: 0.005468263407 | DG33: 0.6390260187 | DH33: 0.7217758288 | DI33: -0.1538077377 | DJ33: 0.5400826108
A34: ADA Watch Resource Chair.NumberBusy | B34: DSTAT AVERAGE | C34: Number Busy | D34: Resource | E34: ADA Watch Resource Chair | F34: 57.76342903 | G34: 54.60781049 | H34: 55.91343237 | I34: 55.81853321 | J34: 54.13270904 | K34: 57.9171385 | L34: 58.93241919 | M34: 55.56018612 | N34: 58.39857936 | O34: 58.4700517 | P34: 59.78439761 | Q34: 55.03966237 | R34: 58.17155779 | S34: 57.24825997 | T34: 57.07847479 | U34: 59.09263352 | V34: 52.59552361 | W34: 58.56781137 | X34: 60.49771928 | Y34: 55.64435388 | Z34: 58.55002086 | AA34: 55.91638892 | AB34: 55.31276784 | AC34: 55.94451504 | AD34: 57.12099928 | AE34: 59.49493229 | AF34: 56.74412113 | AG34: 59.62154455 | AH34: 58.26472182 | AI34: 56.3084702 | AJ34: 58.50988366 | AK34: 56.50030815 | AL34: 57.20165315 | AM34: 54.33132827 | AN34: 57.30377917 | AO34: 58.96719004 | AP34: 58.42793471 | AQ34: 56.0598805 | AR34: 58.12933263 | AS34: 57.38630722 | AT34: 56.25825898 | AU34: 50.05770984 | AV34: 59.21279876 | AW34: 56.48979286 | AX34: 56.84816042 | AY34: 57.56355203 | AZ34: 60.17583614 | BA34: 61.13144982 | BB34: 59.1595687 | BC34: 57.48613995 | BD34: 62.45989895 | BE34: 58.18773363 | BF34: 54.97530616 | BG34: 56.86052675 | BH34: 58.56492093 | BI34: 51.52237963 | BJ34: 62.29119746 | BK34: 56.90289107 | BL34: 58.74078103 | BM34: 60.0946997 | BN34: 56.04331068 | BO34: 52.26331189 | BP34: 58.38994027 | BQ34: 59.52598468 | BR34: 56.18636966 | BS34: 56.02701674 | BT34: 58.23187101 | BU34: 57.47547234 | BV34: 55.95186873 | BW34: 54.94330232 | BX34: 64.13112803 | BY34: 58.79055893 | BZ34: 57.74751012 | CA34: 59.58292679 | CB34: 55.95648798 | CC34: 59.7652378 | CD34: 56.79907043 | CE34: 59.87659589 | CF34: 56.34477818 | CG34: 55.19250878 | CH34: 61.78676998 | CI34: 54.55170225 | CJ34: 56.10759258 | CK34: 60.45098555 | CL34: 56.3076827 | CM34: 55.94505284 | CN34: 61.67332342 | CO34: 55.80587764 | CP34: 58.8489628 | CQ34: 59.31107853 | CR34: 57.54739892 | CS34: 58.11365294 | CT34: 57.22177353 | CU34: 56.37195965 | CV34: 58.17405508 | CW34: 60.72918349 | CX34: 59.04652628 | CY34: 60.76825419 | CZ34: 59.12697477 | DA34: 56.43540061 | DB34: 57.55656965 | DC34: 64.13112803 | DD34: 50.05770984 | DE34: 57.48613995 | DF34: 0.4507331096 | DG34: 54.31146635 | DH34: 61.18563718 | DI34: -0.2001301588 | DJ34: 1.073027124
A35: ADA Watch Resource.NumberBusy | B35: DSTAT AVERAGE | C35: Number Busy | D35: Resource | E35: ADA Watch Resource | F35: 0.9867839013 | G35: 0.9859748497 | H35: 0.9823931263 | I35: 0.9867074041 | J35: 0.9822992723 | K35: 0.986712262 | L35: 0.9843400716 | M35: 0.9872799566 | N35: 0.983109187 | O35: 0.9854324653 | P35: 0.98372453 | Q35: 0.9845003187 | R35: 0.9870602467 | S35: 0.9861780709 | T35: 0.9854523374 | U35: 0.985377842 | V35: 0.9823888537 | W35: 0.9805350443 | X35: 0.9868532869 | Y35: 0.9807766186 | Z35: 0.9843644015 | AA35: 0.9874703694 | AB35: 0.9884176338 | AC35: 0.9827321899 | AD35: 0.9863081061 | AE35: 0.9840372775 | AF35: 0.98543393 | AG35: 0.9843495579 | AH35: 0.9855009199 | AI35: 0.9836018578 | AJ35: 0.9844985027 | AK35: 0.9825157012 | AL35: 0.9862479507 | AM35: 0.9856795301 | AN35: 0.9851222339 | AO35: 0.9862536184 | AP35: 0.9847128713 | AQ35: 0.9858863725 | AR35: 0.9841297719 | AS35: 0.9858958689 | AT35: 0.9855160761 | AU35: 0.9876929485 | AV35: 0.9860484158 | AW35: 0.9893459461 | AX35: 0.9842887663 | AY35: 0.9828011509 | AZ35: 0.9870974224 | BA35: 0.9862385225 | BB35: 0.9849266516 | BC35: 0.9865931544 | BD35: 0.9901821996 | BE35: 0.9894773847 | BF35: 0.9840028955 | BG35: 0.9842349579 | BH35: 0.9837326527 | BI35: 0.9892411918 | BJ35: 0.9861007671 | BK35: 0.9842871185 | BL35: 0.9869554009 | BM35: 0.985842165 | BN35: 0.9835588607 | BO35: 0.9828365889 | BP35: 0.9847070912 | BQ35: 0.9851335435 | BR35: 0.9824440761 | BS35: 0.9874629978 | BT35: 0.9855584411 | BU35: 0.9854879364 | BV35: 0.9820782485 | BW35: 0.982930957 | BX35: 0.9843822369 | BY35: 0.9857228175 | BZ35: 0.9870198495 | CA35: 0.9827390667 | CB35: 0.9872515306 | CC35: 0.9859722416 | CD35: 0.9859480584 | CE35: 0.9855364263 | CF35: 0.9823678859 | CG35: 0.986521313 | CH35: 0.9861452585 | CI35: 0.9885126254 | CJ35: 0.9842095636 | CK35: 0.9847425222 | CL35: 0.9871203724 | CM35: 0.985495837 | CN35: 0.9871706969 | CO35: 0.9850347651 | CP35: 0.9864367854 | CQ35: 0.9874691586 | CR35: 0.9863972991 | CS35: 0.9828462745 | CT35: 0.9846200555 | CU35: 0.9857288588 | CV35: 0.98434059 | CW35: 0.9890430509 | CX35: 0.9860884996 | CY35: 0.9850409803 | CZ35: 0.9889647869 | DA35: 0.9852748124 | DB35: 0.9853656885 | DC35: 0.9901821996 | DD35: 0.9805350443 | DE35: 0.985495837 | DF35: 0.0003748759545 | DG35: 0.9823867569 | DH35: 0.9889726133 | DI35: 0.0139981518 | DJ35: 0.02884149733
A36: ADA Watch Resource.NumberScheduled | B36: DSTAT AVERAGE | C36: Number Scheduled | D36: Resource | E36: ADA Watch Resource | F36: 1 | G36: 1 | H36: 1 | I36: 1 | J36: 1 | K36: 1 | L36: 1 | M36: 1 | N36: 1 | O36: 1 | P36: 1 | Q36: 1 | R36: 1 | S36: 1 | T36: 1 | U36: 1 | V36: 1 | W36: 1 | X36: 1 | Y36: 1 | Z36: 1 | AA36: 1 | AB36: 1 | AC36: 1 | AD36: 1 | AE36: 1 | AF36: 1 | AG36: 1 | AH36: 1 | AI36: 1 | AJ36: 1 | AK36: 1 | AL36: 1 | AM36: 1 | AN36: 1 | AO36: 1 | AP36: 1 | AQ36: 1 | AR36: 1 | AS36: 1 | AT36: 1 | AU36: 1 | AV36: 1 | AW36: 1 | AX36: 1 | AY36: 1 | AZ36: 1 | BA36: 1 | BB36: 1 | BC36: 1 | BD36: 1 | BE36: 1 | BF36: 1 | BG36: 1 | BH36: 1 | BI36: 1 | BJ36: 1 | BK36: 1 | BL36: 1 | BM36: 1 | BN36: 1 | BO36: 1 | BP36: 1 | BQ36: 1 | BR36: 1 | BS36: 1 | BT36: 1 | BU36: 1 | BV36: 1 | BW36: 1 | BX36: 1 | BY36: 1 | BZ36: 1 | CA36: 1 | CB36: 1 | CC36: 1 | CD36: 1 | CE36: 1 | CF36: 1 | CG36: 1 | CH36: 1 | CI36: 1 | CJ36: 1 | CK36: 1 | CL36: 1 | CM36: 1 | CN36: 1 | CO36: 1 | CP36: 1 | CQ36: 1 | CR36: 1 | CS36: 1 | CT36: 1 | CU36: 1 | CV36: 1 | CW36: 1 | CX36: 1 | CY36: 1 | CZ36: 1 | DA36: 1 | DB36: 1 | DC36: 1 | DD36: 1 | DE36: 1 | DG36: 1 | DH36: 1
A37: ADA Watch Resource.Utilization | B37: DSTAT AVERAGE | C37: Instantaneous Utilization | D37: Resource | E37: ADA Watch Resource | F37: 0.9867839013 | G37: 0.9859748497 | H37: 0.9823931263 | I37: 0.9867074041 | J37: 0.9822992723 | K37: 0.986712262 | L37: 0.9843400716 | M37: 0.9872799566 | N37: 0.983109187 | O37: 0.9854324653 | P37: 0.98372453 | Q37: 0.9845003187 | R37: 0.9870602467 | S37: 0.9861780709 | T37: 0.9854523374 | U37: 0.985377842 | V37: 0.9823888537 | W37: 0.9805350443 | X37: 0.9868532869 | Y37: 0.9807766186 | Z37: 0.9843644015 | AA37: 0.9874703694 | AB37: 0.9884176338 | AC37: 0.9827321899 | AD37: 0.9863081061 | AE37: 0.9840372775 | AF37: 0.98543393 | AG37: 0.9843495579 | AH37: 0.9855009199 | AI37: 0.9836018578 | AJ37: 0.9844985027 | AK37: 0.9825157012 | AL37: 0.9862479507 | AM37: 0.9856795301 | AN37: 0.9851222339 | AO37: 0.9862536184 | AP37: 0.9847128713 | AQ37: 0.9858863725 | AR37: 0.9841297719 | AS37: 0.9858958689 | AT37: 0.9855160761 | AU37: 0.9876929485 | AV37: 0.9860484158 | AW37: 0.9893459461 | AX37: 0.9842887663 | AY37: 0.9828011509 | AZ37: 0.9870974224 | BA37: 0.9862385225 | BB37: 0.9849266516 | BC37: 0.9865931544 | BD37: 0.9901821996 | BE37: 0.9894773847 | BF37: 0.9840028955 | BG37: 0.9842349579 | BH37: 0.9837326527 | BI37: 0.9892411918 | BJ37: 0.9861007671 | BK37: 0.9842871185 | BL37: 0.9869554009 | BM37: 0.985842165 | BN37: 0.9835588607 | BO37: 0.9828365889 | BP37: 0.9847070912 | BQ37: 0.9851335435 | BR37: 0.9824440761 | BS37: 0.9874629978 | BT37: 0.9855584411 | BU37: 0.9854879364 | BV37: 0.9820782485 | BW37: 0.982930957 | BX37: 0.9843822369 | BY37: 0.9857228175 | BZ37: 0.9870198495 | CA37: 0.9827390667 | CB37: 0.9872515306 | CC37: 0.9859722416 | CD37: 0.9859480584 | CE37: 0.9855364263 | CF37: 0.9823678859 | CG37: 0.986521313 | CH37: 0.9861452585 | CI37: 0.9885126254 | CJ37: 0.9842095636 | CK37: 0.9847425222 | CL37: 0.9871203724 | CM37: 0.985495837 | CN37: 0.9871706969 | CO37: 0.9850347651 | CP37: 0.9864367854 | CQ37: 0.9874691586 | CR37: 0.9863972991 | CS37: 0.9828462745 | CT37: 0.9846200555 | CU37: 0.9857288588 | CV37: 0.98434059 | CW37: 0.9890430509 | CX37: 0.9860884996 | CY37: 0.9850409803 | CZ37: 0.9889647869 | DA37: 0.9852748124 | DB37: 0.9853656885 | DC37: 0.9901821996 | DD37: 0.9805350443 | DE37: 0.985495837 | DF37: 0.0003748759545 | DG37: 0.9823867569 | DH37: 0.9889726133 | DI37: 0.0139981518 | DJ37: 0.02884149733
A38: ClinicClose Value | B38: DSTAT AVERAGE | C38: Variable | D38: User Specified | E38: ClinicClose | F38: 376.3608397 | G38: 378.9044901 | H38: 382.3323542 | I38: 378.9914061 | J38: 381.040751 | K38: 381.0692681 | L38: 378.5433035 | M38: 379.3707059 | N38: 379.1107642 | O38: 378.949218 | P38: 377.5567467 | Q38: 378.5962981 | R38: 377.8365258 | S38: 380.8038278 | T38: 379.631648 | U38: 377.8913315 | V38: 379.4890202 | W38: 378.8610746 | X38: 379.9379333 | Y38: 377.7017642 | Z38: 380.6264449 | AA38: 381.1284825 | AB38: 380.1827269 | AC38: 377.0712638 | AD38: 379.0978284 | AE38: 379.5241506 | AF38: 378.2320812 | AG38: 377.9673717 | AH38: 379.8631318 | AI38: 377.8523285 | AJ38: 378.962815 | AK38: 381.6905479 | AL38: 377.5016734 | AM38: 379.8850872 | AN38: 378.274883 | AO38: 380.3914345 | AP38: 381.1753075 | AQ38: 379.2148484 | AR38: 377.2823579 | AS38: 379.2003512 | AT38: 379.9281919 | AU38: 379.3969487 | AV38: 380.4162773 | AW38: 376.4902195 | AX38: 381.3323589 | AY38: 376.8622655 | AZ38: 379.4874458 | BA38: 379.1490597 | BB38: 378.1691328 | BC38: 378.9301838 | BD38: 380.8488842 | BE38: 382.3260083 | BF38: 379.7849826 | BG38: 378.2790143 | BH38: 378.5070783 | BI38: 378.3780892 | BJ38: 377.4162752 | BK38: 382.8088064 | BL38: 380.3663072 | BM38: 377.2441715 | BN38: 378.3150006 | BO38: 378.0802156 | BP38: 381.0981581 | BQ38: 378.7583998 | BR38: 380.2510794 | BS38: 378.8133544 | BT38: 377.5011407 | BU38: 379.9476112 | BV38: 377.7488195 | BW38: 379.0514419 | BX38: 378.738548 | BY38: 377.8247377 | BZ38: 377.4296106 | CA38: 376.7544077 | CB38: 378.7460627 | CC38: 380.530656 | CD38: 377.5907778 | CE38: 377.8586437 | CF38: 380.5631268 | CG38: 381.5662494 | CH38: 379.6262585 | CI38: 380.0070118 | CJ38: 378.4911719 | CK38: 376.8478761 | CL38: 381.7279871 | CM38: 378.6034381 | CN38: 378.7540886 | CO38: 379.9461375 | CP38: 377.5780305 | CQ38: 380.0115932 | CR38: 379.386799 | CS38: 380.4712733 | CT38: 376.6589421 | CU38: 377.847272 | CV38: 380.3924431 | CW38: 378.1159733 | CX38: 376.6590825 | CY38: 376.0322723 | CZ38: 380.0115926 | DA38: 380.6220141 | DB38: 379.1194399 | DC38: 382.8088064 | DD38: 376.0322723 | DE38: 378.9914061 | DF38: 0.2844795981 | DG38: 376.8385293 | DH38: 381.5786793 | DI38: 0.2241464921 | DJ38: -0.4657747572
A39: Entity 1.NVATime | B39: TALLY AVERAGE | C39: NVA Time | D39: Entity | E39: Entity 1 | F39: 0 | G39: 0 | H39: 0 | I39: 0 | J39: 0 | K39: 0 | L39: 0 | M39: 0 | N39: 0 | O39: 0 | P39: 0 | Q39: 0 | R39: 0 | S39: 0 | T39: 0 | U39: 0 | V39: 0 | W39: 0 | X39: 0 | Y39: 0 | Z39: 0 | AA39: 0 | AB39: 0 | AC39: 0 | AD39: 0 | AE39: 0 | AF39: 0 | AG39: 0 | AH39: 0 | AI39: 0 | AJ39: 0 | AK39: 0 | AL39: 0 | AM39: 0 | AN39: 0 | AO39: 0 | AP39: 0 | AQ39: 0 | AR39: 0 | AS39: 0 | AT39: 0 | AU39: 0 | AV39: 0 | AW39: 0 | AX39: 0 | AY39: 0 | AZ39: 0 | BA39: 0 | BB39: 0 | BC39: 0 | BD39: 0 | BE39: 0 | BF39: 0 | BG39: 0 | BH39: 0 | BI39: 0 | BJ39: 0 | BK39: 0 | BL39: 0 | BM39: 0 | BN39: 0 | BO39: 0 | BP39: 0 | BQ39: 0 | BR39: 0 | BS39: 0 | BT39: 0 | BU39: 0 | BV39: 0 | BW39: 0 | BX39: 0 | BY39: 0 | BZ39: 0 | CA39: 0 | CB39: 0 | CC39: 0 | CD39: 0 | CE39: 0 | CF39: 0 | CG39: 0 | CH39: 0 | CI39: 0 | CJ39: 0 | CK39: 0 | CL39: 0 | CM39: 0 | CN39: 0 | CO39: 0 | CP39: 0 | CQ39: 0 | CR39: 0 | CS39: 0 | CT39: 0 | CU39: 0 | CV39: 0 | CW39: 0 | CX39: 0 | CY39: 0 | CZ39: 0 | DA39: 0 | DB39: 0 | DC39: 0 | DD39: 0 | DE39: 0 | DG39: 0 | DH39: 0
A40: Entity 1.OtherTime | B40: TALLY AVERAGE | C40: Other Time | D40: Entity | E40: Entity 1 | F40: 0 | G40: 0 | H40: 0 | I40: 0 | J40: 0 | K40: 0 | L40: 0 | M40: 0 | N40: 0 | O40: 0 | P40: 0 | Q40: 0 | R40: 0 | S40: 0 | T40: 0 | U40: 0 | V40: 0 | W40: 0 | X40: 0 | Y40: 0 | Z40: 0 | AA40: 0 | AB40: 0 | AC40: 0 | AD40: 0 | AE40: 0 | AF40: 0 | AG40: 0 | AH40: 0 | AI40: 0 | AJ40: 0 | AK40: 0 | AL40: 0 | AM40: 0 | AN40: 0 | AO40: 0 | AP40: 0 | AQ40: 0 | AR40: 0 | AS40: 0 | AT40: 0 | AU40: 0 | AV40: 0 | AW40: 0 | AX40: 0 | AY40: 0 | AZ40: 0 | BA40: 0 | BB40: 0 | BC40: 0 | BD40: 0 | BE40: 0 | BF40: 0 | BG40: 0 | BH40: 0 | BI40: 0 | BJ40: 0 | BK40: 0 | BL40: 0 | BM40: 0 | BN40: 0 | BO40: 0 | BP40: 0 | BQ40: 0 | BR40: 0 | BS40: 0 | BT40: 0 | BU40: 0 | BV40: 0 | BW40: 0 | BX40: 0 | BY40: 0 | BZ40: 0 | CA40: 0 | CB40: 0 | CC40: 0 | CD40: 0 | CE40: 0 | CF40: 0 | CG40: 0 | CH40: 0 | CI40: 0 | CJ40: 0 | CK40: 0 | CL40: 0 | CM40: 0 | CN40: 0 | CO40: 0 | CP40: 0 | CQ40: 0 | CR40: 0 | CS40: 0 | CT40: 0 | CU40: 0 | CV40: 0 | CW40: 0 | CX40: 0 | CY40: 0 | CZ40: 0 | DA40: 0 | DB40: 0 | DC40: 0 | DD40: 0 | DE40: 0 | DG40: 0 | DH40: 0
A41: Entity 1.TotalTime | B41: TALLY AVERAGE | C41: Total Time | D41: Entity | E41: Entity 1 | F41: 26.76626187 | G41: 26.8475289 | H41: 26.91126825 | I41: 26.46968512 | J41: 26.60126761 | K41: 26.82243348 | L41: 26.78183626 | M41: 26.64353853 | N41: 26.77038929 | O41: 26.62339097 | P41: 26.71186244 | Q41: 26.4683109 | R41: 26.6403257 | S41: 26.6780184 | T41: 26.58444495 | U41: 27.09476079 | V41: 26.65742577 | W41: 27.11683034 | X41: 27.43506812 | Y41: 26.99486937 | Z41: 27.55408411 | AA41: 26.57246201 | AB41: 26.63778875 | AC41: 26.53990471 | AD41: 27.01513776 | AE41: 27.00075065 | AF41: 26.63119868 | AG41: 26.84520889 | AH41: 26.63101105 | AI41: 26.64583578 | AJ41: 26.90630274 | AK41: 26.82794836 | AL41: 26.76743565 | AM41: 26.67611696 | AN41: 26.67419324 | AO41: 26.9726905 | AP41: 26.60922305 | AQ41: 27.01816165 | AR41: 26.86986918 | AS41: 26.56493242 | AT41: 26.61786397 | AU41: 26.34056989 | AV41: 27.37471072 | AW41: 26.64832566 | AX41: 26.82378435 | AY41: 26.54323541 | AZ41: 27.29865228 | BA41: 27.25657677 | BB41: 26.86872163 | BC41: 26.56665317 | BD41: 28.23662303 | BE41: 26.7230308 | BF41: 26.64066924 | BG41: 26.70244044 | BH41: 26.85616984 | BI41: 26.49156168 | BJ41: 27.30479658 | BK41: 26.97391483 | BL41: 26.74273182 | BM41: 27.13574805 | BN41: 26.73515193 | BO41: 26.70620955 | BP41: 27.18835015 | BQ41: 27.02965945 | BR41: 26.54594598 | BS41: 26.78912796 | BT41: 26.92123927 | BU41: 26.64789513 | BV41: 26.82526625 | BW41: 26.57707836 | BX41: 27.82248296 | BY41: 27.03398875 | BZ41: 26.81568743 | CA41: 26.50988408 | CB41: 26.92952145 | CC41: 26.80033785 | CD41: 26.77995152 | CE41: 26.97546746 | CF41: 26.79498948 | CG41: 26.62624698 | CH41: 27.81698854 | CI41: 26.52655745 | CJ41: 26.51952994 | CK41: 26.86096838 | CL41: 26.95727952 | CM41: 27.29641589 | CN41: 27.50641865 | CO41: 27.08957603 | CP41: 26.86233785 | CQ41: 27.61816478 | CR41: 26.82260781 | CS41: 27.02785754 | CT41: 26.64196326 | CU41: 26.62033809 | CV41: 26.84452946 | CW41: 26.94071244 | CX41: 26.74289561 | CY41: 26.61583014 | CZ41: 26.84340936 | DA41: 26.72726665 | DB41: 26.8575396 | DC41: 28.23662303 | DD41: 26.34056989 | DE41: 26.79498948 | DF41: 0.06278695097 | DG41: 26.51856536 | DH41: 27.51118519 | DI41: 1.674782698 | DJ41: 3.695872843
A42: Entity 1.TranTime | B42: TALLY AVERAGE | C42: Transfer Time | D42: Entity | E42: Entity 1 | F42: 1.076177895 | G42: 1.069427643 | H42: 1.075975129 | I42: 1.072836636 | J42: 1.070879871 | K42: 1.07322717 | L42: 1.075379162 | M42: 1.073983103 | N42: 1.082002165 | O42: 1.078837291 | P42: 1.071397691 | Q42: 1.067347936 | R42: 1.079915313 | S42: 1.081759067 | T42: 1.075191595 | U42: 1.068765526 | V42: 1.071834146 | W42: 1.073896681 | X42: 1.079981374 | Y42: 1.080792985 | Z42: 1.08047992 | AA42: 1.073259722 | AB42: 1.080884015 | AC42: 1.081184097 | AD42: 1.071973541 | AE42: 1.085137358 | AF42: 1.084078395 | AG42: 1.07165986 | AH42: 1.078879381 | AI42: 1.069994705 | AJ42: 1.078847247 | AK42: 1.072658591 | AL42: 1.072502595 | AM42: 1.081576421 | AN42: 1.074965725 | AO42: 1.082572798 | AP42: 1.067291563 | AQ42: 1.076529901 | AR42: 1.076737922 | AS42: 1.079030794 | AT42: 1.076868306 | AU42: 1.070412422 | AV42: 1.073006169 | AW42: 1.081498683 | AX42: 1.065614541 | AY42: 1.070956031 | AZ42: 1.080230686 | BA42: 1.079591309 | BB42: 1.077136141 | BC42: 1.074255711 | BD42: 1.068629667 | BE42: 1.079964227 | BF42: 1.07207621 | BG42: 1.072557435 | BH42: 1.077940745 | BI42: 1.074175253 | BJ42: 1.077039661 | BK42: 1.069729342 | BL42: 1.078283326 | BM42: 1.077888745 | BN42: 1.081570628 | BO42: 1.084480471 | BP42: 1.072514448 | BQ42: 1.062366885 | BR42: 1.068787337 | BS42: 1.073140133 | BT42: 1.075692331 | BU42: 1.073394721 | BV42: 1.076544387 | BW42: 1.074884385 | BX42: 1.078620645 | BY42: 1.076234573 | BZ42: 1.070145727 | CA42: 1.07424581 | CB42: 1.077282287 | CC42: 1.06893334 | CD42: 1.084660942 | CE42: 1.078262709 | CF42: 1.085035595 | CG42: 1.073235665 | CH42: 1.06637283 | CI42: 1.071990543 | CJ42: 1.070195001 | CK42: 1.074776964 | CL42: 1.076805669 | CM42: 1.077980911 | CN42: 1.076910578 | CO42: 1.066135667 | CP42: 1.071109016 | CQ42: 1.080275884 | CR42: 1.075194841 | CS42: 1.071023593 | CT42: 1.074786821 | CU42: 1.083000381 | CV42: 1.069897396 | CW42: 1.073785254 | CX42: 1.064095669 | CY42: 1.075351591 | CZ42: 1.075736393 | DA42: 1.080534264 | DB42: 1.075227494 | DC42: 1.085137358 | DD42: 1.062366885 | DE42: 1.075191595 | DF42: 0.0009713426392 | DG42: 1.06719969 | DH42: 1.083108183 | DI42: -0.106055758 | DJ42: -0.4214470339
A43: Entity 1.VATime | B43: TALLY AVERAGE | C43: VA Time | D43: Entity | E43: Entity 1 | F43: 25.04403467 | G43: 25.20038991 | H43: 25.09955967 | I43: 25.20305791 | J43: 25.08089994 | K43: 25.15683712 | L43: 25.07444209 | M43: 25.12224525 | N43: 25.14740432 | O43: 25.11431958 | P43: 25.12294764 | Q43: 25.03672756 | R43: 25.11386118 | S43: 25.11811042 | T43: 25.14374923 | U43: 25.19734067 | V43: 25.1046423 | W43: 25.15927245 | X43: 25.1176163 | Y43: 25.15759092 | Z43: 25.11491229 | AA43: 25.13158018 | AB43: 25.03118868 | AC43: 25.14972319 | AD43: 25.10914884 | AE43: 25.12741378 | AF43: 25.13388103 | AG43: 25.14702147 | AH43: 25.0873969 | AI43: 25.04803873 | AJ43: 25.04283661 | AK43: 25.1508275 | AL43: 25.08297781 | AM43: 25.01785006 | AN43: 25.08916604 | AO43: 25.09478441 | AP43: 25.13774298 | AQ43: 25.16752861 | AR43: 25.09644727 | AS43: 25.12272884 | AT43: 25.16975659 | AU43: 25.00306662 | AV43: 25.21901389 | AW43: 25.25118809 | AX43: 25.11974234 | AY43: 25.14944678 | AZ43: 25.09551705 | BA43: 25.07962204 | BB43: 25.12800119 | BC43: 25.08186855 | BD43: 25.13538006 | BE43: 25.09463186 | BF43: 25.11519406 | BG43: 25.04462527 | BH43: 25.16951661 | BI43: 25.10468407 | BJ43: 25.19674108 | BK43: 25.10043081 | BL43: 25.06573556 | BM43: 25.21268246 | BN43: 25.05488391 | BO43: 25.0056006 | BP43: 25.16192366 | BQ43: 25.08602271 | BR43: 25.09850187 | BS43: 25.1097646 | BT43: 25.13263163 | BU43: 25.14669472 | BV43: 25.12894729 | BW43: 25.13585148 | BX43: 25.19895277 | BY43: 25.06132238 | BZ43: 25.08429593 | CA43: 25.1228329 | CB43: 25.10812549 | CC43: 25.22536599 | CD43: 25.15353828 | CE43: 25.09085929 | CF43: 25.20507612 | CG43: 25.15021612 | CH43: 25.14601379 | CI43: 25.12036312 | CJ43: 25.04470528 | CK43: 25.07215228 | CL43: 25.23061712 | CM43: 25.10410384 | CN43: 25.05282666 | CO43: 25.14660529 | CP43: 25.14051588 | CQ43: 25.12614583 | CR43: 25.02453863 | CS43: 25.06871732 | CT43: 25.12963755 | CU43: 25.10299973 | CV43: 25.18200852 | CW43: 25.13407344 | CX43: 25.07978822 | CY43: 25.17829836 | CZ43: 25.14608441 | DA43: 25.07157974 | DB43: 25.11973977 | DC43: 25.25118809 | DD43: 25.00306662 | DE43: 25.12036312 | DF43: 0.009969667517 | DG43: 25.03617367 | DH43: 25.20583675 | DI43: 0.095713654 | DJ43: -0.01321923701
A44: Entity 1.WaitTime | B44: TALLY AVERAGE | C44: Wait Time | D44: Entity | E44: Entity 1 | F44: 0.646049299 | G44: 0.5777113389 | H44: 0.7357334583 | I44: 0.1937905813 | J44: 0.4494878019 | K44: 0.5923691895 | L44: 0.6320150001 | M44: 0.4473101778 | N44: 0.5409828077 | O44: 0.4302341011 | P44: 0.5175171163 | Q44: 0.3642354042 | R44: 0.446549204 | S44: 0.4781489121 | T44: 0.3655041166 | U44: 0.8286545964 | V44: 0.480949325 | W44: 0.8836612035 | X44: 1.237470442 | Y44: 0.7564854695 | Z44: 1.358691902 | AA44: 0.3676221064 | AB44: 0.5257160528 | AC44: 0.3089974229 | AD44: 0.8340153722 | AE44: 0.7881995074 | AF44: 0.413239253 | AG44: 0.6265275611 | AH44: 0.4647347679 | AI44: 0.5278023371 | AJ44: 0.7846188818 | AK44: 0.6044622726 | AL44: 0.6119552546 | AM44: 0.5766904771 | AN44: 0.510061471 | AO44: 0.795333292 | AP44: 0.4041885073 | AQ44: 0.7741031384 | AR44: 0.6966839849 | AS44: 0.363172787 | AT44: 0.3712390678 | AU44: 0.2670908477 | AV44: 1.082690655 | AW44: 0.3156388858 | AX44: 0.6384274661 | AY44: 0.3228326048 | AZ44: 1.122904546 | BA44: 1.097363421 | BB44: 0.6635843032 | BC44: 0.4105289104 | BD44: 2.032613306 | BE44: 0.5484347097 | BF44: 0.4533989736 | BG44: 0.5852577331 | BH44: 0.608712485 | BI44: 0.3127023551 | BJ44: 1.031015843 | BK44: 0.803754684 | BL44: 0.5987129378 | BM44: 0.8451768472 | BN44: 0.5986973877 | BO44: 0.6161284775 | BP44: 0.953912035 | BQ44: 0.8812698471 | BR44: 0.378656774 | BS44: 0.6062232333 | BT44: 0.7129153078 | BU44: 0.4278056916 | BV44: 0.6197745648 | BW44: 0.3663424936 | BX44: 1.544909548 | BY44: 0.8964317967 | BZ44: 0.6612457703 | CA44: 0.312805378 | CB44: 0.744113668 | CC44: 0.5060385243 | CD44: 0.5417523039 | CE44: 0.8063454561 | CF44: 0.5048777647 | CG44: 0.4027951963 | CH44: 1.604601924 | CI44: 0.3342037848 | CJ44: 0.4046296597 | CK44: 0.7140391384 | CL44: 0.6498567365 | CM44: 1.114331147 | CN44: 1.376681412 | CO44: 0.8768350718 | CP44: 0.6507129525 | CQ44: 1.411743064 | CR44: 0.7228743349 | CS44: 0.8881166346 | CT44: 0.437538884 | CU44: 0.4343379758 | CV44: 0.5926235439 | CW44: 0.7328537462 | CX44: 0.5990117198 | CY44: 0.3621801846 | CZ44: 0.6215885612 | DA44: 0.5751526488 | DB44: 0.6625723386 | DC44: 2.032613306 | DD44: 0.1937905813 | DE44: 0.5990117198 | DF44: 0.06155386386 | DG44: 0.315355535 | DH44: 1.360490853 | DI44: 1.681122778 | DJ44: 3.789289111
A45: Entity 1.WIP | B45: DSTAT AVERAGE | C45: WIP | D45: Entity | E45: Entity 1 | F45: 384.3238253 | G45: 363.7941275 | H45: 382.4192282 | I45: 361.1858644 | J45: 362.1000624 | K45: 376.1506605 | L45: 391.8173715 | M45: 362.7087767 | N45: 381.016667 | O45: 382.3053923 | P45: 388.1794642 | Q45: 371.4831683 | R45: 371.5258688 | S45: 378.627236 | T45: 369.4872789 | U45: 388.541275 | V45: 343.192993 | W45: 388.3745493 | X45: 410.1990957 | Y45: 363.7479694 | Z45: 403.0979528 | AA45: 360.4576753 | AB45: 372.2512693 | AC45: 369.7125731 | AD45: 374.9555399 | AE45: 391.8913709 | AF45: 371.0460798 | AG45: 394.4715526 | AH45: 381.4299478 | AI45: 370.9810917 | AJ45: 393.7804056 | AK45: 374.4223815 | AL45: 382.1238586 | AM45: 372.6065405 | AN45: 380.5167775 | AO45: 388.4923085 | AP45: 381.4214717 | AQ45: 367.9027624 | AR45: 391.2481408 | AS45: 381.2165051 | AT45: 374.9226955 | AU45: 336.1001656 | AV45: 388.8102248 | AW45: 366.0366819 | AX45: 380.6688988 | AY45: 372.1254647 | AZ45: 403.8356872 | BA45: 416.5326011 | BB45: 396.7311238 | BC45: 376.788697 | BD45: 430.1515875 | BE45: 380.2995438 | BF45: 365.3496457 | BG45: 376.7141257 | BH45: 387.6337886 | BI45: 338.9750128 | BJ45: 413.7190659 | BK45: 375.4712275 | BL45: 391.9977852 | BM45: 393.584852 | BN45: 373.9256787 | BO45: 358.4057127 | BP45: 391.9399251 | BQ45: 399.0008732 | BR45: 371.4576104 | BS45: 372.5890817 | BT45: 390.1565383 | BU45: 374.2693337 | BV45: 376.2806887 | BW45: 370.4827842 | BX45: 415.1445828 | BY45: 389.3402718 | BZ45: 376.9628535 | CA45: 379.7344111 | CB45: 371.9050769 | CC45: 374.2411512 | CD45: 372.663031 | CE45: 397.5121791 | CF45: 367.7792364 | CG45: 358.7804642 | CH45: 416.8180357 | CI45: 357.8797823 | CJ45: 373.9023742 | CK45: 402.8243254 | CL45: 363.0920146 | CM45: 388.5035526 | CN45: 423.5176026 | CO45: 371.3326114 | CP45: 388.146022 | CQ45: 406.4009741 | CR45: 385.1886284 | CS45: 391.2709605 | CT45: 379.0875484 | CU45: 378.1050179 | CV45: 384.5069044 | CW45: 395.1771777 | CX45: 388.4963968 | CY45: 394.1583665 | CZ45: 386.4931882 | DA45: 376.8313605 | DB45: 381.2286511 | DC45: 430.1515875 | DD45: 336.1001656 | DE45: 379.7344111 | DF45: 3.233348725 | DG45: 358.7429891 | DH45: 413.8616176 | DI45: 0.2939745289 | DJ45: 0.9685388708
A46: Greeter.NumberBusy | B46: DSTAT AVERAGE | C46: Number Busy | D46: Resource | E46: Greeter | F46: 4.78370654 | G46: 4.507066352 | H46: 4.727900242 | I46: 4.548643854 | J46: 4.527438512 | K46: 4.669327391 | L46: 4.872421032 | M46: 4.547745204 | N46: 4.731652569 | O46: 4.782544334 | P46: 4.846398067 | Q46: 4.668878482 | R46: 4.649965806 | S46: 4.741586021 | T46: 4.628185642 | U46: 4.777190647 | V46: 4.284233434 | W46: 4.768625701 | X46: 4.98412022 | Y46: 4.480426814 | Z46: 4.872926726 | AA46: 4.512883283 | AB46: 4.651074501 | AC46: 4.636572831 | AD46: 4.63968703 | AE46: 4.84727564 | AF46: 4.647322801 | AG46: 4.903252291 | AH46: 4.784001689 | AI46: 4.630192089 | AJ46: 4.890373171 | AK46: 4.636011761 | AL46: 4.755291287 | AM46: 4.657375222 | AN46: 4.743961591 | AO46: 4.80304475 | AP46: 4.780500479 | AQ46: 4.552132954 | AR46: 4.861501077 | AS46: 4.77190041 | AT46: 4.688490614 | AU46: 4.252239598 | AV46: 4.734066118 | AW46: 4.568785985 | AX46: 4.737234856 | AY46: 4.667199131 | AZ46: 4.932750524 | BA46: 5.095273775 | BB46: 4.919967382 | BC46: 4.727494279 | BD46: 5.079009616 | BE46: 4.733842805 | BF46: 4.560969391 | BG46: 4.689687467 | BH46: 4.800927688 | BI46: 4.270234084 | BJ46: 5.051050383 | BK46: 4.648891931 | BL46: 4.907443665 | BM46: 4.841178993 | BN46: 4.647064169 | BO46: 4.489111389 | BP46: 4.800596463 | BQ46: 4.914514703 | BR46: 4.670552016 | BS46: 4.629872725 | BT46: 4.832781318 | BU46: 4.694104104 | BV46: 4.677510002 | BW46: 4.64501769 | BX46: 4.982924087 | BY46: 4.802182767 | BZ46: 4.695053469 | CA46: 4.782205526 | CB46: 4.589275576 | CC46: 4.655654395 | CD46: 4.626765025 | CE46: 4.933627498 | CF46: 4.565113063 | CG46: 4.496297923 | CH46: 4.987221666 | CI46: 4.497126893 | CJ46: 4.694516041 | CK46: 4.99392122 | CL46: 4.4844664 | CM46: 4.727399962 | CN46: 5.133060997 | CO46: 4.561395213 | CP46: 4.813173833 | CQ46: 4.899324754 | CR46: 4.775568821 | CS46: 4.826762528 | CT46: 4.741912444 | CU46: 4.743693503 | CV46: 4.769018935 | CW46: 4.894702702 | CX46: 4.833752817 | CY46: 4.928990901 | CZ46: 4.803144291 | DA46: 4.709640713 | DB46: 4.729064533 | DC46: 5.133060997 | DD46: 4.252239598 | DE46: 4.733842805 | DF46: 0.03260204684 | DG46: 4.48864689 | DH46: 4.987891621 | DI46: -0.2186776622 | DJ46: 0.6220194999
A47: Greeter.NumberScheduled | B47: DSTAT AVERAGE | C47: Number Scheduled | D47: Resource | E47: Greeter | F47: 22 | G47: 22 | H47: 22 | I47: 22 | J47: 22 | K47: 22 | L47: 22 | M47: 22 | N47: 22 | O47: 22 | P47: 22 | Q47: 22 | R47: 22 | S47: 22 | T47: 22 | U47: 22 | V47: 22 | W47: 22 | X47: 22 | Y47: 22 | Z47: 22 | AA47: 22 | AB47: 22 | AC47: 22 | AD47: 22 | AE47: 22 | AF47: 22 | AG47: 22 | AH47: 22 | AI47: 22 | AJ47: 22 | AK47: 22 | AL47: 22 | AM47: 22 | AN47: 22 | AO47: 22 | AP47: 22 | AQ47: 22 | AR47: 22 | AS47: 22 | AT47: 22 | AU47: 22 | AV47: 22 | AW47: 22 | AX47: 22 | AY47: 22 | AZ47: 22 | BA47: 22 | BB47: 22 | BC47: 22 | BD47: 22 | BE47: 22 | BF47: 22 | BG47: 22 | BH47: 22 | BI47: 22 | BJ47: 22 | BK47: 22 | BL47: 22 | BM47: 22 | BN47: 22 | BO47: 22 | BP47: 22 | BQ47: 22 | BR47: 22 | BS47: 22 | BT47: 22 | BU47: 22 | BV47: 22 | BW47: 22 | BX47: 22 | BY47: 22 | BZ47: 22 | CA47: 22 | CB47: 22 | CC47: 22 | CD47: 22 | CE47: 22 | CF47: 22 | CG47: 22 | CH47: 22 | CI47: 22 | CJ47: 22 | CK47: 22 | CL47: 22 | CM47: 22 | CN47: 22 | CO47: 22 | CP47: 22 | CQ47: 22 | CR47: 22 | CS47: 22 | CT47: 22 | CU47: 22 | CV47: 22 | CW47: 22 | CX47: 22 | CY47: 22 | CZ47: 22 | DA47: 22 | DB47: 22 | DC47: 22 | DD47: 22 | DE47: 22 | DG47: 22 | DH47: 22
A48: Greeter.Utilization | B48: DSTAT AVERAGE | C48: Instantaneous Utilization | D48: Resource | E48: Greeter | F48: 0.2174412064 | G48: 0.2048666523 | H48: 0.2149045564 | I48: 0.2067565388 | J48: 0.2057926596 | K48: 0.2122421541 | L48: 0.2214736833 | M48: 0.2067156911 | N48: 0.2150751168 | O48: 0.2173883788 | P48: 0.2202908212 | Q48: 0.2122217492 | R48: 0.2113620821 | S48: 0.2155266373 | T48: 0.2103720746 | U48: 0.2171450294 | V48: 0.1947378834 | W48: 0.2167557137 | X48: 0.2265509191 | Y48: 0.2036557643 | Z48: 0.2214966694 | AA48: 0.2051310583 | AB48: 0.2114124773 | AC48: 0.2107533105 | AD48: 0.210894865 | AE48: 0.2203307109 | AF48: 0.2112419455 | AG48: 0.2228751041 | AH48: 0.2174546222 | AI48: 0.2104632768 | AJ48: 0.2222896896 | AK48: 0.2107278073 | AL48: 0.2161496039 | AM48: 0.2116988737 | AN48: 0.2156346178 | AO48: 0.2183202159 | AP48: 0.2172954763 | AQ48: 0.2069151343 | AR48: 0.2209773217 | AS48: 0.2169045641 | AT48: 0.2131132097 | AU48: 0.1932836181 | AV48: 0.2151848235 | AW48: 0.2076720902 | AX48: 0.2153288571 | AY48: 0.212145415 | AZ48: 0.2242159329 | BA48: 0.2316033534 | BB48: 0.223634881 | BC48: 0.2148861036 | BD48: 0.2308640734 | BE48: 0.215174673 | BF48: 0.2073167905 | BG48: 0.2131676121 | BH48: 0.2182239858 | BI48: 0.1941015493 | BJ48: 0.2295931992 | BK48: 0.2113132696 | BL48: 0.2230656211 | BM48: 0.2200535906 | BN48: 0.2112301895 | BO48: 0.2040505177 | BP48: 0.2182089301 | BQ48: 0.2233870319 | BR48: 0.2122978189 | BS48: 0.2104487602 | BT48: 0.2196718781 | BU48: 0.2133683683 | BV48: 0.212614091 | BW48: 0.2111371677 | BX48: 0.2264965494 | BY48: 0.2182810349 | BZ48: 0.2134115213 | CA48: 0.2173729785 | CB48: 0.2086034353 | CC48: 0.2116206543 | CD48: 0.2103075011 | CE48: 0.2242557953 | CF48: 0.2075051392 | CG48: 0.2043771783 | CH48: 0.2266918939 | CI48: 0.2044148588 | CJ48: 0.2133870928 | CK48: 0.2269964191 | CL48: 0.2038393818 | CM48: 0.2148818165 | CN48: 0.2333209544 | CO48: 0.2073361461 | CP48: 0.2187806288 | CQ48: 0.2226965797 | CR48: 0.21707131 | CS48: 0.2193982967 | CT48: 0.2155414747 | CU48: 0.2156224319 | CV48: 0.216773588 | CW48: 0.2224864864 | CX48: 0.2197160371 | CY48: 0.224045041 | CZ48: 0.2183247405 | DA48: 0.2140745779 | DB48: 0.2149574788 | DC48: 0.2333209544 | DD48: 0.1932836181 | DE48: 0.215174673 | DF48: 0.00148191122 | DG48: 0.2040294041 | DH48: 0.2267223464 | DI48: -0.2186776622 | DJ48: 0.6220194999
A49: Hold for Vacc.Queue.NumberInQueue | B49: DSTAT AVERAGE | C49: Number Waiting | D49: Queue | E49: Hold for Vacc.Queue | F49: 1.145159298 | G49: 0.7641586408 | H49: 1.375329007 | I49: 0.4608004224 | J49: 0.5779004581 | K49: 0.5281863451 | L49: 1.132867303 | M49: 1.115262604 | N49: 0.8982468319 | O49: 0.9578595489 | P49: 0.7003289743 | Q49: 0.7288105609 | R49: 0.5808823414 | S49: 0.990929065 | T49: 0.6661732837 | U49: 1.092544096 | V49: 0.4996084046 | W49: 1.748318003 | X49: 2.014119977 | Y49: 0.8772134197 | Z49: 2.044270574 | AA49: 0.575026913 | AB49: 0.4566166491 | AC49: 0.8227765404 | AD49: 1.335136585 | AE49: 0.69384624 | AF49: 0.7066337521 | AG49: 0.7937296342 | AH49: 0.8989193125 | AI49: 1.217177663 | AJ49: 1.272773496 | AK49: 1.229602315 | AL49: 1.14172564 | AM49: 1.012345938 | AN49: 0.7395413421 | AO49: 0.7108688855 | AP49: 0.6846243928 | AQ49: 2.088824147 | AR49: 1.225147467 | AS49: 0.6410392735 | AT49: 0.7592655672 | AU49: 0.4134872262 | AV49: 1.497763595 | AW49: 0.5031876065 | AX49: 1.227136361 | AY49: 0.5437864028 | AZ49: 2.217022892 | BA49: 2.785653975 | BB49: 1.106258462 | BC49: 0.6814731168 | BD49: 2.727667185 | BE49: 0.935019017 | BF49: 0.7514944321 | BG49: 1.012659956 | BH49: 0.6411243893 | BI49: 0.4299481918 | BJ49: 1.864925774 | BK49: 0.8799351125 | BL49: 1.010293654 | BM49: 0.8915813617 | BN49: 0.8271950903 | BO49: 1.489530408 | BP49: 1.853468415 | BQ49: 2.004984831 | BR49: 0.7649259473 | BS49: 0.964803853 | BT49: 1.285169193 | BU49: 0.6849945155 | BV49: 0.9633381824 | BW49: 0.6762423775 | BX49: 2.153090723 | BY49: 2.822070828 | BZ49: 0.4863611672 | CA49: 0.6324718458 | CB49: 2.007276472 | CC49: 0.5183973259 | CD49: 1.053715057 | CE49: 1.276696027 | CF49: 0.582441944 | CG49: 0.4250728655 | CH49: 2.191214051 | CI49: 0.6996999793 | CJ49: 0.7773405488 | CK49: 0.9369314418 | CL49: 0.9636156147 | CM49: 2.181446543 | CN49: 3.972994353 | CO49: 1.185293162 | CP49: 0.9832374391 | CQ49: 4.115325693 | CR49: 1.530724485 | CS49: 1.561202849 | CT49: 1.018388202 | CU49: 1.051315109 | CV49: 1.017306698 | CW49: 0.7587969167 | CX49: 1.09011403 | CY49: 0.7301460117 | CZ49: 1.440945288 | DA49: 0.9921887019 | DB49: 1.146972975 | DC49: 4.115325693 | DD49: 0.4134872262 | DE49: 0.9636156147 | DF49: 0.134727297 | DG49: 0.4838050927 | DH49: 2.268087321 | DI49: 2.043836966 | DJ49: 5.230235861
A50: Hold for Vacc.Queue.WaitingTime | B50: TALLY AVERAGE | C50: Waiting Time | D50: Queue | E50: Hold for Vacc.Queue | F50: 0.07975470589 | G50: 0.05639390425 | H50: 0.0967834385 | I50: 0.03376998738 | J50: 0.04245479726 | K50: 0.03766374646 | L50: 0.07743471529 | M50: 0.08192396783 | N50: 0.06311119553 | O50: 0.06670444565 | P50: 0.04819186215 | Q50: 0.05192801763 | R50: 0.04165226722 | S50: 0.06982071365 | T50: 0.04793087068 | U50: 0.0761880985 | V50: 0.03880695187 | W50: 0.1220699006 | X50: 0.1347090214 | Y50: 0.06510073916 | Z50: 0.1397377559 | AA50: 0.04239022179 | AB50: 0.03267485927 | AC50: 0.05906320901 | AD50: 0.09619513498 | AE50: 0.04780500594 | AF50: 0.05071743072 | AG50: 0.05401615831 | AH50: 0.06276153794 | AI50: 0.08742417565 | AJ50: 0.08696631043 | AK50: 0.08810292612 | AL50: 0.07997686333 | AM50: 0.07247714607 | AN50: 0.05184178421 | AO50: 0.049355022 | AP50: 0.04776166137 | AQ50: 0.153399741 | AR50: 0.08413983026 | AS50: 0.0446705868 | AT50: 0.05390451905 | AU50: 0.03240548591 | AV50: 0.1054520754 | AW50: 0.03663323341 | AX50: 0.08647000376 | AY50: 0.03878759148 | AZ50: 0.149867233 | BA50: 0.1822843907 | BB50: 0.0749216507 | BC50: 0.04804937113 | BD50: 0.1790534135 | BE50: 0.06570226654 | BF50: 0.05479768446 | BG50: 0.0717798732 | BH50: 0.04441858784 | BI50: 0.03360129394 | BJ50: 0.123082118 | BK50: 0.06321468344 | BL50: 0.06892389004 | BM50: 0.06147016855 | BN50: 0.05914326742 | BO50: 0.1109907286 | BP50: 0.1285726333 | BQ50: 0.1358244075 | BR50: 0.05466487239 | BS50: 0.06936932709 | BT50: 0.08867811748 | BU50: 0.04877146046 | BV50: 0.06867693188 | BW50: 0.04851115199 | BX50: 0.1442975109 | BY50: 0.1959515533 | BZ50: 0.03459786266 | CA50: 0.04415390027 | CB50: 0.1453462137 | CC50: 0.03712371937 | CD50: 0.07572105574 | CE50: 0.08663752693 | CF50: 0.04243449388 | CG50: 0.03154601833 | CH50: 0.146234018 | CI50: 0.05186275563 | CJ50: 0.05513392634 | CK50: 0.06247608261 | CL50: 0.07154234858 | CM50: 0.1532693116 | CN50: 0.2580361366 | CO50: 0.08646988773 | CP50: 0.06804670091 | CQ50: 0.2796689731 | CR50: 0.1065919903 | CS50: 0.1078433425 | CT50: 0.071571491 | CU50: 0.07401743512 | CV50: 0.07102374319 | CW50: 0.05173003576 | CX50: 0.07504009289 | CY50: 0.04930364004 | CZ50: 0.100079084 | DA50: 0.07037230653 | DB50: 0.08000264234 | DC50: 0.2796689731 | DD50: 0.03154601833 | DE50: 0.06867693188 | DF50: 0.008949480287 | DG50: 0.03451507513 | DH50: 0.1559651083 | DI50: 1.959649099 | DJ50: 4.820887064
A51: Med Hist Resource.NumberBusy | B51: DSTAT AVERAGE | C51: Number Busy | D51: Resource | E51: Med Hist Resource | F51: 99.55554629 | G51: 94.26806535 | H51: 98.91434876 | I51: 94.84495193 | J51: 94.35389981 | K51: 97.42353811 | L51: 101.537924 | M51: 94.60701277 | N51: 99.10009439 | O51: 99.9825814 | P51: 101.386961 | Q51: 97.24886767 | R51: 97.17646988 | S51: 98.68424181 | T51: 97.19848138 | U51: 100.0475328 | V51: 89.86845698 | W51: 99.59160323 | X51: 103.6011243 | Y51: 93.18149016 | Z51: 101.4535408 | AA51: 94.12289023 | AB51: 97.15029447 | AC51: 96.83251878 | AD51: 96.30438933 | AE51: 100.7521339 | AF51: 96.95481665 | AG51: 101.9989551 | AH51: 99.58184208 | AI51: 96.2725715 | AJ51: 101.4206465 | AK51: 97.1734269 | AL51: 98.75710178 | AM51: 96.532563 | AN51: 99.34093042 | AO51: 100.324521 | AP51: 99.69195315 | AQ51: 95.15965653 | AR51: 100.7965436 | AS51: 99.27184351 | AT51: 97.74746623 | AU51: 88.93120909 | AV51: 98.93254368 | AW51: 95.89332558 | AX51: 98.58391859 | AY51: 97.37301741 | AZ51: 103.0076984 | BA51: 105.9920505 | BB51: 102.8080669 | BC51: 98.46572701 | BD51: 106.2485135 | BE51: 98.20588945 | BF51: 94.72435972 | BG51: 97.90512199 | BH51: 100.9904037 | BI51: 88.37038453 | BJ51: 105.5896026 | BK51: 96.98493215 | BL51: 101.5812327 | BM51: 100.7836256 | BN51: 96.69988172 | BO51: 92.58345414 | BP51: 100.5842675 | BQ51: 102.2098927 | BR51: 97.01826913 | BS51: 96.63609395 | BT51: 100.899824 | BU51: 97.67226943 | BV51: 97.75153609 | BW51: 96.69581976 | BX51: 103.7868581 | BY51: 99.6912398 | BZ51: 97.80217847 | CA51: 99.55624419 | CB51: 95.83368002 | CC51: 97.79346755 | CD51: 96.98062825 | CE51: 102.3218287 | CF51: 95.98863893 | CG51: 93.92896077 | CH51: 103.9778055 | CI51: 93.34781427 | CJ51: 97.91540374 | CK51: 104.1680282 | CL51: 93.5119133 | CM51: 99.19340971 | CN51: 106.4117245 | CO51: 95.28961686 | CP51: 100.0416188 | CQ51: 102.3795429 | CR51: 98.98615081 | CS51: 100.6490747 | CT51: 98.85364396 | CU51: 98.35610138 | CV51: 99.89419942 | CW51: 102.0072992 | CX51: 100.3819699 | CY51: 102.9633712 | CZ51: 99.92162662 | DA51: 98.22706959 | DB51: 98.59537669 | DC51: 106.4117245 | DD51: 88.37038453 | DE51: 98.68424181 | DF51: 0.6744116833 | DG51: 93.33118186 | DH51: 103.9968278 | DI51: -0.2709509189 | DJ51: 0.6989744742
A52: Med Hist Resource.NumberScheduled | B52: DSTAT AVERAGE | C52: Number Scheduled | D52: Resource | E52: Med Hist Resource | F52: 142 | G52: 142 | H52: 142 | I52: 142 | J52: 142 | K52: 142 | L52: 142 | M52: 142 | N52: 142 | O52: 142 | P52: 142 | Q52: 142 | R52: 142 | S52: 142 | T52: 142 | U52: 142 | V52: 142 | W52: 142 | X52: 142 | Y52: 142 | Z52: 142 | AA52: 142 | AB52: 142 | AC52: 142 | AD52: 142 | AE52: 142 | AF52: 142 | AG52: 142 | AH52: 142 | AI52: 142 | AJ52: 142 | AK52: 142 | AL52: 142 | AM52: 142 | AN52: 142 | AO52: 142 | AP52: 142 | AQ52: 142 | AR52: 142 | AS52: 142 | AT52: 142 | AU52: 142 | AV52: 142 | AW52: 142 | AX52: 142 | AY52: 142 | AZ52: 142 | BA52: 142 | BB52: 142 | BC52: 142 | BD52: 142 | BE52: 142 | BF52: 142 | BG52: 142 | BH52: 142 | BI52: 142 | BJ52: 142 | BK52: 142 | BL52: 142 | BM52: 142 | BN52: 142 | BO52: 142 | BP52: 142 | BQ52: 142 | BR52: 142 | BS52: 142 | BT52: 142 | BU52: 142 | BV52: 142 | BW52: 142 | BX52: 142 | BY52: 142 | BZ52: 142 | CA52: 142 | CB52: 142 | CC52: 142 | CD52: 142 | CE52: 142 | CF52: 142 | CG52: 142 | CH52: 142 | CI52: 142 | CJ52: 142 | CK52: 142 | CL52: 142 | CM52: 142 | CN52: 142 | CO52: 142 | CP52: 142 | CQ52: 142 | CR52: 142 | CS52: 142 | CT52: 142 | CU52: 142 | CV52: 142 | CW52: 142 | CX52: 142 | CY52: 142 | CZ52: 142 | DA52: 142 | DB52: 142 | DC52: 142 | DD52: 142 | DE52: 142 | DG52: 142 | DH52: 142
A53: Med Hist Resource.Utilization | B53: DSTAT AVERAGE | C53: Instantaneous Utilization | D53: Resource | E53: Med Hist Resource | F53: 0.7010953964 | G53: 0.6638596151 | H53: 0.6965799208 | I53: 0.6679221967 | J53: 0.6644640832 | K53: 0.6860812543 | L53: 0.7150558027 | M53: 0.6662465688 | N53: 0.6978879887 | O53: 0.7041026859 | P53: 0.7139926834 | Q53: 0.6848511808 | R53: 0.6843413372 | S53: 0.6949594494 | T53: 0.6844963478 | U53: 0.70456009 | V53: 0.6328764576 | W53: 0.7013493185 | X53: 0.7295853827 | Y53: 0.6562076772 | Z53: 0.7144615551 | AA53: 0.6628372551 | AB53: 0.6841570033 | AC53: 0.6819191463 | AD53: 0.6781999249 | AE53: 0.7095220699 | AF53: 0.6827803989 | AG53: 0.7183025007 | AH53: 0.701280578 | AI53: 0.6779758557 | AJ53: 0.7142299046 | AK53: 0.6843199077 | AL53: 0.6954725477 | AM53: 0.6798067817 | AN53: 0.6995840171 | AO53: 0.7065107116 | AP53: 0.7020560081 | AQ53: 0.6701384263 | AR53: 0.7098348138 | AS53: 0.6990974895 | AT53: 0.6883624382 | AU53: 0.6262761203 | AV53: 0.6967080541 | AW53: 0.6753051097 | AX53: 0.6942529478 | AY53: 0.6857254747 | AZ53: 0.7254063265 | BA53: 0.7464228908 | BB53: 0.7240004708 | BC53: 0.6934206128 | BD53: 0.7482289681 | BE53: 0.6915907708 | BF53: 0.6670729558 | BG53: 0.6894726901 | BH53: 0.7112000262 | BI53: 0.6223266516 | BJ53: 0.7435887504 | BK53: 0.68299248 | BL53: 0.7153607936 | BM53: 0.7097438422 | BN53: 0.6809850826 | BO53: 0.6519961559 | BP53: 0.7083399121 | BQ53: 0.7197879769 | BR53: 0.6832272474 | BS53: 0.6805358729 | BT53: 0.7105621407 | BU53: 0.6878328833 | BV53: 0.6883910992 | BW53: 0.6809564772 | BX53: 0.7308933668 | BY53: 0.7020509845 | BZ53: 0.6887477357 | CA53: 0.7011003112 | CB53: 0.6748850706 | CC53: 0.6886863912 | CD53: 0.6829621708 | CE53: 0.7205762585 | CF53: 0.6759763305 | CG53: 0.6614715547 | CH53: 0.7322380669 | CI53: 0.6573789737 | CJ53: 0.6895450967 | CK53: 0.7335776633 | CL53: 0.6585346007 | CM53: 0.6985451388 | CN53: 0.7493783412 | CO53: 0.6710536398 | CP53: 0.7045184421 | CQ53: 0.7209826964 | CR53: 0.6970855691 | CS53: 0.7087963009 | CT53: 0.6961524222 | CU53: 0.6926486013 | CV53: 0.7034802776 | CW53: 0.7183612619 | CX53: 0.7069152811 | CY53: 0.7250941636 | CZ53: 0.7036734269 | DA53: 0.6917399267 | DB53: 0.6943336386 | DC53: 0.7493783412 | DD53: 0.6223266516 | DE53: 0.6949594494 | DF53: 0.004749378052 | DG53: 0.6572618441 | DH53: 0.7323720266 | DI53: -0.2709509189 | DJ53: 0.6989744742
A54: Process Greeting.Queue.NumberInQueue | B54: DSTAT AVERAGE | C54: Number Waiting | D54: Queue | E54: Process Greeting.Queue | F54: 0.4328307357 | G54: 0.2724064136 | H54: 0.4643420548 | I54: 0.2830050266 | J54: 0.3348481321 | K54: 0.6098012111 | L54: 0.3727573041 | M54: 0.4141817446 | N54: 0.3432195918 | O54: 0.4666728252 | P54: 0.5313140084 | Q54: 0.3411055531 | R54: 0.3503537238 | S54: 0.5226195531 | T54: 0.2619177421 | U54: 0.5225679471 | V54: 0.2423651806 | W54: 0.7876570233 | X54: 0.491164191 | Y54: 0.5281879043 | Z54: 0.6788304325 | AA54: 0.3140062503 | AB54: 0.5647787247 | AC54: 0.4830457822 | AD54: 0.3512311845 | AE54: 0.6169587157 | AF54: 0.4122683978 | AG54: 0.449630216 | AH54: 0.4094887347 | AI54: 0.4107979257 | AJ54: 0.5079018059 | AK54: 0.5782718973 | AL54: 0.3767471824 | AM54: 0.4564265402 | AN54: 0.4496950735 | AO54: 0.2615144868 | AP54: 0.4007531023 | AQ54: 0.3247910194 | AR54: 0.4353050618 | AS54: 0.4047716443 | AT54: 0.361512331 | AU54: 0.4435819988 | AV54: 0.635923428 | AW54: 0.3135453773 | AX54: 0.4105003604 | AY54: 0.4467654789 | AZ54: 0.3557257932 | BA54: 0.725906001 | BB54: 0.5552972528 | BC54: 0.379584642 | BD54: 0.6626945556 | BE54: 0.474997717 | BF54: 0.340409203 | BG54: 0.5282055937 | BH54: 0.4551139639 | BI54: 0.3028101776 | BJ54: 0.662782924 | BK54: 0.3586830987 | BL54: 0.3539371659 | BM54: 0.5202416469 | BN54: 0.2755120223 | BO54: 0.4154443667 | BP54: 0.4886573365 | BQ54: 0.4270694599 | BR54: 0.3999443065 | BS54: 0.2728541196 | BT54: 0.5198802325 | BU54: 0.388369037 | BV54: 0.6125509087 | BW54: 0.4075602483 | BX54: 0.5696883334 | BY54: 0.5356677533 | BZ54: 0.3756231631 | CA54: 0.3227027288 | CB54: 0.3928776988 | CC54: 0.3679993849 | CD54: 0.3489530135 | CE54: 0.4018129304 | CF54: 0.5191709676 | CG54: 0.4300365181 | CH54: 0.6219138044 | CI54: 0.2784100224 | CJ54: 0.424816509 | CK54: 0.4860033899 | CL54: 0.5653777839 | CM54: 0.5138091004 | CN54: 0.5466476085 | CO54: 0.6600050502 | CP54: 0.5844482098 | CQ54: 0.3595262226 | CR54: 0.3447869679 | CS54: 0.5293495429 | CT54: 0.3741764961 | CU54: 0.4527030079 | CV54: 0.369510988 | CW54: 0.3219215547 | CX54: 0.2949917403 | CY54: 0.2989148755 | CZ54: 0.6634086365 | DA54: 0.3653847895 | DB54: 0.4428727358 | DC54: 0.7876570233 | DD54: 0.2423651806 | DE54: 0.4154443667 | DF54: 0.02294092524 | DG54: 0.2752462321 | DH54: 0.6627033924 | DI54: 0.5837911307 | DJ54: -0.1796161786
A55: Process Greeting.Queue.WaitingTime | B55: TALLY AVERAGE | C55: Waiting Time | D55: Queue | E55: Process Greeting.Queue | F55: 0.03014452931 | G55: 0.02010323562 | H55: 0.03267626907 | I55: 0.02074016367 | J55: 0.02459923567 | K55: 0.04348351376 | L55: 0.02547902622 | M55: 0.030424594 | N55: 0.02411475109 | O55: 0.03249866031 | P55: 0.03656140527 | Q55: 0.02430389477 | R55: 0.02512217344 | S55: 0.03682369552 | T55: 0.01884486474 | U55: 0.03644105385 | V55: 0.01882565188 | W55: 0.05499526655 | X55: 0.03285020172 | Y55: 0.03919846894 | Z55: 0.04640199907 | AA55: 0.02314812454 | AB55: 0.04041478861 | AC55: 0.03467555599 | AD55: 0.02530582382 | AE55: 0.04250756633 | AF55: 0.02958986015 | AG55: 0.03059895446 | AH55: 0.02859004407 | AI55: 0.02950569264 | AJ55: 0.03470401156 | AK55: 0.04143408451 | AL55: 0.02639080428 | AM55: 0.032677064 | AN55: 0.03152358582 | AO55: 0.01815672836 | AP55: 0.02795786152 | AQ55: 0.02385210757 | AR55: 0.02989557992 | AS55: 0.02820636366 | AT55: 0.02566578701 | AU55: 0.03476404904 | AV55: 0.04477305063 | AW55: 0.02282683604 | AX55: 0.0289258544 | AY55: 0.03186721255 | AZ55: 0.02404649971 | BA55: 0.04750099413 | BB55: 0.03760765519 | BC55: 0.02676378993 | BD55: 0.04350153968 | BE55: 0.03337731751 | BF55: 0.02482205496 | BG55: 0.037440535 | BH55: 0.03153135323 | BI55: 0.02366520892 | BJ55: 0.04374261282 | BK55: 0.0257678529 | BL55: 0.02414617395 | BM55: 0.03586811378 | BN55: 0.01969871607 | BO55: 0.03095638245 | BP55: 0.03389750805 | BQ55: 0.0289311198 | BR55: 0.02858172684 | BS55: 0.01961819142 | BT55: 0.03587231984 | BU55: 0.02765179093 | BV55: 0.04366910582 | BW55: 0.02923687987 | BX55: 0.03817981639 | BY55: 0.03719429266 | BZ55: 0.026720387 | CA55: 0.02252840849 | CB55: 0.02844814194 | CC55: 0.02635334947 | CD55: 0.0250761251 | CE55: 0.0272673196 | CF55: 0.03782481238 | CG55: 0.03191438688 | CH55: 0.04150436806 | CI55: 0.02063614604 | CJ55: 0.03013068359 | CK55: 0.03240748104 | CL55: 0.04197571509 | CM55: 0.03610043409 | CN55: 0.03550340736 | CO55: 0.04814890058 | CP55: 0.04044778092 | CQ55: 0.02443265418 | CR55: 0.02400923842 | CS55: 0.03656592356 | CT55: 0.02629681852 | CU55: 0.03187238083 | CV55: 0.02579758254 | CW55: 0.02194660148 | CX55: 0.020306323 | CY55: 0.02018444419 | CZ55: 0.04607623148 | DA55: 0.02591540335 | DB55: 0.03113238907 | DC55: 0.05499526655 | DD55: 0.01815672836 | DE55: 0.02989557992 | DF55: 0.001539404082 | DG55: 0.02006278366 | DH55: 0.04490336871 | DI55: 0.5648699923 | DJ55: -0.2034785463
A56: Process Med Hist.Queue.NumberInQueue | B56: DSTAT AVERAGE | C56: Number Waiting | D56: Queue | E56: Process Med Hist.Queue | F56: 5.543273766 | G56: 5.914441131 | H56: 6.763122957 | I56: 1.421117064 | J56: 4.050639728 | K56: 5.541345036 | L56: 6.242687696 | M56: 3.238045573 | N56: 4.906714772 | O56: 3.355004298 | P56: 4.235889603 | Q56: 3.075647915 | R56: 3.822432915 | S56: 4.053132893 | T56: 2.930393657 | U56: 8.49602527 | V56: 3.828270824 | W56: 7.019981346 | X56: 12.60055812 | Y56: 6.717846977 | Z56: 13.16597402 | AA56: 3.128922381 | AB56: 4.690567929 | AC56: 2.300437705 | AD56: 7.891538738 | AE56: 7.531628059 | AF56: 3.972722269 | AG56: 5.27267475 | AH56: 3.997256569 | AI56: 4.433597835 | AJ56: 7.869105239 | AK56: 5.284190849 | AL56: 5.304665671 | AM56: 5.322567672 | AN56: 4.497927553 | AO56: 7.861109849 | AP56: 3.533030307 | AQ56: 5.967952754 | AR56: 6.81244511 | AS56: 3.265937148 | AT56: 3.261621847 | AU56: 1.875044124 | AV56: 9.893958118 | AW56: 2.551356253 | AX56: 5.8899655 | AY56: 2.830264634 | AZ56: 10.91893634 | BA56: 10.58978146 | BB56: 6.196651565 | BC56: 3.685979087 | BD56: 22.3326094 | BE56: 4.985601711 | BF56: 4.272954977 | BG56: 5.352629552 | BH56: 5.983808359 | BI56: 2.578157368 | BJ56: 9.5135551 | BK56: 7.12604024 | BL56: 5.847105104 | BM56: 8.356189768 | BN56: 6.01430431 | BO56: 4.681576273 | BP56: 8.900684999 | BQ56: 8.11484657 | BR56: 3.032770761 | BS56: 5.570152918 | BT56: 6.717556074 | BU56: 3.459121333 | BV56: 5.927372118 | BW56: 3.243563718 | BX56: 14.01327837 | BY56: 6.226392388 | BZ56: 5.191395234 | CA56: 2.497978875 | CB56: 6.009759873 | CC56: 4.703344614 | CD56: 4.498140204 | CE56: 7.311366875 | CF56: 4.352786214 | CG56: 3.717436399 | CH56: 14.87533908 | CI56: 2.775600701 | CJ56: 3.478558986 | CK56: 6.643220882 | CL56: 5.190675302 | CM56: 10.18559779 | CN56: 11.50984467 | CO56: 7.927339041 | CP56: 6.070218866 | CQ56: 11.67588088 | CR56: 7.02291533 | CS56: 8.741711164 | CT56: 3.410138948 | CU56: 3.532922306 | CV56: 4.040592869 | CW56: 6.980111249 | CX56: 5.776309541 | CY56: 3.251915127 | CZ56: 5.419424632 | DA56: 5.499808202 | DB56: 5.985370852 | DC56: 22.3326094 | DD56: 1.421117064 | DE56: 5.352629552 | DF56: 0.6235700047 | DG56: 2.575477257 | DH56: 11.7683486 | DI56: 2.006678552 | DJ56: 6.552701888
A57: Process Med Hist.Queue.WaitingTime | B57: TALLY AVERAGE | C57: Waiting Time | D57: Queue | E57: Process Med Hist.Queue | F57: 0.3860617205 | G57: 0.436477989 | H57: 0.4759285169 | I57: 0.1041472685 | J57: 0.2975756223 | K57: 0.3951404962 | L57: 0.4267055312 | M57: 0.2378574701 | N57: 0.3447478181 | O57: 0.2336393703 | P57: 0.2914850239 | Q57: 0.219141033 | R57: 0.2740882032 | S57: 0.2855831372 | T57: 0.2108405168 | U57: 0.5924667138 | V57: 0.2973599328 | W57: 0.4901444841 | X57: 0.842754589 | Y57: 0.4985523407 | Z57: 0.8999707215 | AA57: 0.2306600104 | AB57: 0.3356505884 | AC57: 0.1651374661 | AD57: 0.5685767602 | AE57: 0.5189183184 | AF57: 0.2851353559 | AG57: 0.3588244935 | AH57: 0.2790839693 | AI57: 0.3184445851 | AJ57: 0.5376817251 | AK57: 0.3786205265 | AL57: 0.3715871014 | AM57: 0.3810599717 | AN57: 0.315304333 | AO57: 0.5457901696 | AP57: 0.2464758763 | AQ57: 0.438276438 | AR57: 0.4678603928 | AS57: 0.227585633 | AT57: 0.2315608195 | AU57: 0.1469494391 | AV57: 0.6965975276 | AW57: 0.1857446963 | AX57: 0.4150356514 | AY57: 0.2018791714 | AZ57: 0.7381027877 | BA57: 0.6929618247 | BB57: 0.4196698871 | BC57: 0.2598913629 | BD57: 1.465988947 | BE57: 0.3503301286 | BF57: 0.3115765447 | BG57: 0.3794077845 | BH57: 0.4145721511 | BI57: 0.2014880518 | BJ57: 0.627879419 | BK57: 0.5119359047 | BL57: 0.3988991 | BM57: 0.5761183618 | BN57: 0.4300141676 | BO57: 0.3488425339 | BP57: 0.6174286537 | BQ57: 0.5497269655 | BR57: 0.2167347405 | BS57: 0.400493591 | BT57: 0.4635189125 | BU57: 0.2462886863 | BV57: 0.42256576 | BW57: 0.2326813843 | BX57: 0.9391528031 | BY57: 0.4323319059 | BZ57: 0.3692958884 | CA57: 0.1743880156 | CB57: 0.4351646897 | CC57: 0.3368181834 | CD57: 0.3232410156 | CE57: 0.4961547082 | CF57: 0.3171273668 | CG57: 0.2758828575 | CH57: 0.9927284841 | CI57: 0.2057314637 | CJ57: 0.2467214855 | CK57: 0.4429805619 | CL57: 0.3853747243 | CM57: 0.7156441983 | CN57: 0.7475358854 | CO57: 0.5783177859 | CP57: 0.4201003249 | CQ57: 0.7934685752 | CR57: 0.4890406665 | CS57: 0.6038519283 | CT57: 0.2396617798 | CU57: 0.2487340336 | CV57: 0.2820958819 | CW57: 0.4758604004 | CX57: 0.397623361 | CY57: 0.2195879321 | CZ57: 0.376399477 | DA57: 0.3900812294 | DB57: 0.4174875057 | DC57: 1.465988947 | DD57: 0.1041472685 | DE57: 0.3810599717 | DF57: 0.04093532998 | DG57: 0.1999137162 | DH57: 0.7983971766 | DI57: 1.874281954 | DJ57: 5.865237318
A58: Process Schedule.Queue.NumberInQueue | B58: DSTAT AVERAGE | C58: Number Waiting | D58: Queue | E58: Process Schedule.Queue | F58: 0 | G58: 0 | H58: 0 | I58: 0 | J58: 0 | K58: 0 | L58: 0 | M58: 0 | N58: 0 | O58: 0 | P58: 0 | Q58: 0 | R58: 0 | S58: 0 | T58: 0 | U58: 0 | V58: 0 | W58: 0 | X58: 0 | Y58: 0 | Z58: 0 | AA58: 0 | AB58: 0 | AC58: 0 | AD58: 0 | AE58: 0 | AF58: 0 | AG58: 0 | AH58: 0 | AI58: 0 | AJ58: 0 | AK58: 0 | AL58: 0 | AM58: 0 | AN58: 0 | AO58: 0 | AP58: 0 | AQ58: 0 | AR58: 0 | AS58: 0 | AT58: 0 | AU58: 0 | AV58: 0 | AW58: 0 | AX58: 0 | AY58: 0 | AZ58: 0 | BA58: 0 | BB58: 0 | BC58: 0 | BD58: 0 | BE58: 0 | BF58: 0 | BG58: 0 | BH58: 0 | BI58: 0 | BJ58: 0 | BK58: 0 | BL58: 0 | BM58: 0 | BN58: 0 | BO58: 0 | BP58: 0 | BQ58: 0 | BR58: 0 | BS58: 0 | BT58: 0 | BU58: 0 | BV58: 0 | BW58: 0 | BX58: 0 | BY58: 0 | BZ58: 0 | CA58: 0 | CB58: 0 | CC58: 0 | CD58: 0 | CE58: 0 | CF58: 0 | CG58: 0 | CH58: 0 | CI58: 0 | CJ58: 0 | CK58: 0 | CL58: 0 | CM58: 0 | CN58: 0 | CO58: 0 | CP58: 0 | CQ58: 0 | CR58: 0 | CS58: 0 | CT58: 0 | CU58: 0 | CV58: 0 | CW58: 0 | CX58: 0 | CY58: 0 | CZ58: 0 | DA58: 0 | DB58: 0 | DC58: 0 | DD58: 0 | DE58: 0 | DG58: 0 | DH58: 0
A59: Process Vacc.Queue.NumberInQueue | B59: DSTAT AVERAGE | C59: Number Waiting | D59: Queue | E59: Process Vacc.Queue | F59: 2.155046024 | G59: 0.8772000259 | H59: 1.852254723 | I59: 0.4794012969 | J59: 1.155100602 | K59: 1.627895089 | L59: 1.498046078 | M59: 1.321916228 | N59: 1.551500122 | O59: 1.398519948 | P59: 2.053078054 | Q59: 0.9664768066 | R59: 1.473904319 | S59: 1.219437244 | T59: 1.221520627 | U59: 1.771843161 | V59: 1.621592707 | W59: 3.100077443 | X59: 3.396362777 | Y59: 2.070172147 | Z59: 3.987685237 | AA59: 0.9688691531 | AB59: 1.634685093 | AC59: 0.6982102998 | AD59: 1.997775567 | AE59: 2.597566915 | AF59: 0.6659386077 | AG59: 2.690349331 | AH59: 1.35062635 | AI59: 1.286842623 | AJ59: 1.833311156 | AK59: 1.344070292 | AL59: 1.912950618 | AM59: 1.263754371 | AN59: 1.589042871 | AO59: 2.621829216 | AP59: 1.175304215 | AQ59: 2.159292952 | AR59: 1.671413525 | AS59: 0.8999143771 | AT59: 0.8466431323 | AU59: 0.6759100349 | AV59: 3.350095336 | AW59: 0.9674705997 | AX59: 1.532621248 | AY59: 0.7051665154 | AZ59: 3.119718512 | BA59: 2.668452346 | BB59: 1.939971807 | BC59: 1.075399735 | BD59: 5.241490845 | BE59: 1.409239898 | BF59: 0.8530465343 | BG59: 1.363175573 | BH59: 1.705924187 | BI59: 0.6902936333 | BJ59: 3.580566977 | BK59: 2.823437887 | BL59: 1.564661501 | BM59: 2.490680213 | BN59: 1.256545894 | BO59: 1.682086464 | BP59: 2.50852795 | BQ59: 2.462034784 | BR59: 1.100905911 | BS59: 1.623675125 | BT59: 1.809332263 | BU59: 1.47604038 | BV59: 1.19037851 | BW59: 0.7794247485 | BX59: 6.315833049 | BY59: 3.326172525 | BZ59: 3.242115588 | CA59: 1.027551393 | CB59: 1.866527424 | CC59: 1.476603919 | CD59: 1.638079742 | CE59: 2.892476993 | CF59: 1.475387466 | CG59: 0.854995231 | CH59: 6.355355958 | CI59: 0.7551584937 | CJ59: 1.024211259 | CK59: 2.642033589 | CL59: 2.033358157 | CM59: 2.97916318 | CN59: 5.167340864 | CO59: 2.246647744 | CP59: 1.764540107 | CQ59: 4.623050006 | CR59: 1.482479338 | CS59: 2.024628565 | CT59: 1.423021585 | CU59: 1.132228713 | CV59: 3.061017029 | CW59: 2.688963021 | CX59: 1.540480631 | CY59: 1.082612091 | CZ59: 1.42589477 | DA59: 1.251773572 | DB59: 1.922407603 | DC59: 6.355355958 | DD59: 0.4794012969 | DE59: 1.589042871 | DF59: 0.2232216039 | DG59: 0.7044708938 | DH59: 4.051221713 | DI59: 1.836005622 | DJ59: 4.051148585
A60: Process Vacc.Queue.WaitingTime | B60: TALLY AVERAGE | C60: Waiting Time | D60: Queue | E60: Process Vacc.Queue | F60: 0.1500883433 | G60: 0.06473621003 | H60: 0.1303452338 | I60: 0.0351331617 | J60: 0.08485814674 | K60: 0.1160814332 | L60: 0.1023957274 | M60: 0.09710414589 | N60: 0.109009043 | O60: 0.09739162486 | P60: 0.1412788249 | Q60: 0.06886182412 | R60: 0.1056865602 | S60: 0.08592136573 | T60: 0.08788786436 | U60: 0.1235587303 | V60: 0.1259567885 | W60: 0.2164515522 | X60: 0.2271566299 | Y60: 0.1536339207 | Z60: 0.272581425 | AA60: 0.07142374967 | AB60: 0.1169758165 | AC60: 0.0501211919 | AD60: 0.143937551 | AE60: 0.1789686167 | AF60: 0.04779660623 | AG60: 0.1830879548 | AH60: 0.09429921656 | AI60: 0.09242788375 | AJ60: 0.1252668347 | AK60: 0.09630473542 | AL60: 0.1340004855 | AM60: 0.09047629539 | AN60: 0.111391768 | AO60: 0.1820313721 | AP60: 0.08199310818 | AQ60: 0.1585748518 | AR60: 0.1147881819 | AS60: 0.06271020351 | AT60: 0.06010794223 | AU60: 0.05297187367 | AV60: 0.2358680015 | AW60: 0.07043412007 | AX60: 0.1079959566 | AY60: 0.05029862936 | AZ60: 0.2108880259 | BA60: 0.1746150866 | BB60: 0.1313851103 | BC60: 0.07582438645 | BD60: 0.3440694058 | BE60: 0.09902499706 | BF60: 0.06220268949 | BG60: 0.09662529774 | BH60: 0.1181903928 | BI60: 0.0539478005 | BJ60: 0.2363116932 | BK60: 0.2028362429 | BL60: 0.1067437738 | BM60: 0.1717202031 | BN60: 0.08984123661 | BO60: 0.1253388325 | BP60: 0.17401324 | BQ60: 0.1667865066 | BR60: 0.07867543432 | BS60: 0.1167421238 | BT60: 0.1248459579 | BU60: 0.1050937539 | BV60: 0.0848627671 | BW60: 0.05591307746 | BX60: 0.423279418 | BY60: 0.2309540449 | BZ60: 0.2306316322 | CA60: 0.07173505359 | CB60: 0.1351546225 | CC60: 0.1057432721 | CD60: 0.1177141075 | CE60: 0.1962856061 | CF60: 0.1074910917 | CG60: 0.06345193359 | CH60: 0.4241343913 | CI60: 0.05597341943 | CJ60: 0.07264356423 | CK60: 0.1761750128 | CL60: 0.1509639486 | CM60: 0.2093172035 | CN60: 0.3356059824 | CO60: 0.1638981684 | CP60: 0.1221181458 | CQ60: 0.3141728612 | CR60: 0.1032324397 | CS60: 0.1398554402 | CT60: 0.1000087947 | CU60: 0.07971412623 | CV60: 0.2137063363 | CW60: 0.1833167086 | CX60: 0.1060419429 | CY60: 0.0731041682 | CZ60: 0.09903376875 | DA60: 0.08878370954 | DB60: 0.1339497183 | DC60: 0.4241343913 | DD60: 0.0351331617 | DE60: 0.111391768 | DF60: 0.01475225293 | DG60: 0.05385020781 | DH60: 0.2767405686 | DI60: 1.745399476 | DJ60: 3.710282791
A61: Process Verify Appt.Queue.NumberInQueue | B61: DSTAT AVERAGE | C61: Number Waiting | D61: Queue | E61: Process Verify Appt.Queue | F61: 0 | G61: 0 | H61: 0 | I61: 0 | J61: 0 | K61: 0 | L61: 0 | M61: 0 | N61: 0 | O61: 0 | P61: 0 | Q61: 0 | R61: 0 | S61: 0 | T61: 0 | U61: 0 | V61: 0 | W61: 0 | X61: 0 | Y61: 0 | Z61: 0 | AA61: 0 | AB61: 0 | AC61: 0 | AD61: 0 | AE61: 0 | AF61: 0 | AG61: 0 | AH61: 0 | AI61: 0 | AJ61: 0 | AK61: 0 | AL61: 0 | AM61: 0 | AN61: 0 | AO61: 0 | AP61: 0 | AQ61: 0 | AR61: 0 | AS61: 0 | AT61: 0 | AU61: 0 | AV61: 0 | AW61: 0 | AX61: 0 | AY61: 0 | AZ61: 0 | BA61: 0 | BB61: 0 | BC61: 0 | BD61: 0 | BE61: 0 | BF61: 0 | BG61: 0 | BH61: 0 | BI61: 0 | BJ61: 0 | BK61: 0 | BL61: 0 | BM61: 0 | BN61: 0 | BO61: 0 | BP61: 0 | BQ61: 0 | BR61: 0 | BS61: 0 | BT61: 0 | BU61: 0 | BV61: 0 | BW61: 0 | BX61: 0 | BY61: 0 | BZ61: 0 | CA61: 0 | CB61: 0 | CC61: 0 | CD61: 0 | CE61: 0 | CF61: 0 | CG61: 0 | CH61: 0 | CI61: 0 | CJ61: 0 | CK61: 0 | CL61: 0 | CM61: 0 | CN61: 0 | CO61: 0 | CP61: 0 | CQ61: 0 | CR61: 0 | CS61: 0 | CT61: 0 | CU61: 0 | CV61: 0 | CW61: 0 | CX61: 0 | CY61: 0 | CZ61: 0 | DA61: 0 | DB61: 0 | DC61: 0 | DD61: 0 | DE61: 0 | DG61: 0 | DH61: 0
A62: Process Waiting Room Greeter.Queue.NumberInQueue | B62: DSTAT AVERAGE | C62: Number Waiting | D62: Queue | E62: Process Waiting Room Greeter.Queue | F62: 0 | G62: 0 | H62: 0 | I62: 0 | J62: 0 | K62: 0 | L62: 0 | M62: 0 | N62: 0 | O62: 0 | P62: 0 | Q62: 8.907731901e-06 | R62: 0 | S62: 0 | T62: 0 | U62: 0 | V62: 0 | W62: 0 | X62: 0 | Y62: 0 | Z62: 0 | AA62: 0 | AB62: 0 | AC62: 0 | AD62: 1.419541981e-06 | AE62: 0 | AF62: 0 | AG62: 0 | AH62: 0 | AI62: 0 | AJ62: 0 | AK62: 0 | AL62: 0 | AM62: 0 | AN62: 0 | AO62: 0 | AP62: 0 | AQ62: 0 | AR62: 0 | AS62: 0 | AT62: 0 | AU62: 0 | AV62: 0 | AW62: 0 | AX62: 0 | AY62: 0 | AZ62: 0 | BA62: 1.71830223e-05 | BB62: 0 | BC62: 0 | BD62: 0 | BE62: 0 | BF62: 0 | BG62: 5.985443776e-05 | BH62: 0 | BI62: 0 | BJ62: 0 | BK62: 0 | BL62: 0 | BM62: 0 | BN62: 0 | BO62: 0 | BP62: 0 | BQ62: 1.251305091e-05 | BR62: 0 | BS62: 0 | BT62: 0 | BU62: 0 | BV62: 0 | BW62: 0 | BX62: 0 | BY62: 0 | BZ62: 0 | CA62: 0 | CB62: 0 | CC62: 0 | CD62: 0 | CE62: 4.350211379e-06 | CF62: 0 | CG62: 0 | CH62: 9.92404556e-06 | CI62: 0 | CJ62: 0 | CK62: 0 | CL62: 0 | CM62: 0 | CN62: 0 | CO62: 4.512751743e-06 | CP62: 0 | CQ62: 0 | CR62: 0 | CS62: 0 | CT62: 0 | CU62: 0 | CV62: 0 | CW62: 0 | CX62: 0 | CY62: 0 | CZ62: 0 | DA62: 0 | DB62: 1.198634278e-06 | DC62: 5.985443776e-05 | DD62: 0 | DE62: 0 | DF62: 1.263047028e-06 | DG62: 0 | DH62: 4.952249759e-06 | DI62: 7.986334183 | DJ62: 70.43292315
A63: Process Waiting Room Greeter.Queue.WaitingTime | B63: TALLY AVERAGE | C63: Waiting Time | D63: Queue | E63: Process Waiting Room Greeter.Queue | F63: 0 | G63: 0 | H63: 0 | I63: 0 | J63: 0 | K63: 0 | L63: 0 | M63: 0 | N63: 0 | O63: 0 | P63: 0 | Q63: 6.34679139e-07 | R63: 0 | S63: 0 | T63: 0 | U63: 0 | V63: 0 | W63: 0 | X63: 0 | Y63: 0 | Z63: 0 | AA63: 0 | AB63: 0 | AC63: 0 | AD63: 1.022764517e-07 | AE63: 0 | AF63: 0 | AG63: 0 | AH63: 0 | AI63: 0 | AJ63: 0 | AK63: 0 | AL63: 0 | AM63: 0 | AN63: 0 | AO63: 0 | AP63: 0 | AQ63: 0 | AR63: 0 | AS63: 0 | AT63: 0 | AU63: 0 | AV63: 0 | AW63: 0 | AX63: 0 | AY63: 0 | AZ63: 0 | BA63: 1.124402664e-06 | BB63: 0 | BC63: 0 | BD63: 0 | BE63: 0 | BF63: 0 | BG63: 4.242632412e-06 | BH63: 0 | BI63: 0 | BJ63: 0 | BK63: 0 | BL63: 0 | BM63: 0 | BN63: 0 | BO63: 0 | BP63: 0 | BQ63: 8.476761015e-07 | BR63: 0 | BS63: 0 | BT63: 0 | BU63: 0 | BV63: 0 | BW63: 0 | BX63: 0 | BY63: 0 | BZ63: 0 | CA63: 0 | CB63: 0 | CC63: 0 | CD63: 0 | CE63: 2.952085286e-07 | CF63: 0 | CG63: 0 | CH63: 6.622963451e-07 | CI63: 0 | CJ63: 0 | CK63: 0 | CL63: 0 | CM63: 0 | CN63: 0 | CO63: 3.292157157e-07 | CP63: 0 | CQ63: 0 | CR63: 0 | CS63: 0 | CT63: 0 | CU63: 0 | CV63: 0 | CW63: 0 | CX63: 0 | CY63: 0 | CZ63: 0 | DA63: 0 | DB63: 8.321603391e-08 | DC63: 4.242632412e-06 | DD63: 0 | DE63: 0 | DF63: 8.884961657e-08 | DG63: 0 | DH63: 3.597620581e-07 | DI63: 8.133386549 | DJ63: 72.68565379
A64: Process Watch.Queue.NumberInQueue | B64: DSTAT AVERAGE | C64: Number Waiting | D64: Queue | E64: Process Watch.Queue | F64: 0 | G64: 0 | H64: 0 | I64: 0 | J64: 0 | K64: 0 | L64: 0 | M64: 0 | N64: 0 | O64: 0 | P64: 0 | Q64: 0 | R64: 0 | S64: 0 | T64: 0 | U64: 0 | V64: 0 | W64: 0 | X64: 0 | Y64: 0 | Z64: 0 | AA64: 0 | AB64: 0 | AC64: 0 | AD64: 0 | AE64: 0 | AF64: 0 | AG64: 0 | AH64: 0 | AI64: 0 | AJ64: 0 | AK64: 0 | AL64: 0 | AM64: 0 | AN64: 0 | AO64: 0 | AP64: 0 | AQ64: 0 | AR64: 0 | AS64: 0 | AT64: 0 | AU64: 0 | AV64: 0 | AW64: 0 | AX64: 0 | AY64: 0 | AZ64: 0 | BA64: 0 | BB64: 0 | BC64: 0 | BD64: 0 | BE64: 0 | BF64: 0 | BG64: 0 | BH64: 0 | BI64: 0 | BJ64: 0 | BK64: 0 | BL64: 0 | BM64: 0 | BN64: 0 | BO64: 0 | BP64: 0 | BQ64: 0 | BR64: 0 | BS64: 0 | BT64: 0 | BU64: 0 | BV64: 0 | BW64: 0 | BX64: 0 | BY64: 0 | BZ64: 0 | CA64: 0 | CB64: 0 | CC64: 0 | CD64: 0 | CE64: 0 | CF64: 0 | CG64: 0 | CH64: 0 | CI64: 0 | CJ64: 0 | CK64: 0 | CL64: 0 | CM64: 0 | CN64: 0 | CO64: 0 | CP64: 0 | CQ64: 0 | CR64: 0 | CS64: 0 | CT64: 0 | CU64: 0 | CV64: 0 | CW64: 0 | CX64: 0 | CY64: 0 | CZ64: 0 | DA64: 0 | DB64: 0 | DC64: 0 | DD64: 0 | DE64: 0 | DG64: 0 | DH64: 0
A65: Process Watch.Queue.WaitingTime | B65: TALLY AVERAGE | C65: Waiting Time | D65: Queue | E65: Process Watch.Queue | F65: 0 | G65: 0 | H65: 0 | I65: 0 | J65: 0 | K65: 0 | L65: 0 | M65: 0 | N65: 0 | O65: 0 | P65: 0 | Q65: 0 | R65: 0 | S65: 0 | T65: 0 | U65: 0 | V65: 0 | W65: 0 | X65: 0 | Y65: 0 | Z65: 0 | AA65: 0 | AB65: 0 | AC65: 0 | AD65: 0 | AE65: 0 | AF65: 0 | AG65: 0 | AH65: 0 | AI65: 0 | AJ65: 0 | AK65: 0 | AL65: 0 | AM65: 0 | AN65: 0 | AO65: 0 | AP65: 0 | AQ65: 0 | AR65: 0 | AS65: 0 | AT65: 0 | AU65: 0 | AV65: 0 | AW65: 0 | AX65: 0 | AY65: 0 | AZ65: 0 | BA65: 0 | BB65: 0 | BC65: 0 | BD65: 0 | BE65: 0 | BF65: 0 | BG65: 0 | BH65: 0 | BI65: 0 | BJ65: 0 | BK65: 0 | BL65: 0 | BM65: 0 | BN65: 0 | BO65: 0 | BP65: 0 | BQ65: 0 | BR65: 0 | BS65: 0 | BT65: 0 | BU65: 0 | BV65: 0 | BW65: 0 | BX65: 0 | BY65: 0 | BZ65: 0 | CA65: 0 | CB65: 0 | CC65: 0 | CD65: 0 | CE65: 0 | CF65: 0 | CG65: 0 | CH65: 0 | CI65: 0 | CJ65: 0 | CK65: 0 | CL65: 0 | CM65: 0 | CN65: 0 | CO65: 0 | CP65: 0 | CQ65: 0 | CR65: 0 | CS65: 0 | CT65: 0 | CU65: 0 | CV65: 0 | CW65: 0 | CX65: 0 | CY65: 0 | CZ65: 0 | DA65: 0 | DB65: 0 | DC65: 0 | DD65: 0 | DE65: 0 | DG65: 0 | DH65: 0
A66: Record Finish | B66: TALLY AVERAGE | C66: Expression | D66: User Specified | E66: Record Finish | F66: 753.2114927 | G66: 758.2815075 | H66: 765.2858975 | I66: 758.5048807 | J66: 762.5548473 | K66: 762.6357102 | L66: 757.6914054 | M66: 759.1792326 | N66: 758.8124862 | O66: 758.3694436 | P66: 755.5686911 | Q66: 757.7476195 | R66: 756.131021 | S66: 762.0232818 | T66: 759.7872908 | U66: 756.2714689 | V66: 759.6589364 | W66: 758.2597211 | X66: 760.4520044 | Y66: 755.8605619 | Z66: 761.8254205 | AA66: 762.9882805 | AB66: 761.0259701 | AC66: 754.8217678 | AD66: 758.6750168 | AE66: 759.6066104 | AF66: 756.8493655 | AG66: 756.4157538 | AH66: 760.327583 | AI66: 756.320624 | AJ66: 758.4429192 | AK66: 764.1639053 | AL66: 755.4796359 | AM66: 760.3204221 | AN66: 757.0790673 | AO66: 761.2906224 | AP66: 762.8617569 | AQ66: 758.9850612 | AR66: 755.1070044 | AS66: 758.8656583 | AT66: 760.3629401 | AU66: 759.4168297 | AV66: 761.4447293 | AW66: 753.5041819 | AX66: 763.1345388 | AY66: 754.3012804 | AZ66: 759.4681899 | BA66: 758.7401485 | BB66: 756.8298684 | BC66: 758.3145596 | BD66: 762.1201523 | BE66: 765.2225994 | BF66: 760.1731111 | BG66: 757.0251405 | BH66: 757.602216 | BI66: 757.2924935 | BJ66: 755.351693 | BK66: 766.1753569 | BL66: 761.3535034 | BM66: 754.9488746 | BN66: 757.1698737 | BO66: 756.6887144 | BP66: 762.7084936 | BQ66: 758.0481887 | BR66: 761.0944472 | BS66: 758.1847356 | BT66: 755.5622962 | BU66: 760.4136762 | BV66: 756.0365362 | BW66: 758.6117779 | BX66: 757.9823881 | BY66: 756.1512609 | BZ66: 755.4659505 | CA66: 753.9657711 | CB66: 758.1291762 | CC66: 761.5987502 | CD66: 755.6187947 | CE66: 756.3078584 | CF66: 761.7113399 | CG66: 763.6538462 | CH66: 759.7953721 | CI66: 760.4857632 | CJ66: 757.4933975 | CK66: 754.1688354 | CL66: 763.9672455 | CM66: 757.7584386 | CN66: 757.9375771 | CO66: 760.527951 | CP66: 755.7380795 | CQ66: 760.4491217 | CR66: 759.369609 | CS66: 761.5748662 | CT66: 753.7442396 | CU66: 756.1455615 | CV66: 761.337678 | CW66: 756.7286904 | CX66: 753.7642802 | CY66: 752.5742241 | CZ66: 760.5187918 | DA66: 761.7488192 | DB66: =AVERAGE(G66:DA66) -> 758.7701341 | DC66: =MAX(G66:DA66) -> 766.1753569 | DD66: =MIN(G66:DA66) -> 752.5742241 | DE66: =MEDIAN(G66:DA66) -> 758.5048807 | DF66: =_xlfn.CONFIDENCE.NORM(0.05, _xlfn.STDEV.P(G66:DA66),100) -> 0.572690447 | DG66: =PERCENTILE(G66:DA66,0.05) -> 754.148529 | DH66: =PERCENTILE(G66:DA66,0.95) -> 763.6851861 | DI66: =SKEW(G66:DA66) -> 0.226214564 | DJ66: =KURT(G66:DA66) -> -0.4632882576
A67: Sch Resource.NumberBusy | B67: DSTAT AVERAGE | C67: Number Busy | D67: Resource | E67: Sch Resource | F67: 0 | G67: 0 | H67: 0 | I67: 0 | J67: 0 | K67: 0 | L67: 0 | M67: 0 | N67: 0 | O67: 0 | P67: 0 | Q67: 0 | R67: 0 | S67: 0 | T67: 0 | U67: 0 | V67: 0 | W67: 0 | X67: 0 | Y67: 0 | Z67: 0 | AA67: 0 | AB67: 0 | AC67: 0 | AD67: 0 | AE67: 0 | AF67: 0 | AG67: 0 | AH67: 0 | AI67: 0 | AJ67: 0 | AK67: 0 | AL67: 0 | AM67: 0 | AN67: 0 | AO67: 0 | AP67: 0 | AQ67: 0 | AR67: 0 | AS67: 0 | AT67: 0 | AU67: 0 | AV67: 0 | AW67: 0 | AX67: 0 | AY67: 0 | AZ67: 0 | BA67: 0 | BB67: 0 | BC67: 0 | BD67: 0 | BE67: 0 | BF67: 0 | BG67: 0 | BH67: 0 | BI67: 0 | BJ67: 0 | BK67: 0 | BL67: 0 | BM67: 0 | BN67: 0 | BO67: 0 | BP67: 0 | BQ67: 0 | BR67: 0 | BS67: 0 | BT67: 0 | BU67: 0 | BV67: 0 | BW67: 0 | BX67: 0 | BY67: 0 | BZ67: 0 | CA67: 0 | CB67: 0 | CC67: 0 | CD67: 0 | CE67: 0 | CF67: 0 | CG67: 0 | CH67: 0 | CI67: 0 | CJ67: 0 | CK67: 0 | CL67: 0 | CM67: 0 | CN67: 0 | CO67: 0 | CP67: 0 | CQ67: 0 | CR67: 0 | CS67: 0 | CT67: 0 | CU67: 0 | CV67: 0 | CW67: 0 | CX67: 0 | CY67: 0 | CZ67: 0 | DA67: 0 | DB67: 0 | DC67: 0 | DD67: 0 | DE67: 0 | DG67: 0 | DH67: 0
A68: Sch Resource.NumberScheduled | B68: DSTAT AVERAGE | C68: Number Scheduled | D68: Resource | E68: Sch Resource | F68: 0 | G68: 0 | H68: 0 | I68: 0 | J68: 0 | K68: 0 | L68: 0 | M68: 0 | N68: 0 | O68: 0 | P68: 0 | Q68: 0 | R68: 0 | S68: 0 | T68: 0 | U68: 0 | V68: 0 | W68: 0 | X68: 0 | Y68: 0 | Z68: 0 | AA68: 0 | AB68: 0 | AC68: 0 | AD68: 0 | AE68: 0 | AF68: 0 | AG68: 0 | AH68: 0 | AI68: 0 | AJ68: 0 | AK68: 0 | AL68: 0 | AM68: 0 | AN68: 0 | AO68: 0 | AP68: 0 | AQ68: 0 | AR68: 0 | AS68: 0 | AT68: 0 | AU68: 0 | AV68: 0 | AW68: 0 | AX68: 0 | AY68: 0 | AZ68: 0 | BA68: 0 | BB68: 0 | BC68: 0 | BD68: 0 | BE68: 0 | BF68: 0 | BG68: 0 | BH68: 0 | BI68: 0 | BJ68: 0 | BK68: 0 | BL68: 0 | BM68: 0 | BN68: 0 | BO68: 0 | BP68: 0 | BQ68: 0 | BR68: 0 | BS68: 0 | BT68: 0 | BU68: 0 | BV68: 0 | BW68: 0 | BX68: 0 | BY68: 0 | BZ68: 0 | CA68: 0 | CB68: 0 | CC68: 0 | CD68: 0 | CE68: 0 | CF68: 0 | CG68: 0 | CH68: 0 | CI68: 0 | CJ68: 0 | CK68: 0 | CL68: 0 | CM68: 0 | CN68: 0 | CO68: 0 | CP68: 0 | CQ68: 0 | CR68: 0 | CS68: 0 | CT68: 0 | CU68: 0 | CV68: 0 | CW68: 0 | CX68: 0 | CY68: 0 | CZ68: 0 | DA68: 0 | DB68: 0 | DC68: 0 | DD68: 0 | DE68: 0 | DG68: 0 | DH68: 0
A69: Sch Resource.Utilization | B69: DSTAT AVERAGE | C69: Instantaneous Utilization | D69: Resource | E69: Sch Resource | F69: 0 | G69: 0 | H69: 0 | I69: 0 | J69: 0 | K69: 0 | L69: 0 | M69: 0 | N69: 0 | O69: 0 | P69: 0 | Q69: 0 | R69: 0 | S69: 0 | T69: 0 | U69: 0 | V69: 0 | W69: 0 | X69: 0 | Y69: 0 | Z69: 0 | AA69: 0 | AB69: 0 | AC69: 0 | AD69: 0 | AE69: 0 | AF69: 0 | AG69: 0 | AH69: 0 | AI69: 0 | AJ69: 0 | AK69: 0 | AL69: 0 | AM69: 0 | AN69: 0 | AO69: 0 | AP69: 0 | AQ69: 0 | AR69: 0 | AS69: 0 | AT69: 0 | AU69: 0 | AV69: 0 | AW69: 0 | AX69: 0 | AY69: 0 | AZ69: 0 | BA69: 0 | BB69: 0 | BC69: 0 | BD69: 0 | BE69: 0 | BF69: 0 | BG69: 0 | BH69: 0 | BI69: 0 | BJ69: 0 | BK69: 0 | BL69: 0 | BM69: 0 | BN69: 0 | BO69: 0 | BP69: 0 | BQ69: 0 | BR69: 0 | BS69: 0 | BT69: 0 | BU69: 0 | BV69: 0 | BW69: 0 | BX69: 0 | BY69: 0 | BZ69: 0 | CA69: 0 | CB69: 0 | CC69: 0 | CD69: 0 | CE69: 0 | CF69: 0 | CG69: 0 | CH69: 0 | CI69: 0 | CJ69: 0 | CK69: 0 | CL69: 0 | CM69: 0 | CN69: 0 | CO69: 0 | CP69: 0 | CQ69: 0 | CR69: 0 | CS69: 0 | CT69: 0 | CU69: 0 | CV69: 0 | CW69: 0 | CX69: 0 | CY69: 0 | CZ69: 0 | DA69: 0 | DB69: 0 | DC69: 0 | DD69: 0 | DE69: 0 | DG69: 0 | DH69: 0
A70: Seize Watcher.Queue.NumberInQueue | B70: DSTAT AVERAGE | C70: Number Waiting | D70: Queue | E70: Seize Watcher.Queue | F70: 0 | G70: 0 | H70: 0 | I70: 0 | J70: 0 | K70: 0 | L70: 0 | M70: 0 | N70: 0 | O70: 0 | P70: 0 | Q70: 0 | R70: 0 | S70: 0 | T70: 0 | U70: 0 | V70: 0 | W70: 0 | X70: 0 | Y70: 0 | Z70: 0 | AA70: 0 | AB70: 0 | AC70: 0 | AD70: 0 | AE70: 0 | AF70: 0 | AG70: 0 | AH70: 0 | AI70: 0 | AJ70: 0 | AK70: 0 | AL70: 0 | AM70: 0 | AN70: 0 | AO70: 0 | AP70: 0 | AQ70: 0 | AR70: 0 | AS70: 0 | AT70: 0 | AU70: 0 | AV70: 0 | AW70: 0 | AX70: 0 | AY70: 0 | AZ70: 0 | BA70: 0 | BB70: 0 | BC70: 0 | BD70: 0 | BE70: 0 | BF70: 0 | BG70: 0 | BH70: 0 | BI70: 0 | BJ70: 0 | BK70: 0 | BL70: 0 | BM70: 0 | BN70: 0 | BO70: 0 | BP70: 0 | BQ70: 0 | BR70: 0 | BS70: 0 | BT70: 0 | BU70: 0 | BV70: 0 | BW70: 0 | BX70: 0 | BY70: 0 | BZ70: 0 | CA70: 0 | CB70: 0 | CC70: 0 | CD70: 0 | CE70: 0 | CF70: 0 | CG70: 0 | CH70: 0 | CI70: 0 | CJ70: 0 | CK70: 0 | CL70: 0 | CM70: 0 | CN70: 0 | CO70: 0 | CP70: 0 | CQ70: 0 | CR70: 0 | CS70: 0 | CT70: 0 | CU70: 0 | CV70: 0 | CW70: 0 | CX70: 0 | CY70: 0 | CZ70: 0 | DA70: 0 | DB70: 0 | DC70: 0 | DD70: 0 | DE70: 0 | DG70: 0 | DH70: 0
A71: Seize Watcher.Queue.WaitingTime | B71: TALLY AVERAGE | C71: Waiting Time | D71: Queue | E71: Seize Watcher.Queue | F71: 0 | G71: 0 | H71: 0 | I71: 0 | J71: 0 | K71: 0 | L71: 0 | M71: 0 | N71: 0 | O71: 0 | P71: 0 | Q71: 0 | R71: 0 | S71: 0 | T71: 0 | U71: 0 | V71: 0 | W71: 0 | X71: 0 | Y71: 0 | Z71: 0 | AA71: 0 | AB71: 0 | AC71: 0 | AD71: 0 | AE71: 0 | AF71: 0 | AG71: 0 | AH71: 0 | AI71: 0 | AJ71: 0 | AK71: 0 | AL71: 0 | AM71: 0 | AN71: 0 | AO71: 0 | AP71: 0 | AQ71: 0 | AR71: 0 | AS71: 0 | AT71: 0 | AU71: 0 | AV71: 0 | AW71: 0 | AX71: 0 | AY71: 0 | AZ71: 0 | BA71: 0 | BB71: 0 | BC71: 0 | BD71: 0 | BE71: 0 | BF71: 0 | BG71: 0 | BH71: 0 | BI71: 0 | BJ71: 0 | BK71: 0 | BL71: 0 | BM71: 0 | BN71: 0 | BO71: 0 | BP71: 0 | BQ71: 0 | BR71: 0 | BS71: 0 | BT71: 0 | BU71: 0 | BV71: 0 | BW71: 0 | BX71: 0 | BY71: 0 | BZ71: 0 | CA71: 0 | CB71: 0 | CC71: 0 | CD71: 0 | CE71: 0 | CF71: 0 | CG71: 0 | CH71: 0 | CI71: 0 | CJ71: 0 | CK71: 0 | CL71: 0 | CM71: 0 | CN71: 0 | CO71: 0 | CP71: 0 | CQ71: 0 | CR71: 0 | CS71: 0 | CT71: 0 | CU71: 0 | CV71: 0 | CW71: 0 | CX71: 0 | CY71: 0 | CZ71: 0 | DA71: 0 | DB71: 0 | DC71: 0 | DD71: 0 | DE71: 0 | DG71: 0 | DH71: 0
A72: Time in Clinic ADA | B72: TALLY AVERAGE | C72: None | D72: User Specified | E72: Time in Clinic ADA | F72: 31.06124922 | G72: 30.88625058 | H72: 30.72221297 | I72: 30.68425552 | J72: 30.73861412 | K72: 30.85888687 | L72: 30.86673321 | M72: 30.90568086 | N72: 30.74368433 | O72: 30.83944838 | P72: 30.96402969 | Q72: 30.84559244 | R72: 30.71885077 | S72: 30.96491274 | T72: 30.84472035 | U72: 30.84420554 | V72: 30.82272484 | W72: 31.13494937 | X72: 31.19699843 | Y72: 31.03984223 | Z72: 31.39264031 | AA72: 30.8572605 | AB72: 30.86201207 | AC72: 30.57769678 | AD72: 30.95006997 | AE72: 31.26829137 | AF72: 30.70768199 | AG72: 31.30567398 | AH72: 30.91475582 | AI72: 30.72048793 | AJ72: 30.93880767 | AK72: 30.89442825 | AL72: 30.76374166 | AM72: 30.69604875 | AN72: 30.80662214 | AO72: 31.03807088 | AP72: 30.8619738 | AQ72: 31.02827456 | AR72: 30.83135927 | AS72: 30.74269861 | AT72: 30.72623233 | AU72: 30.44955262 | AV72: 31.44075912 | AW72: 30.8339108 | AX72: 30.83036158 | AY72: 30.80635011 | AZ72: 31.19716213 | BA72: 30.89962242 | BB72: 31.02422245 | BC72: 30.63687109 | BD72: 31.76170853 | BE72: 30.8477062 | BF72: 30.84826958 | BG72: 30.80220333 | BH72: 30.84100477 | BI72: 30.76414911 | BJ72: 31.45935728 | BK72: 31.29662411 | BL72: 30.79965699 | BM72: 31.15420911 | BN72: 30.79661468 | BO72: 30.84138687 | BP72: 30.95869563 | BQ72: 30.92599771 | BR72: 30.80408476 | BS72: 31.1167966 | BT72: 30.97089547 | BU72: 31.02073996 | BV72: 30.82024891 | BW72: 30.72081672 | BX72: 31.84525234 | BY72: 31.11453201 | BZ72: 31.12356749 | CA72: 30.87681486 | CB72: 30.87693478 | CC72: 30.82935346 | CD72: 30.99823956 | CE72: 31.13665128 | CF72: 30.98918366 | CG72: 30.76209076 | CH72: 31.87194273 | CI72: 30.50724483 | CJ72: 30.51570498 | CK72: 31.15283461 | CL72: 31.29411152 | CM72: 31.17650486 | CN72: 31.42696287 | CO72: 31.11822899 | CP72: 30.87514799 | CQ72: 31.37384118 | CR72: 30.69846134 | CS72: 30.92940583 | CT72: 30.82354566 | CU72: 30.9102049 | CV72: 31.39833324 | CW72: 31.17323984 | CX72: 30.8117799 | CY72: 30.81292616 | CZ72: 30.87991567 | DA72: 30.75702209 | DB72: 30.95189273 | DC72: 31.87194273 | DD72: 30.44955262 | DE72: 30.87514799 | DF72: 0.05101722902 | DG72: 30.67951708 | DH72: 31.42834249 | DI72: 1.317941035 | DJ72: 2.369432767
A73: Time in Clinic nonADA | B73: TALLY AVERAGE | C73: None | D73: User Specified | E73: Time in Clinic nonADA | F73: 25.27016479 | G73: 25.45743513 | H73: 25.60187398 | I73: 24.9717354 | J73: 25.17570522 | K73: 25.35743804 | L73: 25.36544749 | M73: 25.14685736 | N73: 25.34124364 | O73: 25.128893 | P73: 25.16849886 | Q73: 25.005373 | R73: 25.13411543 | S73: 25.19481164 | T73: 25.05916116 | U73: 25.73967023 | V73: 25.16092847 | W73: 25.68239749 | X73: 26.11282541 | Y73: 25.55554397 | Z73: 26.21713718 | AA73: 25.04650783 | AB73: 25.18971219 | AC73: 25.13583782 | AD73: 25.59949711 | AE73: 25.48326291 | AF73: 25.19588349 | AG73: 25.28526481 | AH73: 25.11900721 | AI73: 25.20910872 | AJ73: 25.51062373 | AK73: 25.39563175 | AL73: 25.37217795 | AM73: 25.33142503 | AN73: 25.22155993 | AO73: 25.51634464 | AP73: 25.10868548 | AQ73: 25.5850756 | AR73: 25.49877068 | AS73: 25.12592407 | AT73: 25.20475847 | AU73: 24.93027862 | AV73: 25.89334983 | AW73: 25.15174839 | AX73: 25.44416106 | AY73: 25.03542872 | AZ73: 25.91753843 | BA73: 25.99812389 | BB73: 25.42999023 | BC73: 25.12362251 | BD73: 26.9939729 | BE73: 25.27478869 | BF73: 25.20656752 | BG73: 25.26954378 | BH73: 25.43478022 | BI73: 25.0171513 | BJ73: 25.82091933 | BK73: 25.44095354 | BL73: 25.33096694 | BM73: 25.68674531 | BN73: 25.32796998 | BO73: 25.32546336 | BP73: 25.85403505 | BQ73: 25.66918252 | BR73: 25.06295576 | BS73: 25.30190545 | BT73: 25.50984431 | BU73: 25.09634788 | BV73: 25.45464719 | BW73: 25.18028907 | BX73: 26.28796376 | BY73: 25.58064457 | BZ73: 25.228749 | CA73: 24.93016849 | CB73: 25.53997486 | CC73: 25.26243375 | CD73: 25.2860311 | CE73: 25.51254339 | CF73: 25.29063913 | CG73: 25.13869852 | CH73: 26.35105616 | CI73: 25.12765413 | CJ73: 25.13439753 | CK73: 25.36035166 | CL73: 25.3935428 | CM73: 25.97944084 | CN73: 26.14617442 | CO73: 25.67092586 | CP73: 25.43911192 | CQ73: 26.29639537 | CR73: 25.47848076 | CS73: 25.67475522 | CT73: 25.18944123 | CU73: 25.17328925 | CV73: 25.23866687 | CW73: 25.41646321 | CX73: 25.32277127 | CY73: 25.12441404 | CZ73: 25.41438531 | DA73: 25.32603032 | DB73: 25.41627291 | DC73: 26.9939729 | DD73: 24.93016849 | DE73: 25.33096694 | DF73: 0.06917470112 | DG73: 25.03360098 | DH73: 26.1532707 | DI73: 1.649890161 | DJ73: 3.698024675
A74: Vacc Resource.NumberBusy | B74: DSTAT AVERAGE | C74: Number Busy | D74: Resource | E74: Vacc Resource | F74: 44.047847 | G74: 41.4460253 | H74: 43.68098517 | I74: 41.95336806 | J74: 41.74029844 | K74: 42.36623829 | L74: 44.74036521 | M74: 41.58574406 | N74: 43.32375075 | O74: 43.67778135 | P74: 44.14307009 | Q74: 43.08946634 | R74: 41.79292908 | S74: 43.54394858 | T74: 42.24652696 | U74: 43.43369735 | V74: 39.07365807 | W74: 43.77246087 | X74: 45.62828728 | Y74: 41.10166262 | Z74: 44.75923625 | AA74: 41.15006644 | AB74: 42.77608239 | AC74: 42.74119242 | AD74: 41.64800671 | AE74: 44.18549736 | AF74: 42.54827573 | AG74: 44.81041687 | AH74: 43.55374108 | AI74: 42.41969826 | AJ74: 44.76775911 | AK74: 42.69786807 | AL74: 43.6727152 | AM74: 43.2987985 | AN74: 43.53684233 | AO74: 43.72504962 | AP74: 43.87806266 | AQ74: 41.26464608 | AR74: 44.31920297 | AS74: 44.1412319 | AT74: 43.31610515 | AU74: 39.08798355 | AV74: 42.69162394 | AW74: 42.09234231 | AX74: 43.51896744 | AY74: 42.61416612 | AZ74: 44.91461712 | BA74: 47.20551174 | BB74: 45.37699449 | BC74: 43.11901944 | BD74: 46.33102339 | BE74: 43.36074518 | BF74: 41.8306964 | BG74: 42.92732842 | BH74: 44.05880873 | BI74: 39.39668984 | BJ74: 45.7872953 | BK74: 42.49788366 | BL74: 44.78629032 | BM74: 44.3889911 | BN74: 43.06305375 | BO74: 41.69520615 | BP74: 44.20415895 | BQ74: 44.98771427 | BR74: 42.99866785 | BS74: 42.51753196 | BT74: 44.44890332 | BU74: 42.66744067 | BV74: 43.14840406 | BW74: 42.9500682 | BX74: 44.50213858 | BY74: 43.84168219 | BZ74: 42.36595125 | CA74: 43.23185941 | CB74: 42.43312267 | CC74: 41.68778353 | CD74: 42.37672226 | CE74: 44.84158493 | CF74: 41.60913035 | CG74: 40.88447493 | CH74: 45.71234405 | CI74: 41.07528209 | CJ74: 43.28234634 | CK74: 45.70505543 | CL74: 40.91830983 | CM74: 43.72771741 | CN74: 46.88646066 | CO74: 41.83198329 | CP74: 44.35371669 | CQ74: 45.00316757 | CR74: 44.194278 | CS74: 44.0873397 | CT74: 43.80486239 | CU74: 43.98436682 | CV74: 43.8117737 | CW74: 44.28434984 | CX74: 44.35853049 | CY74: 45.11485263 | CZ74: 44.05662062 | DA74: 42.98106216 | DB74: 43.30472481 | DC74: 47.20551174 | DD74: 39.07365807 | DE74: 43.36074518 | DF74: 0.2964819311 | DG74: 41.05958486 | DH74: 45.70578429 | DI74: -0.2433426629 | DJ74: 0.5926027136
A75: Vacc Resource.NumberScheduled | B75: DSTAT AVERAGE | C75: Number Scheduled | D75: Resource | E75: Vacc Resource | F75: 62 | G75: 62 | H75: 62 | I75: 62 | J75: 62 | K75: 62 | L75: 62 | M75: 62 | N75: 62 | O75: 62 | P75: 62 | Q75: 62 | R75: 62 | S75: 62 | T75: 62 | U75: 62 | V75: 62 | W75: 62 | X75: 62 | Y75: 62 | Z75: 62 | AA75: 62 | AB75: 62 | AC75: 62 | AD75: 62 | AE75: 62 | AF75: 62 | AG75: 62 | AH75: 62 | AI75: 62 | AJ75: 62 | AK75: 62 | AL75: 62 | AM75: 62 | AN75: 62 | AO75: 62 | AP75: 62 | AQ75: 62 | AR75: 62 | AS75: 62 | AT75: 62 | AU75: 62 | AV75: 62 | AW75: 62 | AX75: 62 | AY75: 62 | AZ75: 62 | BA75: 62 | BB75: 62 | BC75: 62 | BD75: 62 | BE75: 62 | BF75: 62 | BG75: 62 | BH75: 62 | BI75: 62 | BJ75: 62 | BK75: 62 | BL75: 62 | BM75: 62 | BN75: 62 | BO75: 62 | BP75: 62 | BQ75: 62 | BR75: 62 | BS75: 62 | BT75: 62 | BU75: 62 | BV75: 62 | BW75: 62 | BX75: 62 | BY75: 62 | BZ75: 62 | CA75: 62 | CB75: 62 | CC75: 62 | CD75: 62 | CE75: 62 | CF75: 62 | CG75: 62 | CH75: 62 | CI75: 62 | CJ75: 62 | CK75: 62 | CL75: 62 | CM75: 62 | CN75: 62 | CO75: 62 | CP75: 62 | CQ75: 62 | CR75: 62 | CS75: 62 | CT75: 62 | CU75: 62 | CV75: 62 | CW75: 62 | CX75: 62 | CY75: 62 | CZ75: 62 | DA75: 62 | DB75: 62 | DC75: 62 | DD75: 62 | DE75: 62 | DG75: 62 | DH75: 62
A76: Vacc Resource.Utilization | B76: DSTAT AVERAGE | C76: Instantaneous Utilization | D76: Resource | E76: Vacc Resource | F76: 0.7104491452 | G76: 0.668484279 | H76: 0.7045320188 | I76: 0.6766672268 | J76: 0.6732306199 | K76: 0.683326424 | L76: 0.7216187937 | M76: 0.6707378074 | N76: 0.6987701734 | O76: 0.7044803444 | P76: 0.7119850015 | Q76: 0.6949913926 | R76: 0.6740795014 | S76: 0.7023217514 | T76: 0.6813955961 | U76: 0.7005435057 | V76: 0.6302202914 | W76: 0.7060074335 | X76: 0.7359401175 | Y76: 0.6629300423 | Z76: 0.7219231654 | AA76: 0.663710749 | AB76: 0.6899368128 | AC76: 0.6893740713 | AD76: 0.6717420438 | AE76: 0.7126693123 | AF76: 0.6862625118 | AG76: 0.7227486592 | AH76: 0.7024796948 | AI76: 0.6841886817 | AJ76: 0.7220606308 | AK76: 0.6886752914 | AL76: 0.7043986323 | AM76: 0.6983677177 | AN76: 0.7022071344 | AO76: 0.7052427358 | AP76: 0.707710688 | AQ76: 0.6655588077 | AR76: 0.7148258544 | AS76: 0.7119553531 | AT76: 0.6986468572 | AU76: 0.6304513476 | AV76: 0.6885745797 | AW76: 0.678908747 | AX76: 0.7019188297 | AY76: 0.68732526 | AZ76: 0.7244293083 | BA76: 0.7613792216 | BB76: 0.7318870078 | BC76: 0.6954680555 | BD76: 0.7472745708 | BE76: 0.6993668577 | BF76: 0.6746886517 | BG76: 0.6923762649 | BH76: 0.7106259473 | BI76: 0.6354304813 | BJ76: 0.7385047628 | BK76: 0.6854497365 | BL76: 0.7223595213 | BM76: 0.7159514693 | BN76: 0.6945653831 | BO76: 0.672503325 | BP76: 0.7129703057 | BQ76: 0.7256082947 | BR76: 0.6935269009 | BS76: 0.6857666446 | BT76: 0.7169177955 | BU76: 0.688184527 | BV76: 0.695942001 | BW76: 0.6927430354 | BX76: 0.7177764288 | BY76: 0.7071239064 | BZ76: 0.6833217944 | CA76: 0.6972880549 | CB76: 0.6844052044 | CC76: 0.6723836053 | CD76: 0.6834955202 | CE76: 0.7232513699 | CF76: 0.6711150056 | CG76: 0.6594270151 | CH76: 0.7372958718 | CI76: 0.6625045498 | CJ76: 0.6981023602 | CK76: 0.7371783133 | CL76: 0.6599727393 | CM76: 0.7052857647 | CN76: 0.7562332364 | CO76: 0.6747094079 | CP76: 0.7153825273 | CQ76: 0.7258575415 | CR76: 0.7128109356 | CS76: 0.7110861242 | CT76: 0.7065300386 | CU76: 0.7094252713 | CV76: 0.7066415112 | CW76: 0.7142637071 | CX76: 0.7154601693 | CY76: 0.7276589134 | CZ76: 0.7105906552 | DA76: 0.693242938 | DB76: 0.6984633034 | DC76: 0.7613792216 | DD76: 0.6302202914 | DE76: 0.6993668577 | DF76: 0.00478196663 | DG76: 0.6622513688 | DH76: 0.7371900692 | DI76: -0.2433426629 | DJ76: 0.5926027136
A77: Verify Appt Resource.NumberBusy | B77: DSTAT AVERAGE | C77: Number Busy | D77: Resource | E77: Verify Appt Resource | F77: 0 | G77: 0 | H77: 0 | I77: 0 | J77: 0 | K77: 0 | L77: 0 | M77: 0 | N77: 0 | O77: 0 | P77: 0 | Q77: 0 | R77: 0 | S77: 0 | T77: 0 | U77: 0 | V77: 0 | W77: 0 | X77: 0 | Y77: 0 | Z77: 0 | AA77: 0 | AB77: 0 | AC77: 0 | AD77: 0 | AE77: 0 | AF77: 0 | AG77: 0 | AH77: 0 | AI77: 0 | AJ77: 0 | AK77: 0 | AL77: 0 | AM77: 0 | AN77: 0 | AO77: 0 | AP77: 0 | AQ77: 0 | AR77: 0 | AS77: 0 | AT77: 0 | AU77: 0 | AV77: 0 | AW77: 0 | AX77: 0 | AY77: 0 | AZ77: 0 | BA77: 0 | BB77: 0 | BC77: 0 | BD77: 0 | BE77: 0 | BF77: 0 | BG77: 0 | BH77: 0 | BI77: 0 | BJ77: 0 | BK77: 0 | BL77: 0 | BM77: 0 | BN77: 0 | BO77: 0 | BP77: 0 | BQ77: 0 | BR77: 0 | BS77: 0 | BT77: 0 | BU77: 0 | BV77: 0 | BW77: 0 | BX77: 0 | BY77: 0 | BZ77: 0 | CA77: 0 | CB77: 0 | CC77: 0 | CD77: 0 | CE77: 0 | CF77: 0 | CG77: 0 | CH77: 0 | CI77: 0 | CJ77: 0 | CK77: 0 | CL77: 0 | CM77: 0 | CN77: 0 | CO77: 0 | CP77: 0 | CQ77: 0 | CR77: 0 | CS77: 0 | CT77: 0 | CU77: 0 | CV77: 0 | CW77: 0 | CX77: 0 | CY77: 0 | CZ77: 0 | DA77: 0 | DB77: 0 | DC77: 0 | DD77: 0 | DE77: 0 | DG77: 0 | DH77: 0
A78: Verify Appt Resource.NumberScheduled | B78: DSTAT AVERAGE | C78: Number Scheduled | D78: Resource | E78: Verify Appt Resource | F78: 0 | G78: 0 | H78: 0 | I78: 0 | J78: 0 | K78: 0 | L78: 0 | M78: 0 | N78: 0 | O78: 0 | P78: 0 | Q78: 0 | R78: 0 | S78: 0 | T78: 0 | U78: 0 | V78: 0 | W78: 0 | X78: 0 | Y78: 0 | Z78: 0 | AA78: 0 | AB78: 0 | AC78: 0 | AD78: 0 | AE78: 0 | AF78: 0 | AG78: 0 | AH78: 0 | AI78: 0 | AJ78: 0 | AK78: 0 | AL78: 0 | AM78: 0 | AN78: 0 | AO78: 0 | AP78: 0 | AQ78: 0 | AR78: 0 | AS78: 0 | AT78: 0 | AU78: 0 | AV78: 0 | AW78: 0 | AX78: 0 | AY78: 0 | AZ78: 0 | BA78: 0 | BB78: 0 | BC78: 0 | BD78: 0 | BE78: 0 | BF78: 0 | BG78: 0 | BH78: 0 | BI78: 0 | BJ78: 0 | BK78: 0 | BL78: 0 | BM78: 0 | BN78: 0 | BO78: 0 | BP78: 0 | BQ78: 0 | BR78: 0 | BS78: 0 | BT78: 0 | BU78: 0 | BV78: 0 | BW78: 0 | BX78: 0 | BY78: 0 | BZ78: 0 | CA78: 0 | CB78: 0 | CC78: 0 | CD78: 0 | CE78: 0 | CF78: 0 | CG78: 0 | CH78: 0 | CI78: 0 | CJ78: 0 | CK78: 0 | CL78: 0 | CM78: 0 | CN78: 0 | CO78: 0 | CP78: 0 | CQ78: 0 | CR78: 0 | CS78: 0 | CT78: 0 | CU78: 0 | CV78: 0 | CW78: 0 | CX78: 0 | CY78: 0 | CZ78: 0 | DA78: 0 | DB78: 0 | DC78: 0 | DD78: 0 | DE78: 0 | DG78: 0 | DH78: 0
A79: Verify Appt Resource.Utilization | B79: DSTAT AVERAGE | C79: Instantaneous Utilization | D79: Resource | E79: Verify Appt Resource | F79: 0 | G79: 0 | H79: 0 | I79: 0 | J79: 0 | K79: 0 | L79: 0 | M79: 0 | N79: 0 | O79: 0 | P79: 0 | Q79: 0 | R79: 0 | S79: 0 | T79: 0 | U79: 0 | V79: 0 | W79: 0 | X79: 0 | Y79: 0 | Z79: 0 | AA79: 0 | AB79: 0 | AC79: 0 | AD79: 0 | AE79: 0 | AF79: 0 | AG79: 0 | AH79: 0 | AI79: 0 | AJ79: 0 | AK79: 0 | AL79: 0 | AM79: 0 | AN79: 0 | AO79: 0 | AP79: 0 | AQ79: 0 | AR79: 0 | AS79: 0 | AT79: 0 | AU79: 0 | AV79: 0 | AW79: 0 | AX79: 0 | AY79: 0 | AZ79: 0 | BA79: 0 | BB79: 0 | BC79: 0 | BD79: 0 | BE79: 0 | BF79: 0 | BG79: 0 | BH79: 0 | BI79: 0 | BJ79: 0 | BK79: 0 | BL79: 0 | BM79: 0 | BN79: 0 | BO79: 0 | BP79: 0 | BQ79: 0 | BR79: 0 | BS79: 0 | BT79: 0 | BU79: 0 | BV79: 0 | BW79: 0 | BX79: 0 | BY79: 0 | BZ79: 0 | CA79: 0 | CB79: 0 | CC79: 0 | CD79: 0 | CE79: 0 | CF79: 0 | CG79: 0 | CH79: 0 | CI79: 0 | CJ79: 0 | CK79: 0 | CL79: 0 | CM79: 0 | CN79: 0 | CO79: 0 | CP79: 0 | CQ79: 0 | CR79: 0 | CS79: 0 | CT79: 0 | CU79: 0 | CV79: 0 | CW79: 0 | CX79: 0 | CY79: 0 | CZ79: 0 | DA79: 0 | DB79: 0 | DC79: 0 | DD79: 0 | DE79: 0 | DG79: 0 | DH79: 0
A80: Waiting Room Resource.NumberBusy | B80: DSTAT AVERAGE | C80: Number Busy | D80: Resource | E80: Waiting Room Resource | F80: 2.408378761 | G80: 2.255972624 | H80: 2.357746163 | I80: 2.282066413 | J80: 2.262803708 | K80: 2.333084516 | L80: 2.448220748 | M80: 2.272403363 | N80: 2.381004119 | O80: 2.398927101 | P80: 2.426741751 | Q80: 2.335083804 | R80: 2.322849938 | S80: 2.367390043 | T80: 2.317626745 | U80: 2.375940094 | V80: 2.154959881 | W80: 2.387749575 | X80: 2.475109487 | Y80: 2.236236921 | Z80: 2.431703236 | AA80: 2.269565787 | AB80: 2.327459878 | AC80: 2.324286817 | AD80: 2.305642136 | AE80: 2.409796219 | AF80: 2.319932781 | AG80: 2.453297229 | AH80: 2.371995907 | AI80: 2.335608408 | AJ80: 2.454544771 | AK80: 2.325973535 | AL80: 2.372167904 | AM80: 2.324207441 | AN80: 2.376440643 | AO80: 2.403674546 | AP80: 2.384481619 | AQ80: 2.265677367 | AR80: 2.432516656 | AS80: 2.391960178 | AT80: 2.342155444 | AU80: 2.125995581 | AV80: 2.368442532 | AW80: 2.290685309 | AX80: 2.357772797 | AY80: 2.340936945 | AZ80: 2.457097047 | BA80: 2.548380051 | BB80: 2.466420523 | BC80: 2.367526228 | BD80: 2.525662011 | BE80: 2.374801645 | BF80: 2.297125165 | BG80: 2.354086156 | BH80: 2.401401164 | BI80: 2.122039691 | BJ80: 2.522112197 | BK80: 2.315248814 | BL80: 2.449903471 | BM80: 2.423421611 | BN80: 2.328484887 | BO80: 2.2333725 | BP80: 2.406253773 | BQ80: 2.461658393 | BR80: 2.314816389 | BS80: 2.309647126 | BT80: 2.405915955 | BU80: 2.347758382 | BV80: 2.338198741 | BW80: 2.324012469 | BX80: 2.475082201 | BY80: 2.399191576 | BZ80: 2.335906363 | CA80: 2.385077282 | CB80: 2.311686402 | CC80: 2.33012249 | CD80: 2.318361605 | CE80: 2.458608431 | CF80: 2.281696091 | CG80: 2.244662221 | CH80: 2.496180344 | CI80: 2.241910046 | CJ80: 2.345368354 | CK80: 2.485936721 | CL80: 2.250882525 | CM80: 2.370190501 | CN80: 2.566390685 | CO80: 2.279009622 | CP80: 2.409865431 | CQ80: 2.452823214 | CR80: 2.397673307 | CS80: 2.41794125 | CT80: 2.372528385 | CU80: 2.376328508 | CV80: 2.391831919 | CW80: 2.430685022 | CX80: 2.412936016 | CY80: 2.477494171 | CZ80: 2.408315099 | DA80: 2.357006318 | DB80: 2.364402779 | DC80: 2.566390685 | DD80: 2.122039691 | DE80: 2.368442532 | DF80: 0.01612773823 | DG80: 2.241342733 | DH80: 2.486961084 | DI80: -0.2805127718 | DJ80: 0.707011592
A81: Waiting Room Resource.NumberScheduled | B81: DSTAT AVERAGE | C81: Number Scheduled | D81: Resource | E81: Waiting Room Resource | F81: 14 | G81: 14 | H81: 14 | I81: 14 | J81: 14 | K81: 14 | L81: 14 | M81: 14 | N81: 14 | O81: 14 | P81: 14 | Q81: 14 | R81: 14 | S81: 14 | T81: 14 | U81: 14 | V81: 14 | W81: 14 | X81: 14 | Y81: 14 | Z81: 14 | AA81: 14 | AB81: 14 | AC81: 14 | AD81: 14 | AE81: 14 | AF81: 14 | AG81: 14 | AH81: 14 | AI81: 14 | AJ81: 14 | AK81: 14 | AL81: 14 | AM81: 14 | AN81: 14 | AO81: 14 | AP81: 14 | AQ81: 14 | AR81: 14 | AS81: 14 | AT81: 14 | AU81: 14 | AV81: 14 | AW81: 14 | AX81: 14 | AY81: 14 | AZ81: 14 | BA81: 14 | BB81: 14 | BC81: 14 | BD81: 14 | BE81: 14 | BF81: 14 | BG81: 14 | BH81: 14 | BI81: 14 | BJ81: 14 | BK81: 14 | BL81: 14 | BM81: 14 | BN81: 14 | BO81: 14 | BP81: 14 | BQ81: 14 | BR81: 14 | BS81: 14 | BT81: 14 | BU81: 14 | BV81: 14 | BW81: 14 | BX81: 14 | BY81: 14 | BZ81: 14 | CA81: 14 | CB81: 14 | CC81: 14 | CD81: 14 | CE81: 14 | CF81: 14 | CG81: 14 | CH81: 14 | CI81: 14 | CJ81: 14 | CK81: 14 | CL81: 14 | CM81: 14 | CN81: 14 | CO81: 14 | CP81: 14 | CQ81: 14 | CR81: 14 | CS81: 14 | CT81: 14 | CU81: 14 | CV81: 14 | CW81: 14 | CX81: 14 | CY81: 14 | CZ81: 14 | DA81: 14 | DB81: 14 | DC81: 14 | DD81: 14 | DE81: 14 | DG81: 14 | DH81: 14
A82: Waiting Room Resource.Utilization | B82: DSTAT AVERAGE | C82: Instantaneous Utilization | D82: Resource | E82: Waiting Room Resource | F82: 0.1720270543 | G82: 0.1611409017 | H82: 0.1684104402 | I82: 0.1630047438 | J82: 0.1616288363 | K82: 0.166648894 | L82: 0.1748729106 | M82: 0.1623145259 | N82: 0.1700717228 | O82: 0.1713519358 | P82: 0.1733386965 | Q82: 0.1667917003 | R82: 0.1659178527 | S82: 0.1690992888 | T82: 0.1655447675 | U82: 0.1697100067 | V82: 0.1539257058 | W82: 0.1705535411 | X82: 0.1767935348 | Y82: 0.1597312086 | Z82: 0.1736930883 | AA82: 0.162111842 | AB82: 0.1662471341 | AC82: 0.1660204869 | AD82: 0.164688724 | AE82: 0.1721283014 | AF82: 0.1657094844 | AG82: 0.1752355163 | AH82: 0.1694282791 | AI82: 0.166829172 | AJ82: 0.1753246265 | AK82: 0.1661409668 | AL82: 0.1694405645 | AM82: 0.1660148172 | AN82: 0.1697457602 | AO82: 0.171691039 | AP82: 0.1703201157 | AQ82: 0.1618340977 | AR82: 0.1737511897 | AS82: 0.1708542985 | AT82: 0.1672968175 | AU82: 0.1518568272 | AV82: 0.1691744666 | AW82: 0.1636203792 | AX82: 0.1684123426 | AY82: 0.1672097818 | AZ82: 0.1755069319 | BA82: 0.1820271465 | BB82: 0.1761728945 | BC82: 0.1691090163 | BD82: 0.1804044294 | BE82: 0.169628689 | BF82: 0.1640803689 | BG82: 0.1681490111 | BH82: 0.1715286546 | BI82: 0.1515742636 | BJ82: 0.1801508712 | BK82: 0.1653749153 | BL82: 0.174993105 | BM82: 0.1731015436 | BN82: 0.166320349 | BO82: 0.1595266071 | BP82: 0.1718752695 | BQ82: 0.1758327423 | BR82: 0.1653440278 | BS82: 0.1649747947 | BT82: 0.1718511396 | BU82: 0.1676970273 | BV82: 0.1670141958 | BW82: 0.1660008906 | BX82: 0.1767915858 | BY82: 0.1713708269 | BZ82: 0.1668504545 | CA82: 0.170362663 | CB82: 0.1651204573 | CC82: 0.1664373207 | CD82: 0.1655972575 | CE82: 0.1756148879 | CF82: 0.1629782922 | CG82: 0.1603330158 | CH82: 0.178298596 | CI82: 0.1601364318 | CJ82: 0.167526311 | CK82: 0.1775669087 | CL82: 0.1607773232 | CM82: 0.1692993215 | CN82: 0.1833136203 | CO82: 0.1627864016 | CP82: 0.1721332451 | CQ82: 0.1752016581 | CR82: 0.171262379 | CS82: 0.1727100893 | CT82: 0.1694663132 | CU82: 0.1697377506 | CV82: 0.1708451371 | CW82: 0.1736203587 | CX82: 0.1723525726 | CY82: 0.1769638694 | CZ82: 0.172022507 | DA82: 0.1683575941 | DB82: 0.1688859128 | DC82: 0.1833136203 | DD82: 0.1515742636 | DE82: 0.1691744666 | DF82: 0.001151981302 | DG82: 0.1600959095 | DH82: 0.1776400774 | DI82: -0.2805127718 | DJ82: 0.707011592
A83: Watch Resource Chair.NumberBusy | B83: DSTAT AVERAGE | C83: Number Busy | D83: Resource | E83: Watch Resource Chair | F83: 131.8511983 | G83: 126.4037423 | H83: 132.3501592 | I83: 125.9893641 | J83: 126.5581002 | K83: 128.8144053 | L83: 135.0208742 | M83: 125.1132888 | N83: 130.7306044 | O83: 131.8414356 | P83: 132.4835374 | Q83: 130.6530741 | R83: 126.7921933 | S83: 130.8885847 | T83: 127.1984866 | U83: 132.0770822 | V83: 117.7306365 | W83: 131.8363489 | X83: 138.4586336 | Y83: 124.2169047 | Z83: 135.6564178 | AA83: 124.6603531 | AB83: 129.238487 | AC83: 129.364026 | AD83: 127.4943496 | AE83: 133.0519399 | AF83: 128.2818547 | AG83: 135.9884023 | AH83: 131.4381578 | AI83: 128.1099966 | AJ83: 135.1419719 | AK83: 128.7725539 | AL83: 132.6299427 | AM83: 130.342637 | AN83: 131.4357952 | AO83: 131.6479744 | AP83: 131.8989041 | AQ83: 125.1142031 | AR83: 135.5234278 | AS83: 133.5076611 | AT83: 131.4774869 | AU83: 117.7774364 | AV83: 130.4951616 | AW83: 126.8621589 | AX83: 131.7104439 | AY83: 129.1748057 | AZ83: 135.870348 | BA83: 141.1135249 | BB83: 136.6433201 | BC83: 130.5157119 | BD83: 139.8364454 | BE83: 131.2853503 | BF83: 128.1410811 | BG83: 129.8626539 | BH83: 132.9238093 | BI83: 118.5790139 | BJ83: 139.8181523 | BK83: 127.301225 | BL83: 135.4704257 | BM83: 133.2958656 | BN83: 129.0131357 | BO83: 125.0691961 | BP83: 133.1168534 | BQ83: 136.6180986 | BR83: 129.2670602 | BS83: 128.6536034 | BT83: 133.9692543 | BU83: 129.2207135 | BV83: 130.3661999 | BW83: 130.6308323 | BX83: 134.9581154 | BY83: 131.996044 | BZ83: 128.0947432 | CA83: 130.6247401 | CB83: 127.0542637 | CC83: 126.1080642 | CD83: 128.134016 | CE83: 135.7195018 | CF83: 126.2676334 | CG83: 123.7196919 | CH83: 137.2392838 | CI83: 125.2061416 | CJ83: 130.35812 | CK83: 138.1240202 | CL83: 123.6779357 | CM83: 132.6448334 | CN83: 142.4263853 | CO83: 126.3838177 | CP83: 133.2865145 | CQ83: 135.7651032 | CR83: 132.4475299 | CS83: 133.7702704 | CT83: 131.5822645 | CU83: 132.2181619 | CV83: 132.0674252 | CW83: 134.3606457 | CX83: 134.1722426 | CY83: 136.431198 | CZ83: 132.3713828 | DA83: 130.0898251 | DB83: 130.8670282 | DC83: 142.4263853 | DD83: 117.7306365 | DE83: 131.2853503 | DF83: 0.8938465281 | DG83: 124.1671834 | DH83: 138.1574816 | DI83: -0.2694124521 | DJ83: 0.7746153289
A84: Watch Resource.NumberBusy | B84: DSTAT AVERAGE | C84: Number Busy | D84: Resource | E84: Watch Resource | F84: 0.9808019233 | G84: 0.9820024003 | H84: 0.9763435958 | I84: 0.9815885119 | J84: 0.9774420091 | K84: 0.9845666756 | L84: 0.986946311 | M84: 0.9803171903 | N84: 0.9826026913 | O84: 0.9853826259 | P84: 0.9903439193 | Q84: 0.986972407 | R84: 0.9845004703 | S84: 0.9796062393 | T84: 0.9803491875 | U84: 0.9825551256 | V84: 0.9820149015 | W84: 0.9809057001 | X84: 0.9775759899 | Y84: 0.988872056 | Z84: 0.9833053262 | AA84: 0.9758486411 | AB84: 0.9813285931 | AC84: 0.9803727969 | AD84: 0.9812990393 | AE84: 0.9851617902 | AF84: 0.982100763 | AG84: 0.982452181 | AH84: 0.9782386542 | AI84: 0.9909523202 | AJ84: 0.9840340242 | AK84: 0.9752252292 | AL84: 0.9817505111 | AM84: 0.9793797759 | AN84: 0.9850083956 | AO84: 0.9742297789 | AP84: 0.9800126859 | AQ84: 0.9799369974 | AR84: 0.9851406944 | AS84: 0.9825896517 | AT84: 0.9819367683 | AU84: 0.9757453152 | AV84: 0.9807004826 | AW84: 0.9884364714 | AX84: 0.9782337247 | AY84: 0.9794246388 | AZ84: 0.98195009 | BA84: 0.9808673325 | BB84: 0.9860537499 | BC84: 0.9817637401 | BD84: 0.9856377673 | BE84: 0.9699188815 | BF84: 0.9831444986 | BG84: 0.9835193854 | BH84: 0.9817321753 | BI84: 0.9751584592 | BJ84: 0.9829138536 | BK84: 0.9764065898 | BL84: 0.9773571482 | BM84: 0.9844279045 | BN84: 0.9829809163 | BO84: 0.9851794596 | BP84: 0.9791481026 | BQ84: 0.9841578742 | BR84: 0.9780491166 | BS84: 0.9865886916 | BT84: 0.985542842 | BU84: 0.981155739 | BV84: 0.9829297607 | BW84: 0.9838406536 | BX84: 0.9828726157 | BY84: 0.9842375887 | BZ84: 0.9787380154 | CA84: 0.9888346671 | CB84: 0.9826265801 | CC84: 0.9818199774 | CD84: 0.9862091494 | CE84: 0.982289082 | CF84: 0.9806359784 | CG84: 0.9778882449 | CH84: 0.9807562196 | CI84: 0.9800892607 | CJ84: 0.9773727753 | CK84: 0.9845067123 | CL84: 0.9789804719 | CM84: 0.9836675338 | CN84: 0.9870402381 | CO84: 0.9823866445 | CP84: 0.9845055445 | CQ84: 0.9781806813 | CR84: 0.9868486604 | CS84: 0.978424885 | CT84: 0.9866866603 | CU84: 0.9852902981 | CV84: 0.9763954329 | CW84: 0.9819169784 | CX84: 0.9878717427 | CY84: 0.9839455756 | CZ84: 0.9828838001 | DA84: 0.9749453185 | DB84: 0.9819495487 | DC84: 0.9909523202 | DD84: 0.9699188815 | DE84: 0.9820149015 | DF84: 0.0007414931222 | DG84: 0.9756933066 | DH84: 0.9879282156 | DI84: -0.2360842499 | DJ84: 0.26284345
A85: Watch Resource.NumberScheduled | B85: DSTAT AVERAGE | C85: Number Scheduled | D85: Resource | E85: Watch Resource | F85: 1 | G85: 1 | H85: 1 | I85: 1 | J85: 1 | K85: 1 | L85: 1 | M85: 1 | N85: 1 | O85: 1 | P85: 1 | Q85: 1 | R85: 1 | S85: 1 | T85: 1 | U85: 1 | V85: 1 | W85: 1 | X85: 1 | Y85: 1 | Z85: 1 | AA85: 1 | AB85: 1 | AC85: 1 | AD85: 1 | AE85: 1 | AF85: 1 | AG85: 1 | AH85: 1 | AI85: 1 | AJ85: 1 | AK85: 1 | AL85: 1 | AM85: 1 | AN85: 1 | AO85: 1 | AP85: 1 | AQ85: 1 | AR85: 1 | AS85: 1 | AT85: 1 | AU85: 1 | AV85: 1 | AW85: 1 | AX85: 1 | AY85: 1 | AZ85: 1 | BA85: 1 | BB85: 1 | BC85: 1 | BD85: 1 | BE85: 1 | BF85: 1 | BG85: 1 | BH85: 1 | BI85: 1 | BJ85: 1 | BK85: 1 | BL85: 1 | BM85: 1 | BN85: 1 | BO85: 1 | BP85: 1 | BQ85: 1 | BR85: 1 | BS85: 1 | BT85: 1 | BU85: 1 | BV85: 1 | BW85: 1 | BX85: 1 | BY85: 1 | BZ85: 1 | CA85: 1 | CB85: 1 | CC85: 1 | CD85: 1 | CE85: 1 | CF85: 1 | CG85: 1 | CH85: 1 | CI85: 1 | CJ85: 1 | CK85: 1 | CL85: 1 | CM85: 1 | CN85: 1 | CO85: 1 | CP85: 1 | CQ85: 1 | CR85: 1 | CS85: 1 | CT85: 1 | CU85: 1 | CV85: 1 | CW85: 1 | CX85: 1 | CY85: 1 | CZ85: 1 | DA85: 1 | DB85: 1 | DC85: 1 | DD85: 1 | DE85: 1 | DG85: 1 | DH85: 1
A86: Watch Resource.Utilization | B86: DSTAT AVERAGE | C86: Instantaneous Utilization | D86: Resource | E86: Watch Resource | F86: 0.9808019233 | G86: 0.9820024003 | H86: 0.9763435958 | I86: 0.9815885119 | J86: 0.9774420091 | K86: 0.9845666756 | L86: 0.986946311 | M86: 0.9803171903 | N86: 0.9826026913 | O86: 0.9853826259 | P86: 0.9903439193 | Q86: 0.986972407 | R86: 0.9845004703 | S86: 0.9796062393 | T86: 0.9803491875 | U86: 0.9825551256 | V86: 0.9820149015 | W86: 0.9809057001 | X86: 0.9775759899 | Y86: 0.988872056 | Z86: 0.9833053262 | AA86: 0.9758486411 | AB86: 0.9813285931 | AC86: 0.9803727969 | AD86: 0.9812990393 | AE86: 0.9851617902 | AF86: 0.982100763 | AG86: 0.982452181 | AH86: 0.9782386542 | AI86: 0.9909523202 | AJ86: 0.9840340242 | AK86: 0.9752252292 | AL86: 0.9817505111 | AM86: 0.9793797759 | AN86: 0.9850083956 | AO86: 0.9742297789 | AP86: 0.9800126859 | AQ86: 0.9799369974 | AR86: 0.9851406944 | AS86: 0.9825896517 | AT86: 0.9819367683 | AU86: 0.9757453152 | AV86: 0.9807004826 | AW86: 0.9884364714 | AX86: 0.9782337247 | AY86: 0.9794246388 | AZ86: 0.98195009 | BA86: 0.9808673325 | BB86: 0.9860537499 | BC86: 0.9817637401 | BD86: 0.9856377673 | BE86: 0.9699188815 | BF86: 0.9831444986 | BG86: 0.9835193854 | BH86: 0.9817321753 | BI86: 0.9751584592 | BJ86: 0.9829138536 | BK86: 0.9764065898 | BL86: 0.9773571482 | BM86: 0.9844279045 | BN86: 0.9829809163 | BO86: 0.9851794596 | BP86: 0.9791481026 | BQ86: 0.9841578742 | BR86: 0.9780491166 | BS86: 0.9865886916 | BT86: 0.985542842 | BU86: 0.981155739 | BV86: 0.9829297607 | BW86: 0.9838406536 | BX86: 0.9828726157 | BY86: 0.9842375887 | BZ86: 0.9787380154 | CA86: 0.9888346671 | CB86: 0.9826265801 | CC86: 0.9818199774 | CD86: 0.9862091494 | CE86: 0.982289082 | CF86: 0.9806359784 | CG86: 0.9778882449 | CH86: 0.9807562196 | CI86: 0.9800892607 | CJ86: 0.9773727753 | CK86: 0.9845067123 | CL86: 0.9789804719 | CM86: 0.9836675338 | CN86: 0.9870402381 | CO86: 0.9823866445 | CP86: 0.9845055445 | CQ86: 0.9781806813 | CR86: 0.9868486604 | CS86: 0.978424885 | CT86: 0.9866866603 | CU86: 0.9852902981 | CV86: 0.9763954329 | CW86: 0.9819169784 | CX86: 0.9878717427 | CY86: 0.9839455756 | CZ86: 0.9828838001 | DA86: 0.9749453185 | DB86: 0.9819495487 | DC86: 0.9909523202 | DD86: 0.9699188815 | DE86: 0.9820149015 | DF86: 0.0007414931222 | DG86: 0.9756933066 | DH86: 0.9879282156 | DI86: -0.2360842499 | DJ86: 0.26284345

Sheet S160M90A15
A1: Statistic Name | B1: Statistic Type | C1: Database Data Type | D1: Database Category | E1: Database Identifier | F1: Rep 1 | G1: Rep 2 | H1: Rep 3 | I1: Rep 4 | J1: Rep 5 | K1: Rep 6 | L1: Rep 7 | M1: Rep 8 | N1: Rep 9 | O1: Rep 10 | P1: Rep 11 | Q1: Rep 12 | R1: Rep 13 | S1: Rep 14 | T1: Rep 15 | U1: Rep 16 | V1: Rep 17 | W1: Rep 18 | X1: Rep 19 | Y1: Rep 20 | Z1: Rep 21 | AA1: Rep 22 | AB1: Rep 23 | AC1: Rep 24 | AD1: Rep 25 | AE1: Rep 26 | AF1: Rep 27 | AG1: Rep 28 | AH1: Rep 29 | AI1: Rep 30 | AJ1: Rep 31 | AK1: Rep 32 | AL1: Rep 33 | AM1: Rep 34 | AN1: Rep 35 | AO1: Rep 36 | AP1: Rep 37 | AQ1: Rep 38 | AR1: Rep 39 | AS1: Rep 40 | AT1: Rep 41 | AU1: Rep 42 | AV1: Rep 43 | AW1: Rep 44 | AX1: Rep 45 | AY1: Rep 46 | AZ1: Rep 47 | BA1: Rep 48 | BB1: Rep 49 | BC1: Rep 50 | BD1: Rep 51 | BE1: Rep 52 | BF1: Rep 53 | BG1: Rep 54 | BH1: Rep 55 | BI1: Rep 56 | BJ1: Rep 57 | BK1: Rep 58 | BL1: Rep 59 | BM1: Rep 60 | BN1: Rep 61 | BO1: Rep 62 | BP1: Rep 63 | BQ1: Rep 64 | BR1: Rep 65 | BS1: Rep 66 | BT1: Rep 67 | BU1: Rep 68 | BV1: Rep 69 | BW1: Rep 70 | BX1: Rep 71 | BY1: Rep 72 | BZ1: Rep 73 | CA1: Rep 74 | CB1: Rep 75 | CC1: Rep 76 | CD1: Rep 77 | CE1: Rep 78 | CF1: Rep 79 | CG1: Rep 80 | CH1: Rep 81 | CI1: Rep 82 | CJ1: Rep 83 | CK1: Rep 84 | CL1: Rep 85 | CM1: Rep 86 | CN1: Rep 87 | CO1: Rep 88 | CP1: Rep 89 | CQ1: Rep 90 | CR1: Rep 91 | CS1: Rep 92 | CT1: Rep 93 | CU1: Rep 94 | CV1: Rep 95 | CW1: Rep 96 | CX1: Rep 97 | CY1: Rep 98 | CZ1: Rep 99 | DA1: Rep 100 | DB1: Average | DC1: Max | DD1: Min | DE1: Mode | DF1: 5% half width | DG1: 5 percentile | DH1: 95 percentile | DI1: Skew (-2,2 is normal) | DJ1: Kurt (-2,2 is normal) | DN1: 1 | DO1: 2 | DP1: 3 | DQ1: 4 | DR1: 5
A2: ADAVacc | B2: COUNTER VALUE | C2: Count | D2: User Specified | E2: ADAVacc | F2: 2804 | G2: 2764 | H2: 2745 | I2: 2679 | J2: 2749 | K2: 2864 | L2: 2852 | M2: 2817 | N2: 2768 | O2: 2627 | P2: 2708 | Q2: 2862 | R2: 2853 | S2: 2886 | T2: 2741 | U2: 2690 | V2: 2774 | W2: 2914 | X2: 2898 | Y2: 2844 | Z2: 2775 | AA2: 2771 | AB2: 2886 | AC2: 2876 | AD2: 2751 | AE2: 2931 | AF2: 2852 | AG2: 2801 | AH2: 3021 | AI2: 2952 | AJ2: 2807 | AK2: 3063 | AL2: 2909 | AM2: 2863 | AN2: 2794 | AO2: 2812 | AP2: 2799 | AQ2: 2989 | AR2: 2980 | AS2: 2908 | AT2: 2700 | AU2: 2951 | AV2: 2676 | AW2: 2786 | AX2: 2755 | AY2: 2870 | AZ2: 2872 | BA2: 2910 | BB2: 2731 | BC2: 2672 | BD2: 2676 | BE2: 2913 | BF2: 2638 | BG2: 3050 | BH2: 2996 | BI2: 2853 | BJ2: 2979 | BK2: 2644 | BL2: 2831 | BM2: 2956 | BN2: 2744 | BO2: 2677 | BP2: 2879 | BQ2: 2513 | BR2: 2840 | BS2: 2857 | BT2: 2778 | BU2: 2939 | BV2: 2791 | BW2: 2876 | BX2: 2847 | BY2: 2635 | BZ2: 2900 | CA2: 2815 | CB2: 2880 | CC2: 2750 | CD2: 2962 | CE2: 2864 | CF2: 2818 | CG2: 2809 | CH2: 2778 | CI2: 2909 | CJ2: 2761 | CK2: 2753 | CL2: 2740 | CM2: 2796 | CN2: 2819 | CO2: 2814 | CP2: 2729 | CQ2: 2752 | CR2: 2800 | CS2: 2888 | CT2: 2858 | CU2: 2922 | CV2: 2899 | CW2: 2987 | CX2: 2983 | CY2: 2622 | CZ2: 2757 | DA2: 2672 | DB2: =AVERAGE(G2:DA2) -> 2822.69697 | DC2: =MAX(G2:DA2) -> 3063 | DD2: =MIN(G2:DA2) -> 2513 | DE2: =MEDIAN(G2:DA2) -> 2818 | DF2: =_xlfn.CONFIDENCE.NORM(0.05, _xlfn.STDEV.P(G2:DA2),100) -> 20.45011417 | DG2: =PERCENTILE(G2:DA2,0.05) -> 2643.4 | DH2: =PERCENTILE(G2:DA2,0.95) -> 2987.2 | DI2: =SKEW(G2:DA2) -> -0.144424134 | DJ2: =KURT(G2:DA2) -> -0.05698184436 | DL2: 5 | DM2: ADA Vacc Resource.NumberScheduled
A3: NonADAVacc | B3: COUNTER VALUE | C3: Count | D3: User Specified | E3: NonADAVacc | F3: 8101 | G3: 7961 | H3: 7920 | I3: 8001 | J3: 7946 | K3: 8191 | L3: 8098 | M3: 7968 | N3: 7867 | O3: 7378 | P3: 7807 | Q3: 8073 | R3: 7977 | S3: 8229 | T3: 7729 | U3: 8140 | V3: 8236 | W3: 8246 | X3: 8142 | Y3: 8211 | Z3: 7905 | AA3: 7879 | AB3: 8079 | AC3: 8179 | AD3: 8064 | AE3: 8499 | AF3: 7813 | AG3: 7969 | AH3: 8634 | AI3: 8553 | AJ3: 8053 | AK3: 8502 | AL3: 8281 | AM3: 8357 | AN3: 8051 | AO3: 8048 | AP3: 8091 | AQ3: 7901 | AR3: 8060 | AS3: 8372 | AT3: 7470 | AU3: 8239 | AV3: 7734 | AW3: 7744 | AX3: 8105 | AY3: 8005 | AZ3: 8108 | BA3: 8145 | BB3: 7829 | BC3: 7858 | BD3: 7614 | BE3: 8232 | BF3: 7517 | BG3: 8560 | BH3: 8614 | BI3: 8112 | BJ3: 8256 | BK3: 7811 | BL3: 7879 | BM3: 8069 | BN3: 7726 | BO3: 7808 | BP3: 8296 | BQ3: 7537 | BR3: 7900 | BS3: 8003 | BT3: 7632 | BU3: 8266 | BV3: 8039 | BW3: 7834 | BX3: 8283 | BY3: 7850 | BZ3: 8155 | CA3: 8090 | CB3: 8070 | CC3: 7645 | CD3: 7943 | CE3: 8131 | CF3: 7682 | CG3: 7931 | CH3: 7827 | CI3: 8131 | CJ3: 7694 | CK3: 8077 | CL3: 7610 | CM3: 8109 | CN3: 8176 | CO3: 7941 | CP3: 7666 | CQ3: 7913 | CR3: 7895 | CS3: 8167 | CT3: 7942 | CU3: 8268 | CV3: 8081 | CW3: 8128 | CX3: 8237 | CY3: 7698 | CZ3: 7998 | DA3: 7573 | DB3: 8012.757576 | DC3: 8634 | DD3: 7378 | DE3: 8048 | DF3: 49.48289389 | DG3: 7606.3 | DH3: 8499.3 | DI3: 0.03262060222 | DJ3: 0.1056287393 | DL3: 7 | DM3: ADA Watch Resource.NumberScheduled
A4: ADA Vacc Resource.NumberSeized | B4: OUTPUT VALUE | C4: Total Number Seized | D4: Resource | E4: ADA Vacc Resource | F4: 2804 | G4: 2764 | H4: 2745 | I4: 2679 | J4: 2749 | K4: 2864 | L4: 2852 | M4: 2817 | N4: 2768 | O4: 2627 | P4: 2708 | Q4: 2862 | R4: 2853 | S4: 2886 | T4: 2741 | U4: 2690 | V4: 2774 | W4: 2914 | X4: 2898 | Y4: 2844 | Z4: 2775 | AA4: 2771 | AB4: 2886 | AC4: 2876 | AD4: 2751 | AE4: 2931 | AF4: 2852 | AG4: 2801 | AH4: 3021 | AI4: 2952 | AJ4: 2807 | AK4: 3063 | AL4: 2909 | AM4: 2863 | AN4: 2794 | AO4: 2812 | AP4: 2799 | AQ4: 2989 | AR4: 2980 | AS4: 2908 | AT4: 2700 | AU4: 2951 | AV4: 2676 | AW4: 2786 | AX4: 2755 | AY4: 2870 | AZ4: 2872 | BA4: 2910 | BB4: 2731 | BC4: 2672 | BD4: 2676 | BE4: 2913 | BF4: 2638 | BG4: 3050 | BH4: 2996 | BI4: 2853 | BJ4: 2979 | BK4: 2644 | BL4: 2831 | BM4: 2956 | BN4: 2744 | BO4: 2677 | BP4: 2879 | BQ4: 2513 | BR4: 2840 | BS4: 2857 | BT4: 2778 | BU4: 2939 | BV4: 2791 | BW4: 2876 | BX4: 2847 | BY4: 2635 | BZ4: 2900 | CA4: 2815 | CB4: 2880 | CC4: 2750 | CD4: 2962 | CE4: 2864 | CF4: 2818 | CG4: 2809 | CH4: 2778 | CI4: 2909 | CJ4: 2761 | CK4: 2753 | CL4: 2740 | CM4: 2796 | CN4: 2819 | CO4: 2814 | CP4: 2729 | CQ4: 2752 | CR4: 2800 | CS4: 2888 | CT4: 2858 | CU4: 2922 | CV4: 2899 | CW4: 2987 | CX4: 2983 | CY4: 2622 | CZ4: 2757 | DA4: 2672 | DB4: 2822.69697 | DC4: 3063 | DD4: 2513 | DE4: 2818 | DF4: 20.45011417 | DG4: 2643.4 | DH4: 2987.2 | DI4: -0.144424134 | DJ4: -0.05698184436 | DL4: 1 | DM4: Greeter.NumberScheduled
A5: ADA Vacc Resource.ScheduledUtilization | B5: OUTPUT VALUE | C5: Scheduled Utilization | D5: Resource | E5: ADA Vacc Resource | F5: 0.7145529709 | G5: 0.6997363732 | H5: 0.6824622898 | I5: 0.6748016837 | J5: 0.694066571 | K5: 0.7279486345 | L5: 0.7137766508 | M5: 0.7100951775 | N5: 0.7003844533 | O5: 0.6607370266 | P5: 0.6789926954 | Q5: 0.7167590169 | R5: 0.7221996035 | S5: 0.7241147784 | T5: 0.6859921754 | U5: 0.6738582989 | V5: 0.6981642198 | W5: 0.7403051089 | X5: 0.7269323282 | Y5: 0.7128160168 | Z5: 0.7022728203 | AA5: 0.6963467828 | AB5: 0.712975864 | AC5: 0.7185350373 | AD5: 0.6914316804 | AE5: 0.7395086956 | AF5: 0.7134866495 | AG5: 0.7079645211 | AH5: 0.7652596675 | AI5: 0.735368153 | AJ5: 0.7049757284 | AK5: 0.7661665156 | AL5: 0.73011888 | AM5: 0.7198219704 | AN5: 0.7071240696 | AO5: 0.707159185 | AP5: 0.6998914238 | AQ5: 0.7620930055 | AR5: 0.7420851974 | AS5: 0.7428378552 | AT5: 0.6757720476 | AU5: 0.7413274663 | AV5: 0.6787609816 | AW5: 0.7010207908 | AX5: 0.6860023447 | AY5: 0.7161197894 | AZ5: 0.7203294707 | BA5: 0.7259448889 | BB5: 0.6870504836 | BC5: 0.6683084345 | BD5: 0.6698362703 | BE5: 0.7403997259 | BF5: 0.6603877782 | BG5: 0.7688268012 | BH5: 0.7531375553 | BI5: 0.7155089674 | BJ5: 0.74800324 | BK5: 0.653964318 | BL5: 0.7108943873 | BM5: 0.7500066315 | BN5: 0.6939955138 | BO5: 0.6762126741 | BP5: 0.7235474769 | BQ5: 0.6332373148 | BR5: 0.715153639 | BS5: 0.7160716388 | BT5: 0.6948278675 | BU5: 0.7426868205 | BV5: 0.6984577465 | BW5: 0.7263972179 | BX5: 0.7022309471 | BY5: 0.6569130686 | BZ5: 0.7297057209 | CA5: 0.715997198 | CB5: 0.7235717884 | CC5: 0.6883821012 | CD5: 0.7500299443 | CE5: 0.7201825946 | CF5: 0.7104358467 | CG5: 0.7213488441 | CH5: 0.6986551915 | CI5: 0.7364343019 | CJ5: 0.7030556921 | CK5: 0.6977917782 | CL5: 0.6961617043 | CM5: 0.6971233888 | CN5: 0.703540142 | CO5: 0.7100306503 | CP5: 0.6925088341 | CQ5: 0.6867882371 | CR5: 0.7035869234 | CS5: 0.7154395867 | CT5: 0.7202947435 | CU5: 0.7336828443 | CV5: 0.7306335112 | CW5: 0.7505237632 | CX5: 0.7410393907 | CY5: 0.6616535351 | CZ5: 0.6965160754 | DA5: 0.6746542567 | DB5: 0.7098047444 | DC5: 0.7688268012 | DD5: 0.6332373148 | DE5: 0.7104358467 | DF5: 0.005267070326 | DG5: 0.6615618843 | DH5: 0.7507851424 | DI5: -0.1346896434 | DJ5: -0.05055954164 | DL5: 2 | DM5: Med Hist Resource.NumberScheduled
A6: ADA Watch Resource Chair.NumberSeized | B6: OUTPUT VALUE | C6: Total Number Seized | D6: Resource | E6: ADA Watch Resource Chair | F6: 2804 | G6: 2764 | H6: 2745 | I6: 2679 | J6: 2749 | K6: 2864 | L6: 2852 | M6: 2817 | N6: 2768 | O6: 2627 | P6: 2708 | Q6: 2862 | R6: 2853 | S6: 2886 | T6: 2741 | U6: 2690 | V6: 2774 | W6: 2914 | X6: 2898 | Y6: 2844 | Z6: 2775 | AA6: 2771 | AB6: 2886 | AC6: 2876 | AD6: 2751 | AE6: 2931 | AF6: 2852 | AG6: 2801 | AH6: 3021 | AI6: 2952 | AJ6: 2807 | AK6: 3063 | AL6: 2909 | AM6: 2863 | AN6: 2794 | AO6: 2812 | AP6: 2799 | AQ6: 2989 | AR6: 2980 | AS6: 2908 | AT6: 2700 | AU6: 2951 | AV6: 2676 | AW6: 2786 | AX6: 2755 | AY6: 2870 | AZ6: 2872 | BA6: 2910 | BB6: 2731 | BC6: 2672 | BD6: 2676 | BE6: 2913 | BF6: 2638 | BG6: 3050 | BH6: 2996 | BI6: 2853 | BJ6: 2979 | BK6: 2644 | BL6: 2831 | BM6: 2956 | BN6: 2744 | BO6: 2677 | BP6: 2879 | BQ6: 2513 | BR6: 2840 | BS6: 2857 | BT6: 2778 | BU6: 2939 | BV6: 2791 | BW6: 2876 | BX6: 2847 | BY6: 2635 | BZ6: 2900 | CA6: 2815 | CB6: 2880 | CC6: 2750 | CD6: 2962 | CE6: 2864 | CF6: 2818 | CG6: 2809 | CH6: 2778 | CI6: 2909 | CJ6: 2761 | CK6: 2753 | CL6: 2740 | CM6: 2796 | CN6: 2819 | CO6: 2814 | CP6: 2729 | CQ6: 2752 | CR6: 2800 | CS6: 2888 | CT6: 2858 | CU6: 2922 | CV6: 2899 | CW6: 2987 | CX6: 2983 | CY6: 2622 | CZ6: 2757 | DA6: 2672 | DB6: 2822.69697 | DC6: 3063 | DD6: 2513 | DE6: 2818 | DF6: 20.45011417 | DG6: 2643.4 | DH6: 2987.2 | DI6: -0.144424134 | DJ6: -0.05698184436 | DL6: 4 | DM6: Vacc Resource.NumberScheduled
A7: ADA Watch Resource.NumberSeized | B7: OUTPUT VALUE | C7: Total Number Seized | D7: Resource | E7: ADA Watch Resource | F7: 1 | G7: 1 | H7: 1 | I7: 1 | J7: 1 | K7: 1 | L7: 1 | M7: 1 | N7: 1 | O7: 1 | P7: 1 | Q7: 1 | R7: 1 | S7: 1 | T7: 1 | U7: 1 | V7: 1 | W7: 1 | X7: 1 | Y7: 1 | Z7: 1 | AA7: 1 | AB7: 1 | AC7: 1 | AD7: 1 | AE7: 1 | AF7: 1 | AG7: 1 | AH7: 1 | AI7: 1 | AJ7: 1 | AK7: 1 | AL7: 1 | AM7: 1 | AN7: 1 | AO7: 1 | AP7: 1 | AQ7: 1 | AR7: 1 | AS7: 1 | AT7: 1 | AU7: 1 | AV7: 1 | AW7: 1 | AX7: 1 | AY7: 1 | AZ7: 1 | BA7: 1 | BB7: 1 | BC7: 1 | BD7: 1 | BE7: 1 | BF7: 1 | BG7: 1 | BH7: 1 | BI7: 1 | BJ7: 1 | BK7: 1 | BL7: 1 | BM7: 1 | BN7: 1 | BO7: 1 | BP7: 1 | BQ7: 1 | BR7: 1 | BS7: 1 | BT7: 1 | BU7: 1 | BV7: 1 | BW7: 1 | BX7: 1 | BY7: 1 | BZ7: 1 | CA7: 1 | CB7: 1 | CC7: 1 | CD7: 1 | CE7: 1 | CF7: 1 | CG7: 1 | CH7: 1 | CI7: 1 | CJ7: 1 | CK7: 1 | CL7: 1 | CM7: 1 | CN7: 1 | CO7: 1 | CP7: 1 | CQ7: 1 | CR7: 1 | CS7: 1 | CT7: 1 | CU7: 1 | CV7: 1 | CW7: 1 | CX7: 1 | CY7: 1 | CZ7: 1 | DA7: 1 | DB7: 1 | DC7: 1 | DD7: 1 | DE7: 1 | DG7: 1 | DH7: 1 | DL7: 3 | DM7: Waiting Room Resource.NumberScheduled
A8: ADA Watch Resource.ScheduledUtilization | B8: OUTPUT VALUE | C8: Scheduled Utilization | D8: Resource | E8: ADA Watch Resource | F8: 0.9852008547 | G8: 0.9837552986 | H8: 0.9867124773 | I8: 0.9876194866 | J8: 0.9823080879 | K8: 0.9814592273 | L8: 0.9849554906 | M8: 0.9872283123 | N8: 0.9822282074 | O8: 0.9854758599 | P8: 0.9880451878 | Q8: 0.9844447192 | R8: 0.9870677879 | S8: 0.9871337072 | T8: 0.9850123634 | U8: 0.9859173154 | V8: 0.9828271245 | W8: 0.9824328406 | X8: 0.9871261204 | Y8: 0.9837520821 | Z8: 0.9849913434 | AA8: 0.9875956886 | AB8: 0.9885580289 | AC8: 0.9828462096 | AD8: 0.985405069 | AE8: 0.9856251676 | AF8: 0.9861473976 | AG8: 0.9832821779 | AH8: 0.9851670005 | AI8: 0.9847279829 | AJ8: 0.9833569844 | AK8: 0.9822027468 | AL8: 0.9848438476 | AM8: 0.9858766146 | AN8: 0.9855227105 | AO8: 0.9844829152 | AP8: 0.9851170351 | AQ8: 0.9885284401 | AR8: 0.9838261104 | AS8: 0.9852159461 | AT8: 0.9854583722 | AU8: 0.9837964563 | AV8: 0.9865374119 | AW8: 0.9910808485 | AX8: 0.9844223015 | AY8: 0.9835076592 | AZ8: 0.9881443734 | BA8: 0.9844727211 | BB8: 0.9853105787 | BC8: 0.9857891331 | BD8: 0.9898133864 | BE8: 0.989713837 | BF8: 0.9839254745 | BG8: 0.9828320178 | BH8: 0.9838748281 | BI8: 0.9857269315 | BJ8: 0.9853895826 | BK8: 0.982250793 | BL8: 0.9861828989 | BM8: 0.9847269203 | BN8: 0.9833995075 | BO8: 0.9847857067 | BP8: 0.9841922478 | BQ8: 0.9851228815 | BR8: 0.9824747413 | BS8: 0.9870299188 | BT8: 0.9852290248 | BU8: 0.9844913487 | BV8: 0.982535018 | BW8: 0.9857404278 | BX8: 0.9844406383 | BY8: 0.983593368 | BZ8: 0.9840458226 | CA8: 0.9833744256 | CB8: 0.9869911448 | CC8: 0.9866741095 | CD8: 0.986756171 | CE8: 0.9855901919 | CF8: 0.9827303512 | CG8: 0.9865898851 | CH8: 0.9863507686 | CI8: 0.9882841404 | CJ8: 0.981979882 | CK8: 0.9837099656 | CL8: 0.9873885719 | CM8: 0.9844851262 | CN8: 0.9899952369 | CO8: 0.9838028375 | CP8: 0.9854867706 | CQ8: 0.984748944 | CR8: 0.9863788672 | CS8: 0.9832478369 | CT8: 0.9832107008 | CU8: 0.9846843889 | CV8: 0.9835628698 | CW8: 0.9883375142 | CX8: 0.9845632269 | CY8: 0.985413173 | CZ8: 0.9892338013 | DA8: 0.9855339928 | DB8: 0.9852319514 | DC8: 0.9910808485 | DD8: 0.9814592273 | DE8: 0.9851170351 | DF8: 0.0003876237103 | DG8: 0.9823023584 | DH8: 0.9886256062 | DI8: 0.5721180276 | DJ8: 0.1116441613 | DL8: 6 | DM8: Watch Resource.NumberScheduled
A9: Entity 1.NumberIn | B9: OUTPUT VALUE | C9: Number In | D9: Entity | E9: Entity 1 | F9: 10946 | G9: 10761 | H9: 10693 | I9: 10712 | J9: 10732 | K9: 11091 | L9: 10991 | M9: 10831 | N9: 10669 | O9: 10047 | P9: 10545 | Q9: 10973 | R9: 10870 | S9: 11150 | T9: 10512 | U9: 10858 | V9: 11053 | W9: 11201 | X9: 11069 | Y9: 11092 | Z9: 10721 | AA9: 10686 | AB9: 11011 | AC9: 11099 | AD9: 10862 | AE9: 11458 | AF9: 10703 | AG9: 10823 | AH9: 11700 | AI9: 11547 | AJ9: 10902 | AK9: 11609 | AL9: 11238 | AM9: 11256 | AN9: 10876 | AO9: 10901 | AP9: 10928 | AQ9: 10925 | AR9: 11077 | AS9: 11309 | AT9: 10210 | AU9: 11222 | AV9: 10457 | AW9: 10567 | AX9: 10899 | AY9: 10920 | AZ9: 11022 | BA9: 11089 | BB9: 10609 | BC9: 10559 | BD9: 10332 | BE9: 11175 | BF9: 10200 | BG9: 11648 | BH9: 11648 | BI9: 10996 | BJ9: 11270 | BK9: 10491 | BL9: 10745 | BM9: 11065 | BN9: 10499 | BO9: 10517 | BP9: 11216 | BQ9: 10090 | BR9: 10786 | BS9: 10903 | BT9: 10443 | BU9: 11243 | BV9: 10859 | BW9: 10738 | BX9: 11179 | BY9: 10535 | BZ9: 11093 | CA9: 10948 | CB9: 10995 | CC9: 10441 | CD9: 10948 | CE9: 11035 | CF9: 10542 | CG9: 10778 | CH9: 10644 | CI9: 11081 | CJ9: 10489 | CK9: 10872 | CL9: 10396 | CM9: 10944 | CN9: 11033 | CO9: 10799 | CP9: 10426 | CQ9: 10710 | CR9: 10729 | CS9: 11094 | CT9: 10838 | CU9: 11229 | CV9: 11020 | CW9: 11155 | CX9: 11258 | CY9: 10357 | CZ9: 10794 | DA9: 10296 | DB9: 10874.31313 | DC9: 11700 | DD9: 10047 | DE9: 10899 | DF9: 66.37279149 | DG9: 10328.4 | DH9: 11466.9 | DI9: 0.01016674615 | DJ9: 0.07632420263 | DN9: =SUM(DN3:DN5,DN7:DN8) -> 0 | DO9: 0 | DP9: 0 | DQ9: 0 | DR9: =SUM(DR3:DR5,DR7:DR8) -> 0
A10: Entity 1.NumberOut | B10: OUTPUT VALUE | C10: Number Out | D10: Entity | E10: Entity 1 | F10: 10946 | G10: 10761 | H10: 10693 | I10: 10712 | J10: 10732 | K10: 11091 | L10: 10991 | M10: 10831 | N10: 10669 | O10: 10047 | P10: 10545 | Q10: 10973 | R10: 10870 | S10: 11150 | T10: 10512 | U10: 10858 | V10: 11053 | W10: 11201 | X10: 11069 | Y10: 11092 | Z10: 10721 | AA10: 10686 | AB10: 11011 | AC10: 11099 | AD10: 10862 | AE10: 11458 | AF10: 10703 | AG10: 10823 | AH10: 11700 | AI10: 11547 | AJ10: 10902 | AK10: 11609 | AL10: 11238 | AM10: 11256 | AN10: 10876 | AO10: 10901 | AP10: 10928 | AQ10: 10925 | AR10: 11077 | AS10: 11309 | AT10: 10210 | AU10: 11222 | AV10: 10457 | AW10: 10567 | AX10: 10899 | AY10: 10920 | AZ10: 11022 | BA10: 11089 | BB10: 10609 | BC10: 10559 | BD10: 10332 | BE10: 11175 | BF10: 10200 | BG10: 11648 | BH10: 11648 | BI10: 10996 | BJ10: 11270 | BK10: 10491 | BL10: 10745 | BM10: 11065 | BN10: 10499 | BO10: 10517 | BP10: 11216 | BQ10: 10090 | BR10: 10786 | BS10: 10903 | BT10: 10443 | BU10: 11243 | BV10: 10859 | BW10: 10738 | BX10: 11179 | BY10: 10535 | BZ10: 11093 | CA10: 10948 | CB10: 10995 | CC10: 10441 | CD10: 10948 | CE10: 11035 | CF10: 10542 | CG10: 10778 | CH10: 10644 | CI10: 11081 | CJ10: 10489 | CK10: 10872 | CL10: 10396 | CM10: 10944 | CN10: 11033 | CO10: 10799 | CP10: 10426 | CQ10: 10710 | CR10: 10729 | CS10: 11094 | CT10: 10838 | CU10: 11229 | CV10: 11020 | CW10: 11155 | CX10: 11258 | CY10: 10357 | CZ10: 10794 | DA10: 10296 | DB10: 10874.31313 | DC10: 11700 | DD10: 10047 | DE10: 10899 | DF10: 66.37279149 | DG10: 10328.4 | DH10: 11466.9 | DI10: 0.01016674615 | DJ10: 0.07632420263 | DN10: =DN6+DN2 -> 0 | DO10: 0 | DP10: 0 | DQ10: 0 | DR10: =DR6+DR2 -> 0
A11: Greeter.NumberSeized | B11: OUTPUT VALUE | C11: Total Number Seized | D11: Resource | E11: Greeter | F11: 10905 | G11: 10725 | H11: 10665 | I11: 10680 | J11: 10695 | K11: 11055 | L11: 10950 | M11: 10785 | N11: 10635 | O11: 10005 | P11: 10515 | Q11: 10935 | R11: 10830 | S11: 11115 | T11: 10470 | U11: 10830 | V11: 11010 | W11: 11160 | X11: 11040 | Y11: 11055 | Z11: 10680 | AA11: 10650 | AB11: 10965 | AC11: 11055 | AD11: 10815 | AE11: 11430 | AF11: 10665 | AG11: 10770 | AH11: 11655 | AI11: 11505 | AJ11: 10860 | AK11: 11565 | AL11: 11190 | AM11: 11220 | AN11: 10845 | AO11: 10860 | AP11: 10890 | AQ11: 10890 | AR11: 11040 | AS11: 11280 | AT11: 10170 | AU11: 11190 | AV11: 10410 | AW11: 10530 | AX11: 10860 | AY11: 10875 | AZ11: 10980 | BA11: 11055 | BB11: 10560 | BC11: 10530 | BD11: 10290 | BE11: 11145 | BF11: 10155 | BG11: 11610 | BH11: 11610 | BI11: 10965 | BJ11: 11235 | BK11: 10455 | BL11: 10710 | BM11: 11025 | BN11: 10470 | BO11: 10485 | BP11: 11175 | BQ11: 10050 | BR11: 10740 | BS11: 10860 | BT11: 10410 | BU11: 11205 | BV11: 10830 | BW11: 10710 | BX11: 11130 | BY11: 10485 | BZ11: 11055 | CA11: 10905 | CB11: 10950 | CC11: 10395 | CD11: 10905 | CE11: 10995 | CF11: 10500 | CG11: 10740 | CH11: 10605 | CI11: 11040 | CJ11: 10455 | CK11: 10830 | CL11: 10350 | CM11: 10905 | CN11: 10995 | CO11: 10755 | CP11: 10395 | CQ11: 10665 | CR11: 10695 | CS11: 11055 | CT11: 10800 | CU11: 11190 | CV11: 10980 | CW11: 11115 | CX11: 11220 | CY11: 10320 | CZ11: 10755 | DA11: 10245 | DB11: 10835.45455 | DC11: 11655 | DD11: 10005 | DE11: 10860 | DF11: 66.43861954 | DG11: 10285.5 | DH11: 11437.5 | DI11: 0.002216603009 | DJ11: 0.0791211823
A12: Greeter.ScheduledUtilization | B12: OUTPUT VALUE | C12: Scheduled Utilization | D12: Resource | E12: Greeter | F12: 0.2406555498 | G12: 0.235653819 | H12: 0.2328367378 | I12: 0.2361213549 | J12: 0.2352227542 | K12: 0.2441516093 | L12: 0.2393692925 | M12: 0.2365486047 | N12: 0.2350574019 | O12: 0.2188630539 | P12: 0.2323192557 | Q12: 0.239769143 | R12: 0.2375306039 | S12: 0.2433980244 | T12: 0.2286816037 | U12: 0.2390070383 | V12: 0.2412982247 | W12: 0.2440278055 | X12: 0.2420135383 | Y12: 0.2427256712 | Z12: 0.2335135477 | AA12: 0.2343922984 | AB12: 0.2403376512 | AC12: 0.2437049117 | AD12: 0.2376883685 | AE12: 0.2510143642 | AF12: 0.2351616719 | AG12: 0.2358557636 | AH12: 0.2545828999 | AI12: 0.2510853053 | AJ12: 0.2384865685 | AK12: 0.2517925952 | AL12: 0.2451913969 | AM12: 0.2466194851 | AN12: 0.2382107512 | AO12: 0.2390809165 | AP12: 0.2393064646 | AQ12: 0.2384497357 | AR12: 0.2418961003 | AS12: 0.2491370757 | AT12: 0.2245383677 | AU12: 0.2452300761 | AV12: 0.2279121092 | AW12: 0.2302259546 | AX12: 0.2376188694 | AY12: 0.2381254239 | AZ12: 0.24008866 | BA12: 0.2424321392 | BB12: 0.2326895816 | BC12: 0.2320554075 | BD12: 0.2259919438 | BE12: 0.247141226 | BF12: 0.2221236828 | BG12: 0.2547805008 | BH12: 0.254420136 | BI12: 0.2424787325 | BJ12: 0.2472964735 | BK12: 0.2275962412 | BL12: 0.2344321982 | BM12: 0.241893803 | BN12: 0.2303636655 | BO12: 0.2306898236 | BP12: 0.2454733545 | BQ12: 0.2204366403 | BR12: 0.2360998576 | BS12: 0.238272073 | BT12: 0.2288185385 | BU12: 0.2480975898 | BV12: 0.2371643886 | BW12: 0.2350505652 | BX12: 0.2415706501 | BY12: 0.2289740151 | BZ12: 0.2422873078 | CA12: 0.2396153438 | CB12: 0.2406832007 | CC12: 0.2265164999 | CD12: 0.2405842872 | CE12: 0.2406595598 | CF12: 0.2308100791 | CG12: 0.2367582456 | CH12: 0.2325632046 | CI12: 0.2432028508 | CJ12: 0.2298429182 | CK12: 0.2383901502 | CL12: 0.2267393841 | CM12: 0.2395539507 | CN12: 0.2410072362 | CO12: 0.2369060338 | CP12: 0.2298268354 | CQ12: 0.2327675063 | CR12: 0.2338670005 | CS12: 0.2413284581 | CT12: 0.2383230924 | CU12: 0.2458889767 | CV12: 0.2417075646 | CW12: 0.2441628278 | CX12: 0.2450865721 | CY12: 0.2265391256 | CZ12: 0.2375614073 | DA12: 0.2241796067 | DB12: 0.2378539932 | DC12: 0.2547805008 | DD12: 0.2188630539 | DE12: 0.2383230924 | DF12: 0.001458244216 | DG12: 0.2258465862 | DH12: 0.2510214583 | DI12: -0.1115053562 | DJ12: 0.009115413624
A13: Med Hist Resource.NumberSeized | B13: OUTPUT VALUE | C13: Total Number Seized | D13: Resource | E13: Med Hist Resource | F13: 10905 | G13: 10725 | H13: 10665 | I13: 10680 | J13: 10695 | K13: 11055 | L13: 10950 | M13: 10785 | N13: 10635 | O13: 10005 | P13: 10515 | Q13: 10935 | R13: 10830 | S13: 11115 | T13: 10470 | U13: 10830 | V13: 11010 | W13: 11160 | X13: 11040 | Y13: 11055 | Z13: 10680 | AA13: 10650 | AB13: 10965 | AC13: 11055 | AD13: 10815 | AE13: 11430 | AF13: 10665 | AG13: 10770 | AH13: 11655 | AI13: 11505 | AJ13: 10860 | AK13: 11565 | AL13: 11190 | AM13: 11220 | AN13: 10845 | AO13: 10860 | AP13: 10890 | AQ13: 10890 | AR13: 11040 | AS13: 11280 | AT13: 10170 | AU13: 11190 | AV13: 10410 | AW13: 10530 | AX13: 10860 | AY13: 10875 | AZ13: 10980 | BA13: 11055 | BB13: 10560 | BC13: 10530 | BD13: 10290 | BE13: 11145 | BF13: 10155 | BG13: 11610 | BH13: 11610 | BI13: 10965 | BJ13: 11235 | BK13: 10455 | BL13: 10710 | BM13: 11025 | BN13: 10470 | BO13: 10485 | BP13: 11175 | BQ13: 10050 | BR13: 10740 | BS13: 10860 | BT13: 10410 | BU13: 11205 | BV13: 10830 | BW13: 10710 | BX13: 11130 | BY13: 10485 | BZ13: 11055 | CA13: 10905 | CB13: 10950 | CC13: 10395 | CD13: 10905 | CE13: 10995 | CF13: 10500 | CG13: 10740 | CH13: 10605 | CI13: 11040 | CJ13: 10455 | CK13: 10830 | CL13: 10350 | CM13: 10905 | CN13: 10995 | CO13: 10755 | CP13: 10395 | CQ13: 10665 | CR13: 10695 | CS13: 11055 | CT13: 10800 | CU13: 11190 | CV13: 10980 | CW13: 11115 | CX13: 11220 | CY13: 10320 | CZ13: 10755 | DA13: 10245 | DB13: 10835.45455 | DC13: 11655 | DD13: 10005 | DE13: 10860 | DF13: 66.43861954 | DG13: 10285.5 | DH13: 11437.5 | DI13: 0.002216603009 | DJ13: 0.0791211823
A14: Med Hist Resource.ScheduledUtilization | B14: OUTPUT VALUE | C14: Scheduled Utilization | D14: Resource | E14: Med Hist Resource | F14: 0.7467098725 | G14: 0.7326503499 | H14: 0.7263324177 | I14: 0.7307759853 | J14: 0.7318531279 | K14: 0.7590079242 | L14: 0.7442005651 | M14: 0.7341322945 | N14: 0.7294581973 | O14: 0.6820382891 | P14: 0.7190764659 | Q14: 0.7433612809 | R14: 0.7368612025 | S14: 0.7609813953 | T14: 0.7121137001 | U14: 0.741719089 | V14: 0.7524353999 | W14: 0.7574753316 | X14: 0.752958327 | Y14: 0.7514095134 | Z14: 0.7271275298 | AA14: 0.7271503357 | AB14: 0.7475395966 | AC14: 0.755258891 | AD14: 0.7342852171 | AE14: 0.7844449379 | AF14: 0.7296883562 | AG14: 0.7322463355 | AH14: 0.7938770797 | AI14: 0.7790530771 | AJ14: 0.7398755347 | AK14: 0.7866701542 | AL14: 0.7600282783 | AM14: 0.7670006385 | AN14: 0.7413350293 | AO14: 0.7439027838 | AP14: 0.7416627574 | AQ14: 0.7484840895 | AR14: 0.7500973493 | AS14: 0.7750907928 | AT14: 0.6956450014 | AU14: 0.7625287769 | AV14: 0.7103550881 | AW14: 0.7222739486 | AX14: 0.7360983449 | AY14: 0.739498128 | AZ14: 0.7498821035 | BA14: 0.756997504 | BB14: 0.7211475846 | BC14: 0.7163841331 | BD14: 0.7050534503 | BE14: 0.7679378658 | BF14: 0.6938319857 | BG14: 0.7912788954 | BH14: 0.7932437894 | BI14: 0.7517049365 | BJ14: 0.771072928 | BK14: 0.7107846954 | BL14: 0.7340418896 | BM14: 0.7562382924 | BN14: 0.7152909121 | BO14: 0.7151222375 | BP14: 0.7621357618 | BQ14: 0.6868843043 | BR14: 0.7342394077 | BS14: 0.7405832355 | BT14: 0.7120865133 | BU14: 0.7749670499 | BV14: 0.739833719 | BW14: 0.7322186405 | BX14: 0.7561724778 | BY14: 0.7091985083 | BZ14: 0.7515646404 | CA14: 0.7437813805 | CB14: 0.7482086633 | CC14: 0.7069235376 | CD14: 0.7471586843 | CE14: 0.7514933882 | CF14: 0.7194849966 | CG14: 0.7353763095 | CH14: 0.7226491678 | CI14: 0.7548077468 | CJ14: 0.7125683852 | CK14: 0.7385248772 | CL14: 0.7045744172 | CM14: 0.7401170718 | CN14: 0.7515039453 | CO14: 0.7388709669 | CP14: 0.7166782036 | CQ14: 0.7289070437 | CR14: 0.7284878311 | CS14: 0.7511985369 | CT14: 0.7458137244 | CU14: 0.7681024431 | CV14: 0.7544916027 | CW14: 0.7587486075 | CX14: 0.7604095404 | CY14: 0.7038713706 | CZ14: 0.7361280486 | DA14: 0.6946814325 | DB14: 0.7398335181 | DC14: 0.7938770797 | DD14: 0.6820382891 | DE14: 0.7401170718 | DF14: 0.004579604134 | DG14: 0.7030487337 | DH14: 0.7795922632 | DI14: -0.03206883645 | DJ14: -0.01980088047
A15: Sch Resource.NumberSeized | B15: OUTPUT VALUE | C15: Total Number Seized | D15: Resource | E15: Sch Resource | F15: 0 | G15: 0 | H15: 0 | I15: 0 | J15: 0 | K15: 0 | L15: 0 | M15: 0 | N15: 0 | O15: 0 | P15: 0 | Q15: 0 | R15: 0 | S15: 0 | T15: 0 | U15: 0 | V15: 0 | W15: 0 | X15: 0 | Y15: 0 | Z15: 0 | AA15: 0 | AB15: 0 | AC15: 0 | AD15: 0 | AE15: 0 | AF15: 0 | AG15: 0 | AH15: 0 | AI15: 0 | AJ15: 0 | AK15: 0 | AL15: 0 | AM15: 0 | AN15: 0 | AO15: 0 | AP15: 0 | AQ15: 0 | AR15: 0 | AS15: 0 | AT15: 0 | AU15: 0 | AV15: 0 | AW15: 0 | AX15: 0 | AY15: 0 | AZ15: 0 | BA15: 0 | BB15: 0 | BC15: 0 | BD15: 0 | BE15: 0 | BF15: 0 | BG15: 0 | BH15: 0 | BI15: 0 | BJ15: 0 | BK15: 0 | BL15: 0 | BM15: 0 | BN15: 0 | BO15: 0 | BP15: 0 | BQ15: 0 | BR15: 0 | BS15: 0 | BT15: 0 | BU15: 0 | BV15: 0 | BW15: 0 | BX15: 0 | BY15: 0 | BZ15: 0 | CA15: 0 | CB15: 0 | CC15: 0 | CD15: 0 | CE15: 0 | CF15: 0 | CG15: 0 | CH15: 0 | CI15: 0 | CJ15: 0 | CK15: 0 | CL15: 0 | CM15: 0 | CN15: 0 | CO15: 0 | CP15: 0 | CQ15: 0 | CR15: 0 | CS15: 0 | CT15: 0 | CU15: 0 | CV15: 0 | CW15: 0 | CX15: 0 | CY15: 0 | CZ15: 0 | DA15: 0 | DB15: 0 | DC15: 0 | DD15: 0 | DE15: 0 | DG15: 0 | DH15: 0
A16: Sch Resource.ScheduledUtilization | B16: OUTPUT VALUE | C16: Scheduled Utilization | D16: Resource | E16: Sch Resource | F16: 0 | G16: 0 | H16: 0 | I16: 0 | J16: 0 | K16: 0 | L16: 0 | M16: 0 | N16: 0 | O16: 0 | P16: 0 | Q16: 0 | R16: 0 | S16: 0 | T16: 0 | U16: 0 | V16: 0 | W16: 0 | X16: 0 | Y16: 0 | Z16: 0 | AA16: 0 | AB16: 0 | AC16: 0 | AD16: 0 | AE16: 0 | AF16: 0 | AG16: 0 | AH16: 0 | AI16: 0 | AJ16: 0 | AK16: 0 | AL16: 0 | AM16: 0 | AN16: 0 | AO16: 0 | AP16: 0 | AQ16: 0 | AR16: 0 | AS16: 0 | AT16: 0 | AU16: 0 | AV16: 0 | AW16: 0 | AX16: 0 | AY16: 0 | AZ16: 0 | BA16: 0 | BB16: 0 | BC16: 0 | BD16: 0 | BE16: 0 | BF16: 0 | BG16: 0 | BH16: 0 | BI16: 0 | BJ16: 0 | BK16: 0 | BL16: 0 | BM16: 0 | BN16: 0 | BO16: 0 | BP16: 0 | BQ16: 0 | BR16: 0 | BS16: 0 | BT16: 0 | BU16: 0 | BV16: 0 | BW16: 0 | BX16: 0 | BY16: 0 | BZ16: 0 | CA16: 0 | CB16: 0 | CC16: 0 | CD16: 0 | CE16: 0 | CF16: 0 | CG16: 0 | CH16: 0 | CI16: 0 | CJ16: 0 | CK16: 0 | CL16: 0 | CM16: 0 | CN16: 0 | CO16: 0 | CP16: 0 | CQ16: 0 | CR16: 0 | CS16: 0 | CT16: 0 | CU16: 0 | CV16: 0 | CW16: 0 | CX16: 0 | CY16: 0 | CZ16: 0 | DA16: 0 | DB16: 0 | DC16: 0 | DD16: 0 | DE16: 0 | DG16: 0 | DH16: 0
A17: System.NumberOut | B17: OUTPUT VALUE | C17: Number Out | D17: System | E17: System | F17: 10905 | G17: 10725 | H17: 10665 | I17: 10680 | J17: 10695 | K17: 11055 | L17: 10950 | M17: 10785 | N17: 10635 | O17: 10005 | P17: 10515 | Q17: 10935 | R17: 10830 | S17: 11115 | T17: 10470 | U17: 10830 | V17: 11010 | W17: 11160 | X17: 11040 | Y17: 11055 | Z17: 10680 | AA17: 10650 | AB17: 10965 | AC17: 11055 | AD17: 10815 | AE17: 11430 | AF17: 10665 | AG17: 10770 | AH17: 11655 | AI17: 11505 | AJ17: 10860 | AK17: 11565 | AL17: 11190 | AM17: 11220 | AN17: 10845 | AO17: 10860 | AP17: 10890 | AQ17: 10890 | AR17: 11040 | AS17: 11280 | AT17: 10170 | AU17: 11190 | AV17: 10410 | AW17: 10530 | AX17: 10860 | AY17: 10875 | AZ17: 10980 | BA17: 11055 | BB17: 10560 | BC17: 10530 | BD17: 10290 | BE17: 11145 | BF17: 10155 | BG17: 11610 | BH17: 11610 | BI17: 10965 | BJ17: 11235 | BK17: 10455 | BL17: 10710 | BM17: 11025 | BN17: 10470 | BO17: 10485 | BP17: 11175 | BQ17: 10050 | BR17: 10740 | BS17: 10860 | BT17: 10410 | BU17: 11205 | BV17: 10830 | BW17: 10710 | BX17: 11130 | BY17: 10485 | BZ17: 11055 | CA17: 10905 | CB17: 10950 | CC17: 10395 | CD17: 10905 | CE17: 10995 | CF17: 10500 | CG17: 10740 | CH17: 10605 | CI17: 11040 | CJ17: 10455 | CK17: 10830 | CL17: 10350 | CM17: 10905 | CN17: 10995 | CO17: 10755 | CP17: 10395 | CQ17: 10665 | CR17: 10695 | CS17: 11055 | CT17: 10800 | CU17: 11190 | CV17: 10980 | CW17: 11115 | CX17: 11220 | CY17: 10320 | CZ17: 10755 | DA17: 10245 | DB17: 10835.45455 | DC17: 11655 | DD17: 10005 | DE17: 10860 | DF17: 66.43861954 | DG17: 10285.5 | DH17: 11437.5 | DI17: 0.002216603009 | DJ17: 0.0791211823
A18: Vacc Resource.NumberSeized | B18: OUTPUT VALUE | C18: Total Number Seized | D18: Resource | E18: Vacc Resource | F18: 8101 | G18: 7961 | H18: 7920 | I18: 8001 | J18: 7946 | K18: 8191 | L18: 8098 | M18: 7968 | N18: 7867 | O18: 7378 | P18: 7807 | Q18: 8073 | R18: 7977 | S18: 8229 | T18: 7729 | U18: 8140 | V18: 8236 | W18: 8246 | X18: 8142 | Y18: 8211 | Z18: 7905 | AA18: 7879 | AB18: 8079 | AC18: 8179 | AD18: 8064 | AE18: 8499 | AF18: 7813 | AG18: 7969 | AH18: 8634 | AI18: 8553 | AJ18: 8053 | AK18: 8502 | AL18: 8281 | AM18: 8357 | AN18: 8051 | AO18: 8048 | AP18: 8091 | AQ18: 7901 | AR18: 8060 | AS18: 8372 | AT18: 7470 | AU18: 8239 | AV18: 7734 | AW18: 7744 | AX18: 8105 | AY18: 8005 | AZ18: 8108 | BA18: 8145 | BB18: 7829 | BC18: 7858 | BD18: 7614 | BE18: 8232 | BF18: 7517 | BG18: 8560 | BH18: 8614 | BI18: 8112 | BJ18: 8256 | BK18: 7811 | BL18: 7879 | BM18: 8069 | BN18: 7726 | BO18: 7808 | BP18: 8296 | BQ18: 7537 | BR18: 7900 | BS18: 8003 | BT18: 7632 | BU18: 8266 | BV18: 8039 | BW18: 7834 | BX18: 8283 | BY18: 7850 | BZ18: 8155 | CA18: 8090 | CB18: 8070 | CC18: 7645 | CD18: 7943 | CE18: 8131 | CF18: 7682 | CG18: 7931 | CH18: 7827 | CI18: 8131 | CJ18: 7694 | CK18: 8077 | CL18: 7610 | CM18: 8109 | CN18: 8176 | CO18: 7941 | CP18: 7666 | CQ18: 7913 | CR18: 7895 | CS18: 8167 | CT18: 7942 | CU18: 8268 | CV18: 8081 | CW18: 8128 | CX18: 8237 | CY18: 7698 | CZ18: 7998 | DA18: 7573 | DB18: 8012.757576 | DC18: 8634 | DD18: 7378 | DE18: 8048 | DF18: 49.48289389 | DG18: 7606.3 | DH18: 8499.3 | DI18: 0.03262060222 | DJ18: 0.1056287393
A19: Vacc Resource.ScheduledUtilization | B19: OUTPUT VALUE | C19: Scheduled Utilization | D19: Resource | E19: Vacc Resource | F19: 0.702148898 | G19: 0.6909528268 | H19: 0.678433599 | I19: 0.6910936792 | J19: 0.6874671856 | K19: 0.7091206853 | L19: 0.6968430984 | M19: 0.683904868 | N19: 0.6807225505 | O19: 0.637315576 | P19: 0.6769353302 | Q19: 0.6923147466 | R19: 0.6873160913 | S19: 0.7100028648 | T19: 0.6675458484 | U19: 0.705294242 | V19: 0.7123128503 | W19: 0.7096358456 | X19: 0.6987589909 | Y19: 0.704231559 | Z19: 0.6813762968 | AA19: 0.6783499084 | AB19: 0.698691985 | AC19: 0.705957919 | AD19: 0.6938485514 | AE19: 0.7300959563 | AF19: 0.6762667889 | AG19: 0.685840835 | AH19: 0.7437122192 | AI19: 0.7357636286 | AJ19: 0.6942810946 | AK19: 0.7288551955 | AL19: 0.7097588141 | AM19: 0.722929444 | AN19: 0.6954575133 | AO19: 0.6957232055 | AP19: 0.6987599004 | AQ19: 0.6834398914 | AR19: 0.6930576437 | AS19: 0.7283127253 | AT19: 0.6457594385 | AU19: 0.7098388858 | AV19: 0.667899897 | AW19: 0.6692837067 | AX19: 0.6906619677 | AY19: 0.6897574681 | AZ19: 0.6986860015 | BA19: 0.7003987378 | BB19: 0.6768474543 | BC19: 0.6810097237 | BD19: 0.6494141966 | BE19: 0.7146804007 | BF19: 0.6426348771 | BG19: 0.7376146674 | BH19: 0.7460683724 | BI19: 0.6987227754 | BJ19: 0.7125019493 | BK19: 0.6716308702 | BL19: 0.6767224076 | BM19: 0.6965262782 | BN19: 0.6671560687 | BO19: 0.671852025 | BP19: 0.7140118175 | BQ19: 0.6512417248 | BR19: 0.6801498773 | BS19: 0.6891253808 | BT19: 0.66298575 | BU19: 0.7132034857 | BV19: 0.6894782301 | BW19: 0.6783286228 | BX19: 0.7101786762 | BY19: 0.675667232 | BZ19: 0.7033726235 | CA19: 0.6993122705 | CB19: 0.6957941364 | CC19: 0.6553593707 | CD19: 0.6874543768 | CE19: 0.7019677774 | CF19: 0.6613500421 | CG19: 0.6864060295 | CH19: 0.6690556327 | CI19: 0.7042618699 | CJ19: 0.66409163 | CK19: 0.6923962663 | CL19: 0.654581964 | CM19: 0.6992337815 | CN19: 0.7007419518 | CO19: 0.6846804662 | CP19: 0.6679512328 | CQ19: 0.682777355 | CR19: 0.6771337905 | CS19: 0.6997660556 | CT19: 0.6879660289 | CU19: 0.7115979004 | CV19: 0.6985535095 | CW19: 0.7027485827 | CX19: 0.6994338968 | CY19: 0.6642930404 | CZ19: 0.6925185494 | DA19: 0.6514491854 | DB19: 0.6906764671 | DC19: 0.7460683724 | DD19: 0.637315576 | DE19: 0.6923147466 | DF19: 0.004258509634 | DG19: 0.6514284394 | DH19: 0.7289792716 | DI19: 0.02244770703 | DJ19: 0.2204593316
A20: Verify Appt Resource.NumberSeized | B20: OUTPUT VALUE | C20: Total Number Seized | D20: Resource | E20: Verify Appt Resource | F20: 0 | G20: 0 | H20: 0 | I20: 0 | J20: 0 | K20: 0 | L20: 0 | M20: 0 | N20: 0 | O20: 0 | P20: 0 | Q20: 0 | R20: 0 | S20: 0 | T20: 0 | U20: 0 | V20: 0 | W20: 0 | X20: 0 | Y20: 0 | Z20: 0 | AA20: 0 | AB20: 0 | AC20: 0 | AD20: 0 | AE20: 0 | AF20: 0 | AG20: 0 | AH20: 0 | AI20: 0 | AJ20: 0 | AK20: 0 | AL20: 0 | AM20: 0 | AN20: 0 | AO20: 0 | AP20: 0 | AQ20: 0 | AR20: 0 | AS20: 0 | AT20: 0 | AU20: 0 | AV20: 0 | AW20: 0 | AX20: 0 | AY20: 0 | AZ20: 0 | BA20: 0 | BB20: 0 | BC20: 0 | BD20: 0 | BE20: 0 | BF20: 0 | BG20: 0 | BH20: 0 | BI20: 0 | BJ20: 0 | BK20: 0 | BL20: 0 | BM20: 0 | BN20: 0 | BO20: 0 | BP20: 0 | BQ20: 0 | BR20: 0 | BS20: 0 | BT20: 0 | BU20: 0 | BV20: 0 | BW20: 0 | BX20: 0 | BY20: 0 | BZ20: 0 | CA20: 0 | CB20: 0 | CC20: 0 | CD20: 0 | CE20: 0 | CF20: 0 | CG20: 0 | CH20: 0 | CI20: 0 | CJ20: 0 | CK20: 0 | CL20: 0 | CM20: 0 | CN20: 0 | CO20: 0 | CP20: 0 | CQ20: 0 | CR20: 0 | CS20: 0 | CT20: 0 | CU20: 0 | CV20: 0 | CW20: 0 | CX20: 0 | CY20: 0 | CZ20: 0 | DA20: 0 | DB20: 0 | DC20: 0 | DD20: 0 | DE20: 0 | DG20: 0 | DH20: 0
A21: Verify Appt Resource.ScheduledUtilization | B21: OUTPUT VALUE | C21: Scheduled Utilization | D21: Resource | E21: Verify Appt Resource | F21: 0 | G21: 0 | H21: 0 | I21: 0 | J21: 0 | K21: 0 | L21: 0 | M21: 0 | N21: 0 | O21: 0 | P21: 0 | Q21: 0 | R21: 0 | S21: 0 | T21: 0 | U21: 0 | V21: 0 | W21: 0 | X21: 0 | Y21: 0 | Z21: 0 | AA21: 0 | AB21: 0 | AC21: 0 | AD21: 0 | AE21: 0 | AF21: 0 | AG21: 0 | AH21: 0 | AI21: 0 | AJ21: 0 | AK21: 0 | AL21: 0 | AM21: 0 | AN21: 0 | AO21: 0 | AP21: 0 | AQ21: 0 | AR21: 0 | AS21: 0 | AT21: 0 | AU21: 0 | AV21: 0 | AW21: 0 | AX21: 0 | AY21: 0 | AZ21: 0 | BA21: 0 | BB21: 0 | BC21: 0 | BD21: 0 | BE21: 0 | BF21: 0 | BG21: 0 | BH21: 0 | BI21: 0 | BJ21: 0 | BK21: 0 | BL21: 0 | BM21: 0 | BN21: 0 | BO21: 0 | BP21: 0 | BQ21: 0 | BR21: 0 | BS21: 0 | BT21: 0 | BU21: 0 | BV21: 0 | BW21: 0 | BX21: 0 | BY21: 0 | BZ21: 0 | CA21: 0 | CB21: 0 | CC21: 0 | CD21: 0 | CE21: 0 | CF21: 0 | CG21: 0 | CH21: 0 | CI21: 0 | CJ21: 0 | CK21: 0 | CL21: 0 | CM21: 0 | CN21: 0 | CO21: 0 | CP21: 0 | CQ21: 0 | CR21: 0 | CS21: 0 | CT21: 0 | CU21: 0 | CV21: 0 | CW21: 0 | CX21: 0 | CY21: 0 | CZ21: 0 | DA21: 0 | DB21: 0 | DC21: 0 | DD21: 0 | DE21: 0 | DG21: 0 | DH21: 0
A22: Waiting Room Resource.NumberSeized | B22: OUTPUT VALUE | C22: Total Number Seized | D22: Resource | E22: Waiting Room Resource | F22: 10905 | G22: 10725 | H22: 10665 | I22: 10680 | J22: 10695 | K22: 11055 | L22: 10950 | M22: 10785 | N22: 10635 | O22: 10005 | P22: 10515 | Q22: 10935 | R22: 10830 | S22: 11115 | T22: 10470 | U22: 10830 | V22: 11010 | W22: 11160 | X22: 11040 | Y22: 11055 | Z22: 10680 | AA22: 10650 | AB22: 10965 | AC22: 11055 | AD22: 10815 | AE22: 11430 | AF22: 10665 | AG22: 10770 | AH22: 11655 | AI22: 11505 | AJ22: 10860 | AK22: 11565 | AL22: 11190 | AM22: 11220 | AN22: 10845 | AO22: 10860 | AP22: 10890 | AQ22: 10890 | AR22: 11040 | AS22: 11280 | AT22: 10170 | AU22: 11190 | AV22: 10410 | AW22: 10530 | AX22: 10860 | AY22: 10875 | AZ22: 10980 | BA22: 11055 | BB22: 10560 | BC22: 10530 | BD22: 10290 | BE22: 11145 | BF22: 10155 | BG22: 11610 | BH22: 11610 | BI22: 10965 | BJ22: 11235 | BK22: 10455 | BL22: 10710 | BM22: 11025 | BN22: 10470 | BO22: 10485 | BP22: 11175 | BQ22: 10050 | BR22: 10740 | BS22: 10860 | BT22: 10410 | BU22: 11205 | BV22: 10830 | BW22: 10710 | BX22: 11130 | BY22: 10485 | BZ22: 11055 | CA22: 10905 | CB22: 10950 | CC22: 10395 | CD22: 10905 | CE22: 10995 | CF22: 10500 | CG22: 10740 | CH22: 10605 | CI22: 11040 | CJ22: 10455 | CK22: 10830 | CL22: 10350 | CM22: 10905 | CN22: 10995 | CO22: 10755 | CP22: 10395 | CQ22: 10665 | CR22: 10695 | CS22: 11055 | CT22: 10800 | CU22: 11190 | CV22: 10980 | CW22: 11115 | CX22: 11220 | CY22: 10320 | CZ22: 10755 | DA22: 10245 | DB22: 10835.45455 | DC22: 11655 | DD22: 10005 | DE22: 10860 | DF22: 66.43861954 | DG22: 10285.5 | DH22: 11437.5 | DI22: 0.002216603009 | DJ22: 0.0791211823
A23: Waiting Room Resource.ScheduledUtilization | B23: OUTPUT VALUE | C23: Scheduled Utilization | D23: Resource | E23: Waiting Room Resource | F23: 0.6040163144 | G23: 0.5889267689 | H23: 0.58504602 | I23: 0.5902761125 | J23: 0.5873899269 | K23: 0.6072367655 | L23: 0.5969561521 | M23: 0.5895163631 | N23: 0.585433171 | O23: 0.5447956027 | P23: 0.5806940327 | Q23: 0.5964498137 | R23: 0.591541586 | S23: 0.6095855917 | T23: 0.5741189885 | U23: 0.5970777168 | V23: 0.6042380325 | W23: 0.6121540227 | X23: 0.6079561609 | Y23: 0.609079035 | Z23: 0.5874043206 | AA23: 0.587000911 | AB23: 0.5953648254 | AC23: 0.6050751881 | AD23: 0.5930178846 | AE23: 0.6286976083 | AF23: 0.586304883 | AG23: 0.5882986453 | AH23: 0.634724333 | AI23: 0.6292868499 | AJ23: 0.5967674166 | AK23: 0.6313659517 | AL23: 0.6107365525 | AM23: 0.6178671164 | AN23: 0.5935209592 | AO23: 0.6000184473 | AP23: 0.6017892412 | AQ23: 0.5990863697 | AR23: 0.6026027236 | AS23: 0.6222870213 | AT23: 0.561816001 | AU23: 0.615430699 | AV23: 0.5704486005 | AW23: 0.5773896478 | AX23: 0.591562739 | AY23: 0.5934557814 | AZ23: 0.6027260387 | BA23: 0.6081797273 | BB23: 0.5819969985 | BC23: 0.5811328889 | BD23: 0.5669853336 | BE23: 0.6162745071 | BF23: 0.5560397992 | BG23: 0.6357017655 | BH23: 0.6366897158 | BI23: 0.604981003 | BJ23: 0.6206938094 | BK23: 0.5678248925 | BL23: 0.5861138551 | BM23: 0.6038771762 | BN23: 0.5783940023 | BO23: 0.5762519747 | BP23: 0.6150746888 | BQ23: 0.549801751 | BR23: 0.5888901481 | BS23: 0.5920923015 | BT23: 0.5752882544 | BU23: 0.6173740605 | BV23: 0.5921609985 | BW23: 0.585907288 | BX23: 0.6069007753 | BY23: 0.5742488842 | BZ23: 0.6096609762 | CA23: 0.5996642823 | CB23: 0.6026252738 | CC23: 0.5700679029 | CD23: 0.5995246951 | CE23: 0.6044212866 | CF23: 0.5776174725 | CG23: 0.5934052399 | CH23: 0.5798546683 | CI23: 0.6066730746 | CJ23: 0.5748709053 | CK23: 0.5949159315 | CL23: 0.5700339926 | CM23: 0.5993951627 | CN23: 0.6033977462 | CO23: 0.5909173348 | CP23: 0.5748842609 | CQ23: 0.5809342591 | CR23: 0.5860106055 | CS23: 0.6033371649 | CT23: 0.5982305063 | CU23: 0.6123166529 | CV23: 0.6047840401 | CW23: 0.610872961 | CX23: 0.6089964805 | CY23: 0.5656533659 | CZ23: 0.5904278774 | DA23: 0.5619976728 | DB23: 0.5947160304 | DC23: 0.6366897158 | DD23: 0.5447956027 | DE23: 0.5949159315 | DF23: 0.003620080488 | DG23: 0.5652877966 | DH23: 0.6287565324 | DI23: -0.09149536918 | DJ23: 0.1110104391
A24: Watch Resource Chair.NumberSeized | B24: OUTPUT VALUE | C24: Total Number Seized | D24: Resource | E24: Watch Resource Chair | F24: 8101 | G24: 7961 | H24: 7920 | I24: 8001 | J24: 7946 | K24: 8191 | L24: 8098 | M24: 7968 | N24: 7867 | O24: 7378 | P24: 7807 | Q24: 8073 | R24: 7977 | S24: 8229 | T24: 7729 | U24: 8140 | V24: 8236 | W24: 8246 | X24: 8142 | Y24: 8211 | Z24: 7905 | AA24: 7879 | AB24: 8079 | AC24: 8179 | AD24: 8064 | AE24: 8499 | AF24: 7813 | AG24: 7969 | AH24: 8634 | AI24: 8553 | AJ24: 8053 | AK24: 8502 | AL24: 8281 | AM24: 8357 | AN24: 8051 | AO24: 8048 | AP24: 8091 | AQ24: 7901 | AR24: 8060 | AS24: 8372 | AT24: 7470 | AU24: 8239 | AV24: 7734 | AW24: 7744 | AX24: 8105 | AY24: 8005 | AZ24: 8108 | BA24: 8145 | BB24: 7829 | BC24: 7858 | BD24: 7614 | BE24: 8232 | BF24: 7517 | BG24: 8560 | BH24: 8614 | BI24: 8112 | BJ24: 8256 | BK24: 7811 | BL24: 7879 | BM24: 8069 | BN24: 7726 | BO24: 7808 | BP24: 8296 | BQ24: 7537 | BR24: 7900 | BS24: 8003 | BT24: 7632 | BU24: 8266 | BV24: 8039 | BW24: 7834 | BX24: 8283 | BY24: 7850 | BZ24: 8155 | CA24: 8090 | CB24: 8070 | CC24: 7645 | CD24: 7943 | CE24: 8131 | CF24: 7682 | CG24: 7931 | CH24: 7827 | CI24: 8131 | CJ24: 7694 | CK24: 8077 | CL24: 7610 | CM24: 8109 | CN24: 8176 | CO24: 7941 | CP24: 7666 | CQ24: 7913 | CR24: 7895 | CS24: 8167 | CT24: 7942 | CU24: 8268 | CV24: 8081 | CW24: 8128 | CX24: 8237 | CY24: 7698 | CZ24: 7998 | DA24: 7573 | DB24: 8012.757576 | DC24: 8634 | DD24: 7378 | DE24: 8048 | DF24: 49.48289389 | DG24: 7606.3 | DH24: 8499.3 | DI24: 0.03262060222 | DJ24: 0.1056287393
A25: Watch Resource.NumberSeized | B25: OUTPUT VALUE | C25: Total Number Seized | D25: Resource | E25: Watch Resource | F25: 1 | G25: 1 | H25: 1 | I25: 1 | J25: 1 | K25: 1 | L25: 1 | M25: 1 | N25: 1 | O25: 1 | P25: 1 | Q25: 1 | R25: 1 | S25: 1 | T25: 1 | U25: 1 | V25: 1 | W25: 1 | X25: 1 | Y25: 1 | Z25: 1 | AA25: 1 | AB25: 1 | AC25: 1 | AD25: 1 | AE25: 1 | AF25: 1 | AG25: 1 | AH25: 1 | AI25: 1 | AJ25: 1 | AK25: 1 | AL25: 1 | AM25: 1 | AN25: 1 | AO25: 1 | AP25: 1 | AQ25: 1 | AR25: 1 | AS25: 1 | AT25: 1 | AU25: 1 | AV25: 1 | AW25: 1 | AX25: 1 | AY25: 1 | AZ25: 1 | BA25: 1 | BB25: 1 | BC25: 1 | BD25: 1 | BE25: 1 | BF25: 1 | BG25: 1 | BH25: 1 | BI25: 1 | BJ25: 1 | BK25: 1 | BL25: 1 | BM25: 1 | BN25: 1 | BO25: 1 | BP25: 1 | BQ25: 1 | BR25: 1 | BS25: 1 | BT25: 1 | BU25: 1 | BV25: 1 | BW25: 1 | BX25: 1 | BY25: 1 | BZ25: 1 | CA25: 1 | CB25: 1 | CC25: 1 | CD25: 1 | CE25: 1 | CF25: 1 | CG25: 1 | CH25: 1 | CI25: 1 | CJ25: 1 | CK25: 1 | CL25: 1 | CM25: 1 | CN25: 1 | CO25: 1 | CP25: 1 | CQ25: 1 | CR25: 1 | CS25: 1 | CT25: 1 | CU25: 1 | CV25: 1 | CW25: 1 | CX25: 1 | CY25: 1 | CZ25: 1 | DA25: 1 | DB25: 1 | DC25: 1 | DD25: 1 | DE25: 1 | DG25: 1 | DH25: 1
A26: Watch Resource.ScheduledUtilization | B26: OUTPUT VALUE | C26: Scheduled Utilization | D26: Resource | E26: Watch Resource | F26: 0.9878405041 | G26: 0.9830451945 | H26: 0.9789614942 | I26: 0.9837618944 | J26: 0.9845037039 | K26: 0.9889112014 | L26: 0.9772802577 | M26: 0.9852851389 | N26: 0.9774414455 | O26: 0.9833648709 | P26: 0.9841587582 | Q26: 0.9802412667 | R26: 0.9745130477 | S26: 0.9807059826 | T26: 0.9821159244 | U26: 0.981178204 | V26: 0.9848496198 | W26: 0.9790052004 | X26: 0.984160387 | Y26: 0.9823757868 | Z26: 0.9818080263 | AA26: 0.9777917998 | AB26: 0.979551371 | AC26: 0.9793273465 | AD26: 0.9834861893 | AE26: 0.9864683779 | AF26: 0.9867395835 | AG26: 0.9806232941 | AH26: 0.9751860266 | AI26: 0.9851555825 | AJ26: 0.977892451 | AK26: 0.9759559429 | AL26: 0.9773236507 | AM26: 0.9814013779 | AN26: 0.9788154208 | AO26: 0.9877017032 | AP26: 0.9878662047 | AQ26: 0.9798135193 | AR26: 0.9732757016 | AS26: 0.9854736337 | AT26: 0.9822949761 | AU26: 0.9822348503 | AV26: 0.9838896707 | AW26: 0.9771359076 | AX26: 0.9785859342 | AY26: 0.9799255811 | AZ26: 0.9735322241 | BA26: 0.9881827511 | BB26: 0.9797996218 | BC26: 0.9828216732 | BD26: 0.9777310121 | BE26: 0.9860584748 | BF26: 0.9802120041 | BG26: 0.9790489501 | BH26: 0.9864765434 | BI26: 0.9858747736 | BJ26: 0.9862276669 | BK26: 0.9787723854 | BL26: 0.9797074551 | BM26: 0.9827626076 | BN26: 0.9818354533 | BO26: 0.9808920132 | BP26: 0.986232926 | BQ26: 0.9829334073 | BR26: 0.9815359116 | BS26: 0.985517616 | BT26: 0.98383207 | BU26: 0.9816638418 | BV26: 0.9823971756 | BW26: 0.9839774706 | BX26: 0.9781637904 | BY26: 0.9747655108 | BZ26: 0.9734181675 | CA26: 0.9796386382 | CB26: 0.9804996227 | CC26: 0.9734485278 | CD26: 0.988145621 | CE26: 0.9772335895 | CF26: 0.9792984294 | CG26: 0.9814952453 | CH26: 0.9814087694 | CI26: 0.986812127 | CJ26: 0.9802699153 | CK26: 0.9844644511 | CL26: 0.9757780509 | CM26: 0.9778535942 | CN26: 0.9828243338 | CO26: 0.9774743519 | CP26: 0.9887581138 | CQ26: 0.9842182896 | CR26: 0.9770480758 | CS26: 0.9761299133 | CT26: 0.9842162523 | CU26: 0.9797293229 | CV26: 0.9857858752 | CW26: 0.9813743707 | CX26: 0.9780096866 | CY26: 0.9791843882 | CZ26: 0.9867979314 | DA26: 0.9796160664 | DB26: 0.9813481874 | DC26: 0.9889112014 | DD26: 0.9732757016 | DE26: 0.9814013779 | DF26: 0.0007499952572 | DG26: 0.9747402645 | DH26: 0.9877181534 | DI26: -0.06435874742 | DJ26: -0.6463705915
A27: ADA Process Watch.Queue.NumberInQueue | B27: DSTAT AVERAGE | C27: Number Waiting | D27: Queue | E27: ADA Process Watch.Queue | F27: 0 | G27: 0 | H27: 0 | I27: 0 | J27: 0 | K27: 0 | L27: 0 | M27: 0 | N27: 0 | O27: 0 | P27: 0 | Q27: 0 | R27: 0 | S27: 0 | T27: 0 | U27: 0 | V27: 0 | W27: 0 | X27: 0 | Y27: 0 | Z27: 0 | AA27: 0 | AB27: 0 | AC27: 0 | AD27: 0 | AE27: 0 | AF27: 0 | AG27: 0 | AH27: 0 | AI27: 0 | AJ27: 0 | AK27: 0 | AL27: 0 | AM27: 0 | AN27: 0 | AO27: 0 | AP27: 0 | AQ27: 0 | AR27: 0 | AS27: 0 | AT27: 0 | AU27: 0 | AV27: 0 | AW27: 0 | AX27: 0 | AY27: 0 | AZ27: 0 | BA27: 0 | BB27: 0 | BC27: 0 | BD27: 0 | BE27: 0 | BF27: 0 | BG27: 0 | BH27: 0 | BI27: 0 | BJ27: 0 | BK27: 0 | BL27: 0 | BM27: 0 | BN27: 0 | BO27: 0 | BP27: 0 | BQ27: 0 | BR27: 0 | BS27: 0 | BT27: 0 | BU27: 0 | BV27: 0 | BW27: 0 | BX27: 0 | BY27: 0 | BZ27: 0 | CA27: 0 | CB27: 0 | CC27: 0 | CD27: 0 | CE27: 0 | CF27: 0 | CG27: 0 | CH27: 0 | CI27: 0 | CJ27: 0 | CK27: 0 | CL27: 0 | CM27: 0 | CN27: 0 | CO27: 0 | CP27: 0 | CQ27: 0 | CR27: 0 | CS27: 0 | CT27: 0 | CU27: 0 | CV27: 0 | CW27: 0 | CX27: 0 | CY27: 0 | CZ27: 0 | DA27: 0 | DB27: 0 | DC27: 0 | DD27: 0 | DE27: 0 | DG27: 0 | DH27: 0
A28: ADA Process Watch.Queue.WaitingTime | B28: TALLY AVERAGE | C28: Waiting Time | D28: Queue | E28: ADA Process Watch.Queue | F28: 0 | G28: 0 | H28: 0 | I28: 0 | J28: 0 | K28: 0 | L28: 0 | M28: 0 | N28: 0 | O28: 0 | P28: 0 | Q28: 0 | R28: 0 | S28: 0 | T28: 0 | U28: 0 | V28: 0 | W28: 0 | X28: 0 | Y28: 0 | Z28: 0 | AA28: 0 | AB28: 0 | AC28: 0 | AD28: 0 | AE28: 0 | AF28: 0 | AG28: 0 | AH28: 0 | AI28: 0 | AJ28: 0 | AK28: 0 | AL28: 0 | AM28: 0 | AN28: 0 | AO28: 0 | AP28: 0 | AQ28: 0 | AR28: 0 | AS28: 0 | AT28: 0 | AU28: 0 | AV28: 0 | AW28: 0 | AX28: 0 | AY28: 0 | AZ28: 0 | BA28: 0 | BB28: 0 | BC28: 0 | BD28: 0 | BE28: 0 | BF28: 0 | BG28: 0 | BH28: 0 | BI28: 0 | BJ28: 0 | BK28: 0 | BL28: 0 | BM28: 0 | BN28: 0 | BO28: 0 | BP28: 0 | BQ28: 0 | BR28: 0 | BS28: 0 | BT28: 0 | BU28: 0 | BV28: 0 | BW28: 0 | BX28: 0 | BY28: 0 | BZ28: 0 | CA28: 0 | CB28: 0 | CC28: 0 | CD28: 0 | CE28: 0 | CF28: 0 | CG28: 0 | CH28: 0 | CI28: 0 | CJ28: 0 | CK28: 0 | CL28: 0 | CM28: 0 | CN28: 0 | CO28: 0 | CP28: 0 | CQ28: 0 | CR28: 0 | CS28: 0 | CT28: 0 | CU28: 0 | CV28: 0 | CW28: 0 | CX28: 0 | CY28: 0 | CZ28: 0 | DA28: 0 | DB28: 0 | DC28: 0 | DD28: 0 | DE28: 0 | DG28: 0 | DH28: 0
A29: ADA Seize Watcher.Queue.NumberInQueue | B29: DSTAT AVERAGE | C29: Number Waiting | D29: Queue | E29: ADA Seize Watcher.Queue | F29: 0 | G29: 0 | H29: 0 | I29: 0 | J29: 0 | K29: 0 | L29: 0 | M29: 0 | N29: 0 | O29: 0 | P29: 0 | Q29: 0 | R29: 0 | S29: 0 | T29: 0 | U29: 0 | V29: 0 | W29: 0 | X29: 0 | Y29: 0 | Z29: 0 | AA29: 0 | AB29: 0 | AC29: 0 | AD29: 0 | AE29: 0 | AF29: 0 | AG29: 0 | AH29: 0 | AI29: 0 | AJ29: 0 | AK29: 0 | AL29: 0 | AM29: 0 | AN29: 0 | AO29: 0 | AP29: 0 | AQ29: 0 | AR29: 0 | AS29: 0 | AT29: 0 | AU29: 0 | AV29: 0 | AW29: 0 | AX29: 0 | AY29: 0 | AZ29: 0 | BA29: 0 | BB29: 0 | BC29: 0 | BD29: 0 | BE29: 0 | BF29: 0 | BG29: 0 | BH29: 0 | BI29: 0 | BJ29: 0 | BK29: 0 | BL29: 0 | BM29: 0 | BN29: 0 | BO29: 0 | BP29: 0 | BQ29: 0 | BR29: 0 | BS29: 0 | BT29: 0 | BU29: 0 | BV29: 0 | BW29: 0 | BX29: 0 | BY29: 0 | BZ29: 0 | CA29: 0 | CB29: 0 | CC29: 0 | CD29: 0 | CE29: 0 | CF29: 0 | CG29: 0 | CH29: 0 | CI29: 0 | CJ29: 0 | CK29: 0 | CL29: 0 | CM29: 0 | CN29: 0 | CO29: 0 | CP29: 0 | CQ29: 0 | CR29: 0 | CS29: 0 | CT29: 0 | CU29: 0 | CV29: 0 | CW29: 0 | CX29: 0 | CY29: 0 | CZ29: 0 | DA29: 0 | DB29: 0 | DC29: 0 | DD29: 0 | DE29: 0 | DG29: 0 | DH29: 0
A30: ADA Seize Watcher.Queue.WaitingTime | B30: TALLY AVERAGE | C30: Waiting Time | D30: Queue | E30: ADA Seize Watcher.Queue | F30: 0 | G30: 0 | H30: 0 | I30: 0 | J30: 0 | K30: 0 | L30: 0 | M30: 0 | N30: 0 | O30: 0 | P30: 0 | Q30: 0 | R30: 0 | S30: 0 | T30: 0 | U30: 0 | V30: 0 | W30: 0 | X30: 0 | Y30: 0 | Z30: 0 | AA30: 0 | AB30: 0 | AC30: 0 | AD30: 0 | AE30: 0 | AF30: 0 | AG30: 0 | AH30: 0 | AI30: 0 | AJ30: 0 | AK30: 0 | AL30: 0 | AM30: 0 | AN30: 0 | AO30: 0 | AP30: 0 | AQ30: 0 | AR30: 0 | AS30: 0 | AT30: 0 | AU30: 0 | AV30: 0 | AW30: 0 | AX30: 0 | AY30: 0 | AZ30: 0 | BA30: 0 | BB30: 0 | BC30: 0 | BD30: 0 | BE30: 0 | BF30: 0 | BG30: 0 | BH30: 0 | BI30: 0 | BJ30: 0 | BK30: 0 | BL30: 0 | BM30: 0 | BN30: 0 | BO30: 0 | BP30: 0 | BQ30: 0 | BR30: 0 | BS30: 0 | BT30: 0 | BU30: 0 | BV30: 0 | BW30: 0 | BX30: 0 | BY30: 0 | BZ30: 0 | CA30: 0 | CB30: 0 | CC30: 0 | CD30: 0 | CE30: 0 | CF30: 0 | CG30: 0 | CH30: 0 | CI30: 0 | CJ30: 0 | CK30: 0 | CL30: 0 | CM30: 0 | CN30: 0 | CO30: 0 | CP30: 0 | CQ30: 0 | CR30: 0 | CS30: 0 | CT30: 0 | CU30: 0 | CV30: 0 | CW30: 0 | CX30: 0 | CY30: 0 | CZ30: 0 | DA30: 0 | DB30: 0 | DC30: 0 | DD30: 0 | DE30: 0 | DG30: 0 | DH30: 0
A31: ADA Vacc Resource.NumberBusy | B31: DSTAT AVERAGE | C31: Number Busy | D31: Resource | E31: ADA Vacc Resource | F31: 19.29293022 | G31: 18.89288208 | H31: 18.42648182 | I31: 18.21964546 | J31: 18.73979742 | K31: 19.65461313 | L31: 19.27196957 | M31: 19.17256979 | N31: 18.91038024 | O31: 17.83989972 | P31: 18.33280278 | Q31: 19.35249346 | R31: 19.49938929 | S31: 19.55109902 | T31: 18.52178874 | U31: 18.19417407 | V31: 18.85043393 | W31: 19.98823794 | X31: 19.62717286 | Y31: 19.24603245 | Z31: 18.96136615 | AA31: 18.80136314 | AB31: 19.25034833 | AC31: 19.40044601 | AD31: 18.66865537 | AE31: 19.96673478 | AF31: 19.26413954 | AG31: 19.11504207 | AH31: 20.66201102 | AI31: 19.85494013 | AJ31: 19.03434467 | AK31: 20.68649592 | AL31: 19.71320976 | AM31: 19.4351932 | AN31: 19.09234988 | AO31: 19.09329799 | AP31: 18.89706844 | AQ31: 20.57651115 | AR31: 20.03630033 | AS31: 20.05662209 | AT31: 18.24584528 | AU31: 20.01584159 | AV31: 18.3265465 | AW31: 18.92756135 | AX31: 18.52206331 | AY31: 19.33523431 | AZ31: 19.44889571 | BA31: 19.600512 | BB31: 18.55036306 | BC31: 18.04432773 | BD31: 18.0855793 | BE31: 19.9907926 | BF31: 17.83047001 | BG31: 20.75832363 | BH31: 20.33471399 | BI31: 19.31874212 | BJ31: 20.19608748 | BK31: 17.65703659 | BL31: 19.19414846 | BM31: 20.25017905 | BN31: 18.73787887 | BO31: 18.2577422 | BP31: 19.53578188 | BQ31: 17.0974075 | BR31: 19.30914825 | BS31: 19.33393425 | BT31: 18.76035242 | BU31: 20.05254415 | BV31: 18.85835916 | BW31: 19.61272488 | BX31: 18.96023557 | BY31: 17.73665285 | BZ31: 19.70205447 | CA31: 19.33192435 | CB31: 19.53643829 | CC31: 18.58631673 | CD31: 20.2508085 | CE31: 19.44493006 | CF31: 19.18176786 | CG31: 19.47641879 | CH31: 18.86369017 | CI31: 19.88372615 | CJ31: 18.98250369 | CK31: 18.84037801 | CL31: 18.79636602 | CM31: 18.8223315 | CN31: 18.99558383 | CO31: 19.17082756 | CP31: 18.69773852 | CQ31: 18.5432824 | CR31: 18.99684693 | CS31: 19.31686884 | CT31: 19.44795808 | CU31: 19.80943679 | CV31: 19.7271048 | CW31: 20.26414161 | CX31: 20.00806355 | CY31: 17.86464545 | CZ31: 18.80593404 | DA31: 18.21566493 | DB31: 19.1647281 | DC31: 20.75832363 | DD31: 17.0974075 | DE31: 19.18176786 | DF31: 0.1422108988 | DG31: 17.86217088 | DH31: 20.27119885 | DI31: -0.1346896434 | DJ31: -0.05055954164
A32: ADA Vacc Resource.NumberScheduled | B32: DSTAT AVERAGE | C32: Number Scheduled | D32: Resource | E32: ADA Vacc Resource | F32: 27 | G32: 27 | H32: 27 | I32: 27 | J32: 27 | K32: 27 | L32: 27 | M32: 27 | N32: 27 | O32: 27 | P32: 27 | Q32: 27 | R32: 27 | S32: 27 | T32: 27 | U32: 27 | V32: 27 | W32: 27 | X32: 27 | Y32: 27 | Z32: 27 | AA32: 27 | AB32: 27 | AC32: 27 | AD32: 27 | AE32: 27 | AF32: 27 | AG32: 27 | AH32: 27 | AI32: 27 | AJ32: 27 | AK32: 27 | AL32: 27 | AM32: 27 | AN32: 27 | AO32: 27 | AP32: 27 | AQ32: 27 | AR32: 27 | AS32: 27 | AT32: 27 | AU32: 27 | AV32: 27 | AW32: 27 | AX32: 27 | AY32: 27 | AZ32: 27 | BA32: 27 | BB32: 27 | BC32: 27 | BD32: 27 | BE32: 27 | BF32: 27 | BG32: 27 | BH32: 27 | BI32: 27 | BJ32: 27 | BK32: 27 | BL32: 27 | BM32: 27 | BN32: 27 | BO32: 27 | BP32: 27 | BQ32: 27 | BR32: 27 | BS32: 27 | BT32: 27 | BU32: 27 | BV32: 27 | BW32: 27 | BX32: 27 | BY32: 27 | BZ32: 27 | CA32: 27 | CB32: 27 | CC32: 27 | CD32: 27 | CE32: 27 | CF32: 27 | CG32: 27 | CH32: 27 | CI32: 27 | CJ32: 27 | CK32: 27 | CL32: 27 | CM32: 27 | CN32: 27 | CO32: 27 | CP32: 27 | CQ32: 27 | CR32: 27 | CS32: 27 | CT32: 27 | CU32: 27 | CV32: 27 | CW32: 27 | CX32: 27 | CY32: 27 | CZ32: 27 | DA32: 27 | DB32: 27 | DC32: 27 | DD32: 27 | DE32: 27 | DG32: 27 | DH32: 27
A33: ADA Vacc Resource.Utilization | B33: DSTAT AVERAGE | C33: Instantaneous Utilization | D33: Resource | E33: ADA Vacc Resource | F33: 0.7145529709 | G33: 0.6997363732 | H33: 0.6824622898 | I33: 0.6748016837 | J33: 0.694066571 | K33: 0.7279486345 | L33: 0.7137766508 | M33: 0.7100951775 | N33: 0.7003844533 | O33: 0.6607370266 | P33: 0.6789926954 | Q33: 0.7167590169 | R33: 0.7221996035 | S33: 0.7241147784 | T33: 0.6859921754 | U33: 0.6738582989 | V33: 0.6981642198 | W33: 0.7403051089 | X33: 0.7269323282 | Y33: 0.7128160168 | Z33: 0.7022728203 | AA33: 0.6963467828 | AB33: 0.712975864 | AC33: 0.7185350373 | AD33: 0.6914316804 | AE33: 0.7395086956 | AF33: 0.7134866495 | AG33: 0.7079645211 | AH33: 0.7652596675 | AI33: 0.735368153 | AJ33: 0.7049757284 | AK33: 0.7661665156 | AL33: 0.73011888 | AM33: 0.7198219704 | AN33: 0.7071240696 | AO33: 0.707159185 | AP33: 0.6998914238 | AQ33: 0.7620930055 | AR33: 0.7420851974 | AS33: 0.7428378552 | AT33: 0.6757720476 | AU33: 0.7413274663 | AV33: 0.6787609816 | AW33: 0.7010207908 | AX33: 0.6860023447 | AY33: 0.7161197894 | AZ33: 0.7203294707 | BA33: 0.7259448889 | BB33: 0.6870504836 | BC33: 0.6683084345 | BD33: 0.6698362703 | BE33: 0.7403997259 | BF33: 0.6603877782 | BG33: 0.7688268012 | BH33: 0.7531375553 | BI33: 0.7155089674 | BJ33: 0.74800324 | BK33: 0.653964318 | BL33: 0.7108943873 | BM33: 0.7500066315 | BN33: 0.6939955138 | BO33: 0.6762126741 | BP33: 0.7235474769 | BQ33: 0.6332373148 | BR33: 0.715153639 | BS33: 0.7160716388 | BT33: 0.6948278675 | BU33: 0.7426868205 | BV33: 0.6984577465 | BW33: 0.7263972179 | BX33: 0.7022309471 | BY33: 0.6569130686 | BZ33: 0.7297057209 | CA33: 0.715997198 | CB33: 0.7235717884 | CC33: 0.6883821012 | CD33: 0.7500299443 | CE33: 0.7201825946 | CF33: 0.7104358467 | CG33: 0.7213488441 | CH33: 0.6986551915 | CI33: 0.7364343019 | CJ33: 0.7030556921 | CK33: 0.6977917782 | CL33: 0.6961617043 | CM33: 0.6971233888 | CN33: 0.703540142 | CO33: 0.7100306503 | CP33: 0.6925088341 | CQ33: 0.6867882371 | CR33: 0.7035869234 | CS33: 0.7154395867 | CT33: 0.7202947435 | CU33: 0.7336828443 | CV33: 0.7306335112 | CW33: 0.7505237632 | CX33: 0.7410393907 | CY33: 0.6616535351 | CZ33: 0.6965160754 | DA33: 0.6746542567 | DB33: 0.7098047444 | DC33: 0.7688268012 | DD33: 0.6332373148 | DE33: 0.7104358467 | DF33: 0.005267070326 | DG33: 0.6615618843 | DH33: 0.7507851424 | DI33: -0.1346896434 | DJ33: -0.05055954164
A34: ADA Watch Resource Chair.NumberBusy | B34: DSTAT AVERAGE | C34: Number Busy | D34: Resource | E34: ADA Watch Resource Chair | F34: 57.85435298 | G34: 56.75821325 | H34: 55.83724067 | I34: 55.28617926 | J34: 56.73360781 | K34: 58.65825249 | L34: 57.96075262 | M34: 57.55484325 | N34: 57.40795338 | O34: 54.13732691 | P34: 56.15113541 | Q34: 58.69460057 | R34: 58.41668196 | S34: 58.53615931 | T34: 55.99342815 | U34: 55.55816318 | V34: 56.9064562 | W34: 59.3707437 | X34: 59.68908384 | Y34: 58.03859981 | Z34: 56.33857869 | AA34: 56.68223233 | AB34: 59.53905846 | AC34: 59.35663824 | AD34: 56.80856703 | AE34: 60.58963858 | AF34: 58.88252067 | AG34: 57.19814756 | AH34: 61.63662789 | AI34: 59.88207483 | AJ34: 56.77347756 | AK34: 62.01991806 | AL34: 59.25776758 | AM34: 58.82029285 | AN34: 57.38173201 | AO34: 58.35681316 | AP34: 57.10593439 | AQ34: 60.88010876 | AR34: 61.12730206 | AS34: 59.77337233 | AT34: 55.05113412 | AU34: 60.94662392 | AV34: 54.63165761 | AW34: 57.0120266 | AX34: 56.02097744 | AY34: 58.39301608 | AZ34: 59.16233414 | BA34: 60.05468766 | BB34: 56.00905356 | BC34: 54.73326695 | BD34: 54.7730875 | BE34: 59.93145848 | BF34: 53.62781834 | BG34: 62.28163416 | BH34: 61.85607936 | BI34: 59.26089873 | BJ34: 61.59130435 | BK34: 53.66275142 | BL34: 58.01633805 | BM34: 60.27087323 | BN34: 56.53539921 | BO34: 54.8307239 | BP34: 58.30810649 | BQ34: 51.40139649 | BR34: 58.3656556 | BS34: 58.50262998 | BT34: 56.87918959 | BU34: 60.99600337 | BV34: 57.61556561 | BW34: 59.07936628 | BX34: 58.09577943 | BY34: 53.80517205 | BZ34: 59.0850327 | CA34: 57.69589711 | CB34: 59.18003481 | CC34: 55.89057712 | CD34: 61.26943414 | CE34: 59.28580039 | CF34: 57.74896377 | CG34: 58.78373531 | CH34: 56.51635864 | CI34: 59.31069707 | CJ34: 56.45852919 | CK34: 56.38565476 | CL34: 56.30097803 | CM34: 57.47985629 | CN34: 57.72582167 | CO34: 58.14985531 | CP34: 56.01754273 | CQ34: 55.64095442 | CR34: 57.36564051 | CS34: 58.76277166 | CT34: 59.18273926 | CU34: 60.06224608 | CV34: 59.79970406 | CW34: 61.45340222 | CX34: 60.82175503 | CY34: 54.01384153 | CZ34: 56.99870603 | DA34: 54.50091678 | DB34: 57.87565334 | DC34: 62.28163416 | DD34: 51.40139649 | DE34: 58.01633805 | DF34: 0.4280723542 | DG34: 54.12497837 | DH34: 61.46719244 | DI34: -0.2148398469 | DJ34: -0.1906551955
A35: ADA Watch Resource.NumberBusy | B35: DSTAT AVERAGE | C35: Number Busy | D35: Resource | E35: ADA Watch Resource | F35: 0.9852008547 | G35: 0.9837552986 | H35: 0.9867124773 | I35: 0.9876194866 | J35: 0.9823080879 | K35: 0.9814592273 | L35: 0.9849554906 | M35: 0.9872283123 | N35: 0.9822282074 | O35: 0.9854758599 | P35: 0.9880451878 | Q35: 0.9844447192 | R35: 0.9870677879 | S35: 0.9871337072 | T35: 0.9850123634 | U35: 0.9859173154 | V35: 0.9828271245 | W35: 0.9824328406 | X35: 0.9871261204 | Y35: 0.9837520821 | Z35: 0.9849913434 | AA35: 0.9875956886 | AB35: 0.9885580289 | AC35: 0.9828462096 | AD35: 0.985405069 | AE35: 0.9856251676 | AF35: 0.9861473976 | AG35: 0.9832821779 | AH35: 0.9851670005 | AI35: 0.9847279829 | AJ35: 0.9833569844 | AK35: 0.9822027468 | AL35: 0.9848438476 | AM35: 0.9858766146 | AN35: 0.9855227105 | AO35: 0.9844829152 | AP35: 0.9851170351 | AQ35: 0.9885284401 | AR35: 0.9838261104 | AS35: 0.9852159461 | AT35: 0.9854583722 | AU35: 0.9837964563 | AV35: 0.9865374119 | AW35: 0.9910808485 | AX35: 0.9844223015 | AY35: 0.9835076592 | AZ35: 0.9881443734 | BA35: 0.9844727211 | BB35: 0.9853105787 | BC35: 0.9857891331 | BD35: 0.9898133864 | BE35: 0.989713837 | BF35: 0.9839254745 | BG35: 0.9828320178 | BH35: 0.9838748281 | BI35: 0.9857269315 | BJ35: 0.9853895826 | BK35: 0.982250793 | BL35: 0.9861828989 | BM35: 0.9847269203 | BN35: 0.9833995075 | BO35: 0.9847857067 | BP35: 0.9841922478 | BQ35: 0.9851228815 | BR35: 0.9824747413 | BS35: 0.9870299188 | BT35: 0.9852290248 | BU35: 0.9844913487 | BV35: 0.982535018 | BW35: 0.9857404278 | BX35: 0.9844406383 | BY35: 0.983593368 | BZ35: 0.9840458226 | CA35: 0.9833744256 | CB35: 0.9869911448 | CC35: 0.9866741095 | CD35: 0.986756171 | CE35: 0.9855901919 | CF35: 0.9827303512 | CG35: 0.9865898851 | CH35: 0.9863507686 | CI35: 0.9882841404 | CJ35: 0.981979882 | CK35: 0.9837099656 | CL35: 0.9873885719 | CM35: 0.9844851262 | CN35: 0.9899952369 | CO35: 0.9838028375 | CP35: 0.9854867706 | CQ35: 0.984748944 | CR35: 0.9863788672 | CS35: 0.9832478369 | CT35: 0.9832107008 | CU35: 0.9846843889 | CV35: 0.9835628698 | CW35: 0.9883375142 | CX35: 0.9845632269 | CY35: 0.985413173 | CZ35: 0.9892338013 | DA35: 0.9855339928 | DB35: 0.9852319514 | DC35: 0.9910808485 | DD35: 0.9814592273 | DE35: 0.9851170351 | DF35: 0.0003876237103 | DG35: 0.9823023584 | DH35: 0.9886256062 | DI35: 0.5721180276 | DJ35: 0.1116441613
A36: ADA Watch Resource.NumberScheduled | B36: DSTAT AVERAGE | C36: Number Scheduled | D36: Resource | E36: ADA Watch Resource | F36: 1 | G36: 1 | H36: 1 | I36: 1 | J36: 1 | K36: 1 | L36: 1 | M36: 1 | N36: 1 | O36: 1 | P36: 1 | Q36: 1 | R36: 1 | S36: 1 | T36: 1 | U36: 1 | V36: 1 | W36: 1 | X36: 1 | Y36: 1 | Z36: 1 | AA36: 1 | AB36: 1 | AC36: 1 | AD36: 1 | AE36: 1 | AF36: 1 | AG36: 1 | AH36: 1 | AI36: 1 | AJ36: 1 | AK36: 1 | AL36: 1 | AM36: 1 | AN36: 1 | AO36: 1 | AP36: 1 | AQ36: 1 | AR36: 1 | AS36: 1 | AT36: 1 | AU36: 1 | AV36: 1 | AW36: 1 | AX36: 1 | AY36: 1 | AZ36: 1 | BA36: 1 | BB36: 1 | BC36: 1 | BD36: 1 | BE36: 1 | BF36: 1 | BG36: 1 | BH36: 1 | BI36: 1 | BJ36: 1 | BK36: 1 | BL36: 1 | BM36: 1 | BN36: 1 | BO36: 1 | BP36: 1 | BQ36: 1 | BR36: 1 | BS36: 1 | BT36: 1 | BU36: 1 | BV36: 1 | BW36: 1 | BX36: 1 | BY36: 1 | BZ36: 1 | CA36: 1 | CB36: 1 | CC36: 1 | CD36: 1 | CE36: 1 | CF36: 1 | CG36: 1 | CH36: 1 | CI36: 1 | CJ36: 1 | CK36: 1 | CL36: 1 | CM36: 1 | CN36: 1 | CO36: 1 | CP36: 1 | CQ36: 1 | CR36: 1 | CS36: 1 | CT36: 1 | CU36: 1 | CV36: 1 | CW36: 1 | CX36: 1 | CY36: 1 | CZ36: 1 | DA36: 1 | DB36: 1 | DC36: 1 | DD36: 1 | DE36: 1 | DG36: 1 | DH36: 1
A37: ADA Watch Resource.Utilization | B37: DSTAT AVERAGE | C37: Instantaneous Utilization | D37: Resource | E37: ADA Watch Resource | F37: 0.9852008547 | G37: 0.9837552986 | H37: 0.9867124773 | I37: 0.9876194866 | J37: 0.9823080879 | K37: 0.9814592273 | L37: 0.9849554906 | M37: 0.9872283123 | N37: 0.9822282074 | O37: 0.9854758599 | P37: 0.9880451878 | Q37: 0.9844447192 | R37: 0.9870677879 | S37: 0.9871337072 | T37: 0.9850123634 | U37: 0.9859173154 | V37: 0.9828271245 | W37: 0.9824328406 | X37: 0.9871261204 | Y37: 0.9837520821 | Z37: 0.9849913434 | AA37: 0.9875956886 | AB37: 0.9885580289 | AC37: 0.9828462096 | AD37: 0.985405069 | AE37: 0.9856251676 | AF37: 0.9861473976 | AG37: 0.9832821779 | AH37: 0.9851670005 | AI37: 0.9847279829 | AJ37: 0.9833569844 | AK37: 0.9822027468 | AL37: 0.9848438476 | AM37: 0.9858766146 | AN37: 0.9855227105 | AO37: 0.9844829152 | AP37: 0.9851170351 | AQ37: 0.9885284401 | AR37: 0.9838261104 | AS37: 0.9852159461 | AT37: 0.9854583722 | AU37: 0.9837964563 | AV37: 0.9865374119 | AW37: 0.9910808485 | AX37: 0.9844223015 | AY37: 0.9835076592 | AZ37: 0.9881443734 | BA37: 0.9844727211 | BB37: 0.9853105787 | BC37: 0.9857891331 | BD37: 0.9898133864 | BE37: 0.989713837 | BF37: 0.9839254745 | BG37: 0.9828320178 | BH37: 0.9838748281 | BI37: 0.9857269315 | BJ37: 0.9853895826 | BK37: 0.982250793 | BL37: 0.9861828989 | BM37: 0.9847269203 | BN37: 0.9833995075 | BO37: 0.9847857067 | BP37: 0.9841922478 | BQ37: 0.9851228815 | BR37: 0.9824747413 | BS37: 0.9870299188 | BT37: 0.9852290248 | BU37: 0.9844913487 | BV37: 0.982535018 | BW37: 0.9857404278 | BX37: 0.9844406383 | BY37: 0.983593368 | BZ37: 0.9840458226 | CA37: 0.9833744256 | CB37: 0.9869911448 | CC37: 0.9866741095 | CD37: 0.986756171 | CE37: 0.9855901919 | CF37: 0.9827303512 | CG37: 0.9865898851 | CH37: 0.9863507686 | CI37: 0.9882841404 | CJ37: 0.981979882 | CK37: 0.9837099656 | CL37: 0.9873885719 | CM37: 0.9844851262 | CN37: 0.9899952369 | CO37: 0.9838028375 | CP37: 0.9854867706 | CQ37: 0.984748944 | CR37: 0.9863788672 | CS37: 0.9832478369 | CT37: 0.9832107008 | CU37: 0.9846843889 | CV37: 0.9835628698 | CW37: 0.9883375142 | CX37: 0.9845632269 | CY37: 0.985413173 | CZ37: 0.9892338013 | DA37: 0.9855339928 | DB37: 0.9852319514 | DC37: 0.9910808485 | DD37: 0.9814592273 | DE37: 0.9851170351 | DF37: 0.0003876237103 | DG37: 0.9823023584 | DH37: 0.9886256062 | DI37: 0.5721180276 | DJ37: 0.1116441613
A38: ClinicClose Value | B38: DSTAT AVERAGE | C38: Variable | D38: User Specified | E38: ClinicClose | F38: 377.384573 | G38: 379.0642707 | H38: 380.7677474 | I38: 377.7691831 | J38: 378.3299918 | K38: 377.5738506 | L38: 380.6973515 | M38: 380.0509381 | N38: 378.2841187 | O38: 380.9293945 | P38: 377.6723848 | Q38: 380.3977734 | R38: 380.7250482 | S38: 380.4126937 | T38: 380.0224106 | U38: 377.7379476 | V38: 380.0147761 | W38: 380.6532294 | X38: 378.648091 | Y38: 379.7233131 | Z38: 380.2558126 | AA38: 378.5466453 | AB38: 380.3167108 | AC38: 378.5315802 | AD38: 379.3677779 | AE38: 379.4186665 | AF38: 378.3017731 | AG38: 380.2260487 | AH38: 380.7418973 | AI38: 381.2938391 | AJ38: 380.0192317 | AK38: 382.3463795 | AL38: 379.9515243 | AM38: 378.0796497 | AN38: 379.7796264 | AO38: 378.8915331 | AP38: 378.001391 | AQ38: 379.1581544 | AR38: 381.2308297 | AS38: 377.2869719 | AT38: 377.7406447 | AU38: 379.408811 | AV38: 379.0807066 | AW38: 379.7497577 | AX38: 381.7035242 | AY38: 380.7714069 | AZ38: 380.4263142 | BA38: 379.6601631 | BB38: 379.3606004 | BC38: 377.9730629 | BD38: 378.9593717 | BE38: 376.57864 | BF38: 380.4066489 | BG38: 379.0955075 | BH38: 380.034475 | BI38: 377.3675857 | BJ38: 378.2200195 | BK38: 381.3348525 | BL38: 381.1050421 | BM38: 379.0433396 | BN38: 377.8789544 | BO38: 379.489615 | BP38: 379.4016374 | BQ38: 379.2061044 | BR38: 379.0369285 | BS38: 380.5678274 | BT38: 378.5766163 | BU38: 377.1201587 | BV38: 379.7000316 | BW38: 379.2937029 | BX38: 382.7813015 | BY38: 381.4909229 | BZ38: 379.8870848 | CA38: 379.1138301 | CB38: 379.222628 | CC38: 381.8738066 | CD38: 378.021707 | CE38: 379.7213125 | CF38: 379.8940644 | CG38: 377.9221839 | CH38: 379.8527114 | CI38: 378.6069148 | CJ38: 378.5593185 | CK38: 378.562177 | CL38: 379.742825 | CM38: 379.6386778 | CN38: 379.8215349 | CO38: 377.9329836 | CP38: 377.1682154 | CQ38: 381.2213529 | CR38: 380.4835641 | CS38: 381.188157 | CT38: 376.8509715 | CU38: 379.6232474 | CV38: 378.8444378 | CW38: 379.5003624 | CX38: 381.4174894 | CY38: 379.4663982 | CZ38: 377.6445522 | DA38: 380.9419559 | DB38: 379.4596899 | DC38: 382.7813015 | DD38: 376.57864 | DE38: 379.489615 | DF38: 0.2525020271 | DG38: 377.3595243 | DH38: 381.4248328 | DI38: 0.03901019106 | DJ38: -0.411410428
A39: Entity 1.NVATime | B39: TALLY AVERAGE | C39: NVA Time | D39: Entity | E39: Entity 1 | F39: 0 | G39: 0 | H39: 0 | I39: 0 | J39: 0 | K39: 0 | L39: 0 | M39: 0 | N39: 0 | O39: 0 | P39: 0 | Q39: 0 | R39: 0 | S39: 0 | T39: 0 | U39: 0 | V39: 0 | W39: 0 | X39: 0 | Y39: 0 | Z39: 0 | AA39: 0 | AB39: 0 | AC39: 0 | AD39: 0 | AE39: 0 | AF39: 0 | AG39: 0 | AH39: 0 | AI39: 0 | AJ39: 0 | AK39: 0 | AL39: 0 | AM39: 0 | AN39: 0 | AO39: 0 | AP39: 0 | AQ39: 0 | AR39: 0 | AS39: 0 | AT39: 0 | AU39: 0 | AV39: 0 | AW39: 0 | AX39: 0 | AY39: 0 | AZ39: 0 | BA39: 0 | BB39: 0 | BC39: 0 | BD39: 0 | BE39: 0 | BF39: 0 | BG39: 0 | BH39: 0 | BI39: 0 | BJ39: 0 | BK39: 0 | BL39: 0 | BM39: 0 | BN39: 0 | BO39: 0 | BP39: 0 | BQ39: 0 | BR39: 0 | BS39: 0 | BT39: 0 | BU39: 0 | BV39: 0 | BW39: 0 | BX39: 0 | BY39: 0 | BZ39: 0 | CA39: 0 | CB39: 0 | CC39: 0 | CD39: 0 | CE39: 0 | CF39: 0 | CG39: 0 | CH39: 0 | CI39: 0 | CJ39: 0 | CK39: 0 | CL39: 0 | CM39: 0 | CN39: 0 | CO39: 0 | CP39: 0 | CQ39: 0 | CR39: 0 | CS39: 0 | CT39: 0 | CU39: 0 | CV39: 0 | CW39: 0 | CX39: 0 | CY39: 0 | CZ39: 0 | DA39: 0 | DB39: 0 | DC39: 0 | DD39: 0 | DE39: 0 | DG39: 0 | DH39: 0
A40: Entity 1.OtherTime | B40: TALLY AVERAGE | C40: Other Time | D40: Entity | E40: Entity 1 | F40: 0 | G40: 0 | H40: 0 | I40: 0 | J40: 0 | K40: 0 | L40: 0 | M40: 0 | N40: 0 | O40: 0 | P40: 0 | Q40: 0 | R40: 0 | S40: 0 | T40: 0 | U40: 0 | V40: 0 | W40: 0 | X40: 0 | Y40: 0 | Z40: 0 | AA40: 0 | AB40: 0 | AC40: 0 | AD40: 0 | AE40: 0 | AF40: 0 | AG40: 0 | AH40: 0 | AI40: 0 | AJ40: 0 | AK40: 0 | AL40: 0 | AM40: 0 | AN40: 0 | AO40: 0 | AP40: 0 | AQ40: 0 | AR40: 0 | AS40: 0 | AT40: 0 | AU40: 0 | AV40: 0 | AW40: 0 | AX40: 0 | AY40: 0 | AZ40: 0 | BA40: 0 | BB40: 0 | BC40: 0 | BD40: 0 | BE40: 0 | BF40: 0 | BG40: 0 | BH40: 0 | BI40: 0 | BJ40: 0 | BK40: 0 | BL40: 0 | BM40: 0 | BN40: 0 | BO40: 0 | BP40: 0 | BQ40: 0 | BR40: 0 | BS40: 0 | BT40: 0 | BU40: 0 | BV40: 0 | BW40: 0 | BX40: 0 | BY40: 0 | BZ40: 0 | CA40: 0 | CB40: 0 | CC40: 0 | CD40: 0 | CE40: 0 | CF40: 0 | CG40: 0 | CH40: 0 | CI40: 0 | CJ40: 0 | CK40: 0 | CL40: 0 | CM40: 0 | CN40: 0 | CO40: 0 | CP40: 0 | CQ40: 0 | CR40: 0 | CS40: 0 | CT40: 0 | CU40: 0 | CV40: 0 | CW40: 0 | CX40: 0 | CY40: 0 | CZ40: 0 | DA40: 0 | DB40: 0 | DC40: 0 | DD40: 0 | DE40: 0 | DG40: 0 | DH40: 0
A41: Entity 1.TotalTime | B41: TALLY AVERAGE | C41: Total Time | D41: Entity | E41: Entity 1 | F41: 26.6833456 | G41: 26.80558007 | H41: 26.67952678 | I41: 26.67840919 | J41: 26.59984436 | K41: 27.18235859 | L41: 27.49442884 | M41: 26.6778273 | N41: 28.05630124 | O41: 26.70148319 | P41: 26.97960664 | Q41: 26.89166324 | R41: 26.84597804 | S41: 27.46103867 | T41: 26.72102491 | U41: 26.81524914 | V41: 27.0405613 | W41: 27.50356133 | X41: 27.65717044 | Y41: 26.81352715 | Z41: 26.92277841 | AA41: 26.51269159 | AB41: 26.91388511 | AC41: 26.79554084 | AD41: 26.94066489 | AE41: 27.5642008 | AF41: 26.88011348 | AG41: 26.96642663 | AH41: 28.04386672 | AI41: 28.91510073 | AJ41: 27.23805385 | AK41: 28.31520806 | AL41: 28.26033207 | AM41: 26.70989395 | AN41: 27.41646109 | AO41: 27.47019675 | AP41: 27.06718263 | AQ41: 27.01906865 | AR41: 27.28174392 | AS41: 27.88898173 | AT41: 26.91032183 | AU41: 27.0683468 | AV41: 26.92568266 | AW41: 27.24141342 | AX41: 27.22627474 | AY41: 28.12852419 | AZ41: 27.14165236 | BA41: 28.21428036 | BB41: 27.259989 | BC41: 26.99599188 | BD41: 26.93049968 | BE41: 26.87794345 | BF41: 26.71100343 | BG41: 27.55330273 | BH41: 27.99931142 | BI41: 27.21557437 | BJ41: 27.55193925 | BK41: 27.07122161 | BL41: 27.15445989 | BM41: 27.33193612 | BN41: 27.13916692 | BO41: 26.87399015 | BP41: 27.45677508 | BQ41: 26.63011706 | BR41: 27.36641158 | BS41: 27.45343499 | BT41: 26.86265362 | BU41: 27.14323178 | BV41: 27.28875507 | BW41: 26.6716644 | BX41: 27.38015 | BY41: 26.71690948 | BZ41: 27.56061655 | CA41: 27.67222677 | CB41: 27.38665739 | CC41: 27.50579867 | CD41: 28.04678505 | CE41: 28.03142686 | CF41: 27.04382987 | CG41: 26.96380903 | CH41: 27.30595097 | CI41: 27.05283644 | CJ41: 26.9152589 | CK41: 26.6083557 | CL41: 27.2540351 | CM41: 26.94037519 | CN41: 27.31574582 | CO41: 26.96197034 | CP41: 26.88321252 | CQ41: 28.00503407 | CR41: 27.13002055 | CS41: 27.03498595 | CT41: 27.38208924 | CU41: 26.77429814 | CV41: 27.12722793 | CW41: 28.06241486 | CX41: 28.46191909 | CY41: 26.80852486 | CZ41: 27.79010218 | DA41: 26.59913808 | DB41: 27.23075866 | DC41: 28.91510073 | DD41: 26.51269159 | DE41: 27.13002055 | DF41: 0.09458687154 | DG41: 26.66750967 | DH41: 28.1370998 | DI41: 1.036467946 | DJ41: 0.7936814417
A42: Entity 1.TranTime | B42: TALLY AVERAGE | C42: Transfer Time | D42: Entity | E42: Entity 1 | F42: 1.074485289 | G42: 1.073257744 | H42: 1.075822365 | I42: 1.070542582 | J42: 1.072900346 | K42: 1.07534176 | L42: 1.073620006 | M42: 1.084869773 | N42: 1.074748229 | O42: 1.07805595 | P42: 1.077005308 | Q42: 1.066728915 | R42: 1.069132615 | S42: 1.073005135 | T42: 1.08568973 | U42: 1.073736619 | V42: 1.069692675 | W42: 1.080426466 | X42: 1.077603024 | Y42: 1.06965543 | Z42: 1.071538016 | AA42: 1.07316739 | AB42: 1.076603771 | AC42: 1.084858144 | AD42: 1.072071646 | AE42: 1.079721101 | AF42: 1.0817533 | AG42: 1.07690826 | AH42: 1.077427762 | AI42: 1.068131583 | AJ42: 1.079718988 | AK42: 1.070833316 | AL42: 1.075479924 | AM42: 1.076115459 | AN42: 1.067697936 | AO42: 1.072428904 | AP42: 1.07396297 | AQ42: 1.067749121 | AR42: 1.069380256 | AS42: 1.07763672 | AT42: 1.082028472 | AU42: 1.078171648 | AV42: 1.07353807 | AW42: 1.083799195 | AX42: 1.074564411 | AY42: 1.074196379 | AZ42: 1.075924284 | BA42: 1.073011681 | BB42: 1.072321697 | BC42: 1.076461458 | BD42: 1.069201406 | BE42: 1.072741771 | BF42: 1.078392761 | BG42: 1.075853038 | BH42: 1.081283536 | BI42: 1.07088118 | BJ42: 1.077670244 | BK42: 1.077195427 | BL42: 1.07427372 | BM42: 1.083604202 | BN42: 1.06897112 | BO42: 1.068195773 | BP42: 1.076757422 | BQ42: 1.06829006 | BR42: 1.071469572 | BS42: 1.072028033 | BT42: 1.07058532 | BU42: 1.074342676 | BV42: 1.077982568 | BW42: 1.070166852 | BX42: 1.07803014 | BY42: 1.079689844 | BZ42: 1.080619268 | CA42: 1.075790963 | CB42: 1.081767046 | CC42: 1.074581707 | CD42: 1.078999323 | CE42: 1.08242199 | CF42: 1.079327485 | CG42: 1.084210982 | CH42: 1.074857744 | CI42: 1.076538318 | CJ42: 1.070607653 | CK42: 1.078652782 | CL42: 1.077082678 | CM42: 1.077946427 | CN42: 1.074810455 | CO42: 1.071521073 | CP42: 1.071029441 | CQ42: 1.076645969 | CR42: 1.068507728 | CS42: 1.0765797 | CT42: 1.069278045 | CU42: 1.075762268 | CV42: 1.071786498 | CW42: 1.068079926 | CX42: 1.073025764 | CY42: 1.085404429 | CZ42: 1.081542358 | DA42: 1.077959127 | DB42: 1.075272529 | DC42: 1.08568973 | DD42: 1.066728915 | DE42: 1.07534176 | DF42: 0.0009038302528 | DG42: 1.068189354 | DH42: 1.083840374 | DI42: 0.2794457119 | DJ42: -0.5516962139
A43: Entity 1.VATime | B43: TALLY AVERAGE | C43: VA Time | D43: Entity | E43: Entity 1 | F43: 25.12443734 | G43: 25.16431328 | H43: 25.07276704 | I43: 25.06240225 | J43: 25.08692105 | K43: 25.13387675 | L43: 25.03234026 | M43: 25.05754418 | N43: 25.14604765 | O43: 25.1888439 | P43: 25.12018417 | Q43: 25.1228665 | R43: 25.10361317 | S43: 25.10202448 | T43: 25.10377171 | U43: 25.06751844 | V43: 25.15798031 | W43: 25.12214224 | X43: 25.06003312 | Y43: 25.02249353 | Z43: 25.07661929 | AA43: 25.04105085 | AB43: 25.11587717 | AC43: 25.11657186 | AD43: 25.06115885 | AE43: 25.16409984 | AF43: 25.14544722 | AG43: 25.15394154 | AH43: 25.12635816 | AI43: 25.05795514 | AJ43: 25.08021921 | AK43: 25.11978041 | AL43: 25.06003473 | AM43: 25.04956303 | AN43: 25.16567617 | AO43: 25.18492252 | AP43: 25.02708036 | AQ43: 25.21744583 | AR43: 25.14809975 | AS43: 25.08183877 | AT43: 25.01408318 | AU43: 25.05207478 | AV43: 25.0652308 | AW43: 25.2210581 | AX43: 24.99833289 | AY43: 25.16670342 | AZ43: 25.14955171 | BA43: 25.17483266 | BB43: 25.08943715 | BC43: 25.06958653 | BD43: 25.04206008 | BE43: 25.10951907 | BF43: 25.0872265 | BG43: 25.10915277 | BH43: 25.10687825 | BI43: 25.11153959 | BJ43: 25.1687495 | BK43: 25.08950931 | BL43: 25.20800515 | BM43: 25.1744099 | BN43: 25.08227709 | BO43: 25.07538228 | BP43: 25.03223635 | BQ43: 25.08139445 | BR43: 25.1052835 | BS43: 25.20291737 | BT43: 25.12844985 | BU43: 25.16852593 | BV43: 25.09384665 | BW43: 25.15498283 | BX43: 25.13974711 | BY43: 25.06515122 | BZ43: 25.06483217 | CA43: 25.08093207 | CB43: 25.14782693 | CC43: 25.16658592 | CD43: 25.2039441 | CE43: 25.16629214 | CF43: 25.1763402 | CG43: 25.14683368 | CH43: 25.07207364 | CI43: 25.07760796 | CJ43: 25.04750022 | CK43: 25.0105161 | CL43: 25.19007176 | CM43: 25.02703603 | CN43: 25.1378161 | CO43: 25.15793726 | CP43: 25.19801449 | CQ43: 25.09584647 | CR43: 25.11479563 | CS43: 25.08909749 | CT43: 25.12631811 | CU43: 25.15757602 | CV43: 25.18578358 | CW43: 25.14799768 | CX43: 25.04368566 | CY43: 25.1325432 | CZ43: 25.12442815 | DA43: 25.07975544 | DB43: 25.11140958 | DC43: 25.2210581 | DD43: 24.99833289 | DE43: 25.10951907 | DF43: 0.01031577045 | DG43: 25.02707593 | DH43: 25.19850478 | DI43: 0.04237185195 | DJ43: -0.8226370222
A44: Entity 1.WaitTime | B44: TALLY AVERAGE | C44: Wait Time | D44: Entity | E44: Entity 1 | F44: 0.4844229664 | G44: 0.5680090475 | H44: 0.5309373798 | I44: 0.5454643541 | J44: 0.4400229632 | K44: 0.9731400793 | L44: 1.388468576 | M44: 0.5354133504 | N44: 1.835505358 | O44: 0.4345833361 | P44: 0.7824171604 | Q44: 0.7020678237 | R44: 0.6732322624 | S44: 1.286009057 | T44: 0.5315634736 | U44: 0.6739940866 | V44: 0.81288832 | W44: 1.30099262 | X44: 1.519534302 | Y44: 0.7213781878 | Z44: 0.7746211039 | AA44: 0.3984733474 | AB44: 0.7214041658 | AC44: 0.5941108452 | AD44: 0.8074343913 | AE44: 1.320379851 | AF44: 0.6529129515 | AG44: 0.7355768364 | AH44: 1.840080789 | AI44: 2.789014003 | AJ44: 1.078115651 | AK44: 2.124594337 | AL44: 2.124817419 | AM44: 0.584215469 | AN44: 1.183086982 | AO44: 1.212845327 | AP44: 0.9661393038 | AQ44: 0.7338737022 | AR44: 1.06426391 | AS44: 1.729506246 | AT44: 0.8142101718 | AU44: 0.9381003709 | AV44: 0.7869137926 | AW44: 0.9365561179 | AX44: 1.153377434 | AY44: 1.887624383 | AZ44: 0.9161763708 | BA44: 1.966436018 | BB44: 1.098230154 | BC44: 0.8499438924 | BD44: 0.8192381919 | BE44: 0.6956826003 | BF44: 0.5453841681 | BG44: 1.368296926 | BH44: 1.811149637 | BI44: 1.033153605 | BJ44: 1.305519505 | BK44: 0.9045168773 | BL44: 0.872181028 | BM44: 1.073922022 | BN44: 0.9879187023 | BO44: 0.7304121021 | BP44: 1.347781299 | BQ44: 0.4804325519 | BR44: 1.189658509 | BS44: 1.178489588 | BT44: 0.6636184444 | BU44: 0.9003631808 | BV44: 1.116925851 | BW44: 0.4465147225 | BX44: 1.162372741 | BY44: 0.572068413 | BZ44: 1.415165118 | CA44: 1.515503742 | CB44: 1.157063407 | CC44: 1.26463105 | CD44: 1.763841625 | CE44: 1.782712735 | CF44: 0.7881621873 | CG44: 0.7327643691 | CH44: 1.159019587 | CI44: 0.8986901603 | CJ44: 0.7971510302 | CK44: 0.5191868227 | CL44: 0.9868806619 | CM44: 0.8353927318 | CN44: 1.103119271 | CO44: 0.7325120063 | CP44: 0.6141685812 | CQ44: 1.832541628 | CR44: 0.9467171865 | CS44: 0.8693087688 | CT44: 1.186493091 | CU44: 0.5409598465 | CV44: 0.8696578502 | CW44: 1.846337257 | CX44: 2.345207664 | CY44: 0.5905772283 | CZ44: 1.584131667 | DA44: 0.4414235096 | DB44: 1.044076551 | DC44: 2.789014003 | DD44: 0.3984733474 | DE44: 0.9161763708 | DF44: 0.09358650148 | DG44: 0.4770407689 | DH44: 1.895505546 | DI44: 1.138649596 | DJ44: 1.16799195
A45: Entity 1.WIP | B45: DSTAT AVERAGE | C45: WIP | D45: Entity | E45: Entity 1 | F45: 385.2972964 | G45: 378.9976173 | H45: 373.3863966 | I45: 376.8469226 | J45: 375.7484026 | K45: 397.6746098 | L45: 395.1119597 | M45: 378.3213613 | N45: 394.0849707 | O45: 350.432652 | P45: 375.3339923 | Q45: 386.2230359 | R45: 381.5926954 | S45: 400.9070857 | T45: 367.8360611 | U45: 384.1574065 | V45: 391.4081355 | W45: 402.8875595 | X45: 402.9644507 | Y45: 390.013519 | Z45: 377.8757649 | AA45: 372.6505512 | AB45: 387.674834 | AC45: 390.9364903 | AD45: 383.7910439 | AE45: 414.8736789 | AF45: 378.702741 | AG45: 381.6530798 | AH45: 428.923831 | AI45: 435.9277887 | AJ45: 388.8802123 | AK45: 427.9174963 | AL45: 415.8201572 | AM45: 396.0587245 | AN45: 391.1902905 | AO45: 393.4267599 | AP45: 389.6402119 | AQ45: 387.7648391 | AR45: 394.7688353 | AS45: 416.6093412 | AT45: 362.0021359 | AU45: 398.8659741 | AV45: 369.3996123 | AW45: 377.3893047 | AX45: 387.0934906 | AY45: 401.3706458 | AZ45: 391.4358457 | BA45: 410.5294295 | BB45: 379.1448061 | BC45: 375.8041993 | BD45: 365.3528118 | BE45: 397.4416997 | BF45: 356.2127571 | BG45: 421.5915015 | BH45: 427.3698593 | BI45: 395.1750986 | BJ45: 408.94995 | BK45: 370.8356525 | BL45: 381.2509942 | BM45: 397.2495311 | BN45: 375.7056923 | BO45: 371.0075799 | BP45: 404.0505268 | BQ45: 352.6050225 | BR45: 387.5032424 | BS45: 391.4251015 | BT45: 369.0273979 | BU45: 402.9989426 | BV45: 388.8890302 | BW45: 376.3264062 | BX45: 397.7787885 | BY45: 366.8582269 | BZ45: 400.7065955 | CA45: 397.7523546 | CB45: 395.066734 | CC45: 374.0972939 | CD45: 404.2619739 | CE45: 405.5423477 | CF45: 373.4461063 | CG45: 382.8622623 | CH45: 380.8934545 | CI45: 394.188693 | CJ45: 371.3761497 | CK45: 380.4045128 | CL45: 371.1829905 | CM45: 386.6527038 | CN45: 395.165269 | CO45: 383.3920074 | CP45: 370.2396693 | CQ45: 391.4579996 | CR45: 380.9944254 | CS45: 391.7119798 | CT45: 392.1374554 | CU45: 394.3703772 | CV45: 392.810279 | CW45: 410.7006637 | CX45: 418.3345167 | CY45: 364.2448254 | CZ45: 395.4559852 | DA45: 357.4157597 | DB45: 388.6315369 | DC45: 435.9277887 | DD45: 350.432652 | DE45: 388.8890302 | DF45: 3.305531556 | DG45: 364.0205565 | DH45: 418.6602151 | DI45: 0.3534830086 | DJ45: 0.2732703391
A46: Greeter.NumberBusy | B46: DSTAT AVERAGE | C46: Number Busy | D46: Resource | E46: Greeter | F46: 4.813110997 | G46: 4.71307638 | H46: 4.656734755 | I46: 4.722427098 | J46: 4.704455083 | K46: 4.883032186 | L46: 4.787385851 | M46: 4.730972095 | N46: 4.701148039 | O46: 4.377261078 | P46: 4.646385114 | Q46: 4.795382859 | R46: 4.750612078 | S46: 4.867960487 | T46: 4.573632073 | U46: 4.780140766 | V46: 4.825964493 | W46: 4.880556109 | X46: 4.840270766 | Y46: 4.854513425 | Z46: 4.670270955 | AA46: 4.687845967 | AB46: 4.806753023 | AC46: 4.874098235 | AD46: 4.753767371 | AE46: 5.020287284 | AF46: 4.703233438 | AG46: 4.717115273 | AH46: 5.091657998 | AI46: 5.021706107 | AJ46: 4.76973137 | AK46: 5.035851903 | AL46: 4.903827938 | AM46: 4.932389702 | AN46: 4.764215024 | AO46: 4.78161833 | AP46: 4.786129292 | AQ46: 4.768994713 | AR46: 4.837922006 | AS46: 4.982741515 | AT46: 4.490767354 | AU46: 4.904601523 | AV46: 4.558242184 | AW46: 4.604519092 | AX46: 4.752377388 | AY46: 4.762508479 | AZ46: 4.8017732 | BA46: 4.848642784 | BB46: 4.653791632 | BC46: 4.64110815 | BD46: 4.519838876 | BE46: 4.94282452 | BF46: 4.442473656 | BG46: 5.095610016 | BH46: 5.08840272 | BI46: 4.849574651 | BJ46: 4.945929469 | BK46: 4.551924824 | BL46: 4.688643965 | BM46: 4.83787606 | BN46: 4.607273309 | BO46: 4.613796473 | BP46: 4.909467089 | BQ46: 4.408732805 | BR46: 4.721997152 | BS46: 4.76544146 | BT46: 4.57637077 | BU46: 4.961951796 | BV46: 4.743287773 | BW46: 4.701011304 | BX46: 4.831413002 | BY46: 4.579480302 | BZ46: 4.845746155 | CA46: 4.792306875 | CB46: 4.813664014 | CC46: 4.530329999 | CD46: 4.811685744 | CE46: 4.813191196 | CF46: 4.616201582 | CG46: 4.735164913 | CH46: 4.651264091 | CI46: 4.864057016 | CJ46: 4.596858364 | CK46: 4.767803004 | CL46: 4.534787682 | CM46: 4.791079014 | CN46: 4.820144724 | CO46: 4.738120676 | CP46: 4.596536708 | CQ46: 4.655350125 | CR46: 4.677340011 | CS46: 4.826569161 | CT46: 4.766461848 | CU46: 4.917779534 | CV46: 4.834151292 | CW46: 4.883256556 | CX46: 4.901731443 | CY46: 4.530782513 | CZ46: 4.751228145 | DA46: 4.483592134 | DB46: 4.757079863 | DC46: 5.095610016 | DD46: 4.377261078 | DE46: 4.766461848 | DF46: 0.02916488431 | DG46: 4.516931724 | DH46: 5.020429166 | DI46: -0.1115053562 | DJ46: 0.009115413624
A47: Greeter.NumberScheduled | B47: DSTAT AVERAGE | C47: Number Scheduled | D47: Resource | E47: Greeter | F47: 20 | G47: 20 | H47: 20 | I47: 20 | J47: 20 | K47: 20 | L47: 20 | M47: 20 | N47: 20 | O47: 20 | P47: 20 | Q47: 20 | R47: 20 | S47: 20 | T47: 20 | U47: 20 | V47: 20 | W47: 20 | X47: 20 | Y47: 20 | Z47: 20 | AA47: 20 | AB47: 20 | AC47: 20 | AD47: 20 | AE47: 20 | AF47: 20 | AG47: 20 | AH47: 20 | AI47: 20 | AJ47: 20 | AK47: 20 | AL47: 20 | AM47: 20 | AN47: 20 | AO47: 20 | AP47: 20 | AQ47: 20 | AR47: 20 | AS47: 20 | AT47: 20 | AU47: 20 | AV47: 20 | AW47: 20 | AX47: 20 | AY47: 20 | AZ47: 20 | BA47: 20 | BB47: 20 | BC47: 20 | BD47: 20 | BE47: 20 | BF47: 20 | BG47: 20 | BH47: 20 | BI47: 20 | BJ47: 20 | BK47: 20 | BL47: 20 | BM47: 20 | BN47: 20 | BO47: 20 | BP47: 20 | BQ47: 20 | BR47: 20 | BS47: 20 | BT47: 20 | BU47: 20 | BV47: 20 | BW47: 20 | BX47: 20 | BY47: 20 | BZ47: 20 | CA47: 20 | CB47: 20 | CC47: 20 | CD47: 20 | CE47: 20 | CF47: 20 | CG47: 20 | CH47: 20 | CI47: 20 | CJ47: 20 | CK47: 20 | CL47: 20 | CM47: 20 | CN47: 20 | CO47: 20 | CP47: 20 | CQ47: 20 | CR47: 20 | CS47: 20 | CT47: 20 | CU47: 20 | CV47: 20 | CW47: 20 | CX47: 20 | CY47: 20 | CZ47: 20 | DA47: 20 | DB47: 20 | DC47: 20 | DD47: 20 | DE47: 20 | DG47: 20 | DH47: 20
A48: Greeter.Utilization | B48: DSTAT AVERAGE | C48: Instantaneous Utilization | D48: Resource | E48: Greeter | F48: 0.2406555498 | G48: 0.235653819 | H48: 0.2328367378 | I48: 0.2361213549 | J48: 0.2352227542 | K48: 0.2441516093 | L48: 0.2393692925 | M48: 0.2365486047 | N48: 0.2350574019 | O48: 0.2188630539 | P48: 0.2323192557 | Q48: 0.239769143 | R48: 0.2375306039 | S48: 0.2433980244 | T48: 0.2286816037 | U48: 0.2390070383 | V48: 0.2412982247 | W48: 0.2440278055 | X48: 0.2420135383 | Y48: 0.2427256712 | Z48: 0.2335135477 | AA48: 0.2343922984 | AB48: 0.2403376512 | AC48: 0.2437049117 | AD48: 0.2376883685 | AE48: 0.2510143642 | AF48: 0.2351616719 | AG48: 0.2358557636 | AH48: 0.2545828999 | AI48: 0.2510853053 | AJ48: 0.2384865685 | AK48: 0.2517925952 | AL48: 0.2451913969 | AM48: 0.2466194851 | AN48: 0.2382107512 | AO48: 0.2390809165 | AP48: 0.2393064646 | AQ48: 0.2384497357 | AR48: 0.2418961003 | AS48: 0.2491370757 | AT48: 0.2245383677 | AU48: 0.2452300761 | AV48: 0.2279121092 | AW48: 0.2302259546 | AX48: 0.2376188694 | AY48: 0.2381254239 | AZ48: 0.24008866 | BA48: 0.2424321392 | BB48: 0.2326895816 | BC48: 0.2320554075 | BD48: 0.2259919438 | BE48: 0.247141226 | BF48: 0.2221236828 | BG48: 0.2547805008 | BH48: 0.254420136 | BI48: 0.2424787325 | BJ48: 0.2472964735 | BK48: 0.2275962412 | BL48: 0.2344321982 | BM48: 0.241893803 | BN48: 0.2303636655 | BO48: 0.2306898236 | BP48: 0.2454733545 | BQ48: 0.2204366403 | BR48: 0.2360998576 | BS48: 0.238272073 | BT48: 0.2288185385 | BU48: 0.2480975898 | BV48: 0.2371643886 | BW48: 0.2350505652 | BX48: 0.2415706501 | BY48: 0.2289740151 | BZ48: 0.2422873078 | CA48: 0.2396153438 | CB48: 0.2406832007 | CC48: 0.2265164999 | CD48: 0.2405842872 | CE48: 0.2406595598 | CF48: 0.2308100791 | CG48: 0.2367582456 | CH48: 0.2325632046 | CI48: 0.2432028508 | CJ48: 0.2298429182 | CK48: 0.2383901502 | CL48: 0.2267393841 | CM48: 0.2395539507 | CN48: 0.2410072362 | CO48: 0.2369060338 | CP48: 0.2298268354 | CQ48: 0.2327675063 | CR48: 0.2338670005 | CS48: 0.2413284581 | CT48: 0.2383230924 | CU48: 0.2458889767 | CV48: 0.2417075646 | CW48: 0.2441628278 | CX48: 0.2450865721 | CY48: 0.2265391256 | CZ48: 0.2375614073 | DA48: 0.2241796067 | DB48: 0.2378539932 | DC48: 0.2547805008 | DD48: 0.2188630539 | DE48: 0.2383230924 | DF48: 0.001458244216 | DG48: 0.2258465862 | DH48: 0.2510214583 | DI48: -0.1115053562 | DJ48: 0.009115413624
A49: Hold for Vacc.Queue.NumberInQueue | B49: DSTAT AVERAGE | C49: Number Waiting | D49: Queue | E49: Hold for Vacc.Queue | F49: 0.2175117626 | G49: 0.4127114222 | H49: 0.2562491274 | I49: 0.3551033549 | J49: 0.2596736673 | K49: 0.6025979088 | L49: 0.8471511215 | M49: 0.449031218 | N49: 1.278341169 | O49: 0.1565835932 | P49: 0.5683029046 | Q49: 0.3632815578 | R49: 0.3614649852 | S49: 0.7042481687 | T49: 0.3739938686 | U49: 0.5984931098 | V49: 0.5088734799 | W49: 0.4488360395 | X49: 0.4048117658 | Y49: 0.4837542501 | Z49: 0.4036300085 | AA49: 0.1715602072 | AB49: 0.4882700602 | AC49: 0.2896362972 | AD49: 0.3727703849 | AE49: 0.6187053861 | AF49: 0.312753048 | AG49: 0.3232024564 | AH49: 1.052707533 | AI49: 2.078230857 | AJ49: 0.3949845233 | AK49: 1.018797694 | AL49: 1.441383441 | AM49: 0.2749719819 | AN49: 0.439106426 | AO49: 0.9801919869 | AP49: 0.4560260586 | AQ49: 0.3932001166 | AR49: 0.4136658793 | AS49: 1.224939345 | AT49: 0.4695410545 | AU49: 0.4865927909 | AV49: 0.3138273011 | AW49: 0.288425226 | AX49: 0.5181967313 | AY49: 1.084333004 | AZ49: 0.4778396341 | BA49: 0.9377216468 | BB49: 0.5015920219 | BC49: 0.3407530951 | BD49: 0.3280064494 | BE49: 0.3230326702 | BF49: 0.1584319541 | BG49: 1.059557042 | BH49: 1.264667586 | BI49: 0.4344798653 | BJ49: 0.8867079903 | BK49: 0.5708832636 | BL49: 0.3910794436 | BM49: 0.5906194356 | BN49: 0.6418337084 | BO49: 0.3715747368 | BP49: 0.9734399406 | BQ49: 0.4394694414 | BR49: 0.3930340602 | BS49: 0.7470485341 | BT49: 0.1785212585 | BU49: 0.2154451213 | BV49: 0.6772656515 | BW49: 0.1448799524 | BX49: 0.6712655884 | BY49: 0.5186246172 | BZ49: 0.8881272733 | CA49: 0.8491912757 | CB49: 0.6758018604 | CC49: 0.6862391502 | CD49: 1.309566177 | CE49: 0.6467577684 | CF49: 0.3362299188 | CG49: 0.6209663617 | CH49: 0.7623309917 | CI49: 0.4907964657 | CJ49: 0.4285259416 | CK49: 0.4094344567 | CL49: 0.6130167961 | CM49: 0.5621165287 | CN49: 0.8966333102 | CO49: 0.4482203304 | CP49: 0.1968482519 | CQ49: 1.753174652 | CR49: 0.4026431062 | CS49: 0.2185972217 | CT49: 0.5765575594 | CU49: 0.1943209009 | CV49: 0.533619685 | CW49: 0.6362018923 | CX49: 1.026402523 | CY49: 0.4955345245 | CZ49: 1.672110192 | DA49: 0.1296597429 | DB49: 0.5903086069 | DC49: 2.078230857 | DD49: 0.1296597429 | DE49: 0.4865927909 | DF49: 0.07087514339 | DG49: 0.1778251534 | DH49: 1.28146367 | DI49: 1.648566179 | DJ49: 3.261217671
A50: Hold for Vacc.Queue.WaitingTime | B50: TALLY AVERAGE | C50: Waiting Time | D50: Queue | E50: Hold for Vacc.Queue | F50: 0.01506354077 | G50: 0.02919007552 | H50: 0.01830973361 | I50: 0.02513910035 | J50: 0.01838272388 | K50: 0.04118953546 | L50: 0.05895021819 | M50: 0.03166402565 | N50: 0.09100962376 | O50: 0.0119310063 | P50: 0.04085052016 | Q50: 0.02529431029 | R50: 0.02542994448 | S50: 0.04823907306 | T50: 0.02716835171 | U50: 0.04177647386 | V50: 0.03515569372 | W50: 0.03064028474 | X50: 0.02778395956 | Y50: 0.03325822591 | Z50: 0.02875770898 | AA50: 0.01220586646 | AB50: 0.03389759445 | AC50: 0.01985223028 | AD50: 0.02616705673 | AE50: 0.04110677627 | AF50: 0.02219904033 | AG50: 0.0228364863 | AH50: 0.06882804735 | AI50: 0.1378491029 | AJ50: 0.02766561366 | AK50: 0.06741362282 | AL50: 0.09796055814 | AM50: 0.01854389772 | AN50: 0.03077464992 | AO50: 0.06843984568 | AP50: 0.03167881609 | AQ50: 0.02739779338 | AR50: 0.02858768367 | AS50: 0.08200082821 | AT50: 0.03490449264 | AU50: 0.0330217749 | AV50: 0.0228749951 | AW50: 0.0208196436 | AX50: 0.03644743949 | AY50: 0.07599132487 | AZ50: 0.03313277866 | BA50: 0.06444639419 | BB50: 0.03606377505 | BC50: 0.02447808675 | BD50: 0.02417766415 | BE50: 0.02184585525 | BF50: 0.01188019347 | BG50: 0.06924782839 | BH50: 0.08285521505 | BI50: 0.02992248026 | BJ50: 0.05973964461 | BK50: 0.04167481534 | BL50: 0.02785448754 | BM50: 0.04063635429 | BN50: 0.04636297108 | BO50: 0.02691507225 | BP50: 0.06614895842 | BQ50: 0.03319045936 | BR50: 0.02775701124 | BS50: 0.05239584352 | BT50: 0.0129951184 | BU50: 0.01451089878 | BV50: 0.04752444797 | BW50: 0.01026818582 | BX50: 0.0462049587 | BY50: 0.03776948679 | BZ50: 0.06108543135 | CA50: 0.05907950836 | CB50: 0.04684766502 | CC50: 0.05045627492 | CD50: 0.09085475124 | CE50: 0.04470443885 | CF50: 0.0243487469 | CG50: 0.04373274684 | CH50: 0.05465090681 | CI50: 0.03368294613 | CJ50: 0.03105715506 | CK50: 0.02863892855 | CL50: 0.04501063278 | CM50: 0.03916597513 | CN50: 0.06197965641 | CO50: 0.03152100988 | CP50: 0.01429321012 | CQ50: 0.1254226913 | CR50: 0.02867158944 | CS50: 0.0150870362 | CT50: 0.04025973629 | CU50: 0.01319268899 | CV50: 0.03685143591 | CW50: 0.04347049571 | CX50: 0.06983259665 | CY50: 0.03647148481 | CZ50: 0.1175051455 | DA50: 0.009649371387 | DB50: 0.04108190921 | DC50: 0.1378491029 | DD50: 0.009649371387 | DE50: 0.03368294613 | DF50: 0.004811172648 | DG50: 0.01291619321 | DH50: 0.09087023849 | DI50: 1.639881215 | DJ50: 3.236407008
A51: Med Hist Resource.NumberBusy | B51: DSTAT AVERAGE | C51: Number Busy | D51: Resource | E51: Med Hist Resource | F51: 100.0591229 | G51: 98.17514689 | H51: 97.32854397 | I51: 97.92398204 | J51: 98.06831913 | K51: 101.7070618 | L51: 99.72287573 | M51: 98.37372746 | N51: 97.74739843 | O51: 91.39313073 | P51: 96.35624643 | Q51: 99.61041164 | R51: 98.73940114 | S51: 101.971507 | T51: 95.42323581 | U51: 99.39035792 | V51: 100.8263436 | W51: 101.5016944 | X51: 100.8964158 | Y51: 100.6888748 | Z51: 97.43508899 | AA51: 97.43814499 | AB51: 100.1703059 | AC51: 101.2046914 | AD51: 98.39421909 | AE51: 105.1156217 | AF51: 97.77823973 | AG51: 98.12100895 | AH51: 106.3795287 | AI51: 104.3931123 | AJ51: 99.14332165 | AK51: 105.4138007 | AL51: 101.8437893 | AM51: 102.7780856 | AN51: 99.33889393 | AO51: 99.68297302 | AP51: 99.38280949 | AQ51: 100.296868 | AR51: 100.5130448 | AS51: 103.8621662 | AT51: 93.21643019 | AU51: 102.1788561 | AV51: 95.1875818 | AW51: 96.78470912 | AX51: 98.63717821 | AY51: 99.09274916 | AZ51: 100.4842019 | BA51: 101.4376655 | BB51: 96.63377634 | BC51: 95.99547384 | BD51: 94.47716234 | BE51: 102.903674 | BF51: 92.97348609 | BG51: 106.031372 | BH51: 106.2946678 | BI51: 100.7284615 | BJ51: 103.3237723 | BK51: 95.24514918 | BL51: 98.36161321 | BM51: 101.3359312 | BN51: 95.84898222 | BO51: 95.82637983 | BP51: 102.1261921 | BQ51: 92.04249677 | BR51: 98.38808063 | BS51: 99.23815355 | BT51: 95.41959278 | BU51: 103.8455847 | BV51: 99.13771835 | BW51: 98.11729783 | BX51: 101.327112 | BY51: 95.03260011 | BZ51: 100.7096618 | CA51: 99.66670498 | CB51: 100.2599609 | CC51: 94.72775404 | CD51: 100.1192637 | CE51: 100.700114 | CF51: 96.41098954 | CG51: 98.54042548 | CH51: 96.83498849 | CI51: 101.1442381 | CJ51: 95.48416362 | CK51: 98.96233355 | CL51: 94.41297191 | CM51: 99.17568762 | CN51: 100.7015287 | CO51: 99.00870956 | CP51: 96.03487928 | CQ51: 97.67354385 | CR51: 97.61736937 | CS51: 100.660604 | CT51: 99.93903906 | CU51: 102.9257274 | CV51: 101.1018748 | CW51: 101.6723134 | CX51: 101.8948784 | CY51: 94.31876367 | CZ51: 98.64115852 | DA51: 93.08731196 | DB51: 99.13769143 | DC51: 106.3795287 | DD51: 91.39313073 | DE51: 99.17568762 | DF51: 0.613666954 | DG51: 94.20853032 | DH51: 104.4653633 | DI51: -0.03206883645 | DJ51: -0.01980088047
A52: Med Hist Resource.NumberScheduled | B52: DSTAT AVERAGE | C52: Number Scheduled | D52: Resource | E52: Med Hist Resource | F52: 134 | G52: 134 | H52: 134 | I52: 134 | J52: 134 | K52: 134 | L52: 134 | M52: 134 | N52: 134 | O52: 134 | P52: 134 | Q52: 134 | R52: 134 | S52: 134 | T52: 134 | U52: 134 | V52: 134 | W52: 134 | X52: 134 | Y52: 134 | Z52: 134 | AA52: 134 | AB52: 134 | AC52: 134 | AD52: 134 | AE52: 134 | AF52: 134 | AG52: 134 | AH52: 134 | AI52: 134 | AJ52: 134 | AK52: 134 | AL52: 134 | AM52: 134 | AN52: 134 | AO52: 134 | AP52: 134 | AQ52: 134 | AR52: 134 | AS52: 134 | AT52: 134 | AU52: 134 | AV52: 134 | AW52: 134 | AX52: 134 | AY52: 134 | AZ52: 134 | BA52: 134 | BB52: 134 | BC52: 134 | BD52: 134 | BE52: 134 | BF52: 134 | BG52: 134 | BH52: 134 | BI52: 134 | BJ52: 134 | BK52: 134 | BL52: 134 | BM52: 134 | BN52: 134 | BO52: 134 | BP52: 134 | BQ52: 134 | BR52: 134 | BS52: 134 | BT52: 134 | BU52: 134 | BV52: 134 | BW52: 134 | BX52: 134 | BY52: 134 | BZ52: 134 | CA52: 134 | CB52: 134 | CC52: 134 | CD52: 134 | CE52: 134 | CF52: 134 | CG52: 134 | CH52: 134 | CI52: 134 | CJ52: 134 | CK52: 134 | CL52: 134 | CM52: 134 | CN52: 134 | CO52: 134 | CP52: 134 | CQ52: 134 | CR52: 134 | CS52: 134 | CT52: 134 | CU52: 134 | CV52: 134 | CW52: 134 | CX52: 134 | CY52: 134 | CZ52: 134 | DA52: 134 | DB52: 134 | DC52: 134 | DD52: 134 | DE52: 134 | DG52: 134 | DH52: 134
A53: Med Hist Resource.Utilization | B53: DSTAT AVERAGE | C53: Instantaneous Utilization | D53: Resource | E53: Med Hist Resource | F53: 0.7467098725 | G53: 0.7326503499 | H53: 0.7263324177 | I53: 0.7307759853 | J53: 0.7318531279 | K53: 0.7590079242 | L53: 0.7442005651 | M53: 0.7341322945 | N53: 0.7294581973 | O53: 0.6820382891 | P53: 0.7190764659 | Q53: 0.7433612809 | R53: 0.7368612025 | S53: 0.7609813953 | T53: 0.7121137001 | U53: 0.741719089 | V53: 0.7524353999 | W53: 0.7574753316 | X53: 0.752958327 | Y53: 0.7514095134 | Z53: 0.7271275298 | AA53: 0.7271503357 | AB53: 0.7475395966 | AC53: 0.755258891 | AD53: 0.7342852171 | AE53: 0.7844449379 | AF53: 0.7296883562 | AG53: 0.7322463355 | AH53: 0.7938770797 | AI53: 0.7790530771 | AJ53: 0.7398755347 | AK53: 0.7866701542 | AL53: 0.7600282783 | AM53: 0.7670006385 | AN53: 0.7413350293 | AO53: 0.7439027838 | AP53: 0.7416627574 | AQ53: 0.7484840895 | AR53: 0.7500973493 | AS53: 0.7750907928 | AT53: 0.6956450014 | AU53: 0.7625287769 | AV53: 0.7103550881 | AW53: 0.7222739486 | AX53: 0.7360983449 | AY53: 0.739498128 | AZ53: 0.7498821035 | BA53: 0.756997504 | BB53: 0.7211475846 | BC53: 0.7163841331 | BD53: 0.7050534503 | BE53: 0.7679378658 | BF53: 0.6938319857 | BG53: 0.7912788954 | BH53: 0.7932437894 | BI53: 0.7517049365 | BJ53: 0.771072928 | BK53: 0.7107846954 | BL53: 0.7340418896 | BM53: 0.7562382924 | BN53: 0.7152909121 | BO53: 0.7151222375 | BP53: 0.7621357618 | BQ53: 0.6868843043 | BR53: 0.7342394077 | BS53: 0.7405832355 | BT53: 0.7120865133 | BU53: 0.7749670499 | BV53: 0.739833719 | BW53: 0.7322186405 | BX53: 0.7561724778 | BY53: 0.7091985083 | BZ53: 0.7515646404 | CA53: 0.7437813805 | CB53: 0.7482086633 | CC53: 0.7069235376 | CD53: 0.7471586843 | CE53: 0.7514933882 | CF53: 0.7194849966 | CG53: 0.7353763095 | CH53: 0.7226491678 | CI53: 0.7548077468 | CJ53: 0.7125683852 | CK53: 0.7385248772 | CL53: 0.7045744172 | CM53: 0.7401170718 | CN53: 0.7515039453 | CO53: 0.7388709669 | CP53: 0.7166782036 | CQ53: 0.7289070437 | CR53: 0.7284878311 | CS53: 0.7511985369 | CT53: 0.7458137244 | CU53: 0.7681024431 | CV53: 0.7544916027 | CW53: 0.7587486075 | CX53: 0.7604095404 | CY53: 0.7038713706 | CZ53: 0.7361280486 | DA53: 0.6946814325 | DB53: 0.7398335181 | DC53: 0.7938770797 | DD53: 0.6820382891 | DE53: 0.7401170718 | DF53: 0.004579604134 | DG53: 0.7030487337 | DH53: 0.7795922632 | DI53: -0.03206883645 | DJ53: -0.01980088047
A54: Process Greeting.Queue.NumberInQueue | B54: DSTAT AVERAGE | C54: Number Waiting | D54: Queue | E54: Process Greeting.Queue | F54: 0.4244144863 | G54: 0.6496318642 | H54: 0.4407992703 | I54: 0.4615776964 | J54: 0.670625106 | K54: 0.6651988004 | L54: 0.6514831036 | M54: 0.4250549974 | N54: 0.6211934285 | O54: 0.3657029083 | P54: 0.6676636753 | Q54: 0.550266005 | R54: 0.480616953 | S54: 0.6764117225 | T54: 0.5013232234 | U54: 0.4821290696 | V54: 0.735035179 | W54: 0.7753437146 | X54: 0.6496945298 | Y54: 0.6735960744 | Z54: 0.4440498478 | AA54: 0.4112628633 | AB54: 0.5143291712 | AC54: 0.597621124 | AD54: 0.6866119726 | AE54: 0.8524079376 | AF54: 0.4617511676 | AG54: 0.4936298523 | AH54: 0.7768360645 | AI54: 0.7400634654 | AJ54: 0.653464262 | AK54: 0.7896744805 | AL54: 0.6128084536 | AM54: 0.5617889709 | AN54: 0.5129598977 | AO54: 0.6264116655 | AP54: 0.763701811 | AQ54: 0.5714395849 | AR54: 0.5279280203 | AS54: 0.6291542264 | AT54: 0.6318078015 | AU54: 0.6308345614 | AV54: 0.565229794 | AW54: 0.5649786466 | AX54: 0.533390196 | AY54: 0.766236055 | AZ54: 0.5831849574 | BA54: 0.5843812775 | BB54: 0.749815721 | BC54: 0.3876018006 | BD54: 0.5292080647 | BE54: 0.557092558 | BF54: 0.5172189855 | BG54: 0.6669414519 | BH54: 0.6556881338 | BI54: 0.7051817868 | BJ54: 1.085242565 | BK54: 0.4592121284 | BL54: 0.6709452789 | BM54: 0.6496336558 | BN54: 0.5387403133 | BO54: 0.5989197973 | BP54: 0.7327782304 | BQ54: 0.3820543156 | BR54: 0.7913336038 | BS54: 0.5864714379 | BT54: 0.6332226541 | BU54: 0.7827961302 | BV54: 0.5710146636 | BW54: 0.4192769513 | BX54: 0.664168693 | BY54: 0.3979528313 | BZ54: 0.7085826481 | CA54: 0.7280512235 | CB54: 0.7009254671 | CC54: 1.011373729 | CD54: 0.515886029 | CE54: 0.7498816987 | CF54: 0.5072686598 | CG54: 0.5170944312 | CH54: 0.638913874 | CI54: 0.7435055739 | CJ54: 0.4331668688 | CK54: 0.444054428 | CL54: 0.5797878416 | CM54: 0.5410386194 | CN54: 0.6219009311 | CO54: 0.5869634148 | CP54: 0.4920216379 | CQ54: 0.5872745338 | CR54: 0.5751895909 | CS54: 0.6441245879 | CT54: 0.6306887236 | CU54: 0.5315405741 | CV54: 0.5907832634 | CW54: 0.8327095192 | CX54: 0.652077223 | CY54: 0.6364801291 | CZ54: 0.5110032308 | DA54: 0.4844044251 | DB54: 0.607681718 | DC54: 1.085242565 | DD54: 0.3657029083 | DE54: 0.5989197973 | DF54: 0.02490201804 | DG54: 0.4184755425 | DH54: 0.7898403928 | DI54: 0.7232760005 | DJ54: 1.558686209
A55: Process Greeting.Queue.WaitingTime | B55: TALLY AVERAGE | C55: Waiting Time | D55: Queue | E55: Process Greeting.Queue | F55: 0.02939236408 | G55: 0.0459468824 | H55: 0.03149636956 | I55: 0.03267681894 | J55: 0.04747464877 | K55: 0.04546851089 | L55: 0.04533438029 | M55: 0.02997331098 | N55: 0.04422495464 | O55: 0.02786501201 | P55: 0.047992731 | Q55: 0.03831353058 | R55: 0.0338125764 | S55: 0.04633235264 | T55: 0.03641804531 | U55: 0.03365394211 | V55: 0.05078014997 | W55: 0.05292968946 | X55: 0.04459130902 | Y55: 0.04630989889 | Z55: 0.03163752949 | AA55: 0.02925981304 | AB55: 0.03570671864 | AC55: 0.04096210417 | AD55: 0.04819753707 | AE55: 0.05663397017 | AF55: 0.03277484538 | AG55: 0.03487835917 | AH55: 0.05079103906 | AI55: 0.0490884275 | AJ55: 0.04577012199 | AK55: 0.05225258937 | AL55: 0.04164822241 | AM55: 0.03788661355 | AN55: 0.03595064964 | AO55: 0.04373787818 | AP55: 0.05305216393 | AQ55: 0.03981734241 | AR55: 0.03648412886 | AS55: 0.04211732429 | AT55: 0.04696699158 | AU55: 0.04281049221 | AV55: 0.04119982143 | AW55: 0.04078233456 | AX55: 0.03751607395 | AY55: 0.05369871871 | AZ55: 0.04043728634 | BA55: 0.04016252189 | BB55: 0.0539107169 | BC55: 0.02784347562 | BD55: 0.03900842462 | BE55: 0.03767471375 | BF55: 0.03878423167 | BG55: 0.04358825941 | BH55: 0.04295767671 | BI55: 0.04856562934 | BJ55: 0.0731153952 | BK55: 0.03352275654 | BL55: 0.04778782729 | BM55: 0.04469670621 | BN55: 0.0389160015 | BO55: 0.04338284609 | BP55: 0.04979507689 | BQ55: 0.02885424342 | BR55: 0.0558858836 | BS55: 0.04113342612 | BT55: 0.04609424915 | BU55: 0.05272375323 | BV55: 0.04006870363 | BW55: 0.02971573068 | BX55: 0.04571646091 | BY55: 0.02898141297 | BZ55: 0.04873634445 | CA55: 0.05065161356 | CB55: 0.04858927359 | CC55: 0.07436205135 | CD55: 0.03579101053 | CE55: 0.05183245132 | CF55: 0.03673485171 | CG55: 0.03641736694 | CH55: 0.0458032311 | CI55: 0.05102615838 | CJ55: 0.03139350341 | CK55: 0.03106050999 | CL55: 0.0425708036 | CM55: 0.03769735283 | CN55: 0.04298881783 | CO55: 0.04127809102 | CP55: 0.03572583748 | CQ55: 0.04201381334 | CR55: 0.04095835629 | CS55: 0.04445587596 | CT55: 0.04403959549 | CU55: 0.03608695436 | CV55: 0.04079911627 | CW55: 0.0568974975 | CX55: 0.04436490039 | CY55: 0.04684512222 | CZ55: 0.03591001913 | DA55: 0.03604972596 | DB55: 0.04250121798 | DC55: 0.07436205135 | DD55: 0.02784347562 | DE55: 0.04211732429 | DF55: 0.001645518843 | DG55: 0.02967013892 | DH55: 0.05410823357 | DI55: 0.8827649541 | DJ55: 2.268932729
